Workbook

Sheet INDICE
F1: EUROPA - DÉCADA
F2: Trocas comerciais com Portugal (PT) 2009-2018 Agroalimentar, Mar & Florestas
C3: Fonte
D4: Estatísticas do Comércio Internacional | F4: 1. Europa - Síntese
D5: dados: 2017 provisórios; 2018 preliminares | F5: 2. Evolução da balança comercial
F6: 3. Principais transações de Agroalimentar, Mar & Florestas (NC 2 e 4 dígitos)
C7: Data | D7: 2019-11-26 | F7: 3A Principais produtos agrícolas e agroalimentares transacionados (NC 2D)
F8: 3B Principais origens/destinos para Agroalimentar, Mar & Florestas
F9: 3C Principais origens/destinos produtos agrícolas e agroalimentares
F10: 4. Evolução da balança comercial por país e produto
F11: 4A Evolução da balança comercial por produto
F12: 5.1. Trocas comerciais por país
F13: 5.1A Trocas comerciais por país (produtos agrícolas e agroalimentares)
F14: 5.2. Trocas comerciais por produto (NC 2 dígitos)
C22: Lista de países
D23: Albânia, Alemanha, Andorra, Áustria, Bielorrússia, Bélgica, Bósnia-Herzegovina, Bulgária, República Checa, Chipre, Croácia, Dinamarca, Eslováquia, Eslovénia, Espanha, Estónia, Finlândia, França, Grécia, Hungria, Irlanda, Islândia, Itália, Kosovo, Letónia, Liechtenstein, Lituânia, Luxemburgo, Macedónia, Malta, Moldávia, Montenegro, Noruega, Países Baixos, Polónia, Reino Unido, Roménia, Santa Sé, São Marino, Sérvia, Suécia, Suíça, Turquia, Ucrânia

Sheet 1
A1: Europa - Síntese para Agroalimentar, Mar & Florestas 2009-2018
A3: • As trocas comerciais de bens transacionáveis (excluindo serviços) entre Portugal e Europa representam um total de 34,7 mil milhões de € em exportações e 47,1 mil milhões de € em importações, na média do período 2009-2018, correspondendo a um saldo negativo da balança comercial de cerca de -12,4 mil milhões.
A4: • No que respeita aos produtos dos setores agrícola e agroalimentar, mar e florestas, Portugal exportou para Europa 7 mil milhões de € em média anual, no mesmo período, enquanto as importações ascenderam a 9,3 mil milhões de € . Estes setores representam perto de 20,1% do total de exportações de bens transacionáveis e as importações 19,8% das correspondentes importações. Se nos referirmos apenas ao setor agrícola e agroalimentar, as exportações representam, em média, 3,5 mil milhões de € e as importações 6,4 mil milhões.
A5: • As principais exportações do setor Agroalimentar, Mar & Florestas (NC 4 dígitos) neste período são Papel e cartão p/ escrita, etc. (11%), Vinhos de uvas frescas (6%) e Charutos, cigarrilhas e cigarros (6%). As importações mais relevantes do mesmo setor referem-se a Carnes de bovino, frescas ou refrigeradas (4%), Produtos de padaria, pastelaria, etc. (3%) e Peixes secos, salgados ou fumados (3%).
A6: • Os principais destinos das exportações do setor Agroalimentar, Mar & Florestas no mesmo período são Espanha (43%), França (14%) e Alemanha (8%). As principais origens das importações são Espanha (56%), França (10%) e Alemanha (7%).
A8: Trocas PT-Europa (milhões de euros) Agroalimentar, Mar & Florestas | H8: Trocas PT-Europa (milhões de euros) produtos agrícolas e agroalimentares
B10: 2016 | C10: 2017 | D10: 2018 | E10: média 2009-2018 | F10: TVMA* 2009-2018 | G10: TVT* 2009-2018 | I10: 2016 | J10: 2017 | K10: 2018 | L10: média 2009-2018 | M10: TVMA* 2009-2018 | N10: TVT* 2009-2018
A11: Exportações | B11: 7761.185534 | C11: 8130.239075 | D11: 8566.753963 | E11: 6966.504805 | F11: 0.05496479366 | G11: 0.7075745202 | H11: Exportações | I11: 3958.977308 | J11: 4166.113276 | K11: 4412.71544 | L11: 3452.990787 | M11: 0.05276212559 | N11: 0.6722550753
A12: Importações | B12: 9788.210863 | C12: 10693.34145 | D12: 11044.6066 | E12: 9319.507029 | F12: 0.03403072125 | G12: 0.3974440188 | H12: Importações | I12: 6667.919707 | J12: 7288.149933 | K12: 7542.853024 | L12: 6413.075629 | M12: 0.03264853391 | N12: 0.3788763663
A13: Saldo | B13: -2027.025329 | C13: -2563.102376 | D13: -2477.852639 | E13: -2353.002224 | H13: Saldo | I13: -2708.942399 | J13: -3122.036657 | K13: -3130.137584 | L13: -2960.084842
A14: *TVMA - Taxa de variação média anual; TVT - Taxa de variação total
C15: Saldo da Balança Comercial PT-Europa (milhões de euros)
C16: 2009 | D16: 2010 | E16: 2011 | F16: 2012 | G16: 2013 | H16: 2014 | I16: 2015 | J16: 2016 | K16: 2017 | L16: 2018 | M16: média 2009-2018
A17: Total bens transacionáveis* | C17: -17624.30826 | D17: -17828.90896 | E17: -12827.21854 | F17: -8974.925264 | G17: -8528.139668 | H17: -10464.04435 | I17: -10485.9917 | J17: -10471.67499 | K17: -12915.03986 | L17: -14058.17376 | M17: -12417.84254
A18: Agrícola e Agroalimentar (AA) | C18: -2831.508273 | D18: -3085.453584 | E18: -3157.777814 | F18: -3098.465158 | G18: -3064.113906 | H18: -2819.064091 | I18: -2583.348953 | J18: -2708.942399 | K18: -3122.036657 | L18: -3130.137584 | M18: -2960.084842
B19: Mar (M) | C19: -538.320081 | D19: -480.445271 | E19: -489.637143 | F19: -472.629768 | G19: -450.835923 | H19: -453.804557 | I19: -558.237534 | J19: -591.50171 | K19: -644.407987 | L19: -630.004181 | M19: -530.9824155
B20: Florestas (F) | C20: 483.308008 | D20: 896.36636 | E20: 1049.024969 | F20: 1287.025022 | G20: 1336.834681 | H20: 1227.050949 | I20: 1338.816297 | J20: 1273.41878 | K20: 1203.342268 | L20: 1282.289126 | M20: 1137.747646
B21: AA + M + F | C21: -2886.520346 | D21: -2669.532495 | E21: -2598.389988 | F21: -2284.069904 | G21: -2178.115148 | H21: -2045.817699 | I21: -1802.77019 | J21: -2027.025329 | K21: -2563.102376 | L21: -2477.852639 | M21: -2353.319611
B22: *exclui serviços
A23: Evolução das trocas comerciais PT-Europa (em milhões de euros 2009-2018)
F32: Exportações | H32: Importações | J32: Saldo
A33: Principais transações de Agroalimentar, Mar & Florestas (NC 2 dígitos)
A52: Principais origens e destinos em Europa para Agroalimentar, Mar & Florestas (média 2009-2018)
A67: Principais transações de Agroalimentar, Mar & Florestas (NC 4 dígitos - média 2009-2018)
A89: Fonte: GPP a partir de dados INE/Comércio Internacional (2017 provisórios; 2018 preliminares) | L89: 2019-11-26

Sheet 2
A1: Evolução da balança comercial Portugal-Europa 2009-2018 em milhões de euros
A3: Total de Bens Transacionáveis (BT)(1) | B3: 2009 | C3: 2010 | D3: 2011 | E3: 2012 | F3: 2013 | G3: 2014 | H3: 2015 | I3: 2016 | J3: 2017 | K3: 2018 | L3: média período | M3: var. 09/10 | N3: var. 10/11 | O3: var. 11/12 | P3: var. 12/13 | Q3: var. 13/14 | R3: var. 14/15 | S3: var. 15/16 | T3: var. 16/17 | U3: var. 17/18 | V3: TVMA* 2009-2018 | W3: TVT* 2009-2018
A4: Exportações | B4: 24018.16198 | C4: 28211.78687 | D4: 32189.43474 | E4: 32478.61087 | F4: 33747.24854 | G4: 34678.41155 | H4: 36811.59927 | I4: 38514.55665 | J4: 41596.39414 | K4: 44700.58817 | L4: 34694.67928 | M4: 0.1746022404 | N4: 0.1409924116 | O4: 0.008983572883 | P4: 0.03906071208 | Q4: 0.02759226457 | R4: 0.06151342088 | S4: 0.04626143421 | T4: 0.08001747274 | U4: 0.0746265175 | V4: 0.06408751306 | W4: 0.8611161093
A5: Importações | B5: 41642.47024 | C5: 46040.69583 | D5: 45016.65328 | E5: 41453.53613 | F5: 42275.3882 | G5: 45142.4559 | H5: 47297.59097 | I5: 48986.23164 | J5: 54511.434 | K5: 58758.76193 | L5: 47112.52181 | M5: 0.1056187483 | N5: -0.02224211708 | O5: -0.07915108937 | P5: 0.01982586164 | Q5: 0.06781883781 | R5: 0.04774075818 | S5: 0.03570246669 | T5: 0.1127909247 | U5: 0.07791627589 | V5: 0.03503161438 | W5: 0.4110296913
A6: Saldo (exp-imp) | B6: -17624.30826 | C6: -17828.90896 | D6: -12827.21854 | E6: -8974.925264 | F6: -8528.139668 | G6: -10464.04435 | H6: -10485.9917 | I6: -10471.67499 | J6: -12915.03986 | K6: -14058.17376 | L6: -12417.84254
A7: Cobertura (exp/imp) | B7: 0.5767708265 | C7: 0.6127576129 | D7: 0.715056149 | E7: 0.7834943385 | F7: 0.7982717598 | G7: 0.7681994888 | H7: 0.7782975521 | I7: 0.7862322812 | J7: 0.7630764976 | K7: 0.7607476179 | L7: 0.7364216124
A8: Exp BT Europa / Exp BT Mundo | B8: 0.7609231628 | C8: 0.7592108866 | D8: 0.751410632 | E8: 0.7182056755 | F8: 0.7131945389 | G8: 0.7215617925 | H8: 0.7414049029 | I8: 0.7695729706 | J8: 0.7559211212 | K8: 0.7732015172 | L8: 0.7466028144 | V8: Exportações
A9: Imp BT Europa / Imp BT Mundo | B9: 0.8117607938 | C9: 0.7861707013 | D9: 0.7559282563 | E9: 0.7353296765 | F9: 0.74150664 | G9: 0.7647100489 | H9: 0.7837890146 | I9: 0.7975094386 | J9: 0.7822149056 | K9: 0.7796670566 | L9: 0.7740444163 | V9: Importações
A10: Exp BT Europa / Exp TE Mundo | B10: 0.5055112302 | C10: 0.5248618017 | D10: 0.5328505966 | E10: 0.511443299 | F10: 0.5015647873 | G10: 0.4999745899 | H10: 0.5067149237 | I10: 0.5161484721 | J10: 0.5005675513 | K10: 0.5087247557 | L10: 0.5101749332
A11: Imp BT Europa / Imp TE Mundo | B11: 0.6980534423 | C11: 0.6835973811 | D11: 0.662477862 | E11: 0.644098572 | F11: 0.6447101262 | G11: 0.6539234518 | H11: 0.6605754178 | I11: 0.6752702024 | J11: 0.6685372627 | K11: 0.6708939348 | L11: 0.6661956112
A12: (1) Todos os produtos transacionados entre PT e Europa (exclui serviços) | D12: TE - Total da Economia (bens e serviços) Fonte: INE/Contas Nacionais | M12: *TVMA - Taxa de variação média anual; TVT - Taxa de variação total
A24: Agro(1) + Mar + Florestas (AMF) | B24: 2009 | C24: 2010 | D24: 2011 | E24: 2012 | F24: 2013 | G24: 2014 | H24: 2015 | I24: 2016 | J24: 2017 | K24: 2018 | L24: média período | M24: var. 09/10 | N24: var. 10/11 | O24: var. 11/12 | P24: var. 12/13 | Q24: var. 13/14 | R24: var. 14/15 | S24: var. 15/16 | T24: var. 16/17 | U24: var. 17/18 | V24: TVMA* 2009-2018 | W24: TVT* 2009-2018
A25: Exportações | B25: 5016.913676 | C25: 5776.577542 | D25: 6348.678828 | E25: 6457.652272 | F25: 6799.916474 | G25: 7148.416622 | H25: 7658.714067 | I25: 7761.185534 | J25: 8130.239075 | K25: 8566.753963 | L25: 6966.504805 | M25: 0.1514205575 | N25: 0.09903810376 | O25: 0.01716474356 | P25: 0.05300133664 | Q25: 0.05125065129 | R25: 0.07138608058 | S25: 0.01337972225 | T25: 0.04755118137 | U25: 0.0536902893 | V25: 0.05496479366 | W25: 0.7075745202
A26: Importações | B26: 7903.434022 | C26: 8446.110037 | D26: 8947.068816 | E26: 8741.722176 | F26: 8978.031622 | G26: 9194.234321 | H26: 9461.484257 | I26: 9788.210863 | J26: 10693.34145 | K26: 11044.6066 | L26: 9319.824417 | M26: 0.06866331945 | N26: 0.05931236709 | O26: -0.02295127535 | P26: 0.02703236745 | Q26: 0.02408130291 | R26: 0.02906712258 | S26: 0.03453227814 | T26: 0.09247150482 | U26: 0.03284896051 | V26: 0.03403072125 | W26: 0.3974440188
A27: Saldo (exp-imp) | B27: -2886.520346 | C27: -2669.532495 | D27: -2598.389988 | E27: -2284.069904 | F27: -2178.115148 | G27: -2045.817699 | H27: -1802.77019 | I27: -2027.025329 | J27: -2563.102376 | K27: -2477.852639 | L27: -2353.319611
A28: Cobertura (exp/imp) | B28: 0.6347764354 | C28: 0.6839334933 | D28: 0.7095819825 | E28: 0.7387162554 | F28: 0.7573950238 | G28: 0.7774890624 | H28: 0.8094622217 | I28: 0.7929115589 | J28: 0.7603085633 | K28: 0.7756504393 | L28: 0.7474931387
A29: Exp AMF / Exp BT | B29: 0.2088800001 | C29: 0.2047575919 | D29: 0.1972286522 | E29: 0.198827847 | F29: 0.2014954335 | G29: 0.2061344884 | H29: 0.2080516527 | I29: 0.2015130436 | J29: 0.1954553813 | K29: 0.1916474551 | L29: 0.2007946161 | V29: Exportações
A30: Imp AMF / Imp BT | B30: 0.1897926318 | C30: 0.1834487921 | D30: 0.1987501994 | E30: 0.2108800115 | F30: 0.2123701757 | G30: 0.2036715579 | H30: 0.2000415679 | I30: 0.1998155509 | J30: 0.1961669445 | K30: 0.1879652709 | L30: 0.1978205381 | V30: Importações
A31: Exp AMF Europa / Exp AMF Mundo | B31: 0.7485551232 | C31: 0.7397053783 | D31: 0.7324032842 | E31: 0.7193639357 | F31: 0.7145170963 | G31: 0.7170504173 | H31: 0.7359752253 | I31: 0.7382872411 | J31: 0.7292665527 | K31: 0.7713666176 | L31: 0.7347417977
A32: Imp AMF Europa / Imp AMF Mundo | B32: 0.8336297124 | C32: 0.8168896257 | D32: 0.7984367434 | E32: 0.8257830675 | F32: 0.8143559594 | G32: 0.8353141441 | H32: 0.8233124804 | I32: 0.8213006987 | J32: 0.8204604045 | K32: 0.874832961 | L32: 0.8268742846
A33: (1) Produtos agrícolas e agroalimentares | B33: BT - Total de Bens Transacionáveis (exclui serviços) | M33: *TVMA - Taxa de variação média anual; TVT - Taxa de variação total
A49: Agroalimentar (AA)(1) | B49: 2009 | C49: 2010 | D49: 2011 | E49: 2012 | F49: 2013 | G49: 2014 | H49: 2015 | I49: 2016 | J49: 2017 | K49: 2018 | L49: média período | M49: var. 09/10 | N49: var. 10/11 | O49: var. 11/12 | P49: var. 12/13 | Q49: var. 13/14 | R49: var. 14/15 | S49: var. 15/16 | T49: var. 16/17 | U49: var. 17/18 | V49: TVMA* 2009-2018 | W49: TVT* 2009-2018
A50: Exportações | B50: 2638.781311 | C50: 2700.280224 | D50: 2893.953253 | E50: 3079.499718 | F50: 3279.728205 | G50: 3512.963658 | H50: 3886.895481 | I50: 3958.977308 | J50: 4166.113276 | K50: 4412.71544 | L50: 3452.990787 | M50: 0.02330580133 | N50: 0.07172330756 | O50: 0.06411522536 | P50: 0.06501981014 | Q50: 0.07111426265 | R50: 0.1064434077 | S50: 0.01854483285 | T50: 0.05232057471 | U50: 0.05919238092 | V50: 0.05276212559 | W50: 0.6722550753
A51: Importações | B51: 5470.289584 | C51: 5785.733808 | D51: 6051.731067 | E51: 6177.964876 | F51: 6343.842111 | G51: 6332.027749 | H51: 6470.244434 | I51: 6667.919707 | J51: 7288.149933 | K51: 7542.853024 | L51: 6413.075629 | M51: 0.05766499546 | N51: 0.04597467976 | O51: 0.02085912404 | P51: 0.0268498184 | Q51: -0.001862335442 | R51: 0.02182818687 | S51: 0.03055143821 | T51: 0.09301705078 | U51: 0.03494756466 | V51: 0.03264853391 | W51: 0.3788763663
A52: Saldo (exp-imp) | B52: -2831.508273 | C52: -3085.453584 | D52: -3157.777814 | E52: -3098.465158 | F52: -3064.113906 | G52: -2819.064091 | H52: -2583.348953 | I52: -2708.942399 | J52: -3122.036657 | K52: -3130.137584 | L52: -2960.084842
A53: Cobertura (exp/imp) | B53: 0.4823842085 | C53: 0.4667135256 | D53: 0.4782025541 | E53: 0.4984650738 | F53: 0.5169939837 | G53: 0.55479284 | H53: 0.6007339476 | I53: 0.5937350001 | J53: 0.5716283713 | K53: 0.5850194119 | L53: 0.5384297624
A54: Exp AA / Exp AMF | B54: 0.5259770212 | C54: 0.4674532981 | D54: 0.4558355103 | E54: 0.4768760516 | F54: 0.4823188958 | G54: 0.491432417 | H54: 0.5075128079 | I54: 0.5100995577 | J54: 0.5124219888 | K54: 0.5150977207 | L54: 0.4956561266 | V54: Exportações
A55: Imp AA / Imp AMF | B55: 0.6921408553 | C55: 0.6850175741 | D55: 0.676392592 | E55: 0.7067217136 | F55: 0.7065960979 | G55: 0.6886954941 | H55: 0.6838508904 | I55: 0.6812194588 | J55: 0.6815596384 | K55: 0.682944472 | L55: 0.6881112071 | V55: Importações
A56: Exp AA / Exp BT | B56: 0.1098660802 | C56: 0.09571461165 | D56: 0.08990382331 | E56: 0.09481623861 | F56: 0.097185055 | G56: 0.1013011698 | H56: 0.1055888784 | I56: 0.1027917144 | J56: 0.1001556352 | K56: 0.09871716728 | L56: 0.09952508164
A57: Imp AA / Imp BT | B57: 0.1313632345 | C57: 0.1256656465 | D57: 0.1344331625 | E57: 0.1490334831 | F57: 0.1500599375 | G57: 0.1402676842 | H57: 0.1367986043 | I57: 0.1361182415 | J57: 0.1336994718 | K57: 0.1283698427 | L57: 0.1361225293
A58: Exp AA Europa / Exp AA Mundo | B58: 0.7502343169 | C58: 0.725308167 | D58: 0.6962472658 | E58: 0.6882600243 | F58: 0.6798778415 | G58: 0.6814423753 | H58: 0.7224944178 | I58: 0.7236555953 | J58: 0.7074255116 | K58: 0.7253076938 | L58: 0.7094131709
A59: Imp AA Europa / Imp AA Mundo | B59: 0.8375968566 | C59: 0.8283538852 | D59: 0.7908583001 | E59: 0.8285213362 | F59: 0.8097551559 | G59: 0.8403826861 | H59: 0.833367316 | I59: 0.8361436384 | J59: 0.8341350533 | K59: 0.8387126514 | L59: 0.8278934871
A60: (1) Produtos agrícolas e agroalimentares | B60: AMF - Agroalimentar, Mar e Florestas; BT - Total de Bens Transacionáveis (exclui serviços) | M60: *TVMA - Taxa de variação média anual; TVT - Taxa de variação total
A72: Mar (M) | B72: 2009 | C72: 2010 | D72: 2011 | E72: 2012 | F72: 2013 | G72: 2014 | H72: 2015 | I72: 2016 | J72: 2017 | K72: 2018 | L72: média período | M72: var. 09/10 | N72: var. 10/11 | O72: var. 11/12 | P72: var. 12/13 | Q72: var. 13/14 | R72: var. 14/15 | S72: var. 15/16 | T72: var. 16/17 | U72: var. 17/18 | V72: TVMA* 2009-2018 | W72: TVT* 2009-2018
A73: Exportações | B73: 436.440055 | C73: 579.444389 | D73: 654.165818 | E73: 619.471328 | F73: 628.391557 | G73: 721.77106 | H73: 730.120376 | I73: 803.631791 | J73: 876.000913 | K73: 905.034609 | L73: 695.4471896 | M73: 0.3276608835 | N73: 0.1289535811 | O73: -0.05303623186 | P73: 0.01439974474 | Q73: 0.1486008237 | R73: 0.01156781764 | S73: 0.1006839658 | T73: 0.09005258728 | U73: 0.03314345404 | V73: 0.07565762101 | W73: 1.073674491
A74: Importações | B74: 974.760136 | C74: 1059.88966 | D74: 1143.802961 | E74: 1092.101096 | F74: 1079.22748 | G74: 1175.575617 | H74: 1288.35791 | I74: 1395.133501 | J74: 1520.4089 | K74: 1535.03879 | L74: 1226.429605 | M74: 0.08733381768 | N74: 0.07917173284 | O74: -0.04520172334 | P74: -0.01178793433 | Q74: 0.08927509611 | R74: 0.09593793149 | S74: 0.0828772736 | T74: 0.0897945601 | U74: 0.009622339096 | V74: 0.04645886024 | W74: 0.574786179
A75: Saldo (exp-imp) | B75: -538.320081 | C75: -480.445271 | D75: -489.637143 | E75: -472.629768 | F75: -450.835923 | G75: -453.804557 | H75: -558.237534 | I75: -591.50171 | J75: -644.407987 | K75: -630.004181 | L75: -530.9824155
A76: Cobertura (exp/imp) | B76: 0.4477409764 | C76: 0.5467025586 | D76: 0.5719217735 | E76: 0.5672289226 | F76: 0.5822605231 | G76: 0.6139724655 | H76: 0.5667061694 | I76: 0.5760250115 | J76: 0.5761613951 | K76: 0.5895841948 | L76: 0.56705023
A77: Exp M / Exp AMF | B77: 0.08699373423 | C77: 0.1003092895 | D77: 0.1030396773 | E77: 0.09592825719 | F77: 0.0924116582 | G77: 0.1009693612 | H77: 0.09533197997 | I77: 0.1035449787 | J77: 0.1077460214 | K77: 0.1056449868 | L77: 0.0998272748 | V77: Exportações
A78: Imp M / Imp AMF | B78: 0.1233337475 | C78: 0.1254884977 | D78: 0.1278410823 | E78: 0.124929742 | F78: 0.1202075828 | G78: 0.1278600888 | H78: 0.1361686893 | I78: 0.1425320235 | J78: 0.1421827692 | K78: 0.138985375 | L78: 0.1315936385 | V78: Importações
A79: Exp M / Exp BT | B79: 0.01817125121 | C79: 0.02053908856 | D79: 0.02032237669 | E79: 0.01907320884 | F79: 0.01862052713 | G79: 0.02081326762 | H79: 0.01983397599 | I79: 0.02086566381 | J79: 0.02105953968 | K79: 0.02024659285 | L79: 0.02004477932
A80: Imp M / Imp BT | B80: 0.02340783653 | C80: 0.02302071333 | D80: 0.0254084406 | E80: 0.02634518543 | F80: 0.02552850549 | G80: 0.02604146349 | H80: 0.02723939811 | I80: 0.02848011481 | J80: 0.02789155941 | K80: 0.02612442365 | L80: 0.02603192438
A81: Exp M Europa / Exp M Mundo | B81: 0.8420630852 | C81: 0.8437845138 | D81: 0.8217022894 | E81: 0.7898098286 | F81: 0.7683673368 | G81: 0.8035846192 | H81: 0.8124136465 | I81: 0.8362126955 | J81: 0.8252456794 | K81: 0.8319884179 | L81: 0.8171619154
A82: Imp M Europa / Imp M Mundo | B82: 0.7667423288 | C82: 0.7585457943 | D82: 0.7582121329 | E82: 0.747698498 | F82: 0.7477680836 | G82: 0.747020438 | H82: 0.7304838518 | I82: 0.7229310319 | J82: 0.7114878506 | K82: 0.6967911052 | L82: 0.7349093552
A83: AMF - Agroalimentar, Mar e Florestas; BT - Total de Bens Transacionáveis (exclui serviços) | M83: *TVMA - Taxa de variação média anual; TVT - Taxa de variação total
A95: Florestas (F) | B95: 2009 | C95: 2010 | D95: 2011 | E95: 2012 | F95: 2013 | G95: 2014 | H95: 2015 | I95: 2016 | J95: 2017 | K95: 2018 | L95: média período | M95: var. 09/10 | N95: var. 10/11 | O95: var. 11/12 | P95: var. 12/13 | Q95: var. 13/14 | R95: var. 14/15 | S95: var. 15/16 | T95: var. 16/17 | U95: var. 17/18 | V95: TVMA* 2009-2018 | W95: TVT* 2009-2018
A96: Exportações | B96: 1941.69231 | C96: 2496.852929 | D96: 2800.559757 | E96: 2758.681226 | F96: 2891.796712 | G96: 2913.681904 | H96: 3041.69821 | I96: 2998.576435 | J96: 3088.124886 | K96: 3249.003914 | L96: 2818.066828 | M96: 0.2859158561 | N96: 0.1216358499 | O96: -0.01495362879 | P96: 0.04825330478 | Q96: 0.007568025757 | R96: 0.04393626697 | S96: -0.0141768749 | T96: 0.02986365462 | U96: 0.05209602394 | V96: 0.05282692338 | W96: 0.673284638
A97: Importações | B97: 1458.384302 | C97: 1600.486569 | D97: 1751.534788 | E97: 1471.656204 | F97: 1554.962031 | G97: 1686.630955 | H97: 1702.881913 | I97: 1725.157655 | J97: 1884.782618 | K97: 1966.714788 | L97: 1680.319182 | M97: 0.09743814906 | N97: 0.09437643647 | O97: -0.1597904797 | P97: 0.0566068534 | Q97: 0.08467661678 | R97: 0.00963515934 | S97: 0.01308120183 | T97: 0.09252775393 | U97: 0.04347035526 | V97: 0.03035513595 | W97: 0.3485572941
A98: Saldo (exp-imp) | B98: 483.308008 | C98: 896.36636 | D98: 1049.024969 | E98: 1287.025022 | F98: 1336.834681 | G98: 1227.050949 | H98: 1338.816297 | I98: 1273.41878 | J98: 1203.342268 | K98: 1282.289126 | L98: 1137.747646
A99: Cobertura (exp/imp) | B99: 1.331399623 | C99: 1.560058658 | D99: 1.598917576 | E99: 1.874541906 | F99: 1.859721752 | G99: 1.727515966 | H99: 1.786206188 | I99: 1.738146323 | J99: 1.638451489 | K99: 1.651995467 | L99: 1.677102099
A100: Exp F / Exp AMF | B100: 0.3870292446 | C100: 0.4322374124 | D100: 0.4411248124 | E100: 0.4271956912 | F100: 0.425269446 | G100: 0.4075982218 | H100: 0.3971552121 | I100: 0.3863554636 | J100: 0.3798319899 | K100: 0.3792572926 | L100: 0.4045165986 | V100: Exportações
A101: Imp F / Imp AMF | B101: 0.1845253972 | C101: 0.1894939282 | D101: 0.1957663257 | E101: 0.1683485444 | F101: 0.1731963192 | G101: 0.183444417 | H101: 0.1799804203 | I101: 0.1762485176 | J101: 0.1762575923 | K101: 0.1780701531 | L101: 0.1802951544 | V101: Importações
A102: Exp F / Exp BT | B102: 0.08084266864 | C102: 0.08850389167 | D102: 0.0870024522 | E102: 0.08493839952 | F102: 0.08568985139 | G102: 0.08402005092 | H102: 0.08262879826 | I102: 0.07785566539 | J102: 0.07424020639 | K102: 0.07268369493 | L102: 0.08122475512
A103: Imp F / Imp BT | B103: 0.03502156077 | C103: 0.03476243224 | D103: 0.03890859627 | E103: 0.03550134298 | F103: 0.03678173275 | G103: 0.0373624102 | H103: 0.03600356547 | I103: 0.03521719465 | J103: 0.03457591334 | K103: 0.03347100455 | L103: 0.03566608446
A104: Exp F Europa / Exp F Mundo | B104: 0.7281650606 | C104: 0.734447949 | D104: 0.7537159111 | E104: 0.7419327633 | F104: 0.7462745645 | G104: 0.7440797719 | H104: 0.7369028204 | I104: 0.7348408717 | J104: 0.7356369756 | K104: 0.8258308953 | L104: 0.7488631714
A105: Imp F Europa / Imp F Mundo | B105: 0.868854211 | C105: 0.8176295372 | D105: 0.8564649371 | E105: 0.8818930985 | F105: 0.8899915763 | G105: 0.8883848409 | H105: 0.8669194624 | I105: 0.856796136 | J105: 0.8729783568 | K105: 1.376830497 | L105: 0.9053073236
A106: AMF - Agroalimentar, Mar e Florestas; BT - Total de Bens Transacionáveis (exclui serviços) | M106: *TVMA - Taxa de variação média anual; TVT - Taxa de variação total
A116: Fonte: GPP a partir de dados INE/Comércio Internacional (2017 provisórios; 2018 preliminares) | M116: 2019-11-26

Sheet 3
A1: Principais transações de Agroalimentar, Mar & Florestas entre Portugal e Europa em 2009-2018 (NC a 2 e 4 dígitos) em milhões de euros
AC4: P | AE4: Cód.NC | AF4: Descritivo | AG4: Média export quinquénio | AH4: % do total | AI4: % acumulada | AN4: P | AO4: NC | AP4: Exportações | AQ4: 2009 | AR4: 2010 | AS4: 2011 | AT4: 2012 | AU4: 2013 | AV4: 2014 | AW4: 2015 | AX4: 2016 | AY4: 2017 | AZ4: 2018 | BA4: média período
AC5: 1 | AD5: º | AE5: 48 | AF5: Papel e cartão | AG5: 1208.749449 | AH5: 0.1735087369 | AN5: 1º | AO5: 48 | AP5: Papel e cartão | AQ5: 788.769802 | AR5: 1103.366068 | AS5: 1157.662165 | AT5: 1189.339734 | AU5: 1262.063576 | AV5: 1260.139507 | AW5: 1264.216034 | AX5: 1303.785287 | AY5: 1359.674581 | AZ5: 1398.477737 | BA5: 1208.749449
AC6: 2 | AD6: º | AE6: 22 | AF6: Bebidas, líquidos alcoólicos e vinagres | AG6: 602.7330782 | AH6: 0.08651871994 | AN6: 2º | AO6: 22 | AP6: Bebidas, líquidos alcoólicos e vinagres | AQ6: 521.04265 | AR6: 537.123385 | AS6: 573.423411 | AT6: 586.78053 | AU6: 582.516979 | AV6: 619.396713 | AW6: 630.088189 | AX6: 647.006446 | AY6: 648.487785 | AZ6: 681.464694 | BA6: 602.7330782
AC7: 3 | AD7: º | AE7: 45 | AF7: Cortiça e suas obras | AG7: 538.968781 | AH7: 0.07736573735 | AI7: 0.3373931941 | AN7: 3º | AO7: 45 | AP7: Cortiça e suas obras | AQ7: 433.400142 | AR7: 471.218691 | AS7: 516.741023 | AT7: 510.334832 | AU7: 517.213624 | AV7: 518.666859 | AW7: 544.369428 | AX7: 582.173384 | AY7: 622.200346 | AZ7: 673.369481 | BA7: 538.968781
AC8: 4 | AD8: º | AE8: 03 | AF8: Peixes e crustáceos | AG8: 533.3178566 | AH8: 0.07655458103 | AO8: - | AP8: Outros | AQ8: 3273.701082 | AR8: 3664.869398 | AS8: 4100.852229 | AT8: 4171.197176 | AU8: 4438.122295 | AV8: 4750.213543 | AW8: 5220.040416 | AX8: 5228.220417 | AY8: 5499.876363 | AZ8: 5813.442051 | BA8: 4616.053497
AC9: 5 | AD9: º | AE9: 44 | AF9: Madeira e suas obras | AG9: 493.1442273 | AH9: 0.07078789739 | AP9: Total | AQ9: 5016.913676 | AR9: 5776.577542 | AS9: 6348.678828 | AT9: 6457.652272 | AU9: 6799.916474 | AV9: 7148.416622 | AW9: 7658.714067 | AX9: 7761.185534 | AY9: 8130.239075 | AZ9: 8566.753963 | BA9: 6966.504805
AC10: 6 | AD10: º | AE10: 24 | AF10: Tabaco | AG10: 466.9918497 | AH10: 0.06703388037
AC11: 7 | AD11: º | AE11: 47 | AF11: Pastas de madeira | AG11: 459.9107135 | AH11: 0.06601742572
AC12: 8 | AD12: º | AE12: 08 | AF12: Frutas | AG12: 360.3395266 | AH12: 0.05172457878
AC13: 9 | AD13: º | AE13: 20 | AF13: Preparações de produtos vegetais | AG13: 267.7694108 | AH13: 0.03843669362
AC14: 10 | AD14: º | AE14: 15 | AF14: Gorduras e óleos animais ou vegetais | AG14: 246.7533117 | AH14: 0.03541995859 | AI14: 0.7433682096
AE15: - | AF15: Outros | AG15: 1787.826601 | AH15: 0.2566317904
AE16: Total | AG16: 6966.504805 | AH16: 1
AC38: P | AE38: Cód.NC | AF38: Descritivo | AG38: Média import quinquénio | AH38: % do total | AI38: % acumulada | AN38: P | AO38: NC | AP38: Importações | AQ38: 2009 | AR38: 2010 | AS38: 2011 | AT38: 2012 | AU38: 2013 | AV38: 2014 | AW38: 2015 | AX38: 2016 | AY38: 2017 | AZ38: 2018 | BA38: média período
AC39: 1 | AD39: º | AE39: 03 | AF39: Peixes e crustáceos | AG39: 1104.7543 | AH39: 0.1185421392 | AN39: 1º | AO39: 03 | AP39: Peixes e crustáceos | AQ39: 883.365161 | AR39: 963.751456 | AS39: 1034.568267 | AT39: 984.570815 | AU39: 951.755109 | AV39: 1049.448318 | AW39: 1170.823193 | AX39: 1260.847543 | AY39: 1372.499553 | AZ39: 1375.913582 | BA39: 1104.7543
AC40: 2 | AD40: º | AE40: 48 | AF40: Papel e cartão | AG40: 989.2615876 | AH40: 0.1061495618 | AN40: 2º | AO40: 48 | AP40: Papel e cartão | AQ40: 1013.971008 | AR40: 1081.691109 | AS40: 1085.844025 | AT40: 889.911778 | AU40: 908.632639 | AV40: 947.430051 | AW40: 965.880005 | AX40: 939.091584 | AY40: 1006.661125 | AZ40: 1053.502552 | BA40: 989.2615876
AC41: 3 | AD41: º | AE41: 02 | AF41: Carnes e miudezas | AG41: 884.2868484 | AH41: 0.094885582 | AI41: 0.319577283 | AN41: 3º | AO41: 02 | AP41: Carnes e miudezas | AQ41: 769.267764 | AR41: 777.700695 | AS41: 767.09724 | AT41: 773.644701 | AU41: 883.33143 | AV41: 942.29252 | AW41: 915.579255 | AX41: 912.467989 | AY41: 1008.287337 | AZ41: 1093.199553 | BA41: 884.2868484
AC42: 4 | AD42: º | AE42: 10 | AF42: Cereais | AG42: 579.5111934 | AH42: 0.06218260167 | AO42: - | AP42: Outros | AQ42: 5236.830089 | AR42: 5619.792903 | AS42: 6059.559284 | AT42: 6093.594882 | AU42: 6234.312444 | AV42: 6255.063432 | AW42: 6409.201804 | AX42: 6675.803747 | AY42: 7305.893436 | AZ42: 7521.990915 | BA42: 6341.204294
AC43: 5 | AD43: º | AE43: 04 | AF43: Leite e laticínios; ovos; mel, etc. | AG43: 520.9851075 | AH43: 0.05590264655 | AP43: Total | AQ43: 7903.434022 | AR43: 8442.936163 | AS43: 8947.068816 | AT43: 8741.722176 | AU43: 8978.031622 | AV43: 9194.234321 | AW43: 9461.484257 | AX43: 9788.210863 | AY43: 10693.34145 | AZ43: 11044.6066 | BA43: 9319.507029
AC44: 6 | AD44: º | AE44: 15 | AF44: Gorduras e óleos animais ou vegetais | AG44: 516.7045334 | AH44: 0.05544333319
AC45: 7 | AD45: º | AE45: 19a | AF45: Preparações à base de cereais (exc. NC 19022010) (a) | AG45: 463.6050406 | AH45: 0.04974566135
AC46: 8 | AD46: º | AE46: 44 | AF46: Madeira e suas obras | AG46: 445.6962133 | AH46: 0.04782401171
AC47: 9 | AD47: º | AE47: 22 | AF47: Bebidas, líquidos alcoólicos e vinagres | AG47: 412.3825764 | AH47: 0.04424939807
AC48: 10 | AD48: º | AE48: 08 | AF48: Frutas | AG48: 383.6461468 | AH48: 0.04116592708 | AI48: 0.6760908627
AE49: - | AF49: Outros | AG49: 3018.673482 | AH49: 0.3239091373
AE50: Total | AG50: 9319.507029 | AH50: 1
AC62: DESAGREGAÇÃO A 4 DÍGITOS | AN62: DESAGREGAÇÃO A 4 DÍGITOS
AC64: P | AE64: Cód.NC | AF64: Descritivo | AG64: Média export quinquénio | AH64: % do total | AI64: % acumulada | AN64: P | AO64: NC | AP64: Exportações | AQ64: 2009 | AR64: 2010 | AS64: 2011 | AT64: 2012 | AU64: 2013 | AV64: 2014 | AW64: 2015 | AX64: 2016 | AY64: 2017 | AZ64: 2018 | BA64: média período
AC65: 1 | AD65: º | AE65: 4802 | AF65: Papel e cartão p/ escrita, etc. | AG65: 741.9031753 | AH65: 0.106495753 | AN65: 1º | AO65: 4802 | AP65: Papel e cartão p/ escrita, etc. | AQ65: 350.876991 | AR65: 654.52178 | AS65: 784.162714 | AT65: 798.537412 | AU65: 840.871993 | AV65: 823.54819 | AW65: 799.56386 | AX65: 806.442758 | AY65: 790.547459 | AZ65: 769.958596 | BA65: 741.9031753
AC66: 2 | AD66: º | AE66: 2204 | AF66: Vinhos de uvas frescas | AG66: 446.4443055 | AH66: 0.06408440358 | AN66: 2º | AO66: 2204 | AP66: Vinhos de uvas frescas | AQ66: 404.000584 | AR66: 411.888804 | AS66: 418.456895 | AT66: 436.447238 | AU66: 440.444977 | AV66: 442.932066 | AW66: 458.817442 | AX66: 471.392938 | AY66: 483.104658 | AZ66: 496.957453 | BA66: 446.4443055
AC67: 3 | AD67: º | AE67: 2402 | AF67: Charutos, cigarrilhas e cigarros | AG67: 419.7460147 | AH67: 0.060252024 | AI67: 0.2308321806 | AN67: 3º | AO67: 2402 | AP67: Charutos, cigarrilhas e cigarros | AQ67: 297.28867 | AR67: 281.098251 | AS67: 296.523762 | AT67: 310.343802 | AU67: 340.055435 | AV67: 447.673217 | AW67: 620.132337 | AX67: 589.917765 | AY67: 479.168132 | AZ67: 535.258776 | BA67: 419.7460147
AC68: 4 | AD68: º | AE68: 4703 | AF68: Pastas químicas de madeira, à soda ou ao sulfato | AG68: 398.5514641 | AH68: 0.05720967332 | AN68: - | AO68: - | AP68: Outros | AQ68: 3964.747431 | AR68: 4429.068707 | AS68: 4849.535457 | AT68: 4912.32382 | AU68: 5178.544069 | AV68: 5434.263149 | AW68: 5780.200428 | AX68: 5893.432073 | AY68: 6377.418826 | AZ68: 6764.579138 | BA68: 5358.41131
AC69: 5 | AD69: º | AE69: 4504 | AF69: Cortiça aglomerada e suas obras | AG69: 263.2659549 | AH69: 0.03779024952 | AP69: Total | AQ69: 5016.913676 | AR69: 5776.577542 | AS69: 6348.678828 | AT69: 6457.652272 | AU69: 6799.916474 | AV69: 7148.416622 | AW69: 7658.714067 | AX69: 7761.185534 | AY69: 8130.239075 | AZ69: 8566.753963 | BA69: 6966.504805
AC70: 6 | AD70: º | AE70: 4503 | AF70: Obras de cortiça natural | AG70: 234.6345561 | AH70: 0.03368038387
AC71: 7 | AD71: º | AE71: 1509 | AF71: Azeite (processos mecânicos ou físicos) | AG71: 161.2924126 | AH71: 0.02315255887
AC72: 8 | AD72: º | AE72: 1604 | AF72: Preparações e conservas de peixes, etc. | AG72: 144.2160481 | AH72: 0.02070134912
AC73: 9 | AD73: º | AE73: 1905 | AF73: Produtos de padaria, pastelaria, etc. | AG73: 140.9654834 | AH73: 0.02023475004
AC74: 10 | AD74: º | AE74: 0307 | AF74: Moluscos | AG74: 140.7899678 | AH74: 0.02020955583 | AI74: 0.4438107012
AE75: - | AF75: Outros | AG75: 3874.695423 | AH75: 0.5561892988
AE76: Total | AG76: 6966.504805 | AH76: 1
AC89: DESAGREGAÇÃO A 4 DÍGITOS | AN89: DESAGREGAÇÃO A 4 DÍGITOS
G91: média 2009-2018 em milhões de euros | I91: Cód. NC | J91: Descritivo | K91: Export | L91: Import | M91: Saldo | AC91: P | AE91: Cód.NC | AF91: Descritivo | AG91: Média import quinquénio | AH91: % do total | AI91: % acumulada | AN91: P | AO91: NC | AP91: Importações | AQ91: 2009 | AR91: 2010 | AS91: 2011 | AT91: 2012 | AU91: 2013 | AV91: 2014 | AW91: 2015 | AX91: 2016 | AY91: 2017 | AZ91: 2018 | BA91: média período
I92: 4802 | J92: Papel e cartão p/ escrita, etc. | K92: 741.9031753 | L92: 60.0605564 | M92: 681.8426189 | AC92: 1 | AD92: º | AE92: 0201 | AF92: Carnes de bovino, frescas ou refrigeradas | AG92: 345.1629836 | AH92: 0.0370366139 | AN92: 1º | AO92: 0201 | AP92: Carnes de bovino, frescas ou refrigeradas | AQ92: 285.570528 | AR92: 301.26823 | AS92: 285.371883 | AT92: 289.342993 | AU92: 329.650891 | AV92: 351.95619 | AW92: 348.631772 | AX92: 374.291283 | AY92: 414.056792 | AZ92: 471.489274 | BA92: 345.1629836
I93: 4703 | J93: Pastas químicas de madeira, à soda ou ao sulfato | K93: 398.5514641 | L93: 55.1932748 | M93: 343.3581893 | AC93: 2 | AD93: º | AE93: 1905 | AF93: Produtos de padaria, pastelaria, etc. | AG93: 293.2949429 | AH93: 0.0314710791 | AN93: 2º | AO93: 1905 | AP93: Produtos de padaria, pastelaria, etc. | AQ93: 239.920976 | AR93: 270.343271 | AS93: 273.518807 | AT93: 281.727839 | AU93: 292.179981 | AV93: 287.366089 | AW93: 295.520619 | AX93: 313.522316 | AY93: 328.18829 | AZ93: 350.661241 | BA93: 293.2949429
I94: 2402 | J94: Charutos, cigarrilhas e cigarros | K94: 419.7460147 | L94: 81.7790077 | M94: 337.967007 | AC94: 3 | AD94: º | AE94: 0305 | AF94: Peixes secos, salgados ou fumados | AG94: 275.1030341 | AH94: 0.02951905431 | AI94: 0.09802674731 | AN94: 3º | AO94: 0305 | AP94: Peixes secos, salgados ou fumados | AQ94: 200.603252 | AR94: 244.586507 | AS94: 287.716289 | AT94: 265.572888 | AU94: 244.174868 | AV94: 246.473238 | AW94: 287.574909 | AX94: 316.913969 | AY94: 315.131683 | AZ94: 342.282738 | BA94: 275.1030341
I95: 2204 | J95: Vinhos de uvas frescas | K95: 446.4443055 | L95: 111.592722 | M95: 334.8515835 | AC95: 4 | AD95: º | AE95: 0203 | AF95: Carnes de suíno | AG95: 267.0222258 | AH95: 0.02865196893 | AN95: - | AO95: - | AP95: Outros | AQ95: 7177.339266 | AR95: 7626.738155 | AS95: 8100.461837 | AT95: 7905.078456 | AU95: 8112.025882 | AV95: 8308.438804 | AW95: 8529.756957 | AX95: 8783.483295 | AY95: 9635.964686 | AZ95: 9880.173349 | BA95: 8405.946069
I96: 4504 | J96: Cortiça aglomerada e suas obras | K96: 263.2659549 | L96: 5.5564812 | M96: 257.7094737 | AC96: 5 | AD96: º | AE96: 0302 | AF96: Peixes frescos ou refrigerados | AG96: 256.2788861 | AH96: 0.0274991891 | AP96: Total | AQ96: 7903.434022 | AR96: 8442.936163 | AS96: 8947.068816 | AT96: 8741.722176 | AU96: 8978.031622 | AV96: 9194.234321 | AW96: 9461.484257 | AX96: 9788.210863 | AY96: 10693.34145 | AZ96: 11044.6066 | BA96: 9319.507029
I97: 4503 | J97: Obras de cortiça natural | K97: 234.6345561 | L97: 6.8102322 | M97: 227.8243239 | AC97: 6 | AD97: º | AE97: 1001 | AF97: Trigo e mistura trigo/centeio | AG97: 255.6875554 | AH97: 0.02743573824
I98: 2002 | J98: Tomates preparados | K98: 136.0316299 | L98: 12.8513832 | M98: 123.1802467 | AC98: 7 | AD98: º | AE98: 0303 | AF98: Peixes congelados | AG98: 255.0121063 | AH98: 0.02736326133
I99: 1701 | J99: Açúcares (cana/beterraba); sacarose pura | K99: 112.1918566 | L99: 31.1466194 | M99: 81.0452372 | AC99: 8 | AD99: º | AE99: 1509 | AF99: Azeite (processos mecânicos ou físicos) | AG99: 239.982334 | AH99: 0.02575053951
I100: 4401 | J100: Lenha, resíduos de madeira, etc. | K100: 87.1689272 | L100: 10.2144942 | M100: 76.954433 | AC100: 9 | AD100: º | AE100: 1005 | AF100: Milho | AG100: 233.7938272 | AH100: 0.02508650151
I101: 3806 | J101: Colofónias e derivados | K101: 113.3210323 | L101: 45.4215112 | M101: 67.8995211 | AC101: 10 | AD101: º | AE101: 2309 | AF101: Preparações p/ alimentação animal | AG101: 217.012154 | AH101: 0.02328579756 | AI101: 0.2830997435
I102: - | J102: Outros | K102: 3693.900766 | L102: 6511.526985 | M102: -2817.626219 | AE102: - | AF102: Outros | AG102: 6681.15698 | AH102: 0.7169002565
I103: 1905 | J103: Produtos de padaria, pastelaria, etc. | K103: 140.9654834 | L103: 293.2949429 | M103: -152.3294595 | AE103: Total | AG103: 9319.507029 | AH103: 1
I104: 0403 | J104: Leitelho, leite coalhado, iogurte, etc. | K104: 9.6771111 | L104: 162.8784711 | M104: -153.20136
I105: 1806 | J105: Chocolate e outras preparações com cacau | K105: 8.1670382 | L105: 165.7661058 | M105: -157.5990676
I106: 4811 | J106: Papel, cartão, pasta de celulose, etc. | K106: 12.8504214 | L106: 171.6324621 | M106: -158.7820407
J107: Preparações p/ alimentação animal | K107: 30.9809393 | L107: 217.012154 | M107: -186.0312147
I108: 1005 | J108: Milho | K108: 14.4949221 | L108: 233.7938272 | M108: -219.2989051
I109: 0203 | J109: Carnes de suíno | K109: 45.377728 | L109: 267.0222258 | M109: -221.6444978
I110: 0305 | J110: Peixes secos, salgados ou fumados | K110: 28.0782133 | L110: 275.1030341 | M110: -247.0248208
I111: 1001 | J111: Trigo e mistura trigo/centeio | K111: 7.3512896 | L111: 255.6875554 | M111: -248.3362658
I112: 0201 | J112: Carnes de bovino, frescas ou refrigeradas | K112: 21.4019765 | L112: 345.1629836 | M112: -323.7610071
I113: Total | K113: 6966.504805 | L113: 9319.507029 | M113: -2353.002224
A116: Fonte: GPP a partir de dados INE/Comércio Internacional (2017 provisórios; 2018 preliminares) | Y116: 2019-11-26

Sheet 3A
A1: Principais produtos agrícolas e agroalimentares transacionados entre Portugal e Europa em 2009-2018 (NC 2 dígitos) em milhões de euros
AC4: P | AE4: Cód.NC | AF4: Descritivo | AG4: Média export quinquénio | AH4: % do total | AI4: % acumulada | AN4: P | AO4: NC | AP4: Exportações | AQ4: 2009 | AR4: 2010 | AS4: 2011 | AT4: 2012 | AU4: 2013 | AV4: 2014 | AW4: 2015 | AX4: 2016 | AY4: 2017 | AZ4: 2018 | BA4: média período
AC5: 1 | AD5: º | AE5: 22 | AF5: Bebidas, líquidos alcoólicos e vinagres | AG5: 602.7330782 | AH5: 0.1745539202 | AN5: 1º | AO5: 22 | AP5: Bebidas, líquidos alcoólicos e vinagres | AQ5: 521.04265 | AR5: 537.123385 | AS5: 573.423411 | AT5: 586.78053 | AU5: 582.516979 | AV5: 619.396713 | AW5: 630.088189 | AX5: 647.006446 | AY5: 648.487785 | AZ5: 681.464694 | BA5: 602.7330782
AC6: 2 | AD6: º | AE6: 24 | AF6: Tabaco | AG6: 466.9918497 | AH6: 0.1352427152 | AN6: 2º | AO6: 24 | AP6: Tabaco | AQ6: 353.102101 | AR6: 329.378686 | AS6: 345.260879 | AT6: 367.403987 | AU6: 394.528943 | AV6: 506.654121 | AW6: 674.761699 | AX6: 625.328407 | AY6: 513.880104 | AZ6: 559.61957 | BA6: 466.9918497
AC7: 3 | AD7: º | AE7: 08 | AF7: Frutas | AG7: 360.3395266 | AH7: 0.1043557741 | AI7: 0.4141524095 | AN7: 3º | AO7: 08 | AP7: Frutas | AQ7: 180.918661 | AR7: 230.158772 | AS7: 235.638712 | AT7: 272.192638 | AU7: 293.423529 | AV7: 367.270444 | AW7: 411.947878 | AX7: 431.92926 | AY7: 559.40343 | AZ7: 620.511942 | BA7: 360.3395266
AC8: 4 | AD8: º | AE8: 20 | AF8: Preparações de produtos vegetais | AG8: 267.7694108 | AH8: 0.07754709679 | AO8: - | AP8: Outros | AQ8: 1583.717899 | AR8: 1603.619381 | AS8: 1739.630251 | AT8: 1853.122563 | AU8: 2009.258754 | AV8: 2019.64238 | AW8: 2170.097715 | AX8: 2254.713195 | AY8: 2444.341957 | AZ8: 2551.119234 | BA8: 2022.926333
AC9: 5 | AD9: º | AE9: 15 | AF9: Gorduras e óleos animais ou vegetais | AG9: 246.7533117 | AH9: 0.07146075008 | AP9: Total | AQ9: 2638.781311 | AR9: 2700.280224 | AS9: 2893.953253 | AT9: 3079.499718 | AU9: 3279.728205 | AV9: 3512.963658 | AW9: 3886.895481 | AX9: 3958.977308 | AY9: 4166.113276 | AZ9: 4412.71544 | BA9: 3452.990787
AC10: 6 | AD10: º | AE10: 04 | AF10: Leite e laticínios; ovos; mel, etc. | AG10: 230.3466198 | AH10: 0.06670930622
AC11: 7 | AD11: º | AE11: 07 | AF11: Produtos hortícolas | AG11: 208.2167247 | AH11: 0.06030039972
AC12: 8 | AD12: º | AE12: 19a | AF12: Preparações à base de cereais (exc. NC 19022010) (a) | AG12: 205.7864602 | AH12: 0.05959658536
AC13: 9 | AD13: º | AE13: 17 | AF13: Açúcares e produtos de confeitaria | AG13: 121.4751653 | AH13: 0.03517969574
AC14: 10 | AD14: º | AE14: 21 | AF14: Preparações alimentícias diversas | AG14: 115.7564559 | AH14: 0.03352353453 | AI14: 0.8184697779
AE15: - | AF15: Outros | AG15: 626.8221845 | AH15: 0.1815302221
AE16: Total | AG16: 3452.990787 | AH16: 1
AC38: P | AE38: Cód.NC | AF38: Descritivo | AG38: Média import quinquénio | AH38: % do total | AI38: % acumulada | AN38: P | AO38: NC | AP38: Importações | AQ38: 2009 | AR38: 2010 | AS38: 2011 | AT38: 2012 | AU38: 2013 | AV38: 2014 | AW38: 2015 | AX38: 2016 | AY38: 2017 | AZ38: 2018 | BA38: média período
AC39: 1 | AD39: º | AE39: 02 | AF39: Carnes e miudezas | AG39: 884.2868484 | AH39: 0.1378881054 | AN39: 1º | AO39: 02 | AP39: Carnes e miudezas | AQ39: 769.267764 | AR39: 777.700695 | AS39: 767.09724 | AT39: 773.644701 | AU39: 883.33143 | AV39: 942.29252 | AW39: 915.579255 | AX39: 912.467989 | AY39: 1008.287337 | AZ39: 1093.199553 | BA39: 884.2868484
AC40: 2 | AD40: º | AE40: 10 | AF40: Cereais | AG40: 579.5111934 | AH40: 0.09036400425 | AN40: 2º | AO40: 10 | AP40: Cereais | AQ40: 552.293326 | AR40: 491.392162 | AS40: 589.117717 | AT40: 721.631523 | AU40: 527.954951 | AV40: 550.835721 | AW40: 589.789159 | AX40: 583.987871 | AY40: 595.323085 | AZ40: 592.786419 | BA40: 579.5111934
AC41: 3 | AD41: º | AE41: 04 | AF41: Leite e laticínios; ovos; mel, etc. | AG41: 520.9851075 | AH41: 0.08123794847 | AI41: 0.3094900581 | AN41: 3º | AO41: 04 | AP41: Leite e laticínios; ovos; mel, etc. | AQ41: 534.355834 | AR41: 526.185621 | AS41: 517.347931 | AT41: 517.387106 | AU41: 522.853707 | AV41: 531.431945 | AW41: 510.691139 | AX41: 484.673397 | AY41: 518.822866 | AZ41: 546.101529 | BA41: 520.9851075
AC42: 4 | AD42: º | AE42: 15 | AF42: Gorduras e óleos animais ou vegetais | AG42: 516.7045334 | AH42: 0.08057047246 | AO42: - | AP42: Outros | AQ42: 3614.37266 | AR42: 3990.45533 | AS42: 4178.168179 | AT42: 4165.301546 | AU42: 4409.702023 | AV42: 4307.467563 | AW42: 4454.184881 | AX42: 4686.79045 | AY42: 5165.716645 | AZ42: 5310.765523 | BA42: 4428.29248
AC43: 5 | AD43: º | AE43: 19a | AF43: Preparações à base de cereais (exc. NC 19022010) (a) | AG43: 463.6050406 | AH43: 0.07229059306 | AP43: Total | AQ43: 5470.289584 | AR43: 5785.733808 | AS43: 6051.731067 | AT43: 6177.964876 | AU43: 6343.842111 | AV43: 6332.027749 | AW43: 6470.244434 | AX43: 6667.919707 | AY43: 7288.149933 | AZ43: 7542.853024 | BA43: 6413.075629
AC44: 6 | AD44: º | AE44: 22 | AF44: Bebidas, líquidos alcoólicos e vinagres | AG44: 412.3825764 | AH44: 0.0643034014
AC45: 7 | AD45: º | AE45: 08 | AF45: Frutas | AG45: 383.6461468 | AH45: 0.05982248908
AC46: 8 | AD46: º | AE46: 21 | AF46: Preparações alimentícias diversas | AG46: 345.7403318 | AH46: 0.05391178146
AC47: 9 | AD47: º | AE47: 20 | AF47: Preparações de produtos vegetais | AG47: 286.41155 | AH47: 0.04466056017
AC48: 10 | AD48: º | AE48: 07 | AF48: Produtos hortícolas | AG48: 285.3904523 | AH48: 0.04450133895 | AI48: 0.7295506947
AE49: - | AF49: Outros | AG49: 1734.411849 | AH49: 0.2704493053
AE50: Total | AG50: 6413.075629 | AH50: 1
A56: Fonte: GPP a partir de dados INE/Comércio Internacional (2017 provisórios; 2018 preliminares) | Y56: 2019-11-29T15:33:34.390

Sheet 3B
A1: Principais origens e destinos em Europa para Agroalimentar, Mar & Florestas (2009-2018) em milhões de euros
AC4: P | AE4: País | AF4: Média export quinquénio | AG4: % do total | AH4: % acumulada | AM4: P | AN4: Exportações | AO4: 2009 | AP4: 2010 | AQ4: 2011 | AR4: 2012 | AS4: 2013 | AT4: 2014 | AU4: 2015 | AV4: 2016 | AW4: 2017 | AX4: 2018 | AY4: média período
AC5: 1 | AD5: º | AE5: Espanha | AF5: 2994.647864 | AG5: 0.4298637477 | AM5: 1º | AN5: Espanha | AO5: 2263.859031 | AP5: 2632.279418 | AQ5: 2805.869028 | AR5: 2811.159456 | AS5: 2999.194277 | AT5: 3063.711611 | AU5: 3143.548726 | AV5: 3205.509672 | AW5: 3403.473492 | AX5: 3617.873929 | AY5: 2994.647864
AC6: 2 | AD6: º | AE6: França | AF6: 985.0203392 | AG6: 0.1413937644 | AM6: 2º | AN6: França | AO6: 737.963209 | AP6: 825.162352 | AQ6: 879.43503 | AR6: 935.839464 | AS6: 944.906242 | AT6: 940.998568 | AU6: 1091.608328 | AV6: 1159.326094 | AW6: 1180.829351 | AX6: 1154.134754 | AY6: 985.0203392
AC7: 3 | AD7: º | AE7: Alemanha | AF7: 546.587699 | AG7: 0.07845938735 | AH7: 0.6497168995 | AM7: 3º | AN7: Alemanha | AO7: 380.531557 | AP7: 487.44221 | AQ7: 566.625155 | AR7: 572.78898 | AS7: 561.899183 | AT7: 553.545075 | AU7: 618.288662 | AV7: 566.156446 | AW7: 560.227848 | AX7: 598.371874 | AY7: 546.587699
AC8: 4 | AD8: º | AE8: Itália | AF8: 543.576046 | AG8: 0.07802708262 | AN8: Outros | AO8: 1634.559879 | AP8: 1831.693562 | AQ8: 2096.749615 | AR8: 2137.864372 | AS8: 2293.916772 | AT8: 2590.161368 | AU8: 2805.268351 | AV8: 2830.193322 | AW8: 2985.708384 | AX8: 3196.373406 | AY8: 2440.248903
AC9: 5 | AD9: º | AE9: Reino Unido | AF9: 519.4907412 | AG9: 0.07456978151 | AN9: Total | AO9: 5016.913676 | AP9: 5776.577542 | AQ9: 6348.678828 | AR9: 6457.652272 | AS9: 6799.916474 | AT9: 7148.416622 | AU9: 7658.714067 | AV9: 7761.185534 | AW9: 8130.239075 | AX9: 8566.753963 | AY9: 6966.504805
AC10: 6 | AD10: º | AE10: Países Baixos | AF10: 388.1733335 | AG10: 0.05571995489
AC11: 7 | AD11: º | AE11: Bélgica | AF11: 189.5638583 | AG11: 0.02721075541
AC12: 8 | AD12: º | AE12: Polónia | AF12: 133.7550048 | AG12: 0.01919972907
AC13: 9 | AD13: º | AE13: Suíça | AF13: 109.6599867 | AG13: 0.01574103367
AC14: 10 | AD14: º | AE14: Turquia | AF14: 93.879429 | AG14: 0.01347582922 | AH14: 0.9336610658
AE15: Outros | AF15: 462.1505036 | AG15: 0.06633893416
AE16: Total | AF16: 6966.504805 | AG16: 1
AC38: P | AE38: País | AF38: Média import quinquénio | AG38: % do total | AH38: % acumulada | AM38: P | AN38: Importações | AO38: 2009 | AP38: 2010 | AQ38: 2011 | AR38: 2012 | AS38: 2013 | AT38: 2014 | AU38: 2015 | AV38: 2016 | AW38: 2017 | AX38: 2018 | AY38: média período
AC39: 1 | AD39: º | AE39: Espanha | AF39: 5244.230944 | AG39: 0.5627154878 | AM39: 1º | AN39: Espanha | AO39: 4392.194411 | AP39: 4810.144807 | AQ39: 5036.980629 | AR39: 4804.818542 | AS39: 5164.773852 | AT39: 5226.300689 | AU39: 5293.57921 | AV39: 5482.819349 | AW39: 6035.945524 | AX39: 6194.752432 | AY39: 5244.230945
AC40: 2 | AD40: º | AE40: França | AF40: 889.0970986 | AG40: 0.09540173056 | AM40: 2º | AN40: França | AO40: 925.323458 | AP40: 930.268183 | AQ40: 921.898518 | AR40: 856.124455 | AS40: 891.724954 | AT40: 862.847121 | AU40: 849.534225 | AV40: 839.184245 | AW40: 889.585273 | AX40: 924.480554 | AY40: 889.0970986
AC41: 3 | AD41: º | AE41: Alemanha | AF41: 644.5278231 | AG41: 0.06915900391 | AH41: 0.7272762223 | AM41: 3º | AN41: Alemanha | AO41: 573.948134 | AP41: 586.950877 | AQ41: 608.18289 | AR41: 564.509455 | AS41: 563.58608 | AT41: 609.115328 | AU41: 600.267502 | AV41: 659.261915 | AW41: 792.840055 | AX41: 886.615995 | AY41: 644.5278231
AC42: 4 | AD42: º | AE42: Países Baixos | AF42: 607.3919998 | AG42: 0.06517426275 | AN42: Outros | AO42: 2011.968019 | AP42: 2115.572296 | AQ42: 2380.006779 | AR42: 2516.269724 | AS42: 2357.946736 | AT42: 2495.971183 | AU42: 2718.10332 | AV42: 2806.945354 | AW42: 2974.970599 | AX42: 3038.757621 | AY42: 2541.651163
AC43: 5 | AD43: º | AE43: Itália | AF43: 302.156429 | AG43: 0.03242193262 | AN43: Total | AO43: 7903.434022 | AP43: 8442.936163 | AQ43: 8947.068816 | AR43: 8741.722176 | AS43: 8978.031622 | AT43: 9194.234321 | AU43: 9461.484257 | AV43: 9788.210863 | AW43: 10693.34145 | AX43: 11044.6066 | AY43: 9319.507029
AC44: 6 | AD44: º | AE44: Suécia | AF44: 265.7930348 | AG44: 0.0285200745
AC45: 7 | AD45: º | AE45: Reino Unido | AF45: 228.9986623 | AG45: 0.02457197163
AC46: 8 | AD46: º | AE46: Bélgica | AF46: 220.6526182 | AG46: 0.02367642596
AC47: 9 | AD47: º | AE47: Ucrânia | AF47: 173.6962032 | AG47: 0.01863791751
AC48: 10 | AD48: º | AE48: Irlanda | AF48: 108.4135616 | AG48: 0.01163297171 | AH48: 0.931911779
AE49: Outros | AF49: 634.5486542 | AG49: 0.068088221
AE50: Total | AF50: 9319.507029 | AG50: 1
A57: Fonte: GPP a partir de dados INE/Comércio Internacional (2017 provisórios; 2018 preliminares) | Y57: 2019-11-26

Sheet 3C
A1: Principais origens e destinos em Europa para os produtos agrícolas e agroalimentares (2009-2018) em milhões de euros
AC4: P | AE4: País | AF4: Média export quinquénio | AG4: % do total | AH4: % acumulada | AM4: P | AN4: Exportações | AO4: 2009 | AP4: 2010 | AQ4: 2011 | AR4: 2012 | AS4: 2013 | AT4: 2014 | AU4: 2015 | AV4: 2016 | AW4: 2017 | AX4: 2018 | AY4: média período
AC5: 1 | AD5: º | AE5: Espanha | AF5: 1653.821373 | AG5: 0.4789533117 | AM5: 1º | AN5: Espanha | AO5: 1277.157591 | AP5: 1351.64172 | AQ5: 1461.456418 | AR5: 1547.88557 | AS5: 1680.461863 | AT5: 1694.927581 | AU5: 1790.397298 | AV5: 1811.730289 | AW5: 1904.201556 | AX5: 2018.353842 | AY5: 1653.821373
AC6: 2 | AD6: º | AE6: França | AF6: 451.5230846 | AG6: 0.1307628987 | AM6: 2º | AN6: França | AO6: 329.132811 | AP6: 333.269142 | AQ6: 373.569448 | AR6: 403.125291 | AS6: 423.17926 | AT6: 413.173846 | AU6: 557.783386 | AV6: 587.756154 | AW6: 572.184245 | AX6: 522.057263 | AY6: 451.5230846
AC7: 3 | AD7: º | AE7: Reino Unido | AF7: 264.5739542 | AG7: 0.07662167972 | AH7: 0.6863378901 | AM7: 3º | AN7: Reino Unido | AO7: 208.822847 | AP7: 202.635049 | AQ7: 204.568293 | AR7: 230.741166 | AS7: 242.471066 | AT7: 296.896209 | AU7: 338.096089 | AV7: 300.165962 | AW7: 306.226199 | AX7: 315.116662 | AY7: 264.5739542
AC8: 4 | AD8: º | AE8: Países Baixos | AF8: 203.0687317 | AG8: 0.05880952027 | AN8: Outros | AO8: 823.668062 | AP8: 812.734313 | AQ8: 854.359094 | AR8: 897.747691 | AS8: 933.616016 | AT8: 1107.966022 | AU8: 1200.618708 | AV8: 1259.324903 | AW8: 1383.501276 | AX8: 1557.187673 | AY8: 1083.072376
AC9: 5 | AD9: º | AE9: Itália | AF9: 202.1558204 | AG9: 0.05854513749 | AN9: Total | AO9: 2638.781311 | AP9: 2700.280224 | AQ9: 2893.953253 | AR9: 3079.499718 | AS9: 3279.728205 | AT9: 3512.963658 | AU9: 3886.895481 | AV9: 3958.977308 | AW9: 4166.113276 | AX9: 4412.71544 | AY9: 3452.990787
AC10: 6 | AD10: º | AE10: Alemanha | AF10: 155.3543042 | AG10: 0.04499123043
AC11: 7 | AD11: º | AE11: Bélgica | AF11: 121.808346 | AG11: 0.03527618621
AC12: 8 | AD12: º | AE12: Polónia | AF12: 73.3932179 | AG12: 0.02125497067
AC13: 9 | AD13: º | AE13: Suíça | AF13: 61.424644 | AG13: 0.0177888236
AC14: 10 | AD14: º | AE14: Dinamarca | AF14: 34.3233854 | AG14: 0.009940190262 | AH14: 0.932943949
AE15: Outros | AF15: 231.5439262 | AG15: 0.06705605096
AE16: Total | AF16: 3452.990787 | AG16: 1
AC38: P | AE38: País | AF38: Média import quinquénio | AG38: % do total | AH38: % acumulada | AM38: P | AN38: Importações | AO38: 2009 | AP38: 2010 | AQ38: 2011 | AR38: 2012 | AS38: 2013 | AT38: 2014 | AU38: 2015 | AV38: 2016 | AW38: 2017 | AX38: 2018 | AY38: média período
AC39: 1 | AD39: º | AE39: Espanha | AF39: 3533.14801 | AG39: 0.5509287921 | AM39: 1º | AN39: Espanha | AO39: 2851.284384 | AP39: 3152.333272 | AQ39: 3318.325277 | AR39: 3299.224753 | AS39: 3593.941414 | AT39: 3566.861667 | AU39: 3610.263633 | AV39: 3704.534956 | AW39: 4066.279579 | AX39: 4168.431166 | AY39: 3533.14801
AC40: 2 | AD40: º | AE40: França | AF40: 731.1082676 | AG40: 0.1140027515 | AM40: 2º | AN40: França | AO40: 768.349513 | AP40: 775.5775 | AQ40: 768.240246 | AR40: 713.520702 | AS40: 745.224997 | AT40: 713.554899 | AU40: 694.312671 | AV40: 681.488908 | AW40: 718.696072 | AX40: 732.117168 | AY40: 731.1082676
AC41: 3 | AD41: º | AE41: Alemanha | AF41: 473.1531148 | AG41: 0.07377943785 | AH41: 0.7387109815 | AM41: 3º | AN41: Alemanha | AO41: 424.748481 | AP41: 421.328604 | AQ41: 430.768738 | AR41: 423.964604 | AS41: 411.623979 | AT41: 430.918804 | AU41: 411.798625 | AV41: 480.374571 | AW41: 598.85676 | AX41: 697.147982 | AY41: 473.1531148
AC42: 4 | AD42: º | AE42: Países Baixos | AF42: 413.27819 | AG42: 0.0644430557 | AN42: Outros | AO42: 1425.907206 | AP42: 1436.494432 | AQ42: 1534.396806 | AR42: 1741.254817 | AS42: 1593.051721 | AT42: 1620.692379 | AU42: 1753.869505 | AV42: 1801.521272 | AW42: 1904.317522 | AX42: 1945.156708 | AY42: 1675.666237
AC43: 5 | AD43: º | AE43: Itália | AF43: 202.9995799 | AG43: 0.03165401309 | AN43: Total | AO43: 5470.289584 | AP43: 5785.733808 | AQ43: 6051.731067 | AR43: 6177.964876 | AS43: 6343.842111 | AT43: 6332.027749 | AU43: 6470.244434 | AV43: 6667.919707 | AW43: 7288.149933 | AX43: 7542.853024 | AY43: 6413.075629
AC44: 6 | AD44: º | AE44: Bélgica | AF44: 186.0804465 | AG44: 0.02901578856
AC45: 7 | AD45: º | AE45: Reino Unido | AF45: 184.5821783 | AG45: 0.02878216147
AC46: 8 | AD46: º | AE46: Ucrânia | AF46: 173.0323777 | AG46: 0.02698118465
AC47: 9 | AD47: º | AE47: Irlanda | AF47: 102.5918107 | AG47: 0.01599728689
AC48: 10 | AD48: º | AE48: Polónia | AF48: 78.7453606 | AG48: 0.01227887603 | AH48: 0.9478633479
AE49: Outros | AF49: 334.3562931 | AG49: 0.05213665212
AE50: Total | AF50: 6413.075629 | AG50: 1
A57: Fonte: GPP a partir de dados INE/Comércio Internacional (2017 provisórios; 2018 preliminares) | Y57: 2019-11-26

Sheet 4
A1: Evolução da balança comercial por país e por produto 2009-2018 em euros (NC 2 dígitos) Agroalimentar, Mar & Florestas
A2: =+aux!A55 -> Evolução da balança comercial Portugal-Espanha
A4: Selecione o país:
A19: =+aux!A56 -> Evolução da balança comercial Portugal-Espanha para Bebidas, líquidos alcoólicos e vinagres
M21: Selecione o produto:
A38: Fonte: GPP a partir de dados INE/Comércio Internacional (2017 provisórios; 2018 preliminares) | R38: 2019-11-26

Sheet 4A
A1: Evolução da balança comercial Portugal-Europa 2009-2018 por produto em euros (NC 2 dígitos)
A3: =+aux!A31 -> Evolução da balança comercial Portugal-Europa para Bebidas, líquidos alcoólicos e vinagres
A5: Selecione o produto:
U7: Para obter uma maior desagregação deste produto, clique no botão respetivo:
A20: =+aux!A43 -> Evolução da balança comercial Portugal-Europa para Carnes e miudezas
A22: Selecione o produto:
A38: Fonte: GPP a partir de dados INE/Comércio Internacional (2017 provisórios; 2018 preliminares) | R38: 2019-11-26

Sheet 5.1
A1: Trocas comerciais Portugal-Europa (2009-2018) por país em milhares de euros | C1: Agroalimentar, Mar & Florestas
A2: Cód. País | B2: País | C2: Importações | O2: Exportações | AA2: Saldo período (exp-imp) | AB2: Evolução das importações | AC2: =+"Variação das Importações " & INDEX(C3:K3,1,aux!$BA$1) & "-"& L3 &"" -> Variação das Importações 2009-2018 | AG2: Evolução das exportações | AH2: ="Variação das Exportações " & INDEX(O3:W3,1,aux!BA1) & "-"& X3 &"" -> Variação das Exportações 2009-2018
C3: 2009 | D3: 2010 | E3: 2011 | F3: 2012 | G3: 2013 | H3: 2014 | I3: 2015 | J3: 2016 | K3: 2017 | L3: 2018 | M3: média período | N3: % Total | O3: 2009 | P3: 2010 | Q3: 2011 | R3: 2012 | S3: 2013 | T3: 2014 | U3: 2015 | V3: 2016 | W3: 2017 | X3: 2018 | Y3: média período | Z3: % Total | AC3: variação total em valor | AD3: % no total de variação | AE3: taxa de variação média anual | AF3: taxa de variação total | AH3: variação total em valor | AI3: % no total de variação | AJ3: taxa de variação média anual | AK3: taxa de variação total | CC3: filtro
A4: 0660 | B4: Afeganistão | C4: 0 | D4: 0 | E4: 0 | F4: 0 | G4: 0 | H4: 0 | I4: 0 | J4: 0 | K4: 0 | L4: 0 | M4: 0 | N4: 0 | O4: 0 | P4: 0 | Q4: 0 | R4: 0 | S4: 0 | T4: 0 | U4: 0 | V4: 0 | W4: 0 | X4: 0 | Y4: 0 | Z4: 0 | AA4: 0 | AC4: =L4-INDEX($C4:$L4,1,aux!$BA$1) -> 0 | AD4: =AC4/$AC$252 -> 0 | AE4: =+IF(INDEX($C4:$L4,1,aux!$BA$1)>0,(L4/INDEX($C4:$L4,1,aux!$BA$1))^(1/($L$3-INDEX($C$3:$L$3,1,aux!$BA$1)))-1,"n.d.") -> n.d. | AF4: =IF(INDEX($C4:$L4,1,aux!$BA$1)>0,(L4-INDEX($C4:$L4,1,aux!$BA$1))/INDEX($C4:$L4,1,aux!$BA$1),"n.d.") -> n.d. | AH4: =X4-INDEX($O4:$X4,1,aux!$BA$1) -> 0 | AI4: =AH4/$AH$252 -> 0 | AJ4: =+IF(INDEX($O4:$X4,1,aux!$BA$1)>0,(X4/INDEX($O4:$X4,1,aux!$BA$1))^(1/($X$3-INDEX($O$3:$X$3,1,aux!$BA$1)))-1,"n.d.") -> n.d. | AK4: =IF(INDEX($O4:$X4,1,aux!$BA$1)>0,(X4-INDEX($O4:$X4,1,aux!$BA$1))/INDEX($O4:$X4,1,aux!$BA$1),"n.d.") -> n.d. | AM4: =SUM(A4:AA4) -> 0 | CC4: =+IF(ISNA(MATCH('5.1'!A4,AUX_2d_pais!$G$2:$G$40000,0)),0,1) -> 0
A5: 0388 | B5: África do Sul | C5: 0 | D5: 0 | E5: 0 | F5: 0 | G5: 0 | H5: 0 | I5: 0 | J5: 0 | K5: 0 | L5: 0 | M5: 0 | N5: 0 | O5: 0 | P5: 0 | Q5: 0 | R5: 0 | S5: 0 | T5: 0 | U5: 0 | V5: 0 | W5: 0 | X5: 0 | Y5: 0 | Z5: 0 | AA5: 0 | AC5: =L5-INDEX($C5:$L5,1,aux!$BA$1) -> 0 | AD5: 0 | AE5: =+IF(INDEX($C5:$L5,1,aux!$BA$1)>0,(L5/INDEX($C5:$L5,1,aux!$BA$1))^(1/($L$3-INDEX($C$3:$L$3,1,aux!$BA$1)))-1,"n.d.") -> n.d. | AF5: =IF(INDEX($C5:$L5,1,aux!$BA$1)>0,(L5-INDEX($C5:$L5,1,aux!$BA$1))/INDEX($C5:$L5,1,aux!$BA$1),"n.d.") -> n.d. | AH5: =X5-INDEX($O5:$X5,1,aux!$BA$1) -> 0 | AI5: 0 | AJ5: =+IF(INDEX($O5:$X5,1,aux!$BA$1)>0,(X5/INDEX($O5:$X5,1,aux!$BA$1))^(1/($X$3-INDEX($O$3:$X$3,1,aux!$BA$1)))-1,"n.d.") -> n.d. | AK5: =IF(INDEX($O5:$X5,1,aux!$BA$1)>0,(X5-INDEX($O5:$X5,1,aux!$BA$1))/INDEX($O5:$X5,1,aux!$BA$1),"n.d.") -> n.d. | AM5: 0 | CC5: =+IF(ISNA(MATCH('5.1'!A5,AUX_2d_pais!$G$2:$G$40000,0)),0,1) -> 0
A6: 0070 | B6: Albânia | C6: 0 | D6: 0 | E6: 0 | F6: 4.072 | G6: 9.813 | H6: 0 | I6: 7.471 | J6: 0 | K6: 0.211 | L6: 87.981 | M6: 10.9548 | N6: 1.1754699e-06 | O6: 189.978 | P6: 610.847 | Q6: 333.661 | R6: 386.631 | S6: 853.687 | T6: 1197.757 | U6: 1755.258 | V6: 2258.285 | W6: 4489.109 | X6: 4756.841 | Y6: 1683.2054 | Z6: 0.0002416140442 | AA6: 1672.2506 | AC6: =L6-INDEX($C6:$L6,1,aux!$BA$1) -> 87.981 | AD6: 2.800896728e-05 | AE6: =+IF(INDEX($C6:$L6,1,aux!$BA$1)>0,(L6/INDEX($C6:$L6,1,aux!$BA$1))^(1/($L$3-INDEX($C$3:$L$3,1,aux!$BA$1)))-1,"n.d.") -> n.d. | AF6: =IF(INDEX($C6:$L6,1,aux!$BA$1)>0,(L6-INDEX($C6:$L6,1,aux!$BA$1))/INDEX($C6:$L6,1,aux!$BA$1),"n.d.") -> n.d. | AH6: =X6-INDEX($O6:$X6,1,aux!$BA$1) -> 4566.863 | AI6: 0.001286498161 | AJ6: =+IF(INDEX($O6:$X6,1,aux!$BA$1)>0,(X6/INDEX($O6:$X6,1,aux!$BA$1))^(1/($X$3-INDEX($O$3:$X$3,1,aux!$BA$1)))-1,"n.d.") -> 0.4302162319 | AK6: =IF(INDEX($O6:$X6,1,aux!$BA$1)>0,(X6-INDEX($O6:$X6,1,aux!$BA$1))/INDEX($O6:$X6,1,aux!$BA$1),"n.d.") -> 24.0389045 | CC6: =+IF(ISNA(MATCH('5.1'!A6,AUX_2d_pais!$G$2:$G$40000,0)),0,1) -> 1
A7: 0004 | B7: Alemanha | C7: 573948.134 | D7: 586950.877 | E7: 608182.89 | F7: 564509.455 | G7: 563586.08 | H7: 609115.328 | I7: 600267.502 | J7: 659261.915 | K7: 792840.055 | L7: 886615.995 | M7: 644527.8231 | N7: 0.06915900391 | O7: 380531.557 | P7: 487442.21 | Q7: 566625.155 | R7: 572788.98 | S7: 561899.183 | T7: 553545.075 | U7: 618288.662 | V7: 566156.446 | W7: 560227.848 | X7: 598371.874 | Y7: 546587.699 | Z7: 0.07845938735 | AA7: -97940.1241 | AC7: =L7-INDEX($C7:$L7,1,aux!$BA$1) -> 312667.861 | AD7: 0.09953858091 | AE7: =+IF(INDEX($C7:$L7,1,aux!$BA$1)>0,(L7/INDEX($C7:$L7,1,aux!$BA$1))^(1/($L$3-INDEX($C$3:$L$3,1,aux!$BA$1)))-1,"n.d.") -> 0.04950561917 | AF7: =IF(INDEX($C7:$L7,1,aux!$BA$1)>0,(L7-INDEX($C7:$L7,1,aux!$BA$1))/INDEX($C7:$L7,1,aux!$BA$1),"n.d.") -> 0.5447667524 | AH7: =X7-INDEX($O7:$X7,1,aux!$BA$1) -> 217840.317 | AI7: 0.06136623042 | AJ7: =+IF(INDEX($O7:$X7,1,aux!$BA$1)>0,(X7/INDEX($O7:$X7,1,aux!$BA$1))^(1/($X$3-INDEX($O$3:$X$3,1,aux!$BA$1)))-1,"n.d.") -> 0.05157990169 | AK7: =IF(INDEX($O7:$X7,1,aux!$BA$1)>0,(X7-INDEX($O7:$X7,1,aux!$BA$1))/INDEX($O7:$X7,1,aux!$BA$1),"n.d.") -> 0.572463211 | CC7: =+IF(ISNA(MATCH('5.1'!A7,AUX_2d_pais!$G$2:$G$40000,0)),0,1) -> 1
A8: 0043 | B8: Andorra | C8: 2.468 | D8: 4.745 | E8: 16.714 | F8: 8.506 | G8: 2.502 | H8: 8.845 | I8: 3.737 | J8: 0.352 | K8: 4.672 | L8: 6.077 | M8: 5.8618 | N8: 6.289817671e-07 | O8: 3772.85 | P8: 4611.007 | Q8: 4139.411 | R8: 4051.349 | S8: 3427.815 | T8: 3358.954 | U8: 2688.888 | V8: 3015.551 | W8: 3153.534 | X8: 3135.642 | Y8: 3535.5001 | Z8: 0.0005074998437 | AA8: 3529.6383 | AC8: =L8-INDEX($C8:$L8,1,aux!$BA$1) -> 3.609 | AD8: 1.148934007e-06 | AE8: =+IF(INDEX($C8:$L8,1,aux!$BA$1)>0,(L8/INDEX($C8:$L8,1,aux!$BA$1))^(1/($L$3-INDEX($C$3:$L$3,1,aux!$BA$1)))-1,"n.d.") -> 0.105306377 | AF8: =IF(INDEX($C8:$L8,1,aux!$BA$1)>0,(L8-INDEX($C8:$L8,1,aux!$BA$1))/INDEX($C8:$L8,1,aux!$BA$1),"n.d.") -> 1.462317666 | AH8: =X8-INDEX($O8:$X8,1,aux!$BA$1) -> -637.208 | AI8: -0.000179503287 | AJ8: =+IF(INDEX($O8:$X8,1,aux!$BA$1)>0,(X8/INDEX($O8:$X8,1,aux!$BA$1))^(1/($X$3-INDEX($O$3:$X$3,1,aux!$BA$1)))-1,"n.d.") -> -0.0203453761 | AK8: =IF(INDEX($O8:$X8,1,aux!$BA$1)>0,(X8-INDEX($O8:$X8,1,aux!$BA$1))/INDEX($O8:$X8,1,aux!$BA$1),"n.d.") -> -0.1688930119 | CC8: =+IF(ISNA(MATCH('5.1'!A8,AUX_2d_pais!$G$2:$G$40000,0)),0,1) -> 1
A9: 0330 | B9: Angola | C9: 0 | D9: 0 | E9: 0 | F9: 0 | G9: 0 | H9: 0 | I9: 0 | J9: 0 | K9: 0 | L9: 0 | M9: 0 | N9: 0 | O9: 0 | P9: 0 | Q9: 0 | R9: 0 | S9: 0 | T9: 0 | U9: 0 | V9: 0 | W9: 0 | X9: 0 | Y9: 0 | Z9: 0 | AA9: 0 | AC9: =L9-INDEX($C9:$L9,1,aux!$BA$1) -> 0 | AD9: 0 | AE9: =+IF(INDEX($C9:$L9,1,aux!$BA$1)>0,(L9/INDEX($C9:$L9,1,aux!$BA$1))^(1/($L$3-INDEX($C$3:$L$3,1,aux!$BA$1)))-1,"n.d.") -> n.d. | AF9: =IF(INDEX($C9:$L9,1,aux!$BA$1)>0,(L9-INDEX($C9:$L9,1,aux!$BA$1))/INDEX($C9:$L9,1,aux!$BA$1),"n.d.") -> n.d. | AH9: =X9-INDEX($O9:$X9,1,aux!$BA$1) -> 0 | AI9: 0 | AJ9: =+IF(INDEX($O9:$X9,1,aux!$BA$1)>0,(X9/INDEX($O9:$X9,1,aux!$BA$1))^(1/($X$3-INDEX($O$3:$X$3,1,aux!$BA$1)))-1,"n.d.") -> n.d. | AK9: =IF(INDEX($O9:$X9,1,aux!$BA$1)>0,(X9-INDEX($O9:$X9,1,aux!$BA$1))/INDEX($O9:$X9,1,aux!$BA$1),"n.d.") -> n.d. | AM9: 0 | CC9: =+IF(ISNA(MATCH('5.1'!A9,AUX_2d_pais!$G$2:$G$40000,0)),0,1) -> 0
A10: 0446 | B10: Anguila | C10: 0 | D10: 0 | E10: 0 | F10: 0 | G10: 0 | H10: 0 | I10: 0 | J10: 0 | K10: 0 | L10: 0 | M10: 0 | N10: 0 | O10: 0 | P10: 0 | Q10: 0 | R10: 0 | S10: 0 | T10: 0 | U10: 0 | V10: 0 | W10: 0 | X10: 0 | Y10: 0 | Z10: 0 | AA10: 0 | AC10: =L10-INDEX($C10:$L10,1,aux!$BA$1) -> 0 | AD10: 0 | AE10: =+IF(INDEX($C10:$L10,1,aux!$BA$1)>0,(L10/INDEX($C10:$L10,1,aux!$BA$1))^(1/($L$3-INDEX($C$3:$L$3,1,aux!$BA$1)))-1,"n.d.") -> n.d. | AF10: =IF(INDEX($C10:$L10,1,aux!$BA$1)>0,(L10-INDEX($C10:$L10,1,aux!$BA$1))/INDEX($C10:$L10,1,aux!$BA$1),"n.d.") -> n.d. | AH10: =X10-INDEX($O10:$X10,1,aux!$BA$1) -> 0 | AI10: 0 | AJ10: =+IF(INDEX($O10:$X10,1,aux!$BA$1)>0,(X10/INDEX($O10:$X10,1,aux!$BA$1))^(1/($X$3-INDEX($O$3:$X$3,1,aux!$BA$1)))-1,"n.d.") -> n.d. | AK10: =IF(INDEX($O10:$X10,1,aux!$BA$1)>0,(X10-INDEX($O10:$X10,1,aux!$BA$1))/INDEX($O10:$X10,1,aux!$BA$1),"n.d.") -> n.d. | AM10: 0 | CC10: =+IF(ISNA(MATCH('5.1'!A10,AUX_2d_pais!$G$2:$G$40000,0)),0,1) -> 0
A11: 0891 | B11: Antárctica | C11: 0 | D11: 0 | E11: 0 | F11: 0 | G11: 0 | H11: 0 | I11: 0 | J11: 0 | K11: 0 | L11: 0 | M11: 0 | N11: 0 | O11: 0 | P11: 0 | Q11: 0 | R11: 0 | S11: 0 | T11: 0 | U11: 0 | V11: 0 | W11: 0 | X11: 0 | Y11: 0 | Z11: 0 | AA11: 0 | AC11: =L11-INDEX($C11:$L11,1,aux!$BA$1) -> 0 | AD11: 0 | AE11: =+IF(INDEX($C11:$L11,1,aux!$BA$1)>0,(L11/INDEX($C11:$L11,1,aux!$BA$1))^(1/($L$3-INDEX($C$3:$L$3,1,aux!$BA$1)))-1,"n.d.") -> n.d. | AF11: =IF(INDEX($C11:$L11,1,aux!$BA$1)>0,(L11-INDEX($C11:$L11,1,aux!$BA$1))/INDEX($C11:$L11,1,aux!$BA$1),"n.d.") -> n.d. | AH11: =X11-INDEX($O11:$X11,1,aux!$BA$1) -> 0 | AI11: 0 | AJ11: =+IF(INDEX($O11:$X11,1,aux!$BA$1)>0,(X11/INDEX($O11:$X11,1,aux!$BA$1))^(1/($X$3-INDEX($O$3:$X$3,1,aux!$BA$1)))-1,"n.d.") -> n.d. | AK11: =IF(INDEX($O11:$X11,1,aux!$BA$1)>0,(X11-INDEX($O11:$X11,1,aux!$BA$1))/INDEX($O11:$X11,1,aux!$BA$1),"n.d.") -> n.d. | AM11: 0 | BO11: =SUM(C11:L11,O11:X11) -> 0 | CC11: =+IF(ISNA(MATCH('5.1'!A11,AUX_2d_pais!$G$2:$G$40000,0)),0,1) -> 0
A12: 0459 | B12: Antígua e Barbuda | C12: 0 | D12: 0 | E12: 0 | F12: 0 | G12: 0 | H12: 0 | I12: 0 | J12: 0 | K12: 0 | L12: 0 | M12: 0 | N12: 0 | O12: 0 | P12: 0 | Q12: 0 | R12: 0 | S12: 0 | T12: 0 | U12: 0 | V12: 0 | W12: 0 | X12: 0 | Y12: 0 | Z12: 0 | AA12: 0 | AC12: =L12-INDEX($C12:$L12,1,aux!$BA$1) -> 0 | AD12: 0 | AE12: =+IF(INDEX($C12:$L12,1,aux!$BA$1)>0,(L12/INDEX($C12:$L12,1,aux!$BA$1))^(1/($L$3-INDEX($C$3:$L$3,1,aux!$BA$1)))-1,"n.d.") -> n.d. | AF12: =IF(INDEX($C12:$L12,1,aux!$BA$1)>0,(L12-INDEX($C12:$L12,1,aux!$BA$1))/INDEX($C12:$L12,1,aux!$BA$1),"n.d.") -> n.d. | AH12: =X12-INDEX($O12:$X12,1,aux!$BA$1) -> 0 | AI12: 0 | AJ12: =+IF(INDEX($O12:$X12,1,aux!$BA$1)>0,(X12/INDEX($O12:$X12,1,aux!$BA$1))^(1/($X$3-INDEX($O$3:$X$3,1,aux!$BA$1)))-1,"n.d.") -> n.d. | AK12: =IF(INDEX($O12:$X12,1,aux!$BA$1)>0,(X12-INDEX($O12:$X12,1,aux!$BA$1))/INDEX($O12:$X12,1,aux!$BA$1),"n.d.") -> n.d. | AM12: 0 | CC12: =+IF(ISNA(MATCH('5.1'!A12,AUX_2d_pais!$G$2:$G$40000,0)),0,1) -> 0
A13: 0478 | B13: Antilhas Holandesas | C13: 0 | D13: 0 | E13: 0 | F13: 0 | G13: 0 | H13: 0 | I13: 0 | J13: 0 | K13: 0 | L13: 0 | M13: 0 | N13: 0 | O13: 0 | P13: 0 | Q13: 0 | R13: 0 | S13: 0 | T13: 0 | U13: 0 | V13: 0 | W13: 0 | X13: 0 | Y13: 0 | Z13: 0 | AA13: 0 | AC13: =L13-INDEX($C13:$L13,1,aux!$BA$1) -> 0 | AD13: 0 | AE13: =+IF(INDEX($C13:$L13,1,aux!$BA$1)>0,(L13/INDEX($C13:$L13,1,aux!$BA$1))^(1/($L$3-INDEX($C$3:$L$3,1,aux!$BA$1)))-1,"n.d.") -> n.d. | AF13: =IF(INDEX($C13:$L13,1,aux!$BA$1)>0,(L13-INDEX($C13:$L13,1,aux!$BA$1))/INDEX($C13:$L13,1,aux!$BA$1),"n.d.") -> n.d. | AH13: =X13-INDEX($O13:$X13,1,aux!$BA$1) -> 0 | AI13: 0 | AJ13: =+IF(INDEX($O13:$X13,1,aux!$BA$1)>0,(X13/INDEX($O13:$X13,1,aux!$BA$1))^(1/($X$3-INDEX($O$3:$X$3,1,aux!$BA$1)))-1,"n.d.") -> n.d. | AK13: =IF(INDEX($O13:$X13,1,aux!$BA$1)>0,(X13-INDEX($O13:$X13,1,aux!$BA$1))/INDEX($O13:$X13,1,aux!$BA$1),"n.d.") -> n.d. | AM13: 0 | BO13: 0 | CC13: =+IF(ISNA(MATCH('5.1'!A13,AUX_2d_pais!$G$2:$G$40000,0)),0,1) -> 0
A14: 0632 | B14: Arábia Saudita | C14: 0 | D14: 0 | E14: 0 | F14: 0 | G14: 0 | H14: 0 | I14: 0 | J14: 0 | K14: 0 | L14: 0 | M14: 0 | N14: 0 | O14: 0 | P14: 0 | Q14: 0 | R14: 0 | S14: 0 | T14: 0 | U14: 0 | V14: 0 | W14: 0 | X14: 0 | Y14: 0 | Z14: 0 | AA14: 0 | AC14: =L14-INDEX($C14:$L14,1,aux!$BA$1) -> 0 | AD14: 0 | AE14: =+IF(INDEX($C14:$L14,1,aux!$BA$1)>0,(L14/INDEX($C14:$L14,1,aux!$BA$1))^(1/($L$3-INDEX($C$3:$L$3,1,aux!$BA$1)))-1,"n.d.") -> n.d. | AF14: =IF(INDEX($C14:$L14,1,aux!$BA$1)>0,(L14-INDEX($C14:$L14,1,aux!$BA$1))/INDEX($C14:$L14,1,aux!$BA$1),"n.d.") -> n.d. | AH14: =X14-INDEX($O14:$X14,1,aux!$BA$1) -> 0 | AI14: 0 | AJ14: =+IF(INDEX($O14:$X14,1,aux!$BA$1)>0,(X14/INDEX($O14:$X14,1,aux!$BA$1))^(1/($X$3-INDEX($O$3:$X$3,1,aux!$BA$1)))-1,"n.d.") -> n.d. | AK14: =IF(INDEX($O14:$X14,1,aux!$BA$1)>0,(X14-INDEX($O14:$X14,1,aux!$BA$1))/INDEX($O14:$X14,1,aux!$BA$1),"n.d.") -> n.d. | AM14: 0 | CC14: =+IF(ISNA(MATCH('5.1'!A14,AUX_2d_pais!$G$2:$G$40000,0)),0,1) -> 0
A15: 0208 | B15: Argélia | C15: 0 | D15: 0 | E15: 0 | F15: 0 | G15: 0 | H15: 0 | I15: 0 | J15: 0 | K15: 0 | L15: 0 | M15: 0 | N15: 0 | O15: 0 | P15: 0 | Q15: 0 | R15: 0 | S15: 0 | T15: 0 | U15: 0 | V15: 0 | W15: 0 | X15: 0 | Y15: 0 | Z15: 0 | AA15: 0 | AC15: =L15-INDEX($C15:$L15,1,aux!$BA$1) -> 0 | AD15: 0 | AE15: =+IF(INDEX($C15:$L15,1,aux!$BA$1)>0,(L15/INDEX($C15:$L15,1,aux!$BA$1))^(1/($L$3-INDEX($C$3:$L$3,1,aux!$BA$1)))-1,"n.d.") -> n.d. | AF15: =IF(INDEX($C15:$L15,1,aux!$BA$1)>0,(L15-INDEX($C15:$L15,1,aux!$BA$1))/INDEX($C15:$L15,1,aux!$BA$1),"n.d.") -> n.d. | AH15: =X15-INDEX($O15:$X15,1,aux!$BA$1) -> 0 | AI15: 0 | AJ15: =+IF(INDEX($O15:$X15,1,aux!$BA$1)>0,(X15/INDEX($O15:$X15,1,aux!$BA$1))^(1/($X$3-INDEX($O$3:$X$3,1,aux!$BA$1)))-1,"n.d.") -> n.d. | AK15: =IF(INDEX($O15:$X15,1,aux!$BA$1)>0,(X15-INDEX($O15:$X15,1,aux!$BA$1))/INDEX($O15:$X15,1,aux!$BA$1),"n.d.") -> n.d. | AM15: 0 | CC15: =+IF(ISNA(MATCH('5.1'!A15,AUX_2d_pais!$G$2:$G$40000,0)),0,1) -> 0
A16: 0528 | B16: Argentina | C16: 0 | D16: 0 | E16: 0 | F16: 0 | G16: 0 | H16: 0 | I16: 0 | J16: 0 | K16: 0 | L16: 0 | M16: 0 | N16: 0 | O16: 0 | P16: 0 | Q16: 0 | R16: 0 | S16: 0 | T16: 0 | U16: 0 | V16: 0 | W16: 0 | X16: 0 | Y16: 0 | Z16: 0 | AA16: 0 | AC16: =L16-INDEX($C16:$L16,1,aux!$BA$1) -> 0 | AD16: 0 | AE16: =+IF(INDEX($C16:$L16,1,aux!$BA$1)>0,(L16/INDEX($C16:$L16,1,aux!$BA$1))^(1/($L$3-INDEX($C$3:$L$3,1,aux!$BA$1)))-1,"n.d.") -> n.d. | AF16: =IF(INDEX($C16:$L16,1,aux!$BA$1)>0,(L16-INDEX($C16:$L16,1,aux!$BA$1))/INDEX($C16:$L16,1,aux!$BA$1),"n.d.") -> n.d. | AH16: =X16-INDEX($O16:$X16,1,aux!$BA$1) -> 0 | AI16: 0 | AJ16: =+IF(INDEX($O16:$X16,1,aux!$BA$1)>0,(X16/INDEX($O16:$X16,1,aux!$BA$1))^(1/($X$3-INDEX($O$3:$X$3,1,aux!$BA$1)))-1,"n.d.") -> n.d. | AK16: =IF(INDEX($O16:$X16,1,aux!$BA$1)>0,(X16-INDEX($O16:$X16,1,aux!$BA$1))/INDEX($O16:$X16,1,aux!$BA$1),"n.d.") -> n.d. | AM16: 0 | CC16: =+IF(ISNA(MATCH('5.1'!A16,AUX_2d_pais!$G$2:$G$40000,0)),0,1) -> 0
A17: 0077 | B17: Arménia | C17: 0 | D17: 0 | E17: 0 | F17: 0 | G17: 0 | H17: 0 | I17: 0 | J17: 0 | K17: 0 | L17: 0 | M17: 0 | N17: 0 | O17: 0 | P17: 0 | Q17: 0 | R17: 0 | S17: 0 | T17: 0 | U17: 0 | V17: 0 | W17: 0 | X17: 0 | Y17: 0 | Z17: 0 | AA17: 0 | AC17: =L17-INDEX($C17:$L17,1,aux!$BA$1) -> 0 | AD17: 0 | AE17: =+IF(INDEX($C17:$L17,1,aux!$BA$1)>0,(L17/INDEX($C17:$L17,1,aux!$BA$1))^(1/($L$3-INDEX($C$3:$L$3,1,aux!$BA$1)))-1,"n.d.") -> n.d. | AF17: =IF(INDEX($C17:$L17,1,aux!$BA$1)>0,(L17-INDEX($C17:$L17,1,aux!$BA$1))/INDEX($C17:$L17,1,aux!$BA$1),"n.d.") -> n.d. | AH17: =X17-INDEX($O17:$X17,1,aux!$BA$1) -> 0 | AI17: 0 | AJ17: =+IF(INDEX($O17:$X17,1,aux!$BA$1)>0,(X17/INDEX($O17:$X17,1,aux!$BA$1))^(1/($X$3-INDEX($O$3:$X$3,1,aux!$BA$1)))-1,"n.d.") -> n.d. | AK17: =IF(INDEX($O17:$X17,1,aux!$BA$1)>0,(X17-INDEX($O17:$X17,1,aux!$BA$1))/INDEX($O17:$X17,1,aux!$BA$1),"n.d.") -> n.d. | AM17: 0 | CC17: =+IF(ISNA(MATCH('5.1'!A17,AUX_2d_pais!$G$2:$G$40000,0)),0,1) -> 0
A18: 0474 | B18: Aruba | C18: 0 | D18: 0 | E18: 0 | F18: 0 | G18: 0 | H18: 0 | I18: 0 | J18: 0 | K18: 0 | L18: 0 | M18: 0 | N18: 0 | O18: 0 | P18: 0 | Q18: 0 | R18: 0 | S18: 0 | T18: 0 | U18: 0 | V18: 0 | W18: 0 | X18: 0 | Y18: 0 | Z18: 0 | AA18: 0 | AC18: =L18-INDEX($C18:$L18,1,aux!$BA$1) -> 0 | AD18: 0 | AE18: =+IF(INDEX($C18:$L18,1,aux!$BA$1)>0,(L18/INDEX($C18:$L18,1,aux!$BA$1))^(1/($L$3-INDEX($C$3:$L$3,1,aux!$BA$1)))-1,"n.d.") -> n.d. | AF18: =IF(INDEX($C18:$L18,1,aux!$BA$1)>0,(L18-INDEX($C18:$L18,1,aux!$BA$1))/INDEX($C18:$L18,1,aux!$BA$1),"n.d.") -> n.d. | AH18: =X18-INDEX($O18:$X18,1,aux!$BA$1) -> 0 | AI18: 0 | AJ18: =+IF(INDEX($O18:$X18,1,aux!$BA$1)>0,(X18/INDEX($O18:$X18,1,aux!$BA$1))^(1/($X$3-INDEX($O$3:$X$3,1,aux!$BA$1)))-1,"n.d.") -> n.d. | AK18: =IF(INDEX($O18:$X18,1,aux!$BA$1)>0,(X18-INDEX($O18:$X18,1,aux!$BA$1))/INDEX($O18:$X18,1,aux!$BA$1),"n.d.") -> n.d. | AM18: 0 | BO18: 0 | CC18: =+IF(ISNA(MATCH('5.1'!A18,AUX_2d_pais!$G$2:$G$40000,0)),0,1) -> 0
A19: 0800 | B19: Austrália | C19: 0 | D19: 0 | E19: 0 | F19: 0 | G19: 0 | H19: 0 | I19: 0 | J19: 0 | K19: 0 | L19: 0 | M19: 0 | N19: 0 | O19: 0 | P19: 0 | Q19: 0 | R19: 0 | S19: 0 | T19: 0 | U19: 0 | V19: 0 | W19: 0 | X19: 0 | Y19: 0 | Z19: 0 | AA19: 0 | AC19: =L19-INDEX($C19:$L19,1,aux!$BA$1) -> 0 | AD19: 0 | AE19: =+IF(INDEX($C19:$L19,1,aux!$BA$1)>0,(L19/INDEX($C19:$L19,1,aux!$BA$1))^(1/($L$3-INDEX($C$3:$L$3,1,aux!$BA$1)))-1,"n.d.") -> n.d. | AF19: =IF(INDEX($C19:$L19,1,aux!$BA$1)>0,(L19-INDEX($C19:$L19,1,aux!$BA$1))/INDEX($C19:$L19,1,aux!$BA$1),"n.d.") -> n.d. | AH19: =X19-INDEX($O19:$X19,1,aux!$BA$1) -> 0 | AI19: 0 | AJ19: =+IF(INDEX($O19:$X19,1,aux!$BA$1)>0,(X19/INDEX($O19:$X19,1,aux!$BA$1))^(1/($X$3-INDEX($O$3:$X$3,1,aux!$BA$1)))-1,"n.d.") -> n.d. | AK19: =IF(INDEX($O19:$X19,1,aux!$BA$1)>0,(X19-INDEX($O19:$X19,1,aux!$BA$1))/INDEX($O19:$X19,1,aux!$BA$1),"n.d.") -> n.d. | AM19: 0 | CC19: =+IF(ISNA(MATCH('5.1'!A19,AUX_2d_pais!$G$2:$G$40000,0)),0,1) -> 0
A20: 0038 | B20: Áustria | C20: 39851.278 | D20: 47916.514 | E20: 48327.706 | F20: 52314.306 | G20: 47312.305 | H20: 43612.113 | I20: 49423.728 | J20: 52139.394 | K20: 54511.308 | L20: 55068.537 | M20: 49047.7189 | N20: 0.005262909159 | O20: 32057.825 | P20: 28634.444 | Q20: 28233.274 | R20: 29057.582 | S20: 28955.745 | T20: 24287.459 | U20: 25169.586 | V20: 28598.073 | W20: 32441.863 | X20: 33767.31 | Y20: 29120.3161 | Z20: 0.004180046797 | AA20: -19927.4028 | AC20: =L20-INDEX($C20:$L20,1,aux!$BA$1) -> 15217.259 | AD20: 0.004844451749 | AE20: =+IF(INDEX($C20:$L20,1,aux!$BA$1)>0,(L20/INDEX($C20:$L20,1,aux!$BA$1))^(1/($L$3-INDEX($C$3:$L$3,1,aux!$BA$1)))-1,"n.d.") -> 0.03658950975 | AF20: =IF(INDEX($C20:$L20,1,aux!$BA$1)>0,(L20-INDEX($C20:$L20,1,aux!$BA$1))/INDEX($C20:$L20,1,aux!$BA$1),"n.d.") -> 0.3818512169 | AH20: =X20-INDEX($O20:$X20,1,aux!$BA$1) -> 1709.485 | AI20: 0.0004815667359 | AJ20: =+IF(INDEX($O20:$X20,1,aux!$BA$1)>0,(X20/INDEX($O20:$X20,1,aux!$BA$1))^(1/($X$3-INDEX($O$3:$X$3,1,aux!$BA$1)))-1,"n.d.") -> 0.005789122733 | AK20: =IF(INDEX($O20:$X20,1,aux!$BA$1)>0,(X20-INDEX($O20:$X20,1,aux!$BA$1))/INDEX($O20:$X20,1,aux!$BA$1),"n.d.") -> 0.05332504623 | CC20: =+IF(ISNA(MATCH('5.1'!A20,AUX_2d_pais!$G$2:$G$40000,0)),0,1) -> 1
A21: 0078 | B21: Azerbaijão | C21: 0 | D21: 0 | E21: 0 | F21: 0 | G21: 0 | H21: 0 | I21: 0 | J21: 0 | K21: 0 | L21: 0 | M21: 0 | N21: 0 | O21: 0 | P21: 0 | Q21: 0 | R21: 0 | S21: 0 | T21: 0 | U21: 0 | V21: 0 | W21: 0 | X21: 0 | Y21: 0 | Z21: 0 | AA21: 0 | AC21: =L21-INDEX($C21:$L21,1,aux!$BA$1) -> 0 | AD21: 0 | AE21: =+IF(INDEX($C21:$L21,1,aux!$BA$1)>0,(L21/INDEX($C21:$L21,1,aux!$BA$1))^(1/($L$3-INDEX($C$3:$L$3,1,aux!$BA$1)))-1,"n.d.") -> n.d. | AF21: =IF(INDEX($C21:$L21,1,aux!$BA$1)>0,(L21-INDEX($C21:$L21,1,aux!$BA$1))/INDEX($C21:$L21,1,aux!$BA$1),"n.d.") -> n.d. | AH21: =X21-INDEX($O21:$X21,1,aux!$BA$1) -> 0 | AI21: 0 | AJ21: =+IF(INDEX($O21:$X21,1,aux!$BA$1)>0,(X21/INDEX($O21:$X21,1,aux!$BA$1))^(1/($X$3-INDEX($O$3:$X$3,1,aux!$BA$1)))-1,"n.d.") -> n.d. | AK21: =IF(INDEX($O21:$X21,1,aux!$BA$1)>0,(X21-INDEX($O21:$X21,1,aux!$BA$1))/INDEX($O21:$X21,1,aux!$BA$1),"n.d.") -> n.d. | AM21: 0 | CC21: =+IF(ISNA(MATCH('5.1'!A21,AUX_2d_pais!$G$2:$G$40000,0)),0,1) -> 0
A22: 0453 | B22: Bahamas | C22: 0 | D22: 0 | E22: 0 | F22: 0 | G22: 0 | H22: 0 | I22: 0 | J22: 0 | K22: 0 | L22: 0 | M22: 0 | N22: 0 | O22: 0 | P22: 0 | Q22: 0 | R22: 0 | S22: 0 | T22: 0 | U22: 0 | V22: 0 | W22: 0 | X22: 0 | Y22: 0 | Z22: 0 | AA22: 0 | AC22: =L22-INDEX($C22:$L22,1,aux!$BA$1) -> 0 | AD22: 0 | AE22: =+IF(INDEX($C22:$L22,1,aux!$BA$1)>0,(L22/INDEX($C22:$L22,1,aux!$BA$1))^(1/($L$3-INDEX($C$3:$L$3,1,aux!$BA$1)))-1,"n.d.") -> n.d. | AF22: =IF(INDEX($C22:$L22,1,aux!$BA$1)>0,(L22-INDEX($C22:$L22,1,aux!$BA$1))/INDEX($C22:$L22,1,aux!$BA$1),"n.d.") -> n.d. | AH22: =X22-INDEX($O22:$X22,1,aux!$BA$1) -> 0 | AI22: 0 | AJ22: =+IF(INDEX($O22:$X22,1,aux!$BA$1)>0,(X22/INDEX($O22:$X22,1,aux!$BA$1))^(1/($X$3-INDEX($O$3:$X$3,1,aux!$BA$1)))-1,"n.d.") -> n.d. | AK22: =IF(INDEX($O22:$X22,1,aux!$BA$1)>0,(X22-INDEX($O22:$X22,1,aux!$BA$1))/INDEX($O22:$X22,1,aux!$BA$1),"n.d.") -> n.d. | AM22: 0 | BO22: 0 | CC22: =+IF(ISNA(MATCH('5.1'!A22,AUX_2d_pais!$G$2:$G$40000,0)),0,1) -> 0
A23: 0666 | B23: Bangladesh | C23: 0 | D23: 0 | E23: 0 | F23: 0 | G23: 0 | H23: 0 | I23: 0 | J23: 0 | K23: 0 | L23: 0 | M23: 0 | N23: 0 | O23: 0 | P23: 0 | Q23: 0 | R23: 0 | S23: 0 | T23: 0 | U23: 0 | V23: 0 | W23: 0 | X23: 0 | Y23: 0 | Z23: 0 | AA23: 0 | AC23: =L23-INDEX($C23:$L23,1,aux!$BA$1) -> 0 | AD23: 0 | AE23: =+IF(INDEX($C23:$L23,1,aux!$BA$1)>0,(L23/INDEX($C23:$L23,1,aux!$BA$1))^(1/($L$3-INDEX($C$3:$L$3,1,aux!$BA$1)))-1,"n.d.") -> n.d. | AF23: =IF(INDEX($C23:$L23,1,aux!$BA$1)>0,(L23-INDEX($C23:$L23,1,aux!$BA$1))/INDEX($C23:$L23,1,aux!$BA$1),"n.d.") -> n.d. | AH23: =X23-INDEX($O23:$X23,1,aux!$BA$1) -> 0 | AI23: 0 | AJ23: =+IF(INDEX($O23:$X23,1,aux!$BA$1)>0,(X23/INDEX($O23:$X23,1,aux!$BA$1))^(1/($X$3-INDEX($O$3:$X$3,1,aux!$BA$1)))-1,"n.d.") -> n.d. | AK23: =IF(INDEX($O23:$X23,1,aux!$BA$1)>0,(X23-INDEX($O23:$X23,1,aux!$BA$1))/INDEX($O23:$X23,1,aux!$BA$1),"n.d.") -> n.d. | AM23: 0 | CC23: =+IF(ISNA(MATCH('5.1'!A23,AUX_2d_pais!$G$2:$G$40000,0)),0,1) -> 0
A24: 0469 | B24: Barbados | C24: 0 | D24: 0 | E24: 0 | F24: 0 | G24: 0 | H24: 0 | I24: 0 | J24: 0 | K24: 0 | L24: 0 | M24: 0 | N24: 0 | O24: 0 | P24: 0 | Q24: 0 | R24: 0 | S24: 0 | T24: 0 | U24: 0 | V24: 0 | W24: 0 | X24: 0 | Y24: 0 | Z24: 0 | AA24: 0 | AC24: =L24-INDEX($C24:$L24,1,aux!$BA$1) -> 0 | AD24: 0 | AE24: =+IF(INDEX($C24:$L24,1,aux!$BA$1)>0,(L24/INDEX($C24:$L24,1,aux!$BA$1))^(1/($L$3-INDEX($C$3:$L$3,1,aux!$BA$1)))-1,"n.d.") -> n.d. | AF24: =IF(INDEX($C24:$L24,1,aux!$BA$1)>0,(L24-INDEX($C24:$L24,1,aux!$BA$1))/INDEX($C24:$L24,1,aux!$BA$1),"n.d.") -> n.d. | AH24: =X24-INDEX($O24:$X24,1,aux!$BA$1) -> 0 | AI24: 0 | AJ24: =+IF(INDEX($O24:$X24,1,aux!$BA$1)>0,(X24/INDEX($O24:$X24,1,aux!$BA$1))^(1/($X$3-INDEX($O$3:$X$3,1,aux!$BA$1)))-1,"n.d.") -> n.d. | AK24: =IF(INDEX($O24:$X24,1,aux!$BA$1)>0,(X24-INDEX($O24:$X24,1,aux!$BA$1))/INDEX($O24:$X24,1,aux!$BA$1),"n.d.") -> n.d. | AM24: 0 | BO24: 0 | CC24: =+IF(ISNA(MATCH('5.1'!A24,AUX_2d_pais!$G$2:$G$40000,0)),0,1) -> 0
A25: 0640 | B25: Barém | C25: 0 | D25: 0 | E25: 0 | F25: 0 | G25: 0 | H25: 0 | I25: 0 | J25: 0 | K25: 0 | L25: 0 | M25: 0 | N25: 0 | O25: 0 | P25: 0 | Q25: 0 | R25: 0 | S25: 0 | T25: 0 | U25: 0 | V25: 0 | W25: 0 | X25: 0 | Y25: 0 | Z25: 0 | AA25: 0 | AC25: =L25-INDEX($C25:$L25,1,aux!$BA$1) -> 0 | AD25: 0 | AE25: =+IF(INDEX($C25:$L25,1,aux!$BA$1)>0,(L25/INDEX($C25:$L25,1,aux!$BA$1))^(1/($L$3-INDEX($C$3:$L$3,1,aux!$BA$1)))-1,"n.d.") -> n.d. | AF25: =IF(INDEX($C25:$L25,1,aux!$BA$1)>0,(L25-INDEX($C25:$L25,1,aux!$BA$1))/INDEX($C25:$L25,1,aux!$BA$1),"n.d.") -> n.d. | AH25: =X25-INDEX($O25:$X25,1,aux!$BA$1) -> 0 | AI25: 0 | AJ25: =+IF(INDEX($O25:$X25,1,aux!$BA$1)>0,(X25/INDEX($O25:$X25,1,aux!$BA$1))^(1/($X$3-INDEX($O$3:$X$3,1,aux!$BA$1)))-1,"n.d.") -> n.d. | AK25: =IF(INDEX($O25:$X25,1,aux!$BA$1)>0,(X25-INDEX($O25:$X25,1,aux!$BA$1))/INDEX($O25:$X25,1,aux!$BA$1),"n.d.") -> n.d. | AM25: 0 | CC25: =+IF(ISNA(MATCH('5.1'!A25,AUX_2d_pais!$G$2:$G$40000,0)),0,1) -> 0
A26: 0073 | B26: Belarus | C26: 16.632 | D26: 0.495 | E26: 16.799 | F26: 0.262 | G26: 9.586 | H26: 0 | I26: 0 | J26: 18.707 | K26: 485.343 | L26: 896.686 | M26: 144.451 | N26: 1.549985418e-05 | O26: 628.373 | P26: 1126.181 | Q26: 1475.006 | R26: 2011.118 | S26: 3317.67 | T26: 4152.532 | U26: 5478.779 | V26: 4362.988 | W26: 5288.625 | X26: 5518.251 | Y26: 3335.9523 | Z26: 0.0004788559533 | AA26: 3191.5013 | AC26: =L26-INDEX($C26:$L26,1,aux!$BA$1) -> 880.054 | AD26: 0.0002801673508 | AE26: =+IF(INDEX($C26:$L26,1,aux!$BA$1)>0,(L26/INDEX($C26:$L26,1,aux!$BA$1))^(1/($L$3-INDEX($C$3:$L$3,1,aux!$BA$1)))-1,"n.d.") -> 0.557437606 | AF26: =IF(INDEX($C26:$L26,1,aux!$BA$1)>0,(L26-INDEX($C26:$L26,1,aux!$BA$1))/INDEX($C26:$L26,1,aux!$BA$1),"n.d.") -> 52.91329966 | AH26: =X26-INDEX($O26:$X26,1,aux!$BA$1) -> 4889.878 | AI26: 0.001377492395 | AJ26: =+IF(INDEX($O26:$X26,1,aux!$BA$1)>0,(X26/INDEX($O26:$X26,1,aux!$BA$1))^(1/($X$3-INDEX($O$3:$X$3,1,aux!$BA$1)))-1,"n.d.") -> 0.273041787 | AK26: =IF(INDEX($O26:$X26,1,aux!$BA$1)>0,(X26-INDEX($O26:$X26,1,aux!$BA$1))/INDEX($O26:$X26,1,aux!$BA$1),"n.d.") -> 7.781807939 | CC26: =+IF(ISNA(MATCH('5.1'!A26,AUX_2d_pais!$G$2:$G$40000,0)),0,1) -> 1
A27: 0017 | B27: Bélgica | C27: 205395.746 | D27: 200809.126 | E27: 197516.257 | F27: 192526.861 | G27: 208728.576 | H27: 215184.789 | I27: 234426.094 | J27: 240645.533 | K27: 257632.1 | L27: 253661.1 | M27: 220652.6182 | N27: 0.02367642596 | O27: 166187.331 | P27: 166726.256 | Q27: 162297.201 | R27: 180387.858 | S27: 179484.956 | T27: 192386.063 | U27: 197978.971 | V27: 204665.694 | W27: 219545.314 | X27: 225978.939 | Y27: 189563.8583 | Z27: 0.02721075541 | AA27: -31088.7599 | AC27: =L27-INDEX($C27:$L27,1,aux!$BA$1) -> 48265.354 | AD27: 0.0153653939 | AE27: =+IF(INDEX($C27:$L27,1,aux!$BA$1)>0,(L27/INDEX($C27:$L27,1,aux!$BA$1))^(1/($L$3-INDEX($C$3:$L$3,1,aux!$BA$1)))-1,"n.d.") -> 0.02372831175 | AF27: =IF(INDEX($C27:$L27,1,aux!$BA$1)>0,(L27-INDEX($C27:$L27,1,aux!$BA$1))/INDEX($C27:$L27,1,aux!$BA$1),"n.d.") -> 0.234987116 | AH27: =X27-INDEX($O27:$X27,1,aux!$BA$1) -> 59791.608 | AI27: 0.01684346426 | AJ27: =+IF(INDEX($O27:$X27,1,aux!$BA$1)>0,(X27/INDEX($O27:$X27,1,aux!$BA$1))^(1/($X$3-INDEX($O$3:$X$3,1,aux!$BA$1)))-1,"n.d.") -> 0.0347370643 | AK27: =IF(INDEX($O27:$X27,1,aux!$BA$1)>0,(X27-INDEX($O27:$X27,1,aux!$BA$1))/INDEX($O27:$X27,1,aux!$BA$1),"n.d.") -> 0.359784393 | CC27: =+IF(ISNA(MATCH('5.1'!A27,AUX_2d_pais!$G$2:$G$40000,0)),0,1) -> 1
A28: 0421 | B28: Belize | C28: 0 | D28: 0 | E28: 0 | F28: 0 | G28: 0 | H28: 0 | I28: 0 | J28: 0 | K28: 0 | L28: 0 | M28: 0 | N28: 0 | O28: 0 | P28: 0 | Q28: 0 | R28: 0 | S28: 0 | T28: 0 | U28: 0 | V28: 0 | W28: 0 | X28: 0 | Y28: 0 | Z28: 0 | AA28: 0 | AC28: =L28-INDEX($C28:$L28,1,aux!$BA$1) -> 0 | AD28: 0 | AE28: =+IF(INDEX($C28:$L28,1,aux!$BA$1)>0,(L28/INDEX($C28:$L28,1,aux!$BA$1))^(1/($L$3-INDEX($C$3:$L$3,1,aux!$BA$1)))-1,"n.d.") -> n.d. | AF28: =IF(INDEX($C28:$L28,1,aux!$BA$1)>0,(L28-INDEX($C28:$L28,1,aux!$BA$1))/INDEX($C28:$L28,1,aux!$BA$1),"n.d.") -> n.d. | AH28: =X28-INDEX($O28:$X28,1,aux!$BA$1) -> 0 | AI28: 0 | AJ28: =+IF(INDEX($O28:$X28,1,aux!$BA$1)>0,(X28/INDEX($O28:$X28,1,aux!$BA$1))^(1/($X$3-INDEX($O$3:$X$3,1,aux!$BA$1)))-1,"n.d.") -> n.d. | AK28: =IF(INDEX($O28:$X28,1,aux!$BA$1)>0,(X28-INDEX($O28:$X28,1,aux!$BA$1))/INDEX($O28:$X28,1,aux!$BA$1),"n.d.") -> n.d. | AM28: 0 | CC28: =+IF(ISNA(MATCH('5.1'!A28,AUX_2d_pais!$G$2:$G$40000,0)),0,1) -> 0
A29: 0284 | B29: Benim | C29: 0 | D29: 0 | E29: 0 | F29: 0 | G29: 0 | H29: 0 | I29: 0 | J29: 0 | K29: 0 | L29: 0 | M29: 0 | N29: 0 | O29: 0 | P29: 0 | Q29: 0 | R29: 0 | S29: 0 | T29: 0 | U29: 0 | V29: 0 | W29: 0 | X29: 0 | Y29: 0 | Z29: 0 | AA29: 0 | AC29: =L29-INDEX($C29:$L29,1,aux!$BA$1) -> 0 | AD29: 0 | AE29: =+IF(INDEX($C29:$L29,1,aux!$BA$1)>0,(L29/INDEX($C29:$L29,1,aux!$BA$1))^(1/($L$3-INDEX($C$3:$L$3,1,aux!$BA$1)))-1,"n.d.") -> n.d. | AF29: =IF(INDEX($C29:$L29,1,aux!$BA$1)>0,(L29-INDEX($C29:$L29,1,aux!$BA$1))/INDEX($C29:$L29,1,aux!$BA$1),"n.d.") -> n.d. | AH29: =X29-INDEX($O29:$X29,1,aux!$BA$1) -> 0 | AI29: 0 | AJ29: =+IF(INDEX($O29:$X29,1,aux!$BA$1)>0,(X29/INDEX($O29:$X29,1,aux!$BA$1))^(1/($X$3-INDEX($O$3:$X$3,1,aux!$BA$1)))-1,"n.d.") -> n.d. | AK29: =IF(INDEX($O29:$X29,1,aux!$BA$1)>0,(X29-INDEX($O29:$X29,1,aux!$BA$1))/INDEX($O29:$X29,1,aux!$BA$1),"n.d.") -> n.d. | AM29: 0 | CC29: =+IF(ISNA(MATCH('5.1'!A29,AUX_2d_pais!$G$2:$G$40000,0)),0,1) -> 0
A30: 0413 | B30: Bermudas | C30: 0 | D30: 0 | E30: 0 | F30: 0 | G30: 0 | H30: 0 | I30: 0 | J30: 0 | K30: 0 | L30: 0 | M30: 0 | N30: 0 | O30: 0 | P30: 0 | Q30: 0 | R30: 0 | S30: 0 | T30: 0 | U30: 0 | V30: 0 | W30: 0 | X30: 0 | Y30: 0 | Z30: 0 | AA30: 0 | AC30: =L30-INDEX($C30:$L30,1,aux!$BA$1) -> 0 | AD30: 0 | AE30: =+IF(INDEX($C30:$L30,1,aux!$BA$1)>0,(L30/INDEX($C30:$L30,1,aux!$BA$1))^(1/($L$3-INDEX($C$3:$L$3,1,aux!$BA$1)))-1,"n.d.") -> n.d. | AF30: =IF(INDEX($C30:$L30,1,aux!$BA$1)>0,(L30-INDEX($C30:$L30,1,aux!$BA$1))/INDEX($C30:$L30,1,aux!$BA$1),"n.d.") -> n.d. | AH30: =X30-INDEX($O30:$X30,1,aux!$BA$1) -> 0 | AI30: 0 | AJ30: =+IF(INDEX($O30:$X30,1,aux!$BA$1)>0,(X30/INDEX($O30:$X30,1,aux!$BA$1))^(1/($X$3-INDEX($O$3:$X$3,1,aux!$BA$1)))-1,"n.d.") -> n.d. | AK30: =IF(INDEX($O30:$X30,1,aux!$BA$1)>0,(X30-INDEX($O30:$X30,1,aux!$BA$1))/INDEX($O30:$X30,1,aux!$BA$1),"n.d.") -> n.d. | AM30: 0 | CC30: =+IF(ISNA(MATCH('5.1'!A30,AUX_2d_pais!$G$2:$G$40000,0)),0,1) -> 0
A31: 0516 | B31: Bolívia | C31: 0 | D31: 0 | E31: 0 | F31: 0 | G31: 0 | H31: 0 | I31: 0 | J31: 0 | K31: 0 | L31: 0 | M31: 0 | N31: 0 | O31: 0 | P31: 0 | Q31: 0 | R31: 0 | S31: 0 | T31: 0 | U31: 0 | V31: 0 | W31: 0 | X31: 0 | Y31: 0 | Z31: 0 | AA31: 0 | AC31: =L31-INDEX($C31:$L31,1,aux!$BA$1) -> 0 | AD31: 0 | AE31: =+IF(INDEX($C31:$L31,1,aux!$BA$1)>0,(L31/INDEX($C31:$L31,1,aux!$BA$1))^(1/($L$3-INDEX($C$3:$L$3,1,aux!$BA$1)))-1,"n.d.") -> n.d. | AF31: =IF(INDEX($C31:$L31,1,aux!$BA$1)>0,(L31-INDEX($C31:$L31,1,aux!$BA$1))/INDEX($C31:$L31,1,aux!$BA$1),"n.d.") -> n.d. | AH31: =X31-INDEX($O31:$X31,1,aux!$BA$1) -> 0 | AI31: 0 | AJ31: =+IF(INDEX($O31:$X31,1,aux!$BA$1)>0,(X31/INDEX($O31:$X31,1,aux!$BA$1))^(1/($X$3-INDEX($O$3:$X$3,1,aux!$BA$1)))-1,"n.d.") -> n.d. | AK31: =IF(INDEX($O31:$X31,1,aux!$BA$1)>0,(X31-INDEX($O31:$X31,1,aux!$BA$1))/INDEX($O31:$X31,1,aux!$BA$1),"n.d.") -> n.d. | AM31: 0 | CC31: =+IF(ISNA(MATCH('5.1'!A31,AUX_2d_pais!$G$2:$G$40000,0)),0,1) -> 0
A32: 0477 | B32: Bonaire, Santo Eustáquio e Saba | C32: 0 | D32: 0 | E32: 0 | F32: 0 | G32: 0 | H32: 0 | I32: 0 | J32: 0 | K32: 0 | L32: 0 | M32: 0 | N32: 0 | O32: 0 | P32: 0 | Q32: 0 | R32: 0 | S32: 0 | T32: 0 | U32: 0 | V32: 0 | W32: 0 | X32: 0 | Y32: 0 | Z32: 0 | AA32: 0 | AC32: =L32-INDEX($C32:$L32,1,aux!$BA$1) -> 0 | AD32: 0 | AE32: =+IF(INDEX($C32:$L32,1,aux!$BA$1)>0,(L32/INDEX($C32:$L32,1,aux!$BA$1))^(1/($L$3-INDEX($C$3:$L$3,1,aux!$BA$1)))-1,"n.d.") -> n.d. | AF32: =IF(INDEX($C32:$L32,1,aux!$BA$1)>0,(L32-INDEX($C32:$L32,1,aux!$BA$1))/INDEX($C32:$L32,1,aux!$BA$1),"n.d.") -> n.d. | AH32: =X32-INDEX($O32:$X32,1,aux!$BA$1) -> 0 | AI32: 0 | AJ32: =+IF(INDEX($O32:$X32,1,aux!$BA$1)>0,(X32/INDEX($O32:$X32,1,aux!$BA$1))^(1/($X$3-INDEX($O$3:$X$3,1,aux!$BA$1)))-1,"n.d.") -> n.d. | AK32: =IF(INDEX($O32:$X32,1,aux!$BA$1)>0,(X32-INDEX($O32:$X32,1,aux!$BA$1))/INDEX($O32:$X32,1,aux!$BA$1),"n.d.") -> n.d. | AM32: 0 | BO32: 0 | CC32: =+IF(ISNA(MATCH('5.1'!A32,AUX_2d_pais!$G$2:$G$40000,0)),0,1) -> 0
A33: 0093 | B33: Bósnia-Herzegovina | C33: 0 | D33: 0 | E33: 86.649 | F33: 213.392 | G33: 74.897 | H33: 107.068 | I33: 54.684 | J33: 157.655 | K33: 127.464 | L33: 89.271 | M33: 91.108 | N33: 9.776053574e-06 | O33: 72.062 | P33: 66.089 | Q33: 221.894 | R33: 257.864 | S33: 159.259 | T33: 103.252 | U33: 195.411 | V33: 415.654 | W33: 428.611 | X33: 558.847 | Y33: 247.8943 | Z33: 3.558374062e-05 | AA33: 156.7863 | AC33: =L33-INDEX($C33:$L33,1,aux!$BA$1) -> 89.271 | AD33: 2.841964194e-05 | AE33: =+IF(INDEX($C33:$L33,1,aux!$BA$1)>0,(L33/INDEX($C33:$L33,1,aux!$BA$1))^(1/($L$3-INDEX($C$3:$L$3,1,aux!$BA$1)))-1,"n.d.") -> n.d. | AF33: =IF(INDEX($C33:$L33,1,aux!$BA$1)>0,(L33-INDEX($C33:$L33,1,aux!$BA$1))/INDEX($C33:$L33,1,aux!$BA$1),"n.d.") -> n.d. | AH33: =X33-INDEX($O33:$X33,1,aux!$BA$1) -> 486.785 | AI33: 0.0001371287046 | AJ33: =+IF(INDEX($O33:$X33,1,aux!$BA$1)>0,(X33/INDEX($O33:$X33,1,aux!$BA$1))^(1/($X$3-INDEX($O$3:$X$3,1,aux!$BA$1)))-1,"n.d.") -> 0.2555758591 | AK33: =IF(INDEX($O33:$X33,1,aux!$BA$1)>0,(X33-INDEX($O33:$X33,1,aux!$BA$1))/INDEX($O33:$X33,1,aux!$BA$1),"n.d.") -> 6.755085898 | CC33: =+IF(ISNA(MATCH('5.1'!A33,AUX_2d_pais!$G$2:$G$40000,0)),0,1) -> 1
A34: 0391 | B34: Botswana | C34: 0 | D34: 0 | E34: 0 | F34: 0 | G34: 0 | H34: 0 | I34: 0 | J34: 0 | K34: 0 | L34: 0 | M34: 0 | N34: 0 | O34: 0 | P34: 0 | Q34: 0 | R34: 0 | S34: 0 | T34: 0 | U34: 0 | V34: 0 | W34: 0 | X34: 0 | Y34: 0 | Z34: 0 | AA34: 0 | AC34: =L34-INDEX($C34:$L34,1,aux!$BA$1) -> 0 | AD34: 0 | AE34: =+IF(INDEX($C34:$L34,1,aux!$BA$1)>0,(L34/INDEX($C34:$L34,1,aux!$BA$1))^(1/($L$3-INDEX($C$3:$L$3,1,aux!$BA$1)))-1,"n.d.") -> n.d. | AF34: =IF(INDEX($C34:$L34,1,aux!$BA$1)>0,(L34-INDEX($C34:$L34,1,aux!$BA$1))/INDEX($C34:$L34,1,aux!$BA$1),"n.d.") -> n.d. | AH34: =X34-INDEX($O34:$X34,1,aux!$BA$1) -> 0 | AI34: 0 | AJ34: =+IF(INDEX($O34:$X34,1,aux!$BA$1)>0,(X34/INDEX($O34:$X34,1,aux!$BA$1))^(1/($X$3-INDEX($O$3:$X$3,1,aux!$BA$1)))-1,"n.d.") -> n.d. | AK34: =IF(INDEX($O34:$X34,1,aux!$BA$1)>0,(X34-INDEX($O34:$X34,1,aux!$BA$1))/INDEX($O34:$X34,1,aux!$BA$1),"n.d.") -> n.d. | AM34: 0 | CC34: =+IF(ISNA(MATCH('5.1'!A34,AUX_2d_pais!$G$2:$G$40000,0)),0,1) -> 0
A35: 0892 | B35: Bouvet, Ilha | C35: 0 | D35: 0 | E35: 0 | F35: 0 | G35: 0 | H35: 0 | I35: 0 | J35: 0 | K35: 0 | L35: 0 | M35: 0 | N35: 0 | O35: 0 | P35: 0 | Q35: 0 | R35: 0 | S35: 0 | T35: 0 | U35: 0 | V35: 0 | W35: 0 | X35: 0 | Y35: 0 | Z35: 0 | AA35: 0 | AC35: =L35-INDEX($C35:$L35,1,aux!$BA$1) -> 0 | AD35: 0 | AE35: =+IF(INDEX($C35:$L35,1,aux!$BA$1)>0,(L35/INDEX($C35:$L35,1,aux!$BA$1))^(1/($L$3-INDEX($C$3:$L$3,1,aux!$BA$1)))-1,"n.d.") -> n.d. | AF35: =IF(INDEX($C35:$L35,1,aux!$BA$1)>0,(L35-INDEX($C35:$L35,1,aux!$BA$1))/INDEX($C35:$L35,1,aux!$BA$1),"n.d.") -> n.d. | AH35: =X35-INDEX($O35:$X35,1,aux!$BA$1) -> 0 | AI35: 0 | AJ35: =+IF(INDEX($O35:$X35,1,aux!$BA$1)>0,(X35/INDEX($O35:$X35,1,aux!$BA$1))^(1/($X$3-INDEX($O$3:$X$3,1,aux!$BA$1)))-1,"n.d.") -> n.d. | AK35: =IF(INDEX($O35:$X35,1,aux!$BA$1)>0,(X35-INDEX($O35:$X35,1,aux!$BA$1))/INDEX($O35:$X35,1,aux!$BA$1),"n.d.") -> n.d. | AM35: 0 | BO35: 0 | CC35: =+IF(ISNA(MATCH('5.1'!A35,AUX_2d_pais!$G$2:$G$40000,0)),0,1) -> 0
A36: 0508 | B36: Brasil | C36: 0 | D36: 0 | E36: 0 | F36: 0 | G36: 0 | H36: 0 | I36: 0 | J36: 0 | K36: 0 | L36: 0 | M36: 0 | N36: 0 | O36: 0 | P36: 0 | Q36: 0 | R36: 0 | S36: 0 | T36: 0 | U36: 0 | V36: 0 | W36: 0 | X36: 0 | Y36: 0 | Z36: 0 | AA36: 0 | AC36: =L36-INDEX($C36:$L36,1,aux!$BA$1) -> 0 | AD36: =AC36/$AC$252 -> 0 | AE36: =+IF(INDEX($C36:$L36,1,aux!$BA$1)>0,(L36/INDEX($C36:$L36,1,aux!$BA$1))^(1/($L$3-INDEX($C$3:$L$3,1,aux!$BA$1)))-1,"n.d.") -> n.d. | AF36: =IF(INDEX($C36:$L36,1,aux!$BA$1)>0,(L36-INDEX($C36:$L36,1,aux!$BA$1))/INDEX($C36:$L36,1,aux!$BA$1),"n.d.") -> n.d. | AH36: =X36-INDEX($O36:$X36,1,aux!$BA$1) -> 0 | AI36: =AH36/$AH$252 -> 0 | AJ36: =+IF(INDEX($O36:$X36,1,aux!$BA$1)>0,(X36/INDEX($O36:$X36,1,aux!$BA$1))^(1/($X$3-INDEX($O$3:$X$3,1,aux!$BA$1)))-1,"n.d.") -> n.d. | AK36: =IF(INDEX($O36:$X36,1,aux!$BA$1)>0,(X36-INDEX($O36:$X36,1,aux!$BA$1))/INDEX($O36:$X36,1,aux!$BA$1),"n.d.") -> n.d. | AM36: 0 | CC36: =+IF(ISNA(MATCH('5.1'!A36,AUX_2d_pais!$G$2:$G$40000,0)),0,1) -> 0
A37: 0703 | B37: Brunei Darussalam | C37: 0 | D37: 0 | E37: 0 | F37: 0 | G37: 0 | H37: 0 | I37: 0 | J37: 0 | K37: 0 | L37: 0 | M37: 0 | N37: 0 | O37: 0 | P37: 0 | Q37: 0 | R37: 0 | S37: 0 | T37: 0 | U37: 0 | V37: 0 | W37: 0 | X37: 0 | Y37: 0 | Z37: 0 | AA37: 0 | AC37: =L37-INDEX($C37:$L37,1,aux!$BA$1) -> 0 | AD37: 0 | AE37: =+IF(INDEX($C37:$L37,1,aux!$BA$1)>0,(L37/INDEX($C37:$L37,1,aux!$BA$1))^(1/($L$3-INDEX($C$3:$L$3,1,aux!$BA$1)))-1,"n.d.") -> n.d. | AF37: =IF(INDEX($C37:$L37,1,aux!$BA$1)>0,(L37-INDEX($C37:$L37,1,aux!$BA$1))/INDEX($C37:$L37,1,aux!$BA$1),"n.d.") -> n.d. | AH37: =X37-INDEX($O37:$X37,1,aux!$BA$1) -> 0 | AI37: 0 | AJ37: =+IF(INDEX($O37:$X37,1,aux!$BA$1)>0,(X37/INDEX($O37:$X37,1,aux!$BA$1))^(1/($X$3-INDEX($O$3:$X$3,1,aux!$BA$1)))-1,"n.d.") -> n.d. | AK37: =IF(INDEX($O37:$X37,1,aux!$BA$1)>0,(X37-INDEX($O37:$X37,1,aux!$BA$1))/INDEX($O37:$X37,1,aux!$BA$1),"n.d.") -> n.d. | AM37: 0 | BO37: 0 | CC37: =+IF(ISNA(MATCH('5.1'!A37,AUX_2d_pais!$G$2:$G$40000,0)),0,1) -> 0
A38: 0068 | B38: Bulgária | C38: 26346.438 | D38: 31861.003 | E38: 62064.413 | F38: 157261.863 | G38: 120331.562 | H38: 76241.094 | I38: 43320.99 | J38: 55669.291 | K38: 65758.47 | L38: 36995.985 | M38: 67585.1109 | N38: 0.007252004928 | O38: 1863.802 | P38: 2476.385 | Q38: 5782.694 | R38: 4708.37 | S38: 4853.687 | T38: 5408.716 | U38: 7781.889 | V38: 7906.891 | W38: 10291.398 | X38: 10484.313 | Y38: 6155.8145 | Z38: 0.0008836302668 | AA38: -61429.2964 | AC38: =L38-INDEX($C38:$L38,1,aux!$BA$1) -> 10649.547 | AD38: 0.003390309424 | AE38: =+IF(INDEX($C38:$L38,1,aux!$BA$1)>0,(L38/INDEX($C38:$L38,1,aux!$BA$1))^(1/($L$3-INDEX($C$3:$L$3,1,aux!$BA$1)))-1,"n.d.") -> 0.03844000282 | AF38: =IF(INDEX($C38:$L38,1,aux!$BA$1)>0,(L38-INDEX($C38:$L38,1,aux!$BA$1))/INDEX($C38:$L38,1,aux!$BA$1),"n.d.") -> 0.4042120229 | AH38: =X38-INDEX($O38:$X38,1,aux!$BA$1) -> 8620.511 | AI38: 0.002428422211 | AJ38: =+IF(INDEX($O38:$X38,1,aux!$BA$1)>0,(X38/INDEX($O38:$X38,1,aux!$BA$1))^(1/($X$3-INDEX($O$3:$X$3,1,aux!$BA$1)))-1,"n.d.") -> 0.2115711173 | AK38: =IF(INDEX($O38:$X38,1,aux!$BA$1)>0,(X38-INDEX($O38:$X38,1,aux!$BA$1))/INDEX($O38:$X38,1,aux!$BA$1),"n.d.") -> 4.625228967 | CC38: =+IF(ISNA(MATCH('5.1'!A38,AUX_2d_pais!$G$2:$G$40000,0)),0,1) -> 1
A39: 0236 | B39: Burquina Faso | C39: 0 | D39: 0 | E39: 0 | F39: 0 | G39: 0 | H39: 0 | I39: 0 | J39: 0 | K39: 0 | L39: 0 | M39: 0 | N39: 0 | O39: 0 | P39: 0 | Q39: 0 | R39: 0 | S39: 0 | T39: 0 | U39: 0 | V39: 0 | W39: 0 | X39: 0 | Y39: 0 | Z39: 0 | AA39: 0 | AC39: =L39-INDEX($C39:$L39,1,aux!$BA$1) -> 0 | AD39: 0 | AE39: =+IF(INDEX($C39:$L39,1,aux!$BA$1)>0,(L39/INDEX($C39:$L39,1,aux!$BA$1))^(1/($L$3-INDEX($C$3:$L$3,1,aux!$BA$1)))-1,"n.d.") -> n.d. | AF39: =IF(INDEX($C39:$L39,1,aux!$BA$1)>0,(L39-INDEX($C39:$L39,1,aux!$BA$1))/INDEX($C39:$L39,1,aux!$BA$1),"n.d.") -> n.d. | AH39: =X39-INDEX($O39:$X39,1,aux!$BA$1) -> 0 | AI39: 0 | AJ39: =+IF(INDEX($O39:$X39,1,aux!$BA$1)>0,(X39/INDEX($O39:$X39,1,aux!$BA$1))^(1/($X$3-INDEX($O$3:$X$3,1,aux!$BA$1)))-1,"n.d.") -> n.d. | AK39: =IF(INDEX($O39:$X39,1,aux!$BA$1)>0,(X39-INDEX($O39:$X39,1,aux!$BA$1))/INDEX($O39:$X39,1,aux!$BA$1),"n.d.") -> n.d. | AM39: 0 | CC39: =+IF(ISNA(MATCH('5.1'!A39,AUX_2d_pais!$G$2:$G$40000,0)),0,1) -> 0
A40: 0328 | B40: Burundi | C40: 0 | D40: 0 | E40: 0 | F40: 0 | G40: 0 | H40: 0 | I40: 0 | J40: 0 | K40: 0 | L40: 0 | M40: 0 | N40: 0 | O40: 0 | P40: 0 | Q40: 0 | R40: 0 | S40: 0 | T40: 0 | U40: 0 | V40: 0 | W40: 0 | X40: 0 | Y40: 0 | Z40: 0 | AA40: 0 | AC40: =L40-INDEX($C40:$L40,1,aux!$BA$1) -> 0 | AD40: 0 | AE40: =+IF(INDEX($C40:$L40,1,aux!$BA$1)>0,(L40/INDEX($C40:$L40,1,aux!$BA$1))^(1/($L$3-INDEX($C$3:$L$3,1,aux!$BA$1)))-1,"n.d.") -> n.d. | AF40: =IF(INDEX($C40:$L40,1,aux!$BA$1)>0,(L40-INDEX($C40:$L40,1,aux!$BA$1))/INDEX($C40:$L40,1,aux!$BA$1),"n.d.") -> n.d. | AH40: =X40-INDEX($O40:$X40,1,aux!$BA$1) -> 0 | AI40: 0 | AJ40: =+IF(INDEX($O40:$X40,1,aux!$BA$1)>0,(X40/INDEX($O40:$X40,1,aux!$BA$1))^(1/($X$3-INDEX($O$3:$X$3,1,aux!$BA$1)))-1,"n.d.") -> n.d. | AK40: =IF(INDEX($O40:$X40,1,aux!$BA$1)>0,(X40-INDEX($O40:$X40,1,aux!$BA$1))/INDEX($O40:$X40,1,aux!$BA$1),"n.d.") -> n.d. | AM40: 0 | BO40: 0 | CC40: =+IF(ISNA(MATCH('5.1'!A40,AUX_2d_pais!$G$2:$G$40000,0)),0,1) -> 0
A41: 0675 | B41: Butão | C41: 0 | D41: 0 | E41: 0 | F41: 0 | G41: 0 | H41: 0 | I41: 0 | J41: 0 | K41: 0 | L41: 0 | M41: 0 | N41: 0 | O41: 0 | P41: 0 | Q41: 0 | R41: 0 | S41: 0 | T41: 0 | U41: 0 | V41: 0 | W41: 0 | X41: 0 | Y41: 0 | Z41: 0 | AA41: 0 | AC41: =L41-INDEX($C41:$L41,1,aux!$BA$1) -> 0 | AD41: 0 | AE41: =+IF(INDEX($C41:$L41,1,aux!$BA$1)>0,(L41/INDEX($C41:$L41,1,aux!$BA$1))^(1/($L$3-INDEX($C$3:$L$3,1,aux!$BA$1)))-1,"n.d.") -> n.d. | AF41: =IF(INDEX($C41:$L41,1,aux!$BA$1)>0,(L41-INDEX($C41:$L41,1,aux!$BA$1))/INDEX($C41:$L41,1,aux!$BA$1),"n.d.") -> n.d. | AH41: =X41-INDEX($O41:$X41,1,aux!$BA$1) -> 0 | AI41: 0 | AJ41: =+IF(INDEX($O41:$X41,1,aux!$BA$1)>0,(X41/INDEX($O41:$X41,1,aux!$BA$1))^(1/($X$3-INDEX($O$3:$X$3,1,aux!$BA$1)))-1,"n.d.") -> n.d. | AK41: =IF(INDEX($O41:$X41,1,aux!$BA$1)>0,(X41-INDEX($O41:$X41,1,aux!$BA$1))/INDEX($O41:$X41,1,aux!$BA$1),"n.d.") -> n.d. | AM41: 0 | BO41: 0 | CC41: =+IF(ISNA(MATCH('5.1'!A41,AUX_2d_pais!$G$2:$G$40000,0)),0,1) -> 0
A42: 0247 | B42: Cabo Verde | C42: 0 | D42: 0 | E42: 0 | F42: 0 | G42: 0 | H42: 0 | I42: 0 | J42: 0 | K42: 0 | L42: 0 | M42: 0 | N42: 0 | O42: 0 | P42: 0 | Q42: 0 | R42: 0 | S42: 0 | T42: 0 | U42: 0 | V42: 0 | W42: 0 | X42: 0 | Y42: 0 | Z42: 0 | AA42: 0 | AC42: =L42-INDEX($C42:$L42,1,aux!$BA$1) -> 0 | AD42: 0 | AE42: =+IF(INDEX($C42:$L42,1,aux!$BA$1)>0,(L42/INDEX($C42:$L42,1,aux!$BA$1))^(1/($L$3-INDEX($C$3:$L$3,1,aux!$BA$1)))-1,"n.d.") -> n.d. | AF42: =IF(INDEX($C42:$L42,1,aux!$BA$1)>0,(L42-INDEX($C42:$L42,1,aux!$BA$1))/INDEX($C42:$L42,1,aux!$BA$1),"n.d.") -> n.d. | AH42: =X42-INDEX($O42:$X42,1,aux!$BA$1) -> 0 | AI42: 0 | AJ42: =+IF(INDEX($O42:$X42,1,aux!$BA$1)>0,(X42/INDEX($O42:$X42,1,aux!$BA$1))^(1/($X$3-INDEX($O$3:$X$3,1,aux!$BA$1)))-1,"n.d.") -> n.d. | AK42: =IF(INDEX($O42:$X42,1,aux!$BA$1)>0,(X42-INDEX($O42:$X42,1,aux!$BA$1))/INDEX($O42:$X42,1,aux!$BA$1),"n.d.") -> n.d. | AM42: 0 | CC42: =+IF(ISNA(MATCH('5.1'!A42,AUX_2d_pais!$G$2:$G$40000,0)),0,1) -> 0
A43: 0463 | B43: Caimão, Ilhas | C43: 0 | D43: 0 | E43: 0 | F43: 0 | G43: 0 | H43: 0 | I43: 0 | J43: 0 | K43: 0 | L43: 0 | M43: 0 | N43: 0 | O43: 0 | P43: 0 | Q43: 0 | R43: 0 | S43: 0 | T43: 0 | U43: 0 | V43: 0 | W43: 0 | X43: 0 | Y43: 0 | Z43: 0 | AA43: 0 | AC43: =L43-INDEX($C43:$L43,1,aux!$BA$1) -> 0 | AD43: 0 | AE43: =+IF(INDEX($C43:$L43,1,aux!$BA$1)>0,(L43/INDEX($C43:$L43,1,aux!$BA$1))^(1/($L$3-INDEX($C$3:$L$3,1,aux!$BA$1)))-1,"n.d.") -> n.d. | AF43: =IF(INDEX($C43:$L43,1,aux!$BA$1)>0,(L43-INDEX($C43:$L43,1,aux!$BA$1))/INDEX($C43:$L43,1,aux!$BA$1),"n.d.") -> n.d. | AH43: =X43-INDEX($O43:$X43,1,aux!$BA$1) -> 0 | AI43: 0 | AJ43: =+IF(INDEX($O43:$X43,1,aux!$BA$1)>0,(X43/INDEX($O43:$X43,1,aux!$BA$1))^(1/($X$3-INDEX($O$3:$X$3,1,aux!$BA$1)))-1,"n.d.") -> n.d. | AK43: =IF(INDEX($O43:$X43,1,aux!$BA$1)>0,(X43-INDEX($O43:$X43,1,aux!$BA$1))/INDEX($O43:$X43,1,aux!$BA$1),"n.d.") -> n.d. | AM43: 0 | BO43: 0 | CC43: =+IF(ISNA(MATCH('5.1'!A43,AUX_2d_pais!$G$2:$G$40000,0)),0,1) -> 0
A44: 0302 | B44: Camarões | C44: 0 | D44: 0 | E44: 0 | F44: 0 | G44: 0 | H44: 0 | I44: 0 | J44: 0 | K44: 0 | L44: 0 | M44: 0 | N44: 0 | O44: 0 | P44: 0 | Q44: 0 | R44: 0 | S44: 0 | T44: 0 | U44: 0 | V44: 0 | W44: 0 | X44: 0 | Y44: 0 | Z44: 0 | AA44: 0 | AC44: =L44-INDEX($C44:$L44,1,aux!$BA$1) -> 0 | AD44: 0 | AE44: =+IF(INDEX($C44:$L44,1,aux!$BA$1)>0,(L44/INDEX($C44:$L44,1,aux!$BA$1))^(1/($L$3-INDEX($C$3:$L$3,1,aux!$BA$1)))-1,"n.d.") -> n.d. | AF44: =IF(INDEX($C44:$L44,1,aux!$BA$1)>0,(L44-INDEX($C44:$L44,1,aux!$BA$1))/INDEX($C44:$L44,1,aux!$BA$1),"n.d.") -> n.d. | AH44: =X44-INDEX($O44:$X44,1,aux!$BA$1) -> 0 | AI44: 0 | AJ44: =+IF(INDEX($O44:$X44,1,aux!$BA$1)>0,(X44/INDEX($O44:$X44,1,aux!$BA$1))^(1/($X$3-INDEX($O$3:$X$3,1,aux!$BA$1)))-1,"n.d.") -> n.d. | AK44: =IF(INDEX($O44:$X44,1,aux!$BA$1)>0,(X44-INDEX($O44:$X44,1,aux!$BA$1))/INDEX($O44:$X44,1,aux!$BA$1),"n.d.") -> n.d. | AM44: 0 | CC44: =+IF(ISNA(MATCH('5.1'!A44,AUX_2d_pais!$G$2:$G$40000,0)),0,1) -> 0
A45: 0696 | B45: Camboja | C45: 0 | D45: 0 | E45: 0 | F45: 0 | G45: 0 | H45: 0 | I45: 0 | J45: 0 | K45: 0 | L45: 0 | M45: 0 | N45: 0 | O45: 0 | P45: 0 | Q45: 0 | R45: 0 | S45: 0 | T45: 0 | U45: 0 | V45: 0 | W45: 0 | X45: 0 | Y45: 0 | Z45: 0 | AA45: 0 | AC45: =L45-INDEX($C45:$L45,1,aux!$BA$1) -> 0 | AD45: 0 | AE45: =+IF(INDEX($C45:$L45,1,aux!$BA$1)>0,(L45/INDEX($C45:$L45,1,aux!$BA$1))^(1/($L$3-INDEX($C$3:$L$3,1,aux!$BA$1)))-1,"n.d.") -> n.d. | AF45: =IF(INDEX($C45:$L45,1,aux!$BA$1)>0,(L45-INDEX($C45:$L45,1,aux!$BA$1))/INDEX($C45:$L45,1,aux!$BA$1),"n.d.") -> n.d. | AH45: =X45-INDEX($O45:$X45,1,aux!$BA$1) -> 0 | AI45: 0 | AJ45: =+IF(INDEX($O45:$X45,1,aux!$BA$1)>0,(X45/INDEX($O45:$X45,1,aux!$BA$1))^(1/($X$3-INDEX($O$3:$X$3,1,aux!$BA$1)))-1,"n.d.") -> n.d. | AK45: =IF(INDEX($O45:$X45,1,aux!$BA$1)>0,(X45-INDEX($O45:$X45,1,aux!$BA$1))/INDEX($O45:$X45,1,aux!$BA$1),"n.d.") -> n.d. | AM45: 0 | CC45: =+IF(ISNA(MATCH('5.1'!A45,AUX_2d_pais!$G$2:$G$40000,0)),0,1) -> 0
A46: 0404 | B46: Canadá | C46: 0 | D46: 0 | E46: 0 | F46: 0 | G46: 0 | H46: 0 | I46: 0 | J46: 0 | K46: 0 | L46: 0 | M46: 0 | N46: 0 | O46: 0 | P46: 0 | Q46: 0 | R46: 0 | S46: 0 | T46: 0 | U46: 0 | V46: 0 | W46: 0 | X46: 0 | Y46: 0 | Z46: 0 | AA46: 0 | AC46: =L46-INDEX($C46:$L46,1,aux!$BA$1) -> 0 | AD46: 0 | AE46: =+IF(INDEX($C46:$L46,1,aux!$BA$1)>0,(L46/INDEX($C46:$L46,1,aux!$BA$1))^(1/($L$3-INDEX($C$3:$L$3,1,aux!$BA$1)))-1,"n.d.") -> n.d. | AF46: =IF(INDEX($C46:$L46,1,aux!$BA$1)>0,(L46-INDEX($C46:$L46,1,aux!$BA$1))/INDEX($C46:$L46,1,aux!$BA$1),"n.d.") -> n.d. | AH46: =X46-INDEX($O46:$X46,1,aux!$BA$1) -> 0 | AI46: 0 | AJ46: =+IF(INDEX($O46:$X46,1,aux!$BA$1)>0,(X46/INDEX($O46:$X46,1,aux!$BA$1))^(1/($X$3-INDEX($O$3:$X$3,1,aux!$BA$1)))-1,"n.d.") -> n.d. | AK46: =IF(INDEX($O46:$X46,1,aux!$BA$1)>0,(X46-INDEX($O46:$X46,1,aux!$BA$1))/INDEX($O46:$X46,1,aux!$BA$1),"n.d.") -> n.d. | AM46: 0 | CC46: =+IF(ISNA(MATCH('5.1'!A46,AUX_2d_pais!$G$2:$G$40000,0)),0,1) -> 0
A47: 0644 | B47: Catar | C47: 0 | D47: 0 | E47: 0 | F47: 0 | G47: 0 | H47: 0 | I47: 0 | J47: 0 | K47: 0 | L47: 0 | M47: 0 | N47: 0 | O47: 0 | P47: 0 | Q47: 0 | R47: 0 | S47: 0 | T47: 0 | U47: 0 | V47: 0 | W47: 0 | X47: 0 | Y47: 0 | Z47: 0 | AA47: 0 | AC47: =L47-INDEX($C47:$L47,1,aux!$BA$1) -> 0 | AD47: 0 | AE47: =+IF(INDEX($C47:$L47,1,aux!$BA$1)>0,(L47/INDEX($C47:$L47,1,aux!$BA$1))^(1/($L$3-INDEX($C$3:$L$3,1,aux!$BA$1)))-1,"n.d.") -> n.d. | AF47: =IF(INDEX($C47:$L47,1,aux!$BA$1)>0,(L47-INDEX($C47:$L47,1,aux!$BA$1))/INDEX($C47:$L47,1,aux!$BA$1),"n.d.") -> n.d. | AH47: =X47-INDEX($O47:$X47,1,aux!$BA$1) -> 0 | AI47: 0 | AJ47: =+IF(INDEX($O47:$X47,1,aux!$BA$1)>0,(X47/INDEX($O47:$X47,1,aux!$BA$1))^(1/($X$3-INDEX($O$3:$X$3,1,aux!$BA$1)))-1,"n.d.") -> n.d. | AK47: =IF(INDEX($O47:$X47,1,aux!$BA$1)>0,(X47-INDEX($O47:$X47,1,aux!$BA$1))/INDEX($O47:$X47,1,aux!$BA$1),"n.d.") -> n.d. | AM47: 0 | CC47: =+IF(ISNA(MATCH('5.1'!A47,AUX_2d_pais!$G$2:$G$40000,0)),0,1) -> 0
A48: 0079 | B48: Cazaquistão | C48: 0 | D48: 0 | E48: 0 | F48: 0 | G48: 0 | H48: 0 | I48: 0 | J48: 0 | K48: 0 | L48: 0 | M48: 0 | N48: 0 | O48: 0 | P48: 0 | Q48: 0 | R48: 0 | S48: 0 | T48: 0 | U48: 0 | V48: 0 | W48: 0 | X48: 0 | Y48: 0 | Z48: 0 | AA48: 0 | AC48: =L48-INDEX($C48:$L48,1,aux!$BA$1) -> 0 | AD48: 0 | AE48: =+IF(INDEX($C48:$L48,1,aux!$BA$1)>0,(L48/INDEX($C48:$L48,1,aux!$BA$1))^(1/($L$3-INDEX($C$3:$L$3,1,aux!$BA$1)))-1,"n.d.") -> n.d. | AF48: =IF(INDEX($C48:$L48,1,aux!$BA$1)>0,(L48-INDEX($C48:$L48,1,aux!$BA$1))/INDEX($C48:$L48,1,aux!$BA$1),"n.d.") -> n.d. | AH48: =X48-INDEX($O48:$X48,1,aux!$BA$1) -> 0 | AI48: 0 | AJ48: =+IF(INDEX($O48:$X48,1,aux!$BA$1)>0,(X48/INDEX($O48:$X48,1,aux!$BA$1))^(1/($X$3-INDEX($O$3:$X$3,1,aux!$BA$1)))-1,"n.d.") -> n.d. | AK48: =IF(INDEX($O48:$X48,1,aux!$BA$1)>0,(X48-INDEX($O48:$X48,1,aux!$BA$1))/INDEX($O48:$X48,1,aux!$BA$1),"n.d.") -> n.d. | AM48: 0 | CC48: =+IF(ISNA(MATCH('5.1'!A48,AUX_2d_pais!$G$2:$G$40000,0)),0,1) -> 0
A49: 0306 | B49: Centro-Africana, República | C49: 0 | D49: 0 | E49: 0 | F49: 0 | G49: 0 | H49: 0 | I49: 0 | J49: 0 | K49: 0 | L49: 0 | M49: 0 | N49: 0 | O49: 0 | P49: 0 | Q49: 0 | R49: 0 | S49: 0 | T49: 0 | U49: 0 | V49: 0 | W49: 0 | X49: 0 | Y49: 0 | Z49: 0 | AA49: 0 | AC49: =L49-INDEX($C49:$L49,1,aux!$BA$1) -> 0 | AD49: 0 | AE49: =+IF(INDEX($C49:$L49,1,aux!$BA$1)>0,(L49/INDEX($C49:$L49,1,aux!$BA$1))^(1/($L$3-INDEX($C$3:$L$3,1,aux!$BA$1)))-1,"n.d.") -> n.d. | AF49: =IF(INDEX($C49:$L49,1,aux!$BA$1)>0,(L49-INDEX($C49:$L49,1,aux!$BA$1))/INDEX($C49:$L49,1,aux!$BA$1),"n.d.") -> n.d. | AH49: =X49-INDEX($O49:$X49,1,aux!$BA$1) -> 0 | AI49: 0 | AJ49: =+IF(INDEX($O49:$X49,1,aux!$BA$1)>0,(X49/INDEX($O49:$X49,1,aux!$BA$1))^(1/($X$3-INDEX($O$3:$X$3,1,aux!$BA$1)))-1,"n.d.") -> n.d. | AK49: =IF(INDEX($O49:$X49,1,aux!$BA$1)>0,(X49-INDEX($O49:$X49,1,aux!$BA$1))/INDEX($O49:$X49,1,aux!$BA$1),"n.d.") -> n.d. | AM49: 0 | BO49: 0 | CC49: =+IF(ISNA(MATCH('5.1'!A49,AUX_2d_pais!$G$2:$G$40000,0)),0,1) -> 0
A50: 0021 | B50: Ceuta | C50: 0 | D50: 0 | E50: 0 | F50: 0 | G50: 0 | H50: 0 | I50: 0 | J50: 0 | K50: 0 | L50: 0 | M50: 0 | N50: 0 | O50: 0 | P50: 0 | Q50: 0 | R50: 0 | S50: 0 | T50: 0 | U50: 0 | V50: 0 | W50: 0 | X50: 0 | Y50: 0 | Z50: 0 | AA50: 0 | AC50: =L50-INDEX($C50:$L50,1,aux!$BA$1) -> 0 | AD50: 0 | AE50: =+IF(INDEX($C50:$L50,1,aux!$BA$1)>0,(L50/INDEX($C50:$L50,1,aux!$BA$1))^(1/($L$3-INDEX($C$3:$L$3,1,aux!$BA$1)))-1,"n.d.") -> n.d. | AF50: =IF(INDEX($C50:$L50,1,aux!$BA$1)>0,(L50-INDEX($C50:$L50,1,aux!$BA$1))/INDEX($C50:$L50,1,aux!$BA$1),"n.d.") -> n.d. | AH50: =X50-INDEX($O50:$X50,1,aux!$BA$1) -> 0 | AI50: 0 | AJ50: =+IF(INDEX($O50:$X50,1,aux!$BA$1)>0,(X50/INDEX($O50:$X50,1,aux!$BA$1))^(1/($X$3-INDEX($O$3:$X$3,1,aux!$BA$1)))-1,"n.d.") -> n.d. | AK50: =IF(INDEX($O50:$X50,1,aux!$BA$1)>0,(X50-INDEX($O50:$X50,1,aux!$BA$1))/INDEX($O50:$X50,1,aux!$BA$1),"n.d.") -> n.d. | AM50: 0 | CC50: =+IF(ISNA(MATCH('5.1'!A50,AUX_2d_pais!$G$2:$G$40000,0)),0,1) -> 0
A51: 0022 | B51: Ceuta e Melilha | C51: 0 | D51: 0 | E51: 0 | F51: 0 | G51: 0 | H51: 0 | I51: 0 | J51: 0 | K51: 0 | L51: 0 | M51: 0 | N51: 0 | O51: 0 | P51: 0 | Q51: 0 | R51: 0 | S51: 0 | T51: 0 | U51: 0 | V51: 0 | W51: 0 | X51: 0 | Y51: 0 | Z51: 0 | AA51: 0 | AC51: =L51-INDEX($C51:$L51,1,aux!$BA$1) -> 0 | AD51: 0 | AE51: =+IF(INDEX($C51:$L51,1,aux!$BA$1)>0,(L51/INDEX($C51:$L51,1,aux!$BA$1))^(1/($L$3-INDEX($C$3:$L$3,1,aux!$BA$1)))-1,"n.d.") -> n.d. | AF51: =IF(INDEX($C51:$L51,1,aux!$BA$1)>0,(L51-INDEX($C51:$L51,1,aux!$BA$1))/INDEX($C51:$L51,1,aux!$BA$1),"n.d.") -> n.d. | AH51: =X51-INDEX($O51:$X51,1,aux!$BA$1) -> 0 | AI51: 0 | AJ51: =+IF(INDEX($O51:$X51,1,aux!$BA$1)>0,(X51/INDEX($O51:$X51,1,aux!$BA$1))^(1/($X$3-INDEX($O$3:$X$3,1,aux!$BA$1)))-1,"n.d.") -> n.d. | AK51: =IF(INDEX($O51:$X51,1,aux!$BA$1)>0,(X51-INDEX($O51:$X51,1,aux!$BA$1))/INDEX($O51:$X51,1,aux!$BA$1),"n.d.") -> n.d. | AM51: 0 | CC51: =+IF(ISNA(MATCH('5.1'!A51,AUX_2d_pais!$G$2:$G$40000,0)),0,1) -> 0
A52: 0244 | B52: Chade | C52: 0 | D52: 0 | E52: 0 | F52: 0 | G52: 0 | H52: 0 | I52: 0 | J52: 0 | K52: 0 | L52: 0 | M52: 0 | N52: 0 | O52: 0 | P52: 0 | Q52: 0 | R52: 0 | S52: 0 | T52: 0 | U52: 0 | V52: 0 | W52: 0 | X52: 0 | Y52: 0 | Z52: 0 | AA52: 0 | AC52: =L52-INDEX($C52:$L52,1,aux!$BA$1) -> 0 | AD52: 0 | AE52: =+IF(INDEX($C52:$L52,1,aux!$BA$1)>0,(L52/INDEX($C52:$L52,1,aux!$BA$1))^(1/($L$3-INDEX($C$3:$L$3,1,aux!$BA$1)))-1,"n.d.") -> n.d. | AF52: =IF(INDEX($C52:$L52,1,aux!$BA$1)>0,(L52-INDEX($C52:$L52,1,aux!$BA$1))/INDEX($C52:$L52,1,aux!$BA$1),"n.d.") -> n.d. | AH52: =X52-INDEX($O52:$X52,1,aux!$BA$1) -> 0 | AI52: 0 | AJ52: =+IF(INDEX($O52:$X52,1,aux!$BA$1)>0,(X52/INDEX($O52:$X52,1,aux!$BA$1))^(1/($X$3-INDEX($O$3:$X$3,1,aux!$BA$1)))-1,"n.d.") -> n.d. | AK52: =IF(INDEX($O52:$X52,1,aux!$BA$1)>0,(X52-INDEX($O52:$X52,1,aux!$BA$1))/INDEX($O52:$X52,1,aux!$BA$1),"n.d.") -> n.d. | AM52: 0 | CC52: =+IF(ISNA(MATCH('5.1'!A52,AUX_2d_pais!$G$2:$G$40000,0)),0,1) -> 0
A53: 0061 | B53: Checa, República | C53: 6926.148 | D53: 7408.708 | E53: 9568.941 | F53: 8743.582 | G53: 10339.254 | H53: 14835.772 | I53: 16178.485 | J53: 25604.401 | K53: 29715.859 | L53: 29386.185 | M53: 15870.7335 | N53: 0.001702958477 | O53: 32776.648 | P53: 32327.721 | Q53: 33892.816 | R53: 40013.454 | S53: 42622.046 | T53: 42500.767 | U53: 61268.357 | V53: 37232.797 | W53: 21946.386 | X53: 24297.611 | Y53: 36887.8603 | Z53: 0.0052950312 | AA53: 21017.1268 | AC53: =L53-INDEX($C53:$L53,1,aux!$BA$1) -> 22460.037 | AD53: 0.007150207901 | AE53: =+IF(INDEX($C53:$L53,1,aux!$BA$1)>0,(L53/INDEX($C53:$L53,1,aux!$BA$1))^(1/($L$3-INDEX($C$3:$L$3,1,aux!$BA$1)))-1,"n.d.") -> 0.1741918158 | AF53: =IF(INDEX($C53:$L53,1,aux!$BA$1)>0,(L53-INDEX($C53:$L53,1,aux!$BA$1))/INDEX($C53:$L53,1,aux!$BA$1),"n.d.") -> 3.242789065 | AH53: =X53-INDEX($O53:$X53,1,aux!$BA$1) -> -8479.037 | AI53: -0.002388568587 | AJ53: =+IF(INDEX($O53:$X53,1,aux!$BA$1)>0,(X53/INDEX($O53:$X53,1,aux!$BA$1))^(1/($X$3-INDEX($O$3:$X$3,1,aux!$BA$1)))-1,"n.d.") -> -0.03271278265 | AK53: =IF(INDEX($O53:$X53,1,aux!$BA$1)>0,(X53-INDEX($O53:$X53,1,aux!$BA$1))/INDEX($O53:$X53,1,aux!$BA$1),"n.d.") -> -0.2586914013 | CC53: =+IF(ISNA(MATCH('5.1'!A53,AUX_2d_pais!$G$2:$G$40000,0)),0,1) -> 1
A54: 0512 | B54: Chile | C54: 0 | D54: 0 | E54: 0 | F54: 0 | G54: 0 | H54: 0 | I54: 0 | J54: 0 | K54: 0 | L54: 0 | M54: 0 | N54: 0 | O54: 0 | P54: 0 | Q54: 0 | R54: 0 | S54: 0 | T54: 0 | U54: 0 | V54: 0 | W54: 0 | X54: 0 | Y54: 0 | Z54: 0 | AA54: 0 | AC54: =L54-INDEX($C54:$L54,1,aux!$BA$1) -> 0 | AD54: 0 | AE54: =+IF(INDEX($C54:$L54,1,aux!$BA$1)>0,(L54/INDEX($C54:$L54,1,aux!$BA$1))^(1/($L$3-INDEX($C$3:$L$3,1,aux!$BA$1)))-1,"n.d.") -> n.d. | AF54: =IF(INDEX($C54:$L54,1,aux!$BA$1)>0,(L54-INDEX($C54:$L54,1,aux!$BA$1))/INDEX($C54:$L54,1,aux!$BA$1),"n.d.") -> n.d. | AH54: =X54-INDEX($O54:$X54,1,aux!$BA$1) -> 0 | AI54: 0 | AJ54: =+IF(INDEX($O54:$X54,1,aux!$BA$1)>0,(X54/INDEX($O54:$X54,1,aux!$BA$1))^(1/($X$3-INDEX($O$3:$X$3,1,aux!$BA$1)))-1,"n.d.") -> n.d. | AK54: =IF(INDEX($O54:$X54,1,aux!$BA$1)>0,(X54-INDEX($O54:$X54,1,aux!$BA$1))/INDEX($O54:$X54,1,aux!$BA$1),"n.d.") -> n.d. | AM54: 0 | CC54: =+IF(ISNA(MATCH('5.1'!A54,AUX_2d_pais!$G$2:$G$40000,0)),0,1) -> 0
A55: 0720 | B55: China, República Popular da | C55: 0 | D55: 0 | E55: 0 | F55: 0 | G55: 0 | H55: 0 | I55: 0 | J55: 0 | K55: 0 | L55: 0 | M55: 0 | N55: 0 | O55: 0 | P55: 0 | Q55: 0 | R55: 0 | S55: 0 | T55: 0 | U55: 0 | V55: 0 | W55: 0 | X55: 0 | Y55: 0 | Z55: 0 | AA55: 0 | AC55: =L55-INDEX($C55:$L55,1,aux!$BA$1) -> 0 | AD55: 0 | AE55: =+IF(INDEX($C55:$L55,1,aux!$BA$1)>0,(L55/INDEX($C55:$L55,1,aux!$BA$1))^(1/($L$3-INDEX($C$3:$L$3,1,aux!$BA$1)))-1,"n.d.") -> n.d. | AF55: =IF(INDEX($C55:$L55,1,aux!$BA$1)>0,(L55-INDEX($C55:$L55,1,aux!$BA$1))/INDEX($C55:$L55,1,aux!$BA$1),"n.d.") -> n.d. | AH55: =X55-INDEX($O55:$X55,1,aux!$BA$1) -> 0 | AI55: 0 | AJ55: =+IF(INDEX($O55:$X55,1,aux!$BA$1)>0,(X55/INDEX($O55:$X55,1,aux!$BA$1))^(1/($X$3-INDEX($O$3:$X$3,1,aux!$BA$1)))-1,"n.d.") -> n.d. | AK55: =IF(INDEX($O55:$X55,1,aux!$BA$1)>0,(X55-INDEX($O55:$X55,1,aux!$BA$1))/INDEX($O55:$X55,1,aux!$BA$1),"n.d.") -> n.d. | AM55: 0 | CC55: =+IF(ISNA(MATCH('5.1'!A55,AUX_2d_pais!$G$2:$G$40000,0)),0,1) -> 0
A56: 0600 | B56: Chipre | C56: 164.087 | D56: 166.975 | E56: 93.934 | F56: 540.785 | G56: 1628.463 | H56: 980.174 | I56: 786.999 | J56: 866.267 | K56: 1716.317 | L56: 831.528 | M56: 777.5529 | N56: 8.343283583e-05 | O56: 6713.889 | P56: 6618.034 | Q56: 6340.239 | R56: 4936.57 | S56: 4569.413 | T56: 4180.863 | U56: 5465.614 | V56: 6769.296 | W56: 7238.193 | X56: 8581.37 | Y56: 6141.3481 | Z56: 0.0008815537018 | AA56: 5363.7952 | AC56: =L56-INDEX($C56:$L56,1,aux!$BA$1) -> 667.441 | AD56: 0.0002124814804 | AE56: =+IF(INDEX($C56:$L56,1,aux!$BA$1)>0,(L56/INDEX($C56:$L56,1,aux!$BA$1))^(1/($L$3-INDEX($C$3:$L$3,1,aux!$BA$1)))-1,"n.d.") -> 0.1975989634 | AF56: =IF(INDEX($C56:$L56,1,aux!$BA$1)>0,(L56-INDEX($C56:$L56,1,aux!$BA$1))/INDEX($C56:$L56,1,aux!$BA$1),"n.d.") -> 4.067604381 | AH56: =X56-INDEX($O56:$X56,1,aux!$BA$1) -> 1867.481 | AI56: 0.0005260746538 | AJ56: =+IF(INDEX($O56:$X56,1,aux!$BA$1)>0,(X56/INDEX($O56:$X56,1,aux!$BA$1))^(1/($X$3-INDEX($O$3:$X$3,1,aux!$BA$1)))-1,"n.d.") -> 0.0276435406 | AK56: =IF(INDEX($O56:$X56,1,aux!$BA$1)>0,(X56-INDEX($O56:$X56,1,aux!$BA$1))/INDEX($O56:$X56,1,aux!$BA$1),"n.d.") -> 0.2781519027 | CC56: =+IF(ISNA(MATCH('5.1'!A56,AUX_2d_pais!$G$2:$G$40000,0)),0,1) -> 1
A57: 0834 | B57: Christmas, Ilha | C57: 0 | D57: 0 | E57: 0 | F57: 0 | G57: 0 | H57: 0 | I57: 0 | J57: 0 | K57: 0 | L57: 0 | M57: 0 | N57: 0 | O57: 0 | P57: 0 | Q57: 0 | R57: 0 | S57: 0 | T57: 0 | U57: 0 | V57: 0 | W57: 0 | X57: 0 | Y57: 0 | Z57: 0 | AA57: 0 | AC57: =L57-INDEX($C57:$L57,1,aux!$BA$1) -> 0 | AD57: 0 | AE57: =+IF(INDEX($C57:$L57,1,aux!$BA$1)>0,(L57/INDEX($C57:$L57,1,aux!$BA$1))^(1/($L$3-INDEX($C$3:$L$3,1,aux!$BA$1)))-1,"n.d.") -> n.d. | AF57: =IF(INDEX($C57:$L57,1,aux!$BA$1)>0,(L57-INDEX($C57:$L57,1,aux!$BA$1))/INDEX($C57:$L57,1,aux!$BA$1),"n.d.") -> n.d. | AH57: =X57-INDEX($O57:$X57,1,aux!$BA$1) -> 0 | AI57: 0 | AJ57: =+IF(INDEX($O57:$X57,1,aux!$BA$1)>0,(X57/INDEX($O57:$X57,1,aux!$BA$1))^(1/($X$3-INDEX($O$3:$X$3,1,aux!$BA$1)))-1,"n.d.") -> n.d. | AK57: =IF(INDEX($O57:$X57,1,aux!$BA$1)>0,(X57-INDEX($O57:$X57,1,aux!$BA$1))/INDEX($O57:$X57,1,aux!$BA$1),"n.d.") -> n.d. | AM57: 0 | BO57: 0 | CC57: =+IF(ISNA(MATCH('5.1'!A57,AUX_2d_pais!$G$2:$G$40000,0)),0,1) -> 0
A58: 0833 | B58: Cocos (Keeling), Ilhas | C58: 0 | D58: 0 | E58: 0 | F58: 0 | G58: 0 | H58: 0 | I58: 0 | J58: 0 | K58: 0 | L58: 0 | M58: 0 | N58: 0 | O58: 0 | P58: 0 | Q58: 0 | R58: 0 | S58: 0 | T58: 0 | U58: 0 | V58: 0 | W58: 0 | X58: 0 | Y58: 0 | Z58: 0 | AA58: 0 | AC58: =L58-INDEX($C58:$L58,1,aux!$BA$1) -> 0 | AD58: 0 | AE58: =+IF(INDEX($C58:$L58,1,aux!$BA$1)>0,(L58/INDEX($C58:$L58,1,aux!$BA$1))^(1/($L$3-INDEX($C$3:$L$3,1,aux!$BA$1)))-1,"n.d.") -> n.d. | AF58: =IF(INDEX($C58:$L58,1,aux!$BA$1)>0,(L58-INDEX($C58:$L58,1,aux!$BA$1))/INDEX($C58:$L58,1,aux!$BA$1),"n.d.") -> n.d. | AH58: =X58-INDEX($O58:$X58,1,aux!$BA$1) -> 0 | AI58: 0 | AJ58: =+IF(INDEX($O58:$X58,1,aux!$BA$1)>0,(X58/INDEX($O58:$X58,1,aux!$BA$1))^(1/($X$3-INDEX($O$3:$X$3,1,aux!$BA$1)))-1,"n.d.") -> n.d. | AK58: =IF(INDEX($O58:$X58,1,aux!$BA$1)>0,(X58-INDEX($O58:$X58,1,aux!$BA$1))/INDEX($O58:$X58,1,aux!$BA$1),"n.d.") -> n.d. | AM58: 0 | BO58: 0 | CC58: =+IF(ISNA(MATCH('5.1'!A58,AUX_2d_pais!$G$2:$G$40000,0)),0,1) -> 0
A59: 0480 | B59: Colômbia | C59: 0 | D59: 0 | E59: 0 | F59: 0 | G59: 0 | H59: 0 | I59: 0 | J59: 0 | K59: 0 | L59: 0 | M59: 0 | N59: 0 | O59: 0 | P59: 0 | Q59: 0 | R59: 0 | S59: 0 | T59: 0 | U59: 0 | V59: 0 | W59: 0 | X59: 0 | Y59: 0 | Z59: 0 | AA59: 0 | AC59: =L59-INDEX($C59:$L59,1,aux!$BA$1) -> 0 | AD59: 0 | AE59: =+IF(INDEX($C59:$L59,1,aux!$BA$1)>0,(L59/INDEX($C59:$L59,1,aux!$BA$1))^(1/($L$3-INDEX($C$3:$L$3,1,aux!$BA$1)))-1,"n.d.") -> n.d. | AF59: =IF(INDEX($C59:$L59,1,aux!$BA$1)>0,(L59-INDEX($C59:$L59,1,aux!$BA$1))/INDEX($C59:$L59,1,aux!$BA$1),"n.d.") -> n.d. | AH59: =X59-INDEX($O59:$X59,1,aux!$BA$1) -> 0 | AI59: 0 | AJ59: =+IF(INDEX($O59:$X59,1,aux!$BA$1)>0,(X59/INDEX($O59:$X59,1,aux!$BA$1))^(1/($X$3-INDEX($O$3:$X$3,1,aux!$BA$1)))-1,"n.d.") -> n.d. | AK59: =IF(INDEX($O59:$X59,1,aux!$BA$1)>0,(X59-INDEX($O59:$X59,1,aux!$BA$1))/INDEX($O59:$X59,1,aux!$BA$1),"n.d.") -> n.d. | AM59: 0 | CC59: =+IF(ISNA(MATCH('5.1'!A59,AUX_2d_pais!$G$2:$G$40000,0)),0,1) -> 0
A60: 0375 | B60: Comores | C60: 0 | D60: 0 | E60: 0 | F60: 0 | G60: 0 | H60: 0 | I60: 0 | J60: 0 | K60: 0 | L60: 0 | M60: 0 | N60: 0 | O60: 0 | P60: 0 | Q60: 0 | R60: 0 | S60: 0 | T60: 0 | U60: 0 | V60: 0 | W60: 0 | X60: 0 | Y60: 0 | Z60: 0 | AA60: 0 | AC60: =L60-INDEX($C60:$L60,1,aux!$BA$1) -> 0 | AD60: 0 | AE60: =+IF(INDEX($C60:$L60,1,aux!$BA$1)>0,(L60/INDEX($C60:$L60,1,aux!$BA$1))^(1/($L$3-INDEX($C$3:$L$3,1,aux!$BA$1)))-1,"n.d.") -> n.d. | AF60: =IF(INDEX($C60:$L60,1,aux!$BA$1)>0,(L60-INDEX($C60:$L60,1,aux!$BA$1))/INDEX($C60:$L60,1,aux!$BA$1),"n.d.") -> n.d. | AH60: =X60-INDEX($O60:$X60,1,aux!$BA$1) -> 0 | AI60: 0 | AJ60: =+IF(INDEX($O60:$X60,1,aux!$BA$1)>0,(X60/INDEX($O60:$X60,1,aux!$BA$1))^(1/($X$3-INDEX($O$3:$X$3,1,aux!$BA$1)))-1,"n.d.") -> n.d. | AK60: =IF(INDEX($O60:$X60,1,aux!$BA$1)>0,(X60-INDEX($O60:$X60,1,aux!$BA$1))/INDEX($O60:$X60,1,aux!$BA$1),"n.d.") -> n.d. | AM60: 0 | CC60: =+IF(ISNA(MATCH('5.1'!A60,AUX_2d_pais!$G$2:$G$40000,0)),0,1) -> 0
A61: 0318 | B61: Congo | C61: 0 | D61: 0 | E61: 0 | F61: 0 | G61: 0 | H61: 0 | I61: 0 | J61: 0 | K61: 0 | L61: 0 | M61: 0 | N61: 0 | O61: 0 | P61: 0 | Q61: 0 | R61: 0 | S61: 0 | T61: 0 | U61: 0 | V61: 0 | W61: 0 | X61: 0 | Y61: 0 | Z61: 0 | AA61: 0 | AC61: =L61-INDEX($C61:$L61,1,aux!$BA$1) -> 0 | AD61: 0 | AE61: =+IF(INDEX($C61:$L61,1,aux!$BA$1)>0,(L61/INDEX($C61:$L61,1,aux!$BA$1))^(1/($L$3-INDEX($C$3:$L$3,1,aux!$BA$1)))-1,"n.d.") -> n.d. | AF61: =IF(INDEX($C61:$L61,1,aux!$BA$1)>0,(L61-INDEX($C61:$L61,1,aux!$BA$1))/INDEX($C61:$L61,1,aux!$BA$1),"n.d.") -> n.d. | AH61: =X61-INDEX($O61:$X61,1,aux!$BA$1) -> 0 | AI61: 0 | AJ61: =+IF(INDEX($O61:$X61,1,aux!$BA$1)>0,(X61/INDEX($O61:$X61,1,aux!$BA$1))^(1/($X$3-INDEX($O$3:$X$3,1,aux!$BA$1)))-1,"n.d.") -> n.d. | AK61: =IF(INDEX($O61:$X61,1,aux!$BA$1)>0,(X61-INDEX($O61:$X61,1,aux!$BA$1))/INDEX($O61:$X61,1,aux!$BA$1),"n.d.") -> n.d. | AM61: 0 | CC61: =+IF(ISNA(MATCH('5.1'!A61,AUX_2d_pais!$G$2:$G$40000,0)),0,1) -> 0
A62: 0322 | B62: Congo, República Democrática do | C62: 0 | D62: 0 | E62: 0 | F62: 0 | G62: 0 | H62: 0 | I62: 0 | J62: 0 | K62: 0 | L62: 0 | M62: 0 | N62: 0 | O62: 0 | P62: 0 | Q62: 0 | R62: 0 | S62: 0 | T62: 0 | U62: 0 | V62: 0 | W62: 0 | X62: 0 | Y62: 0 | Z62: 0 | AA62: 0 | AC62: =L62-INDEX($C62:$L62,1,aux!$BA$1) -> 0 | AD62: 0 | AE62: =+IF(INDEX($C62:$L62,1,aux!$BA$1)>0,(L62/INDEX($C62:$L62,1,aux!$BA$1))^(1/($L$3-INDEX($C$3:$L$3,1,aux!$BA$1)))-1,"n.d.") -> n.d. | AF62: =IF(INDEX($C62:$L62,1,aux!$BA$1)>0,(L62-INDEX($C62:$L62,1,aux!$BA$1))/INDEX($C62:$L62,1,aux!$BA$1),"n.d.") -> n.d. | AH62: =X62-INDEX($O62:$X62,1,aux!$BA$1) -> 0 | AI62: 0 | AJ62: =+IF(INDEX($O62:$X62,1,aux!$BA$1)>0,(X62/INDEX($O62:$X62,1,aux!$BA$1))^(1/($X$3-INDEX($O$3:$X$3,1,aux!$BA$1)))-1,"n.d.") -> n.d. | AK62: =IF(INDEX($O62:$X62,1,aux!$BA$1)>0,(X62-INDEX($O62:$X62,1,aux!$BA$1))/INDEX($O62:$X62,1,aux!$BA$1),"n.d.") -> n.d. | AM62: 0 | CC62: =+IF(ISNA(MATCH('5.1'!A62,AUX_2d_pais!$G$2:$G$40000,0)),0,1) -> 0
A63: 0837 | B63: Cook, Ilhas | C63: 0 | D63: 0 | E63: 0 | F63: 0 | G63: 0 | H63: 0 | I63: 0 | J63: 0 | K63: 0 | L63: 0 | M63: 0 | N63: 0 | O63: 0 | P63: 0 | Q63: 0 | R63: 0 | S63: 0 | T63: 0 | U63: 0 | V63: 0 | W63: 0 | X63: 0 | Y63: 0 | Z63: 0 | AA63: 0 | AC63: =L63-INDEX($C63:$L63,1,aux!$BA$1) -> 0 | AD63: 0 | AE63: =+IF(INDEX($C63:$L63,1,aux!$BA$1)>0,(L63/INDEX($C63:$L63,1,aux!$BA$1))^(1/($L$3-INDEX($C$3:$L$3,1,aux!$BA$1)))-1,"n.d.") -> n.d. | AF63: =IF(INDEX($C63:$L63,1,aux!$BA$1)>0,(L63-INDEX($C63:$L63,1,aux!$BA$1))/INDEX($C63:$L63,1,aux!$BA$1),"n.d.") -> n.d. | AH63: =X63-INDEX($O63:$X63,1,aux!$BA$1) -> 0 | AI63: 0 | AJ63: =+IF(INDEX($O63:$X63,1,aux!$BA$1)>0,(X63/INDEX($O63:$X63,1,aux!$BA$1))^(1/($X$3-INDEX($O$3:$X$3,1,aux!$BA$1)))-1,"n.d.") -> n.d. | AK63: =IF(INDEX($O63:$X63,1,aux!$BA$1)>0,(X63-INDEX($O63:$X63,1,aux!$BA$1))/INDEX($O63:$X63,1,aux!$BA$1),"n.d.") -> n.d. | AM63: 0 | BO63: 0 | CC63: =+IF(ISNA(MATCH('5.1'!A63,AUX_2d_pais!$G$2:$G$40000,0)),0,1) -> 0
A64: 0728 | B64: Coreia, República da | C64: 0 | D64: 0 | E64: 0 | F64: 0 | G64: 0 | H64: 0 | I64: 0 | J64: 0 | K64: 0 | L64: 0 | M64: 0 | N64: 0 | O64: 0 | P64: 0 | Q64: 0 | R64: 0 | S64: 0 | T64: 0 | U64: 0 | V64: 0 | W64: 0 | X64: 0 | Y64: 0 | Z64: 0 | AA64: 0 | AC64: =L64-INDEX($C64:$L64,1,aux!$BA$1) -> 0 | AD64: 0 | AE64: =+IF(INDEX($C64:$L64,1,aux!$BA$1)>0,(L64/INDEX($C64:$L64,1,aux!$BA$1))^(1/($L$3-INDEX($C$3:$L$3,1,aux!$BA$1)))-1,"n.d.") -> n.d. | AF64: =IF(INDEX($C64:$L64,1,aux!$BA$1)>0,(L64-INDEX($C64:$L64,1,aux!$BA$1))/INDEX($C64:$L64,1,aux!$BA$1),"n.d.") -> n.d. | AH64: =X64-INDEX($O64:$X64,1,aux!$BA$1) -> 0 | AI64: 0 | AJ64: =+IF(INDEX($O64:$X64,1,aux!$BA$1)>0,(X64/INDEX($O64:$X64,1,aux!$BA$1))^(1/($X$3-INDEX($O$3:$X$3,1,aux!$BA$1)))-1,"n.d.") -> n.d. | AK64: =IF(INDEX($O64:$X64,1,aux!$BA$1)>0,(X64-INDEX($O64:$X64,1,aux!$BA$1))/INDEX($O64:$X64,1,aux!$BA$1),"n.d.") -> n.d. | AM64: 0 | CC64: =+IF(ISNA(MATCH('5.1'!A64,AUX_2d_pais!$G$2:$G$40000,0)),0,1) -> 0
A65: 0724 | B65: Coreia, República Popular Democrática da | C65: 0 | D65: 0 | E65: 0 | F65: 0 | G65: 0 | H65: 0 | I65: 0 | J65: 0 | K65: 0 | L65: 0 | M65: 0 | N65: 0 | O65: 0 | P65: 0 | Q65: 0 | R65: 0 | S65: 0 | T65: 0 | U65: 0 | V65: 0 | W65: 0 | X65: 0 | Y65: 0 | Z65: 0 | AA65: 0 | AC65: =L65-INDEX($C65:$L65,1,aux!$BA$1) -> 0 | AD65: 0 | AE65: =+IF(INDEX($C65:$L65,1,aux!$BA$1)>0,(L65/INDEX($C65:$L65,1,aux!$BA$1))^(1/($L$3-INDEX($C$3:$L$3,1,aux!$BA$1)))-1,"n.d.") -> n.d. | AF65: =IF(INDEX($C65:$L65,1,aux!$BA$1)>0,(L65-INDEX($C65:$L65,1,aux!$BA$1))/INDEX($C65:$L65,1,aux!$BA$1),"n.d.") -> n.d. | AH65: =X65-INDEX($O65:$X65,1,aux!$BA$1) -> 0 | AI65: 0 | AJ65: =+IF(INDEX($O65:$X65,1,aux!$BA$1)>0,(X65/INDEX($O65:$X65,1,aux!$BA$1))^(1/($X$3-INDEX($O$3:$X$3,1,aux!$BA$1)))-1,"n.d.") -> n.d. | AK65: =IF(INDEX($O65:$X65,1,aux!$BA$1)>0,(X65-INDEX($O65:$X65,1,aux!$BA$1))/INDEX($O65:$X65,1,aux!$BA$1),"n.d.") -> n.d. | AM65: 0 | BO65: 0 | CC65: =+IF(ISNA(MATCH('5.1'!A65,AUX_2d_pais!$G$2:$G$40000,0)),0,1) -> 0
A66: 0272 | B66: Costa do Marfim | C66: 0 | D66: 0 | E66: 0 | F66: 0 | G66: 0 | H66: 0 | I66: 0 | J66: 0 | K66: 0 | L66: 0 | M66: 0 | N66: 0 | O66: 0 | P66: 0 | Q66: 0 | R66: 0 | S66: 0 | T66: 0 | U66: 0 | V66: 0 | W66: 0 | X66: 0 | Y66: 0 | Z66: 0 | AA66: 0 | AC66: =L66-INDEX($C66:$L66,1,aux!$BA$1) -> 0 | AD66: 0 | AE66: =+IF(INDEX($C66:$L66,1,aux!$BA$1)>0,(L66/INDEX($C66:$L66,1,aux!$BA$1))^(1/($L$3-INDEX($C$3:$L$3,1,aux!$BA$1)))-1,"n.d.") -> n.d. | AF66: =IF(INDEX($C66:$L66,1,aux!$BA$1)>0,(L66-INDEX($C66:$L66,1,aux!$BA$1))/INDEX($C66:$L66,1,aux!$BA$1),"n.d.") -> n.d. | AH66: =X66-INDEX($O66:$X66,1,aux!$BA$1) -> 0 | AI66: 0 | AJ66: =+IF(INDEX($O66:$X66,1,aux!$BA$1)>0,(X66/INDEX($O66:$X66,1,aux!$BA$1))^(1/($X$3-INDEX($O$3:$X$3,1,aux!$BA$1)))-1,"n.d.") -> n.d. | AK66: =IF(INDEX($O66:$X66,1,aux!$BA$1)>0,(X66-INDEX($O66:$X66,1,aux!$BA$1))/INDEX($O66:$X66,1,aux!$BA$1),"n.d.") -> n.d. | AM66: 0 | CC66: =+IF(ISNA(MATCH('5.1'!A66,AUX_2d_pais!$G$2:$G$40000,0)),0,1) -> 0
A67: 0436 | B67: Costa Rica | C67: 0 | D67: 0 | E67: 0 | F67: 0 | G67: 0 | H67: 0 | I67: 0 | J67: 0 | K67: 0 | L67: 0 | M67: 0 | N67: 0 | O67: 0 | P67: 0 | Q67: 0 | R67: 0 | S67: 0 | T67: 0 | U67: 0 | V67: 0 | W67: 0 | X67: 0 | Y67: 0 | Z67: 0 | AA67: 0 | AC67: =L67-INDEX($C67:$L67,1,aux!$BA$1) -> 0 | AD67: 0 | AE67: =+IF(INDEX($C67:$L67,1,aux!$BA$1)>0,(L67/INDEX($C67:$L67,1,aux!$BA$1))^(1/($L$3-INDEX($C$3:$L$3,1,aux!$BA$1)))-1,"n.d.") -> n.d. | AF67: =IF(INDEX($C67:$L67,1,aux!$BA$1)>0,(L67-INDEX($C67:$L67,1,aux!$BA$1))/INDEX($C67:$L67,1,aux!$BA$1),"n.d.") -> n.d. | AH67: =X67-INDEX($O67:$X67,1,aux!$BA$1) -> 0 | AI67: 0 | AJ67: =+IF(INDEX($O67:$X67,1,aux!$BA$1)>0,(X67/INDEX($O67:$X67,1,aux!$BA$1))^(1/($X$3-INDEX($O$3:$X$3,1,aux!$BA$1)))-1,"n.d.") -> n.d. | AK67: =IF(INDEX($O67:$X67,1,aux!$BA$1)>0,(X67-INDEX($O67:$X67,1,aux!$BA$1))/INDEX($O67:$X67,1,aux!$BA$1),"n.d.") -> n.d. | AM67: 0 | CC67: =+IF(ISNA(MATCH('5.1'!A67,AUX_2d_pais!$G$2:$G$40000,0)),0,1) -> 0
A68: 0092 | B68: Croácia | C68: 1849.514 | D68: 405.297 | E68: 359.765 | F68: 719.499 | G68: 711.304 | H68: 799.51 | I68: 2850.652 | J68: 2877.808 | K68: 2897.786 | L68: 3693.378 | M68: 1716.4513 | N68: 0.0001841783363 | O68: 1561.764 | P68: 4318.535 | Q68: 6744.654 | R68: 7278.378 | S68: 4145.744 | T68: 4351.27 | U68: 5489.89 | V68: 7125.55 | W68: 7621.42 | X68: 9448.822 | Y68: 5808.6027 | Z68: 0.0008337900945 | AA68: 4092.1514 | AC68: =L68-INDEX($C68:$L68,1,aux!$BA$1) -> 1843.864 | AD68: =AC68/$AC$252 -> 0.0005869986297 | AE68: =+IF(INDEX($C68:$L68,1,aux!$BA$1)>0,(L68/INDEX($C68:$L68,1,aux!$BA$1))^(1/($L$3-INDEX($C$3:$L$3,1,aux!$BA$1)))-1,"n.d.") -> 0.0798763128 | AF68: =IF(INDEX($C68:$L68,1,aux!$BA$1)>0,(L68-INDEX($C68:$L68,1,aux!$BA$1))/INDEX($C68:$L68,1,aux!$BA$1),"n.d.") -> 0.9969451434 | AH68: =X68-INDEX($O68:$X68,1,aux!$BA$1) -> 7887.058 | AI68: =AH68/$AH$252 -> 0.002221806437 | AJ68: =+IF(INDEX($O68:$X68,1,aux!$BA$1)>0,(X68/INDEX($O68:$X68,1,aux!$BA$1))^(1/($X$3-INDEX($O$3:$X$3,1,aux!$BA$1)))-1,"n.d.") -> 0.2214128179 | AK68: =IF(INDEX($O68:$X68,1,aux!$BA$1)>0,(X68-INDEX($O68:$X68,1,aux!$BA$1))/INDEX($O68:$X68,1,aux!$BA$1),"n.d.") -> 5.050095917 | CC68: =+IF(ISNA(MATCH('5.1'!A68,AUX_2d_pais!$G$2:$G$40000,0)),0,1) -> 1
A69: 0448 | B69: Cuba | C69: 0 | D69: 0 | E69: 0 | F69: 0 | G69: 0 | H69: 0 | I69: 0 | J69: 0 | K69: 0 | L69: 0 | M69: 0 | N69: 0 | O69: 0 | P69: 0 | Q69: 0 | R69: 0 | S69: 0 | T69: 0 | U69: 0 | V69: 0 | W69: 0 | X69: 0 | Y69: 0 | Z69: 0 | AA69: 0 | AC69: =L69-INDEX($C69:$L69,1,aux!$BA$1) -> 0 | AD69: 0 | AE69: =+IF(INDEX($C69:$L69,1,aux!$BA$1)>0,(L69/INDEX($C69:$L69,1,aux!$BA$1))^(1/($L$3-INDEX($C$3:$L$3,1,aux!$BA$1)))-1,"n.d.") -> n.d. | AF69: =IF(INDEX($C69:$L69,1,aux!$BA$1)>0,(L69-INDEX($C69:$L69,1,aux!$BA$1))/INDEX($C69:$L69,1,aux!$BA$1),"n.d.") -> n.d. | AH69: =X69-INDEX($O69:$X69,1,aux!$BA$1) -> 0 | AI69: 0 | AJ69: =+IF(INDEX($O69:$X69,1,aux!$BA$1)>0,(X69/INDEX($O69:$X69,1,aux!$BA$1))^(1/($X$3-INDEX($O$3:$X$3,1,aux!$BA$1)))-1,"n.d.") -> n.d. | AK69: =IF(INDEX($O69:$X69,1,aux!$BA$1)>0,(X69-INDEX($O69:$X69,1,aux!$BA$1))/INDEX($O69:$X69,1,aux!$BA$1),"n.d.") -> n.d. | AM69: =SUM(A69:AA69) -> 0 | CC69: =+IF(ISNA(MATCH('5.1'!A69,AUX_2d_pais!$G$2:$G$40000,0)),0,1) -> 0
A70: 0475 | B70: Curaçau | C70: 0 | D70: 0 | E70: 0 | F70: 0 | G70: 0 | H70: 0 | I70: 0 | J70: 0 | K70: 0 | L70: 0 | M70: 0 | N70: 0 | O70: 0 | P70: 0 | Q70: 0 | R70: 0 | S70: 0 | T70: 0 | U70: 0 | V70: 0 | W70: 0 | X70: 0 | Y70: 0 | Z70: 0 | AA70: 0 | AC70: =L70-INDEX($C70:$L70,1,aux!$BA$1) -> 0 | AD70: 0 | AE70: =+IF(INDEX($C70:$L70,1,aux!$BA$1)>0,(L70/INDEX($C70:$L70,1,aux!$BA$1))^(1/($L$3-INDEX($C$3:$L$3,1,aux!$BA$1)))-1,"n.d.") -> n.d. | AF70: =IF(INDEX($C70:$L70,1,aux!$BA$1)>0,(L70-INDEX($C70:$L70,1,aux!$BA$1))/INDEX($C70:$L70,1,aux!$BA$1),"n.d.") -> n.d. | AH70: =X70-INDEX($O70:$X70,1,aux!$BA$1) -> 0 | AI70: 0 | AJ70: =+IF(INDEX($O70:$X70,1,aux!$BA$1)>0,(X70/INDEX($O70:$X70,1,aux!$BA$1))^(1/($X$3-INDEX($O$3:$X$3,1,aux!$BA$1)))-1,"n.d.") -> n.d. | AK70: =IF(INDEX($O70:$X70,1,aux!$BA$1)>0,(X70-INDEX($O70:$X70,1,aux!$BA$1))/INDEX($O70:$X70,1,aux!$BA$1),"n.d.") -> n.d. | AM70: 0 | CC70: =+IF(ISNA(MATCH('5.1'!A70,AUX_2d_pais!$G$2:$G$40000,0)),0,1) -> 0
A71: 0008 | B71: Dinamarca | C71: 98664.583 | D71: 110052.953 | E71: 95474.862 | F71: 84624.583 | G71: 106856.041 | H71: 87070.622 | I71: 104625.442 | J71: 119415.164 | K71: 124112.412 | L71: 131487.544 | M71: 106238.4206 | N71: 0.01139957513 | O71: 38553.63 | P71: 59433.028 | Q71: 58164.209 | R71: 63603.289 | S71: 82193.163 | T71: 59996.415 | U71: 60529.446 | V71: 71057.223 | W71: 77062.058 | X71: 80120.862 | Y71: 65071.3323 | Z71: 0.009340599643 | AA71: -41167.0883 | AC71: =L71-INDEX($C71:$L71,1,aux!$BA$1) -> 32822.961 | AD71: 0.01044927019 | AE71: =+IF(INDEX($C71:$L71,1,aux!$BA$1)>0,(L71/INDEX($C71:$L71,1,aux!$BA$1))^(1/($L$3-INDEX($C$3:$L$3,1,aux!$BA$1)))-1,"n.d.") -> 0.03242413295 | AF71: =IF(INDEX($C71:$L71,1,aux!$BA$1)>0,(L71-INDEX($C71:$L71,1,aux!$BA$1))/INDEX($C71:$L71,1,aux!$BA$1),"n.d.") -> 0.3326721707 | AH71: =X71-INDEX($O71:$X71,1,aux!$BA$1) -> 41567.232 | AI71: 0.01170960625 | AJ71: =+IF(INDEX($O71:$X71,1,aux!$BA$1)>0,(X71/INDEX($O71:$X71,1,aux!$BA$1))^(1/($X$3-INDEX($O$3:$X$3,1,aux!$BA$1)))-1,"n.d.") -> 0.08467046656 | AK71: =IF(INDEX($O71:$X71,1,aux!$BA$1)>0,(X71-INDEX($O71:$X71,1,aux!$BA$1))/INDEX($O71:$X71,1,aux!$BA$1),"n.d.") -> 1.078166492 | CC71: =+IF(ISNA(MATCH('5.1'!A71,AUX_2d_pais!$G$2:$G$40000,0)),0,1) -> 1
A72: 0460 | B72: Domínica | C72: 0 | D72: 0 | E72: 0 | F72: 0 | G72: 0 | H72: 0 | I72: 0 | J72: 0 | K72: 0 | L72: 0 | M72: 0 | N72: 0 | O72: 0 | P72: 0 | Q72: 0 | R72: 0 | S72: 0 | T72: 0 | U72: 0 | V72: 0 | W72: 0 | X72: 0 | Y72: 0 | Z72: 0 | AA72: 0 | AC72: =L72-INDEX($C72:$L72,1,aux!$BA$1) -> 0 | AD72: 0 | AE72: =+IF(INDEX($C72:$L72,1,aux!$BA$1)>0,(L72/INDEX($C72:$L72,1,aux!$BA$1))^(1/($L$3-INDEX($C$3:$L$3,1,aux!$BA$1)))-1,"n.d.") -> n.d. | AF72: =IF(INDEX($C72:$L72,1,aux!$BA$1)>0,(L72-INDEX($C72:$L72,1,aux!$BA$1))/INDEX($C72:$L72,1,aux!$BA$1),"n.d.") -> n.d. | AH72: =X72-INDEX($O72:$X72,1,aux!$BA$1) -> 0 | AI72: 0 | AJ72: =+IF(INDEX($O72:$X72,1,aux!$BA$1)>0,(X72/INDEX($O72:$X72,1,aux!$BA$1))^(1/($X$3-INDEX($O$3:$X$3,1,aux!$BA$1)))-1,"n.d.") -> n.d. | AK72: =IF(INDEX($O72:$X72,1,aux!$BA$1)>0,(X72-INDEX($O72:$X72,1,aux!$BA$1))/INDEX($O72:$X72,1,aux!$BA$1),"n.d.") -> n.d. | AM72: 0 | BO72: =SUM(C72:L72,O72:X72) -> 0 | CC72: =+IF(ISNA(MATCH('5.1'!A72,AUX_2d_pais!$G$2:$G$40000,0)),0,1) -> 0
A73: 0456 | B73: Dominicana, República | C73: 0 | D73: 0 | E73: 0 | F73: 0 | G73: 0 | H73: 0 | I73: 0 | J73: 0 | K73: 0 | L73: 0 | M73: 0 | N73: 0 | O73: 0 | P73: 0 | Q73: 0 | R73: 0 | S73: 0 | T73: 0 | U73: 0 | V73: 0 | W73: 0 | X73: 0 | Y73: 0 | Z73: 0 | AA73: 0 | AC73: =L73-INDEX($C73:$L73,1,aux!$BA$1) -> 0 | AD73: 0 | AE73: =+IF(INDEX($C73:$L73,1,aux!$BA$1)>0,(L73/INDEX($C73:$L73,1,aux!$BA$1))^(1/($L$3-INDEX($C$3:$L$3,1,aux!$BA$1)))-1,"n.d.") -> n.d. | AF73: =IF(INDEX($C73:$L73,1,aux!$BA$1)>0,(L73-INDEX($C73:$L73,1,aux!$BA$1))/INDEX($C73:$L73,1,aux!$BA$1),"n.d.") -> n.d. | AH73: =X73-INDEX($O73:$X73,1,aux!$BA$1) -> 0 | AI73: 0 | AJ73: =+IF(INDEX($O73:$X73,1,aux!$BA$1)>0,(X73/INDEX($O73:$X73,1,aux!$BA$1))^(1/($X$3-INDEX($O$3:$X$3,1,aux!$BA$1)))-1,"n.d.") -> n.d. | AK73: =IF(INDEX($O73:$X73,1,aux!$BA$1)>0,(X73-INDEX($O73:$X73,1,aux!$BA$1))/INDEX($O73:$X73,1,aux!$BA$1),"n.d.") -> n.d. | AM73: 0 | CC73: =+IF(ISNA(MATCH('5.1'!A73,AUX_2d_pais!$G$2:$G$40000,0)),0,1) -> 0
A74: 0220 | B74: Egito | C74: 0 | D74: 0 | E74: 0 | F74: 0 | G74: 0 | H74: 0 | I74: 0 | J74: 0 | K74: 0 | L74: 0 | M74: 0 | N74: 0 | O74: 0 | P74: 0 | Q74: 0 | R74: 0 | S74: 0 | T74: 0 | U74: 0 | V74: 0 | W74: 0 | X74: 0 | Y74: 0 | Z74: 0 | AA74: 0 | AC74: =L74-INDEX($C74:$L74,1,aux!$BA$1) -> 0 | AD74: 0 | AE74: =+IF(INDEX($C74:$L74,1,aux!$BA$1)>0,(L74/INDEX($C74:$L74,1,aux!$BA$1))^(1/($L$3-INDEX($C$3:$L$3,1,aux!$BA$1)))-1,"n.d.") -> n.d. | AF74: =IF(INDEX($C74:$L74,1,aux!$BA$1)>0,(L74-INDEX($C74:$L74,1,aux!$BA$1))/INDEX($C74:$L74,1,aux!$BA$1),"n.d.") -> n.d. | AH74: =X74-INDEX($O74:$X74,1,aux!$BA$1) -> 0 | AI74: 0 | AJ74: =+IF(INDEX($O74:$X74,1,aux!$BA$1)>0,(X74/INDEX($O74:$X74,1,aux!$BA$1))^(1/($X$3-INDEX($O$3:$X$3,1,aux!$BA$1)))-1,"n.d.") -> n.d. | AK74: =IF(INDEX($O74:$X74,1,aux!$BA$1)>0,(X74-INDEX($O74:$X74,1,aux!$BA$1))/INDEX($O74:$X74,1,aux!$BA$1),"n.d.") -> n.d. | AM74: 0 | CC74: =+IF(ISNA(MATCH('5.1'!A74,AUX_2d_pais!$G$2:$G$40000,0)),0,1) -> 0
A75: 0428 | B75: El Salvador | C75: 0 | D75: 0 | E75: 0 | F75: 0 | G75: 0 | H75: 0 | I75: 0 | J75: 0 | K75: 0 | L75: 0 | M75: 0 | N75: 0 | O75: 0 | P75: 0 | Q75: 0 | R75: 0 | S75: 0 | T75: 0 | U75: 0 | V75: 0 | W75: 0 | X75: 0 | Y75: 0 | Z75: 0 | AA75: 0 | AC75: =L75-INDEX($C75:$L75,1,aux!$BA$1) -> 0 | AD75: 0 | AE75: =+IF(INDEX($C75:$L75,1,aux!$BA$1)>0,(L75/INDEX($C75:$L75,1,aux!$BA$1))^(1/($L$3-INDEX($C$3:$L$3,1,aux!$BA$1)))-1,"n.d.") -> n.d. | AF75: =IF(INDEX($C75:$L75,1,aux!$BA$1)>0,(L75-INDEX($C75:$L75,1,aux!$BA$1))/INDEX($C75:$L75,1,aux!$BA$1),"n.d.") -> n.d. | AH75: =X75-INDEX($O75:$X75,1,aux!$BA$1) -> 0 | AI75: 0 | AJ75: =+IF(INDEX($O75:$X75,1,aux!$BA$1)>0,(X75/INDEX($O75:$X75,1,aux!$BA$1))^(1/($X$3-INDEX($O$3:$X$3,1,aux!$BA$1)))-1,"n.d.") -> n.d. | AK75: =IF(INDEX($O75:$X75,1,aux!$BA$1)>0,(X75-INDEX($O75:$X75,1,aux!$BA$1))/INDEX($O75:$X75,1,aux!$BA$1),"n.d.") -> n.d. | AM75: 0 | CC75: =+IF(ISNA(MATCH('5.1'!A75,AUX_2d_pais!$G$2:$G$40000,0)),0,1) -> 0
A76: 0647 | B76: Emirados Árabes Unidos | C76: 0 | D76: 0 | E76: 0 | F76: 0 | G76: 0 | H76: 0 | I76: 0 | J76: 0 | K76: 0 | L76: 0 | M76: 0 | N76: 0 | O76: 0 | P76: 0 | Q76: 0 | R76: 0 | S76: 0 | T76: 0 | U76: 0 | V76: 0 | W76: 0 | X76: 0 | Y76: 0 | Z76: 0 | AA76: 0 | AC76: =L76-INDEX($C76:$L76,1,aux!$BA$1) -> 0 | AD76: 0 | AE76: =+IF(INDEX($C76:$L76,1,aux!$BA$1)>0,(L76/INDEX($C76:$L76,1,aux!$BA$1))^(1/($L$3-INDEX($C$3:$L$3,1,aux!$BA$1)))-1,"n.d.") -> n.d. | AF76: =IF(INDEX($C76:$L76,1,aux!$BA$1)>0,(L76-INDEX($C76:$L76,1,aux!$BA$1))/INDEX($C76:$L76,1,aux!$BA$1),"n.d.") -> n.d. | AH76: =X76-INDEX($O76:$X76,1,aux!$BA$1) -> 0 | AI76: 0 | AJ76: =+IF(INDEX($O76:$X76,1,aux!$BA$1)>0,(X76/INDEX($O76:$X76,1,aux!$BA$1))^(1/($X$3-INDEX($O$3:$X$3,1,aux!$BA$1)))-1,"n.d.") -> n.d. | AK76: =IF(INDEX($O76:$X76,1,aux!$BA$1)>0,(X76-INDEX($O76:$X76,1,aux!$BA$1))/INDEX($O76:$X76,1,aux!$BA$1),"n.d.") -> n.d. | AM76: 0 | CC76: =+IF(ISNA(MATCH('5.1'!A76,AUX_2d_pais!$G$2:$G$40000,0)),0,1) -> 0
A77: 0500 | B77: Equador | C77: 0 | D77: 0 | E77: 0 | F77: 0 | G77: 0 | H77: 0 | I77: 0 | J77: 0 | K77: 0 | L77: 0 | M77: 0 | N77: 0 | O77: 0 | P77: 0 | Q77: 0 | R77: 0 | S77: 0 | T77: 0 | U77: 0 | V77: 0 | W77: 0 | X77: 0 | Y77: 0 | Z77: 0 | AA77: 0 | AC77: =L77-INDEX($C77:$L77,1,aux!$BA$1) -> 0 | AD77: 0 | AE77: =+IF(INDEX($C77:$L77,1,aux!$BA$1)>0,(L77/INDEX($C77:$L77,1,aux!$BA$1))^(1/($L$3-INDEX($C$3:$L$3,1,aux!$BA$1)))-1,"n.d.") -> n.d. | AF77: =IF(INDEX($C77:$L77,1,aux!$BA$1)>0,(L77-INDEX($C77:$L77,1,aux!$BA$1))/INDEX($C77:$L77,1,aux!$BA$1),"n.d.") -> n.d. | AH77: =X77-INDEX($O77:$X77,1,aux!$BA$1) -> 0 | AI77: 0 | AJ77: =+IF(INDEX($O77:$X77,1,aux!$BA$1)>0,(X77/INDEX($O77:$X77,1,aux!$BA$1))^(1/($X$3-INDEX($O$3:$X$3,1,aux!$BA$1)))-1,"n.d.") -> n.d. | AK77: =IF(INDEX($O77:$X77,1,aux!$BA$1)>0,(X77-INDEX($O77:$X77,1,aux!$BA$1))/INDEX($O77:$X77,1,aux!$BA$1),"n.d.") -> n.d. | AM77: 0 | CC77: =+IF(ISNA(MATCH('5.1'!A77,AUX_2d_pais!$G$2:$G$40000,0)),0,1) -> 0
A78: 0336 | B78: Eritreia | C78: 0 | D78: 0 | E78: 0 | F78: 0 | G78: 0 | H78: 0 | I78: 0 | J78: 0 | K78: 0 | L78: 0 | M78: 0 | N78: 0 | O78: 0 | P78: 0 | Q78: 0 | R78: 0 | S78: 0 | T78: 0 | U78: 0 | V78: 0 | W78: 0 | X78: 0 | Y78: 0 | Z78: 0 | AA78: 0 | AC78: =L78-INDEX($C78:$L78,1,aux!$BA$1) -> 0 | AD78: 0 | AE78: =+IF(INDEX($C78:$L78,1,aux!$BA$1)>0,(L78/INDEX($C78:$L78,1,aux!$BA$1))^(1/($L$3-INDEX($C$3:$L$3,1,aux!$BA$1)))-1,"n.d.") -> n.d. | AF78: =IF(INDEX($C78:$L78,1,aux!$BA$1)>0,(L78-INDEX($C78:$L78,1,aux!$BA$1))/INDEX($C78:$L78,1,aux!$BA$1),"n.d.") -> n.d. | AH78: =X78-INDEX($O78:$X78,1,aux!$BA$1) -> 0 | AI78: 0 | AJ78: =+IF(INDEX($O78:$X78,1,aux!$BA$1)>0,(X78/INDEX($O78:$X78,1,aux!$BA$1))^(1/($X$3-INDEX($O$3:$X$3,1,aux!$BA$1)))-1,"n.d.") -> n.d. | AK78: =IF(INDEX($O78:$X78,1,aux!$BA$1)>0,(X78-INDEX($O78:$X78,1,aux!$BA$1))/INDEX($O78:$X78,1,aux!$BA$1),"n.d.") -> n.d. | AM78: 0 | BO78: 0 | CC78: =+IF(ISNA(MATCH('5.1'!A78,AUX_2d_pais!$G$2:$G$40000,0)),0,1) -> 0
A79: 0063 | B79: Eslováquia | C79: 6823.14 | D79: 3639.278 | E79: 5587.178 | F79: 4476.984 | G79: 4080.922 | H79: 3031.753 | I79: 3590.402 | J79: 2719.997 | K79: 2480.896 | L79: 2879.43 | M79: 3930.998 | N79: 0.0004218032121 | O79: 1056.3 | P79: 1766.932 | Q79: 2427.079 | R79: 3808.292 | S79: 4008.894 | T79: 3619.195 | U79: 3552.398 | V79: 8329.242 | W79: 13327.966 | X79: 12263.735 | Y79: 5416.0033 | Z79: 0.0007774348043 | AA79: 1485.0053 | AC79: =L79-INDEX($C79:$L79,1,aux!$BA$1) -> -3943.71 | AD79: -0.001255489757 | AE79: =+IF(INDEX($C79:$L79,1,aux!$BA$1)>0,(L79/INDEX($C79:$L79,1,aux!$BA$1))^(1/($L$3-INDEX($C$3:$L$3,1,aux!$BA$1)))-1,"n.d.") -> -0.09140751991 | AF79: =IF(INDEX($C79:$L79,1,aux!$BA$1)>0,(L79-INDEX($C79:$L79,1,aux!$BA$1))/INDEX($C79:$L79,1,aux!$BA$1),"n.d.") -> -0.5779904853 | AH79: =X79-INDEX($O79:$X79,1,aux!$BA$1) -> 11207.435 | AI79: 0.003157165983 | AJ79: =+IF(INDEX($O79:$X79,1,aux!$BA$1)>0,(X79/INDEX($O79:$X79,1,aux!$BA$1))^(1/($X$3-INDEX($O$3:$X$3,1,aux!$BA$1)))-1,"n.d.") -> 0.3131521621 | AK79: =IF(INDEX($O79:$X79,1,aux!$BA$1)>0,(X79-INDEX($O79:$X79,1,aux!$BA$1))/INDEX($O79:$X79,1,aux!$BA$1),"n.d.") -> 10.6100871 | CC79: =+IF(ISNA(MATCH('5.1'!A79,AUX_2d_pais!$G$2:$G$40000,0)),0,1) -> 1
A80: 0091 | B80: Eslovénia | C80: 3780.439 | D80: 2220.581 | E80: 2049.568 | F80: 2628.094 | G80: 3760.759 | H80: 6990.781 | I80: 4418.305 | J80: 3266.414 | K80: 5921.708 | L80: 7499.776 | M80: 4253.6425 | N80: 0.0004564235519 | O80: 1872.55 | P80: 1312.64 | Q80: 4195.755 | R80: 5112.365 | S80: 4327.924 | T80: 3847.982 | U80: 3399.245 | V80: 5542.774 | W80: 15802.216 | X80: 9026.115 | Y80: 5443.9566 | Z80: 0.0007814473329 | AA80: 1190.3141 | AC80: =L80-INDEX($C80:$L80,1,aux!$BA$1) -> 3719.337 | AD80: 0.001184060062 | AE80: =+IF(INDEX($C80:$L80,1,aux!$BA$1)>0,(L80/INDEX($C80:$L80,1,aux!$BA$1))^(1/($L$3-INDEX($C$3:$L$3,1,aux!$BA$1)))-1,"n.d.") -> 0.07908642375 | AF80: =IF(INDEX($C80:$L80,1,aux!$BA$1)>0,(L80-INDEX($C80:$L80,1,aux!$BA$1))/INDEX($C80:$L80,1,aux!$BA$1),"n.d.") -> 0.9838373268 | AH80: =X80-INDEX($O80:$X80,1,aux!$BA$1) -> 7153.565 | AI80: 0.002015179394 | AJ80: =+IF(INDEX($O80:$X80,1,aux!$BA$1)>0,(X80/INDEX($O80:$X80,1,aux!$BA$1))^(1/($X$3-INDEX($O$3:$X$3,1,aux!$BA$1)))-1,"n.d.") -> 0.1909578249 | AK80: =IF(INDEX($O80:$X80,1,aux!$BA$1)>0,(X80-INDEX($O80:$X80,1,aux!$BA$1))/INDEX($O80:$X80,1,aux!$BA$1),"n.d.") -> 3.820226429 | CC80: =+IF(ISNA(MATCH('5.1'!A80,AUX_2d_pais!$G$2:$G$40000,0)),0,1) -> 1
A81: 0011 | B81: Espanha | C81: 4392194.411 | D81: 4810144.807 | E81: 5036980.629 | F81: 4804818.542 | G81: 5164773.852 | H81: 5226300.689 | I81: 5293579.21 | J81: 5482819.349 | K81: 6035945.524 | L81: 6194752.432 | M81: 5244230.944 | N81: 0.5627154878 | O81: 2263859.031 | P81: 2632279.418 | Q81: 2805869.028 | R81: 2811159.456 | S81: 2999194.277 | T81: 3063711.611 | U81: 3143548.726 | V81: 3205509.672 | W81: 3403473.492 | X81: 3617873.929 | Y81: 2994647.864 | Z81: 0.4298637477 | AA81: -2249583.08 | AC81: =L81-INDEX($C81:$L81,1,aux!$BA$1) -> 1802558.021 | AD81: 0.5738487699 | AE81: =+IF(INDEX($C81:$L81,1,aux!$BA$1)>0,(L81/INDEX($C81:$L81,1,aux!$BA$1))^(1/($L$3-INDEX($C$3:$L$3,1,aux!$BA$1)))-1,"n.d.") -> 0.03894749427 | AF81: =IF(INDEX($C81:$L81,1,aux!$BA$1)>0,(L81-INDEX($C81:$L81,1,aux!$BA$1))/INDEX($C81:$L81,1,aux!$BA$1),"n.d.") -> 0.4104003267 | AH81: =X81-INDEX($O81:$X81,1,aux!$BA$1) -> 1354014.898 | AI81: 0.3814298077 | AJ81: =+IF(INDEX($O81:$X81,1,aux!$BA$1)>0,(X81/INDEX($O81:$X81,1,aux!$BA$1))^(1/($X$3-INDEX($O$3:$X$3,1,aux!$BA$1)))-1,"n.d.") -> 0.0534712117 | AK81: =IF(INDEX($O81:$X81,1,aux!$BA$1)>0,(X81-INDEX($O81:$X81,1,aux!$BA$1))/INDEX($O81:$X81,1,aux!$BA$1),"n.d.") -> 0.5981003585 | CC81: =+IF(ISNA(MATCH('5.1'!A81,AUX_2d_pais!$G$2:$G$40000,0)),0,1) -> 1
A82: 0400 | B82: Estados Unidos | C82: 0 | D82: 0 | E82: 0 | F82: 0 | G82: 0 | H82: 0 | I82: 0 | J82: 0 | K82: 0 | L82: 0 | M82: 0 | N82: 0 | O82: 0 | P82: 0 | Q82: 0 | R82: 0 | S82: 0 | T82: 0 | U82: 0 | V82: 0 | W82: 0 | X82: 0 | Y82: 0 | Z82: 0 | AA82: 0 | AC82: =L82-INDEX($C82:$L82,1,aux!$BA$1) -> 0 | AD82: 0 | AE82: =+IF(INDEX($C82:$L82,1,aux!$BA$1)>0,(L82/INDEX($C82:$L82,1,aux!$BA$1))^(1/($L$3-INDEX($C$3:$L$3,1,aux!$BA$1)))-1,"n.d.") -> n.d. | AF82: =IF(INDEX($C82:$L82,1,aux!$BA$1)>0,(L82-INDEX($C82:$L82,1,aux!$BA$1))/INDEX($C82:$L82,1,aux!$BA$1),"n.d.") -> n.d. | AH82: =X82-INDEX($O82:$X82,1,aux!$BA$1) -> 0 | AI82: 0 | AJ82: =+IF(INDEX($O82:$X82,1,aux!$BA$1)>0,(X82/INDEX($O82:$X82,1,aux!$BA$1))^(1/($X$3-INDEX($O$3:$X$3,1,aux!$BA$1)))-1,"n.d.") -> n.d. | AK82: =IF(INDEX($O82:$X82,1,aux!$BA$1)>0,(X82-INDEX($O82:$X82,1,aux!$BA$1))/INDEX($O82:$X82,1,aux!$BA$1),"n.d.") -> n.d. | AM82: 0 | CC82: =+IF(ISNA(MATCH('5.1'!A82,AUX_2d_pais!$G$2:$G$40000,0)),0,1) -> 0
A83: 0053 | B83: Estónia | C83: 4032.824 | D83: 3080.156 | E83: 2270.347 | F83: 5617.588 | G83: 6391.206 | H83: 5971.233 | I83: 10870.308 | J83: 9560.307 | K83: 15487.134 | L83: 9498.386 | M83: 7277.9489 | N83: 0.0007809371115 | O83: 1824.789 | P83: 2556.351 | Q83: 4621.733 | R83: 4359.582 | S83: 8665.265 | T83: 5991.647 | U83: 4615.71 | V83: 6325.403 | W83: 7548.693 | X83: 8145.908 | Y83: 5465.5081 | Z83: 0.0007845409216 | AA83: -1812.4408 | AC83: =L83-INDEX($C83:$L83,1,aux!$BA$1) -> 5465.562 | AD83: 0.001739975076 | AE83: =+IF(INDEX($C83:$L83,1,aux!$BA$1)>0,(L83/INDEX($C83:$L83,1,aux!$BA$1))^(1/($L$3-INDEX($C$3:$L$3,1,aux!$BA$1)))-1,"n.d.") -> 0.09986109053 | AF83: =IF(INDEX($C83:$L83,1,aux!$BA$1)>0,(L83-INDEX($C83:$L83,1,aux!$BA$1))/INDEX($C83:$L83,1,aux!$BA$1),"n.d.") -> 1.355269161 | AH83: =X83-INDEX($O83:$X83,1,aux!$BA$1) -> 6321.119 | AI83: 0.001780677013 | AJ83: =+IF(INDEX($O83:$X83,1,aux!$BA$1)>0,(X83/INDEX($O83:$X83,1,aux!$BA$1))^(1/($X$3-INDEX($O$3:$X$3,1,aux!$BA$1)))-1,"n.d.") -> 0.180842218 | AK83: =IF(INDEX($O83:$X83,1,aux!$BA$1)>0,(X83-INDEX($O83:$X83,1,aux!$BA$1))/INDEX($O83:$X83,1,aux!$BA$1),"n.d.") -> 3.464027348 | CC83: =+IF(ISNA(MATCH('5.1'!A83,AUX_2d_pais!$G$2:$G$40000,0)),0,1) -> 1
A84: 0334 | B84: Etiópia | C84: 0 | D84: 0 | E84: 0 | F84: 0 | G84: 0 | H84: 0 | I84: 0 | J84: 0 | K84: 0 | L84: 0 | M84: 0 | N84: 0 | O84: 0 | P84: 0 | Q84: 0 | R84: 0 | S84: 0 | T84: 0 | U84: 0 | V84: 0 | W84: 0 | X84: 0 | Y84: 0 | Z84: 0 | AA84: 0 | AC84: =L84-INDEX($C84:$L84,1,aux!$BA$1) -> 0 | AD84: 0 | AE84: =+IF(INDEX($C84:$L84,1,aux!$BA$1)>0,(L84/INDEX($C84:$L84,1,aux!$BA$1))^(1/($L$3-INDEX($C$3:$L$3,1,aux!$BA$1)))-1,"n.d.") -> n.d. | AF84: =IF(INDEX($C84:$L84,1,aux!$BA$1)>0,(L84-INDEX($C84:$L84,1,aux!$BA$1))/INDEX($C84:$L84,1,aux!$BA$1),"n.d.") -> n.d. | AH84: =X84-INDEX($O84:$X84,1,aux!$BA$1) -> 0 | AI84: 0 | AJ84: =+IF(INDEX($O84:$X84,1,aux!$BA$1)>0,(X84/INDEX($O84:$X84,1,aux!$BA$1))^(1/($X$3-INDEX($O$3:$X$3,1,aux!$BA$1)))-1,"n.d.") -> n.d. | AK84: =IF(INDEX($O84:$X84,1,aux!$BA$1)>0,(X84-INDEX($O84:$X84,1,aux!$BA$1))/INDEX($O84:$X84,1,aux!$BA$1),"n.d.") -> n.d. | AM84: 0 | CC84: =+IF(ISNA(MATCH('5.1'!A84,AUX_2d_pais!$G$2:$G$40000,0)),0,1) -> 0
A85: 0529 | B85: Falkland Ilhas (Malvinas) | C85: 0 | D85: 0 | E85: 0 | F85: 0 | G85: 0 | H85: 0 | I85: 0 | J85: 0 | K85: 0 | L85: 0 | M85: 0 | N85: 0 | O85: 0 | P85: 0 | Q85: 0 | R85: 0 | S85: 0 | T85: 0 | U85: 0 | V85: 0 | W85: 0 | X85: 0 | Y85: 0 | Z85: 0 | AA85: 0 | AC85: =L85-INDEX($C85:$L85,1,aux!$BA$1) -> 0 | AD85: 0 | AE85: =+IF(INDEX($C85:$L85,1,aux!$BA$1)>0,(L85/INDEX($C85:$L85,1,aux!$BA$1))^(1/($L$3-INDEX($C$3:$L$3,1,aux!$BA$1)))-1,"n.d.") -> n.d. | AF85: =IF(INDEX($C85:$L85,1,aux!$BA$1)>0,(L85-INDEX($C85:$L85,1,aux!$BA$1))/INDEX($C85:$L85,1,aux!$BA$1),"n.d.") -> n.d. | AH85: =X85-INDEX($O85:$X85,1,aux!$BA$1) -> 0 | AI85: 0 | AJ85: =+IF(INDEX($O85:$X85,1,aux!$BA$1)>0,(X85/INDEX($O85:$X85,1,aux!$BA$1))^(1/($X$3-INDEX($O$3:$X$3,1,aux!$BA$1)))-1,"n.d.") -> n.d. | AK85: =IF(INDEX($O85:$X85,1,aux!$BA$1)>0,(X85-INDEX($O85:$X85,1,aux!$BA$1))/INDEX($O85:$X85,1,aux!$BA$1),"n.d.") -> n.d. | AM85: 0 | BO85: 0 | CC85: =+IF(ISNA(MATCH('5.1'!A85,AUX_2d_pais!$G$2:$G$40000,0)),0,1) -> 0
A86: 0041 | B86: Faroé, Ilhas | C86: 0 | D86: 0 | E86: 0 | F86: 0 | G86: 0 | H86: 0 | I86: 0 | J86: 0 | K86: 0 | L86: 0 | M86: 0 | N86: 0 | O86: 0 | P86: 0 | Q86: 0 | R86: 0 | S86: 0 | T86: 0 | U86: 0 | V86: 0 | W86: 0 | X86: 0 | Y86: 0 | Z86: 0 | AA86: 0 | AC86: =L86-INDEX($C86:$L86,1,aux!$BA$1) -> 0 | AD86: 0 | AE86: =+IF(INDEX($C86:$L86,1,aux!$BA$1)>0,(L86/INDEX($C86:$L86,1,aux!$BA$1))^(1/($L$3-INDEX($C$3:$L$3,1,aux!$BA$1)))-1,"n.d.") -> n.d. | AF86: =IF(INDEX($C86:$L86,1,aux!$BA$1)>0,(L86-INDEX($C86:$L86,1,aux!$BA$1))/INDEX($C86:$L86,1,aux!$BA$1),"n.d.") -> n.d. | AH86: =X86-INDEX($O86:$X86,1,aux!$BA$1) -> 0 | AI86: 0 | AJ86: =+IF(INDEX($O86:$X86,1,aux!$BA$1)>0,(X86/INDEX($O86:$X86,1,aux!$BA$1))^(1/($X$3-INDEX($O$3:$X$3,1,aux!$BA$1)))-1,"n.d.") -> n.d. | AK86: =IF(INDEX($O86:$X86,1,aux!$BA$1)>0,(X86-INDEX($O86:$X86,1,aux!$BA$1))/INDEX($O86:$X86,1,aux!$BA$1),"n.d.") -> n.d. | AM86: 0 | BO86: 0 | CC86: =+IF(ISNA(MATCH('5.1'!A86,AUX_2d_pais!$G$2:$G$40000,0)),0,1) -> 0
A87: 0815 | B87: Fiji, Ilhas | C87: 0 | D87: 0 | E87: 0 | F87: 0 | G87: 0 | H87: 0 | I87: 0 | J87: 0 | K87: 0 | L87: 0 | M87: 0 | N87: 0 | O87: 0 | P87: 0 | Q87: 0 | R87: 0 | S87: 0 | T87: 0 | U87: 0 | V87: 0 | W87: 0 | X87: 0 | Y87: 0 | Z87: 0 | AA87: 0 | AC87: =L87-INDEX($C87:$L87,1,aux!$BA$1) -> 0 | AD87: 0 | AE87: =+IF(INDEX($C87:$L87,1,aux!$BA$1)>0,(L87/INDEX($C87:$L87,1,aux!$BA$1))^(1/($L$3-INDEX($C$3:$L$3,1,aux!$BA$1)))-1,"n.d.") -> n.d. | AF87: =IF(INDEX($C87:$L87,1,aux!$BA$1)>0,(L87-INDEX($C87:$L87,1,aux!$BA$1))/INDEX($C87:$L87,1,aux!$BA$1),"n.d.") -> n.d. | AH87: =X87-INDEX($O87:$X87,1,aux!$BA$1) -> 0 | AI87: 0 | AJ87: =+IF(INDEX($O87:$X87,1,aux!$BA$1)>0,(X87/INDEX($O87:$X87,1,aux!$BA$1))^(1/($X$3-INDEX($O$3:$X$3,1,aux!$BA$1)))-1,"n.d.") -> n.d. | AK87: =IF(INDEX($O87:$X87,1,aux!$BA$1)>0,(X87-INDEX($O87:$X87,1,aux!$BA$1))/INDEX($O87:$X87,1,aux!$BA$1),"n.d.") -> n.d. | AM87: 0 | BO87: 0 | CC87: =+IF(ISNA(MATCH('5.1'!A87,AUX_2d_pais!$G$2:$G$40000,0)),0,1) -> 0
A88: 0708 | B88: Filipinas | C88: 0 | D88: 0 | E88: 0 | F88: 0 | G88: 0 | H88: 0 | I88: 0 | J88: 0 | K88: 0 | L88: 0 | M88: 0 | N88: 0 | O88: 0 | P88: 0 | Q88: 0 | R88: 0 | S88: 0 | T88: 0 | U88: 0 | V88: 0 | W88: 0 | X88: 0 | Y88: 0 | Z88: 0 | AA88: 0 | AC88: =L88-INDEX($C88:$L88,1,aux!$BA$1) -> 0 | AD88: 0 | AE88: =+IF(INDEX($C88:$L88,1,aux!$BA$1)>0,(L88/INDEX($C88:$L88,1,aux!$BA$1))^(1/($L$3-INDEX($C$3:$L$3,1,aux!$BA$1)))-1,"n.d.") -> n.d. | AF88: =IF(INDEX($C88:$L88,1,aux!$BA$1)>0,(L88-INDEX($C88:$L88,1,aux!$BA$1))/INDEX($C88:$L88,1,aux!$BA$1),"n.d.") -> n.d. | AH88: =X88-INDEX($O88:$X88,1,aux!$BA$1) -> 0 | AI88: 0 | AJ88: =+IF(INDEX($O88:$X88,1,aux!$BA$1)>0,(X88/INDEX($O88:$X88,1,aux!$BA$1))^(1/($X$3-INDEX($O$3:$X$3,1,aux!$BA$1)))-1,"n.d.") -> n.d. | AK88: =IF(INDEX($O88:$X88,1,aux!$BA$1)>0,(X88-INDEX($O88:$X88,1,aux!$BA$1))/INDEX($O88:$X88,1,aux!$BA$1),"n.d.") -> n.d. | AM88: 0 | CC88: =+IF(ISNA(MATCH('5.1'!A88,AUX_2d_pais!$G$2:$G$40000,0)),0,1) -> 0
A89: 0032 | B89: Finlândia | C89: 16853.138 | D89: 23963.704 | E89: 54316.778 | F89: 43699.505 | G89: 43979.196 | H89: 49946.836 | I89: 68986.114 | J89: 65775.239 | K89: 73273.816 | L89: 60298.435 | M89: 50109.2761 | N89: 0.005376816171 | O89: 8851.074 | P89: 16952.576 | Q89: 22779.664 | R89: 17913.543 | S89: 21402.246 | T89: 36875.831 | U89: 21873.613 | V89: 19795.488 | W89: 21580.406 | X89: 27278.326 | Y89: 21530.2767 | Z89: 0.003090542144 | AA89: -28578.9994 | AC89: =L89-INDEX($C89:$L89,1,aux!$BA$1) -> 43445.297 | AD89: 0.01383091692 | AE89: =+IF(INDEX($C89:$L89,1,aux!$BA$1)>0,(L89/INDEX($C89:$L89,1,aux!$BA$1))^(1/($L$3-INDEX($C$3:$L$3,1,aux!$BA$1)))-1,"n.d.") -> 0.1521629835 | AF89: =IF(INDEX($C89:$L89,1,aux!$BA$1)>0,(L89-INDEX($C89:$L89,1,aux!$BA$1))/INDEX($C89:$L89,1,aux!$BA$1),"n.d.") -> 2.577875823 | AH89: =X89-INDEX($O89:$X89,1,aux!$BA$1) -> 18427.252 | AI89: 0.005191008753 | AJ89: =+IF(INDEX($O89:$X89,1,aux!$BA$1)>0,(X89/INDEX($O89:$X89,1,aux!$BA$1))^(1/($X$3-INDEX($O$3:$X$3,1,aux!$BA$1)))-1,"n.d.") -> 0.133218164 | AK89: =IF(INDEX($O89:$X89,1,aux!$BA$1)>0,(X89-INDEX($O89:$X89,1,aux!$BA$1))/INDEX($O89:$X89,1,aux!$BA$1),"n.d.") -> 2.081922714 | CC89: =+IF(ISNA(MATCH('5.1'!A89,AUX_2d_pais!$G$2:$G$40000,0)),0,1) -> 1
A90: 0001 | B90: França | C90: 925323.458 | D90: 930268.183 | E90: 921898.518 | F90: 856124.455 | G90: 891724.954 | H90: 862847.121 | I90: 849534.225 | J90: 839184.245 | K90: 889585.273 | L90: 924480.554 | M90: 889097.0986 | N90: 0.09540173056 | O90: 737963.209 | P90: 825162.352 | Q90: 879435.03 | R90: 935839.464 | S90: 944906.242 | T90: 940998.568 | U90: 1091608.328 | V90: 1159326.094 | W90: 1180829.351 | X90: 1154134.754 | Y90: 985020.3392 | Z90: 0.1413937644 | AA90: 95923.2406 | AC90: =L90-INDEX($C90:$L90,1,aux!$BA$1) -> -842.904 | AD90: -0.0002683405571 | AE90: =+IF(INDEX($C90:$L90,1,aux!$BA$1)>0,(L90/INDEX($C90:$L90,1,aux!$BA$1))^(1/($L$3-INDEX($C$3:$L$3,1,aux!$BA$1)))-1,"n.d.") -> -0.0001012553375 | AF90: =IF(INDEX($C90:$L90,1,aux!$BA$1)>0,(L90-INDEX($C90:$L90,1,aux!$BA$1))/INDEX($C90:$L90,1,aux!$BA$1),"n.d.") -> -0.00091092903 | AH90: =X90-INDEX($O90:$X90,1,aux!$BA$1) -> 416171.545 | AI90: 0.1172366956 | AJ90: =+IF(INDEX($O90:$X90,1,aux!$BA$1)>0,(X90/INDEX($O90:$X90,1,aux!$BA$1))^(1/($X$3-INDEX($O$3:$X$3,1,aux!$BA$1)))-1,"n.d.") -> 0.05094551446 | AK90: =IF(INDEX($O90:$X90,1,aux!$BA$1)>0,(X90-INDEX($O90:$X90,1,aux!$BA$1))/INDEX($O90:$X90,1,aux!$BA$1),"n.d.") -> 0.5639461967 | CC90: =+IF(ISNA(MATCH('5.1'!A90,AUX_2d_pais!$G$2:$G$40000,0)),0,1) -> 1
A91: 0314 | B91: Gabão | C91: 0 | D91: 0 | E91: 0 | F91: 0 | G91: 0 | H91: 0 | I91: 0 | J91: 0 | K91: 0 | L91: 0 | M91: 0 | N91: 0 | O91: 0 | P91: 0 | Q91: 0 | R91: 0 | S91: 0 | T91: 0 | U91: 0 | V91: 0 | W91: 0 | X91: 0 | Y91: 0 | Z91: 0 | AA91: 0 | AC91: =L91-INDEX($C91:$L91,1,aux!$BA$1) -> 0 | AD91: 0 | AE91: =+IF(INDEX($C91:$L91,1,aux!$BA$1)>0,(L91/INDEX($C91:$L91,1,aux!$BA$1))^(1/($L$3-INDEX($C$3:$L$3,1,aux!$BA$1)))-1,"n.d.") -> n.d. | AF91: =IF(INDEX($C91:$L91,1,aux!$BA$1)>0,(L91-INDEX($C91:$L91,1,aux!$BA$1))/INDEX($C91:$L91,1,aux!$BA$1),"n.d.") -> n.d. | AH91: =X91-INDEX($O91:$X91,1,aux!$BA$1) -> 0 | AI91: 0 | AJ91: =+IF(INDEX($O91:$X91,1,aux!$BA$1)>0,(X91/INDEX($O91:$X91,1,aux!$BA$1))^(1/($X$3-INDEX($O$3:$X$3,1,aux!$BA$1)))-1,"n.d.") -> n.d. | AK91: =IF(INDEX($O91:$X91,1,aux!$BA$1)>0,(X91-INDEX($O91:$X91,1,aux!$BA$1))/INDEX($O91:$X91,1,aux!$BA$1),"n.d.") -> n.d. | AM91: 0 | CC91: =+IF(ISNA(MATCH('5.1'!A91,AUX_2d_pais!$G$2:$G$40000,0)),0,1) -> 0
A92: 0252 | B92: Gâmbia | C92: 0 | D92: 0 | E92: 0 | F92: 0 | G92: 0 | H92: 0 | I92: 0 | J92: 0 | K92: 0 | L92: 0 | M92: 0 | N92: 0 | O92: 0 | P92: 0 | Q92: 0 | R92: 0 | S92: 0 | T92: 0 | U92: 0 | V92: 0 | W92: 0 | X92: 0 | Y92: 0 | Z92: 0 | AA92: 0 | AC92: =L92-INDEX($C92:$L92,1,aux!$BA$1) -> 0 | AD92: 0 | AE92: =+IF(INDEX($C92:$L92,1,aux!$BA$1)>0,(L92/INDEX($C92:$L92,1,aux!$BA$1))^(1/($L$3-INDEX($C$3:$L$3,1,aux!$BA$1)))-1,"n.d.") -> n.d. | AF92: =IF(INDEX($C92:$L92,1,aux!$BA$1)>0,(L92-INDEX($C92:$L92,1,aux!$BA$1))/INDEX($C92:$L92,1,aux!$BA$1),"n.d.") -> n.d. | AH92: =X92-INDEX($O92:$X92,1,aux!$BA$1) -> 0 | AI92: 0 | AJ92: =+IF(INDEX($O92:$X92,1,aux!$BA$1)>0,(X92/INDEX($O92:$X92,1,aux!$BA$1))^(1/($X$3-INDEX($O$3:$X$3,1,aux!$BA$1)))-1,"n.d.") -> n.d. | AK92: =IF(INDEX($O92:$X92,1,aux!$BA$1)>0,(X92-INDEX($O92:$X92,1,aux!$BA$1))/INDEX($O92:$X92,1,aux!$BA$1),"n.d.") -> n.d. | AM92: 0 | CC92: =+IF(ISNA(MATCH('5.1'!A92,AUX_2d_pais!$G$2:$G$40000,0)),0,1) -> 0
A93: 0276 | B93: Gana | C93: 0 | D93: 0 | E93: 0 | F93: 0 | G93: 0 | H93: 0 | I93: 0 | J93: 0 | K93: 0 | L93: 0 | M93: 0 | N93: 0 | O93: 0 | P93: 0 | Q93: 0 | R93: 0 | S93: 0 | T93: 0 | U93: 0 | V93: 0 | W93: 0 | X93: 0 | Y93: 0 | Z93: 0 | AA93: 0 | AC93: =L93-INDEX($C93:$L93,1,aux!$BA$1) -> 0 | AD93: 0 | AE93: =+IF(INDEX($C93:$L93,1,aux!$BA$1)>0,(L93/INDEX($C93:$L93,1,aux!$BA$1))^(1/($L$3-INDEX($C$3:$L$3,1,aux!$BA$1)))-1,"n.d.") -> n.d. | AF93: =IF(INDEX($C93:$L93,1,aux!$BA$1)>0,(L93-INDEX($C93:$L93,1,aux!$BA$1))/INDEX($C93:$L93,1,aux!$BA$1),"n.d.") -> n.d. | AH93: =X93-INDEX($O93:$X93,1,aux!$BA$1) -> 0 | AI93: 0 | AJ93: =+IF(INDEX($O93:$X93,1,aux!$BA$1)>0,(X93/INDEX($O93:$X93,1,aux!$BA$1))^(1/($X$3-INDEX($O$3:$X$3,1,aux!$BA$1)))-1,"n.d.") -> n.d. | AK93: =IF(INDEX($O93:$X93,1,aux!$BA$1)>0,(X93-INDEX($O93:$X93,1,aux!$BA$1))/INDEX($O93:$X93,1,aux!$BA$1),"n.d.") -> n.d. | AM93: 0 | CC93: =+IF(ISNA(MATCH('5.1'!A93,AUX_2d_pais!$G$2:$G$40000,0)),0,1) -> 0
A94: 0076 | B94: Geórgia | C94: 0 | D94: 0 | E94: 0 | F94: 0 | G94: 0 | H94: 0 | I94: 0 | J94: 0 | K94: 0 | L94: 0 | M94: 0 | N94: 0 | O94: 0 | P94: 0 | Q94: 0 | R94: 0 | S94: 0 | T94: 0 | U94: 0 | V94: 0 | W94: 0 | X94: 0 | Y94: 0 | Z94: 0 | AA94: 0 | AC94: =L94-INDEX($C94:$L94,1,aux!$BA$1) -> 0 | AD94: 0 | AE94: =+IF(INDEX($C94:$L94,1,aux!$BA$1)>0,(L94/INDEX($C94:$L94,1,aux!$BA$1))^(1/($L$3-INDEX($C$3:$L$3,1,aux!$BA$1)))-1,"n.d.") -> n.d. | AF94: =IF(INDEX($C94:$L94,1,aux!$BA$1)>0,(L94-INDEX($C94:$L94,1,aux!$BA$1))/INDEX($C94:$L94,1,aux!$BA$1),"n.d.") -> n.d. | AH94: =X94-INDEX($O94:$X94,1,aux!$BA$1) -> 0 | AI94: 0 | AJ94: =+IF(INDEX($O94:$X94,1,aux!$BA$1)>0,(X94/INDEX($O94:$X94,1,aux!$BA$1))^(1/($X$3-INDEX($O$3:$X$3,1,aux!$BA$1)))-1,"n.d.") -> n.d. | AK94: =IF(INDEX($O94:$X94,1,aux!$BA$1)>0,(X94-INDEX($O94:$X94,1,aux!$BA$1))/INDEX($O94:$X94,1,aux!$BA$1),"n.d.") -> n.d. | AM94: 0 | CC94: =+IF(ISNA(MATCH('5.1'!A94,AUX_2d_pais!$G$2:$G$40000,0)),0,1) -> 0
A95: 0893 | B95: Geórgia do Sul e Ilhas Sandwich do Sul | C95: 0 | D95: 0 | E95: 0 | F95: 0 | G95: 0 | H95: 0 | I95: 0 | J95: 0 | K95: 0 | L95: 0 | M95: 0 | N95: 0 | O95: 0 | P95: 0 | Q95: 0 | R95: 0 | S95: 0 | T95: 0 | U95: 0 | V95: 0 | W95: 0 | X95: 0 | Y95: 0 | Z95: 0 | AA95: 0 | AC95: =L95-INDEX($C95:$L95,1,aux!$BA$1) -> 0 | AD95: 0 | AE95: =+IF(INDEX($C95:$L95,1,aux!$BA$1)>0,(L95/INDEX($C95:$L95,1,aux!$BA$1))^(1/($L$3-INDEX($C$3:$L$3,1,aux!$BA$1)))-1,"n.d.") -> n.d. | AF95: =IF(INDEX($C95:$L95,1,aux!$BA$1)>0,(L95-INDEX($C95:$L95,1,aux!$BA$1))/INDEX($C95:$L95,1,aux!$BA$1),"n.d.") -> n.d. | AH95: =X95-INDEX($O95:$X95,1,aux!$BA$1) -> 0 | AI95: 0 | AJ95: =+IF(INDEX($O95:$X95,1,aux!$BA$1)>0,(X95/INDEX($O95:$X95,1,aux!$BA$1))^(1/($X$3-INDEX($O$3:$X$3,1,aux!$BA$1)))-1,"n.d.") -> n.d. | AK95: =IF(INDEX($O95:$X95,1,aux!$BA$1)>0,(X95-INDEX($O95:$X95,1,aux!$BA$1))/INDEX($O95:$X95,1,aux!$BA$1),"n.d.") -> n.d. | AM95: 0 | BO95: 0 | CC95: =+IF(ISNA(MATCH('5.1'!A95,AUX_2d_pais!$G$2:$G$40000,0)),0,1) -> 0
A96: 0044 | B96: Gibraltar | C96: 0 | D96: 0 | E96: 0 | F96: 0 | G96: 0 | H96: 0 | I96: 0 | J96: 0 | K96: 0 | L96: 0 | M96: 0 | N96: 0 | O96: 0 | P96: 0 | Q96: 0 | R96: 0 | S96: 0 | T96: 0 | U96: 0 | V96: 0 | W96: 0 | X96: 0 | Y96: 0 | Z96: 0 | AA96: 0 | AC96: =L96-INDEX($C96:$L96,1,aux!$BA$1) -> 0 | AD96: 0 | AE96: =+IF(INDEX($C96:$L96,1,aux!$BA$1)>0,(L96/INDEX($C96:$L96,1,aux!$BA$1))^(1/($L$3-INDEX($C$3:$L$3,1,aux!$BA$1)))-1,"n.d.") -> n.d. | AF96: =IF(INDEX($C96:$L96,1,aux!$BA$1)>0,(L96-INDEX($C96:$L96,1,aux!$BA$1))/INDEX($C96:$L96,1,aux!$BA$1),"n.d.") -> n.d. | AH96: =X96-INDEX($O96:$X96,1,aux!$BA$1) -> 0 | AI96: 0 | AJ96: =+IF(INDEX($O96:$X96,1,aux!$BA$1)>0,(X96/INDEX($O96:$X96,1,aux!$BA$1))^(1/($X$3-INDEX($O$3:$X$3,1,aux!$BA$1)))-1,"n.d.") -> n.d. | AK96: =IF(INDEX($O96:$X96,1,aux!$BA$1)>0,(X96-INDEX($O96:$X96,1,aux!$BA$1))/INDEX($O96:$X96,1,aux!$BA$1),"n.d.") -> n.d. | AM96: 0 | CC96: =+IF(ISNA(MATCH('5.1'!A96,AUX_2d_pais!$G$2:$G$40000,0)),0,1) -> 0
A97: 0473 | B97: Granada | C97: 0 | D97: 0 | E97: 0 | F97: 0 | G97: 0 | H97: 0 | I97: 0 | J97: 0 | K97: 0 | L97: 0 | M97: 0 | N97: 0 | O97: 0 | P97: 0 | Q97: 0 | R97: 0 | S97: 0 | T97: 0 | U97: 0 | V97: 0 | W97: 0 | X97: 0 | Y97: 0 | Z97: 0 | AA97: 0 | AC97: =L97-INDEX($C97:$L97,1,aux!$BA$1) -> 0 | AD97: 0 | AE97: =+IF(INDEX($C97:$L97,1,aux!$BA$1)>0,(L97/INDEX($C97:$L97,1,aux!$BA$1))^(1/($L$3-INDEX($C$3:$L$3,1,aux!$BA$1)))-1,"n.d.") -> n.d. | AF97: =IF(INDEX($C97:$L97,1,aux!$BA$1)>0,(L97-INDEX($C97:$L97,1,aux!$BA$1))/INDEX($C97:$L97,1,aux!$BA$1),"n.d.") -> n.d. | AH97: =X97-INDEX($O97:$X97,1,aux!$BA$1) -> 0 | AI97: 0 | AJ97: =+IF(INDEX($O97:$X97,1,aux!$BA$1)>0,(X97/INDEX($O97:$X97,1,aux!$BA$1))^(1/($X$3-INDEX($O$3:$X$3,1,aux!$BA$1)))-1,"n.d.") -> n.d. | AK97: =IF(INDEX($O97:$X97,1,aux!$BA$1)>0,(X97-INDEX($O97:$X97,1,aux!$BA$1))/INDEX($O97:$X97,1,aux!$BA$1),"n.d.") -> n.d. | AM97: 0 | BO97: 0 | CC97: =+IF(ISNA(MATCH('5.1'!A97,AUX_2d_pais!$G$2:$G$40000,0)),0,1) -> 0
A98: 0009 | B98: Grécia | C98: 38040.375 | D98: 42178.431 | E98: 42696.63 | F98: 43262.088 | G98: 42719.856 | H98: 46071.182 | I98: 51869.178 | J98: 63585.257 | K98: 67191.204 | L98: 72672.586 | M98: 51028.6787 | N98: 0.005475469737 | O98: 23815.471 | P98: 32196.912 | Q98: 40475.143 | R98: 34940.937 | S98: 40013.106 | T98: 41058.98 | U98: 49557.769 | V98: 46146.533 | W98: 46498.454 | X98: 48281.274 | Y98: 40298.4579 | Z98: 0.005784602039 | AA98: -10730.2208 | AC98: =L98-INDEX($C98:$L98,1,aux!$BA$1) -> 34632.211 | AD98: 0.01102524937 | AE98: =+IF(INDEX($C98:$L98,1,aux!$BA$1)>0,(L98/INDEX($C98:$L98,1,aux!$BA$1))^(1/($L$3-INDEX($C$3:$L$3,1,aux!$BA$1)))-1,"n.d.") -> 0.07457368934 | AF98: =IF(INDEX($C98:$L98,1,aux!$BA$1)>0,(L98-INDEX($C98:$L98,1,aux!$BA$1))/INDEX($C98:$L98,1,aux!$BA$1),"n.d.") -> 0.9104066666 | AH98: =X98-INDEX($O98:$X98,1,aux!$BA$1) -> 24465.803 | AI98: 0.006892085565 | AJ98: =+IF(INDEX($O98:$X98,1,aux!$BA$1)>0,(X98/INDEX($O98:$X98,1,aux!$BA$1))^(1/($X$3-INDEX($O$3:$X$3,1,aux!$BA$1)))-1,"n.d.") -> 0.08168839862 | AK98: =IF(INDEX($O98:$X98,1,aux!$BA$1)>0,(X98-INDEX($O98:$X98,1,aux!$BA$1))/INDEX($O98:$X98,1,aux!$BA$1),"n.d.") -> 1.027307123 | CC98: =+IF(ISNA(MATCH('5.1'!A98,AUX_2d_pais!$G$2:$G$40000,0)),0,1) -> 1
A99: 0406 | B99: Gronelândia | C99: 0 | D99: 0 | E99: 0 | F99: 0 | G99: 0 | H99: 0 | I99: 0 | J99: 0 | K99: 0 | L99: 0 | M99: 0 | N99: 0 | O99: 0 | P99: 0 | Q99: 0 | R99: 0 | S99: 0 | T99: 0 | U99: 0 | V99: 0 | W99: 0 | X99: 0 | Y99: 0 | Z99: 0 | AA99: 0 | AC99: =L99-INDEX($C99:$L99,1,aux!$BA$1) -> 0 | AD99: 0 | AE99: =+IF(INDEX($C99:$L99,1,aux!$BA$1)>0,(L99/INDEX($C99:$L99,1,aux!$BA$1))^(1/($L$3-INDEX($C$3:$L$3,1,aux!$BA$1)))-1,"n.d.") -> n.d. | AF99: =IF(INDEX($C99:$L99,1,aux!$BA$1)>0,(L99-INDEX($C99:$L99,1,aux!$BA$1))/INDEX($C99:$L99,1,aux!$BA$1),"n.d.") -> n.d. | AH99: =X99-INDEX($O99:$X99,1,aux!$BA$1) -> 0 | AI99: 0 | AJ99: =+IF(INDEX($O99:$X99,1,aux!$BA$1)>0,(X99/INDEX($O99:$X99,1,aux!$BA$1))^(1/($X$3-INDEX($O$3:$X$3,1,aux!$BA$1)))-1,"n.d.") -> n.d. | AK99: =IF(INDEX($O99:$X99,1,aux!$BA$1)>0,(X99-INDEX($O99:$X99,1,aux!$BA$1))/INDEX($O99:$X99,1,aux!$BA$1),"n.d.") -> n.d. | AM99: 0 | BO99: 0 | CC99: =+IF(ISNA(MATCH('5.1'!A99,AUX_2d_pais!$G$2:$G$40000,0)),0,1) -> 0
A100: 0458 | B100: Guadalupe | C100: 0 | D100: 0 | E100: 0 | F100: 0 | G100: 0 | H100: 0 | I100: 0 | J100: 0 | K100: 0 | L100: 0 | M100: 0 | N100: 0 | O100: 0 | P100: 0 | Q100: 0 | R100: 0 | S100: 0 | T100: 0 | U100: 0 | V100: 0 | W100: 0 | X100: 0 | Y100: 0 | Z100: 0 | AA100: 0 | AC100: =L100-INDEX($C100:$L100,1,aux!$BA$1) -> 0 | AD100: =AC100/$AC$252 -> 0 | AE100: =+IF(INDEX($C100:$L100,1,aux!$BA$1)>0,(L100/INDEX($C100:$L100,1,aux!$BA$1))^(1/($L$3-INDEX($C$3:$L$3,1,aux!$BA$1)))-1,"n.d.") -> n.d. | AF100: =IF(INDEX($C100:$L100,1,aux!$BA$1)>0,(L100-INDEX($C100:$L100,1,aux!$BA$1))/INDEX($C100:$L100,1,aux!$BA$1),"n.d.") -> n.d. | AH100: =X100-INDEX($O100:$X100,1,aux!$BA$1) -> 0 | AI100: =AH100/$AH$252 -> 0 | AJ100: =+IF(INDEX($O100:$X100,1,aux!$BA$1)>0,(X100/INDEX($O100:$X100,1,aux!$BA$1))^(1/($X$3-INDEX($O$3:$X$3,1,aux!$BA$1)))-1,"n.d.") -> n.d. | AK100: =IF(INDEX($O100:$X100,1,aux!$BA$1)>0,(X100-INDEX($O100:$X100,1,aux!$BA$1))/INDEX($O100:$X100,1,aux!$BA$1),"n.d.") -> n.d. | AM100: 0 | BO100: 0 | CC100: =+IF(ISNA(MATCH('5.1'!A100,AUX_2d_pais!$G$2:$G$40000,0)),0,1) -> 0
A101: 0831 | B101: Guam | C101: 0 | D101: 0 | E101: 0 | F101: 0 | G101: 0 | H101: 0 | I101: 0 | J101: 0 | K101: 0 | L101: 0 | M101: 0 | N101: 0 | O101: 0 | P101: 0 | Q101: 0 | R101: 0 | S101: 0 | T101: 0 | U101: 0 | V101: 0 | W101: 0 | X101: 0 | Y101: 0 | Z101: 0 | AA101: 0 | AC101: =L101-INDEX($C101:$L101,1,aux!$BA$1) -> 0 | AD101: =AC101/$AC$252 -> 0 | AE101: =+IF(INDEX($C101:$L101,1,aux!$BA$1)>0,(L101/INDEX($C101:$L101,1,aux!$BA$1))^(1/($L$3-INDEX($C$3:$L$3,1,aux!$BA$1)))-1,"n.d.") -> n.d. | AF101: =IF(INDEX($C101:$L101,1,aux!$BA$1)>0,(L101-INDEX($C101:$L101,1,aux!$BA$1))/INDEX($C101:$L101,1,aux!$BA$1),"n.d.") -> n.d. | AH101: =X101-INDEX($O101:$X101,1,aux!$BA$1) -> 0 | AI101: =AH101/$AH$252 -> 0 | AJ101: =+IF(INDEX($O101:$X101,1,aux!$BA$1)>0,(X101/INDEX($O101:$X101,1,aux!$BA$1))^(1/($X$3-INDEX($O$3:$X$3,1,aux!$BA$1)))-1,"n.d.") -> n.d. | AK101: =IF(INDEX($O101:$X101,1,aux!$BA$1)>0,(X101-INDEX($O101:$X101,1,aux!$BA$1))/INDEX($O101:$X101,1,aux!$BA$1),"n.d.") -> n.d. | AM101: 0 | BO101: 0 | CC101: =+IF(ISNA(MATCH('5.1'!A101,AUX_2d_pais!$G$2:$G$40000,0)),0,1) -> 0
A102: 0416 | B102: Guatemala | C102: 0 | D102: 0 | E102: 0 | F102: 0 | G102: 0 | H102: 0 | I102: 0 | J102: 0 | K102: 0 | L102: 0 | M102: 0 | N102: 0 | O102: 0 | P102: 0 | Q102: 0 | R102: 0 | S102: 0 | T102: 0 | U102: 0 | V102: 0 | W102: 0 | X102: 0 | Y102: 0 | Z102: 0 | AA102: 0 | AC102: =L102-INDEX($C102:$L102,1,aux!$BA$1) -> 0 | AD102: 0 | AE102: =+IF(INDEX($C102:$L102,1,aux!$BA$1)>0,(L102/INDEX($C102:$L102,1,aux!$BA$1))^(1/($L$3-INDEX($C$3:$L$3,1,aux!$BA$1)))-1,"n.d.") -> n.d. | AF102: =IF(INDEX($C102:$L102,1,aux!$BA$1)>0,(L102-INDEX($C102:$L102,1,aux!$BA$1))/INDEX($C102:$L102,1,aux!$BA$1),"n.d.") -> n.d. | AH102: =X102-INDEX($O102:$X102,1,aux!$BA$1) -> 0 | AI102: 0 | AJ102: =+IF(INDEX($O102:$X102,1,aux!$BA$1)>0,(X102/INDEX($O102:$X102,1,aux!$BA$1))^(1/($X$3-INDEX($O$3:$X$3,1,aux!$BA$1)))-1,"n.d.") -> n.d. | AK102: =IF(INDEX($O102:$X102,1,aux!$BA$1)>0,(X102-INDEX($O102:$X102,1,aux!$BA$1))/INDEX($O102:$X102,1,aux!$BA$1),"n.d.") -> n.d. | AM102: 0 | CC102: =+IF(ISNA(MATCH('5.1'!A102,AUX_2d_pais!$G$2:$G$40000,0)),0,1) -> 0
A103: 0488 | B103: Guiana | C103: 0 | D103: 0 | E103: 0 | F103: 0 | G103: 0 | H103: 0 | I103: 0 | J103: 0 | K103: 0 | L103: 0 | M103: 0 | N103: 0 | O103: 0 | P103: 0 | Q103: 0 | R103: 0 | S103: 0 | T103: 0 | U103: 0 | V103: 0 | W103: 0 | X103: 0 | Y103: 0 | Z103: 0 | AA103: 0 | AC103: =L103-INDEX($C103:$L103,1,aux!$BA$1) -> 0 | AD103: 0 | AE103: =+IF(INDEX($C103:$L103,1,aux!$BA$1)>0,(L103/INDEX($C103:$L103,1,aux!$BA$1))^(1/($L$3-INDEX($C$3:$L$3,1,aux!$BA$1)))-1,"n.d.") -> n.d. | AF103: =IF(INDEX($C103:$L103,1,aux!$BA$1)>0,(L103-INDEX($C103:$L103,1,aux!$BA$1))/INDEX($C103:$L103,1,aux!$BA$1),"n.d.") -> n.d. | AH103: =X103-INDEX($O103:$X103,1,aux!$BA$1) -> 0 | AI103: 0 | AJ103: =+IF(INDEX($O103:$X103,1,aux!$BA$1)>0,(X103/INDEX($O103:$X103,1,aux!$BA$1))^(1/($X$3-INDEX($O$3:$X$3,1,aux!$BA$1)))-1,"n.d.") -> n.d. | AK103: =IF(INDEX($O103:$X103,1,aux!$BA$1)>0,(X103-INDEX($O103:$X103,1,aux!$BA$1))/INDEX($O103:$X103,1,aux!$BA$1),"n.d.") -> n.d. | AM103: 0 | BO103: 0 | CC103: =+IF(ISNA(MATCH('5.1'!A103,AUX_2d_pais!$G$2:$G$40000,0)),0,1) -> 0
A104: 0496 | B104: Guiana Francesa | C104: 0 | D104: 0 | E104: 0 | F104: 0 | G104: 0 | H104: 0 | I104: 0 | J104: 0 | K104: 0 | L104: 0 | M104: 0 | N104: 0 | O104: 0 | P104: 0 | Q104: 0 | R104: 0 | S104: 0 | T104: 0 | U104: 0 | V104: 0 | W104: 0 | X104: 0 | Y104: 0 | Z104: 0 | AA104: 0 | AC104: =L104-INDEX($C104:$L104,1,aux!$BA$1) -> 0 | AD104: 0 | AE104: =+IF(INDEX($C104:$L104,1,aux!$BA$1)>0,(L104/INDEX($C104:$L104,1,aux!$BA$1))^(1/($L$3-INDEX($C$3:$L$3,1,aux!$BA$1)))-1,"n.d.") -> n.d. | AF104: =IF(INDEX($C104:$L104,1,aux!$BA$1)>0,(L104-INDEX($C104:$L104,1,aux!$BA$1))/INDEX($C104:$L104,1,aux!$BA$1),"n.d.") -> n.d. | AH104: =X104-INDEX($O104:$X104,1,aux!$BA$1) -> 0 | AI104: 0 | AJ104: =+IF(INDEX($O104:$X104,1,aux!$BA$1)>0,(X104/INDEX($O104:$X104,1,aux!$BA$1))^(1/($X$3-INDEX($O$3:$X$3,1,aux!$BA$1)))-1,"n.d.") -> n.d. | AK104: =IF(INDEX($O104:$X104,1,aux!$BA$1)>0,(X104-INDEX($O104:$X104,1,aux!$BA$1))/INDEX($O104:$X104,1,aux!$BA$1),"n.d.") -> n.d. | AM104: 0 | BO104: 0 | CC104: =+IF(ISNA(MATCH('5.1'!A104,AUX_2d_pais!$G$2:$G$40000,0)),0,1) -> 0
A105: 0260 | B105: Guiné | C105: 0 | D105: 0 | E105: 0 | F105: 0 | G105: 0 | H105: 0 | I105: 0 | J105: 0 | K105: 0 | L105: 0 | M105: 0 | N105: 0 | O105: 0 | P105: 0 | Q105: 0 | R105: 0 | S105: 0 | T105: 0 | U105: 0 | V105: 0 | W105: 0 | X105: 0 | Y105: 0 | Z105: 0 | AA105: 0 | AC105: =L105-INDEX($C105:$L105,1,aux!$BA$1) -> 0 | AD105: 0 | AE105: =+IF(INDEX($C105:$L105,1,aux!$BA$1)>0,(L105/INDEX($C105:$L105,1,aux!$BA$1))^(1/($L$3-INDEX($C$3:$L$3,1,aux!$BA$1)))-1,"n.d.") -> n.d. | AF105: =IF(INDEX($C105:$L105,1,aux!$BA$1)>0,(L105-INDEX($C105:$L105,1,aux!$BA$1))/INDEX($C105:$L105,1,aux!$BA$1),"n.d.") -> n.d. | AH105: =X105-INDEX($O105:$X105,1,aux!$BA$1) -> 0 | AI105: 0 | AJ105: =+IF(INDEX($O105:$X105,1,aux!$BA$1)>0,(X105/INDEX($O105:$X105,1,aux!$BA$1))^(1/($X$3-INDEX($O$3:$X$3,1,aux!$BA$1)))-1,"n.d.") -> n.d. | AK105: =IF(INDEX($O105:$X105,1,aux!$BA$1)>0,(X105-INDEX($O105:$X105,1,aux!$BA$1))/INDEX($O105:$X105,1,aux!$BA$1),"n.d.") -> n.d. | AM105: 0 | CC105: =+IF(ISNA(MATCH('5.1'!A105,AUX_2d_pais!$G$2:$G$40000,0)),0,1) -> 0
A106: 0310 | B106: Guiné Equatorial | C106: 0 | D106: 0 | E106: 0 | F106: 0 | G106: 0 | H106: 0 | I106: 0 | J106: 0 | K106: 0 | L106: 0 | M106: 0 | N106: 0 | O106: 0 | P106: 0 | Q106: 0 | R106: 0 | S106: 0 | T106: 0 | U106: 0 | V106: 0 | W106: 0 | X106: 0 | Y106: 0 | Z106: 0 | AA106: 0 | AC106: =L106-INDEX($C106:$L106,1,aux!$BA$1) -> 0 | AD106: 0 | AE106: =+IF(INDEX($C106:$L106,1,aux!$BA$1)>0,(L106/INDEX($C106:$L106,1,aux!$BA$1))^(1/($L$3-INDEX($C$3:$L$3,1,aux!$BA$1)))-1,"n.d.") -> n.d. | AF106: =IF(INDEX($C106:$L106,1,aux!$BA$1)>0,(L106-INDEX($C106:$L106,1,aux!$BA$1))/INDEX($C106:$L106,1,aux!$BA$1),"n.d.") -> n.d. | AH106: =X106-INDEX($O106:$X106,1,aux!$BA$1) -> 0 | AI106: 0 | AJ106: =+IF(INDEX($O106:$X106,1,aux!$BA$1)>0,(X106/INDEX($O106:$X106,1,aux!$BA$1))^(1/($X$3-INDEX($O$3:$X$3,1,aux!$BA$1)))-1,"n.d.") -> n.d. | AK106: =IF(INDEX($O106:$X106,1,aux!$BA$1)>0,(X106-INDEX($O106:$X106,1,aux!$BA$1))/INDEX($O106:$X106,1,aux!$BA$1),"n.d.") -> n.d. | AM106: 0 | CC106: =+IF(ISNA(MATCH('5.1'!A106,AUX_2d_pais!$G$2:$G$40000,0)),0,1) -> 0
A107: 0257 | B107: Guiné-Bissau | C107: 0 | D107: 0 | E107: 0 | F107: 0 | G107: 0 | H107: 0 | I107: 0 | J107: 0 | K107: 0 | L107: 0 | M107: 0 | N107: 0 | O107: 0 | P107: 0 | Q107: 0 | R107: 0 | S107: 0 | T107: 0 | U107: 0 | V107: 0 | W107: 0 | X107: 0 | Y107: 0 | Z107: 0 | AA107: 0 | AC107: =L107-INDEX($C107:$L107,1,aux!$BA$1) -> 0 | AD107: 0 | AE107: =+IF(INDEX($C107:$L107,1,aux!$BA$1)>0,(L107/INDEX($C107:$L107,1,aux!$BA$1))^(1/($L$3-INDEX($C$3:$L$3,1,aux!$BA$1)))-1,"n.d.") -> n.d. | AF107: =IF(INDEX($C107:$L107,1,aux!$BA$1)>0,(L107-INDEX($C107:$L107,1,aux!$BA$1))/INDEX($C107:$L107,1,aux!$BA$1),"n.d.") -> n.d. | AH107: =X107-INDEX($O107:$X107,1,aux!$BA$1) -> 0 | AI107: 0 | AJ107: =+IF(INDEX($O107:$X107,1,aux!$BA$1)>0,(X107/INDEX($O107:$X107,1,aux!$BA$1))^(1/($X$3-INDEX($O$3:$X$3,1,aux!$BA$1)))-1,"n.d.") -> n.d. | AK107: =IF(INDEX($O107:$X107,1,aux!$BA$1)>0,(X107-INDEX($O107:$X107,1,aux!$BA$1))/INDEX($O107:$X107,1,aux!$BA$1),"n.d.") -> n.d. | AM107: 0 | CC107: =+IF(ISNA(MATCH('5.1'!A107,AUX_2d_pais!$G$2:$G$40000,0)),0,1) -> 0
A108: 0452 | B108: Haiti | C108: 0 | D108: 0 | E108: 0 | F108: 0 | G108: 0 | H108: 0 | I108: 0 | J108: 0 | K108: 0 | L108: 0 | M108: 0 | N108: 0 | O108: 0 | P108: 0 | Q108: 0 | R108: 0 | S108: 0 | T108: 0 | U108: 0 | V108: 0 | W108: 0 | X108: 0 | Y108: 0 | Z108: 0 | AA108: 0 | AC108: =L108-INDEX($C108:$L108,1,aux!$BA$1) -> 0 | AD108: 0 | AE108: =+IF(INDEX($C108:$L108,1,aux!$BA$1)>0,(L108/INDEX($C108:$L108,1,aux!$BA$1))^(1/($L$3-INDEX($C$3:$L$3,1,aux!$BA$1)))-1,"n.d.") -> n.d. | AF108: =IF(INDEX($C108:$L108,1,aux!$BA$1)>0,(L108-INDEX($C108:$L108,1,aux!$BA$1))/INDEX($C108:$L108,1,aux!$BA$1),"n.d.") -> n.d. | AH108: =X108-INDEX($O108:$X108,1,aux!$BA$1) -> 0 | AI108: 0 | AJ108: =+IF(INDEX($O108:$X108,1,aux!$BA$1)>0,(X108/INDEX($O108:$X108,1,aux!$BA$1))^(1/($X$3-INDEX($O$3:$X$3,1,aux!$BA$1)))-1,"n.d.") -> n.d. | AK108: =IF(INDEX($O108:$X108,1,aux!$BA$1)>0,(X108-INDEX($O108:$X108,1,aux!$BA$1))/INDEX($O108:$X108,1,aux!$BA$1),"n.d.") -> n.d. | AM108: 0 | CC108: =+IF(ISNA(MATCH('5.1'!A108,AUX_2d_pais!$G$2:$G$40000,0)),0,1) -> 0
A109: 0835 | B109: Heard, Ilha e McDonald, Ilhas | C109: 0 | D109: 0 | E109: 0 | F109: 0 | G109: 0 | H109: 0 | I109: 0 | J109: 0 | K109: 0 | L109: 0 | M109: 0 | N109: 0 | O109: 0 | P109: 0 | Q109: 0 | R109: 0 | S109: 0 | T109: 0 | U109: 0 | V109: 0 | W109: 0 | X109: 0 | Y109: 0 | Z109: 0 | AA109: 0 | AC109: =L109-INDEX($C109:$L109,1,aux!$BA$1) -> 0 | AD109: 0 | AE109: =+IF(INDEX($C109:$L109,1,aux!$BA$1)>0,(L109/INDEX($C109:$L109,1,aux!$BA$1))^(1/($L$3-INDEX($C$3:$L$3,1,aux!$BA$1)))-1,"n.d.") -> n.d. | AF109: =IF(INDEX($C109:$L109,1,aux!$BA$1)>0,(L109-INDEX($C109:$L109,1,aux!$BA$1))/INDEX($C109:$L109,1,aux!$BA$1),"n.d.") -> n.d. | AH109: =X109-INDEX($O109:$X109,1,aux!$BA$1) -> 0 | AI109: 0 | AJ109: =+IF(INDEX($O109:$X109,1,aux!$BA$1)>0,(X109/INDEX($O109:$X109,1,aux!$BA$1))^(1/($X$3-INDEX($O$3:$X$3,1,aux!$BA$1)))-1,"n.d.") -> n.d. | AK109: =IF(INDEX($O109:$X109,1,aux!$BA$1)>0,(X109-INDEX($O109:$X109,1,aux!$BA$1))/INDEX($O109:$X109,1,aux!$BA$1),"n.d.") -> n.d. | AM109: 0 | BO109: 0 | CC109: =+IF(ISNA(MATCH('5.1'!A109,AUX_2d_pais!$G$2:$G$40000,0)),0,1) -> 0
A110: 0424 | B110: Honduras | C110: 0 | D110: 0 | E110: 0 | F110: 0 | G110: 0 | H110: 0 | I110: 0 | J110: 0 | K110: 0 | L110: 0 | M110: 0 | N110: 0 | O110: 0 | P110: 0 | Q110: 0 | R110: 0 | S110: 0 | T110: 0 | U110: 0 | V110: 0 | W110: 0 | X110: 0 | Y110: 0 | Z110: 0 | AA110: 0 | AC110: =L110-INDEX($C110:$L110,1,aux!$BA$1) -> 0 | AD110: 0 | AE110: =+IF(INDEX($C110:$L110,1,aux!$BA$1)>0,(L110/INDEX($C110:$L110,1,aux!$BA$1))^(1/($L$3-INDEX($C$3:$L$3,1,aux!$BA$1)))-1,"n.d.") -> n.d. | AF110: =IF(INDEX($C110:$L110,1,aux!$BA$1)>0,(L110-INDEX($C110:$L110,1,aux!$BA$1))/INDEX($C110:$L110,1,aux!$BA$1),"n.d.") -> n.d. | AH110: =X110-INDEX($O110:$X110,1,aux!$BA$1) -> 0 | AI110: 0 | AJ110: =+IF(INDEX($O110:$X110,1,aux!$BA$1)>0,(X110/INDEX($O110:$X110,1,aux!$BA$1))^(1/($X$3-INDEX($O$3:$X$3,1,aux!$BA$1)))-1,"n.d.") -> n.d. | AK110: =IF(INDEX($O110:$X110,1,aux!$BA$1)>0,(X110-INDEX($O110:$X110,1,aux!$BA$1))/INDEX($O110:$X110,1,aux!$BA$1),"n.d.") -> n.d. | AM110: 0 | CC110: =+IF(ISNA(MATCH('5.1'!A110,AUX_2d_pais!$G$2:$G$40000,0)),0,1) -> 0
A111: 0740 | B111: HongKong | C111: 0 | D111: 0 | E111: 0 | F111: 0 | G111: 0 | H111: 0 | I111: 0 | J111: 0 | K111: 0 | L111: 0 | M111: 0 | N111: 0 | O111: 0 | P111: 0 | Q111: 0 | R111: 0 | S111: 0 | T111: 0 | U111: 0 | V111: 0 | W111: 0 | X111: 0 | Y111: 0 | Z111: 0 | AA111: 0 | AC111: =L111-INDEX($C111:$L111,1,aux!$BA$1) -> 0 | AD111: 0 | AE111: =+IF(INDEX($C111:$L111,1,aux!$BA$1)>0,(L111/INDEX($C111:$L111,1,aux!$BA$1))^(1/($L$3-INDEX($C$3:$L$3,1,aux!$BA$1)))-1,"n.d.") -> n.d. | AF111: =IF(INDEX($C111:$L111,1,aux!$BA$1)>0,(L111-INDEX($C111:$L111,1,aux!$BA$1))/INDEX($C111:$L111,1,aux!$BA$1),"n.d.") -> n.d. | AH111: =X111-INDEX($O111:$X111,1,aux!$BA$1) -> 0 | AI111: 0 | AJ111: =+IF(INDEX($O111:$X111,1,aux!$BA$1)>0,(X111/INDEX($O111:$X111,1,aux!$BA$1))^(1/($X$3-INDEX($O$3:$X$3,1,aux!$BA$1)))-1,"n.d.") -> n.d. | AK111: =IF(INDEX($O111:$X111,1,aux!$BA$1)>0,(X111-INDEX($O111:$X111,1,aux!$BA$1))/INDEX($O111:$X111,1,aux!$BA$1),"n.d.") -> n.d. | AM111: 0 | CC111: =+IF(ISNA(MATCH('5.1'!A111,AUX_2d_pais!$G$2:$G$40000,0)),0,1) -> 0
A112: 0064 | B112: Hungria | C112: 12427.088 | D112: 8987.243 | E112: 12400.142 | F112: 13618.139 | G112: 11351.98 | H112: 11380.652 | I112: 23481.35 | J112: 21608.18 | K112: 18932.851 | L112: 19357.646 | M112: 15354.5271 | N112: 0.001647568595 | O112: 8209.786 | P112: 7154.742 | Q112: 8497.605 | R112: 6896.293 | S112: 8344.529 | T112: 7032.473 | U112: 7028.089 | V112: 9482.825 | W112: 10885.986 | X112: 13098.002 | Y112: 8663.033 | Z112: 0.001243526452 | AA112: -6691.4941 | AC112: =L112-INDEX($C112:$L112,1,aux!$BA$1) -> 6930.558 | AD112: 0.002206360148 | AE112: =+IF(INDEX($C112:$L112,1,aux!$BA$1)>0,(L112/INDEX($C112:$L112,1,aux!$BA$1))^(1/($L$3-INDEX($C$3:$L$3,1,aux!$BA$1)))-1,"n.d.") -> 0.05047813882 | AF112: =IF(INDEX($C112:$L112,1,aux!$BA$1)>0,(L112-INDEX($C112:$L112,1,aux!$BA$1))/INDEX($C112:$L112,1,aux!$BA$1),"n.d.") -> 0.5576976682 | AH112: =X112-INDEX($O112:$X112,1,aux!$BA$1) -> 4888.216 | AI112: 0.001377024205 | AJ112: =+IF(INDEX($O112:$X112,1,aux!$BA$1)>0,(X112/INDEX($O112:$X112,1,aux!$BA$1))^(1/($X$3-INDEX($O$3:$X$3,1,aux!$BA$1)))-1,"n.d.") -> 0.05327425373 | AK112: =IF(INDEX($O112:$X112,1,aux!$BA$1)>0,(X112-INDEX($O112:$X112,1,aux!$BA$1))/INDEX($O112:$X112,1,aux!$BA$1),"n.d.") -> 0.5954133275 | CC112: =+IF(ISNA(MATCH('5.1'!A112,AUX_2d_pais!$G$2:$G$40000,0)),0,1) -> 1
A113: 0653 | B113: Iémen | C113: 0 | D113: 0 | E113: 0 | F113: 0 | G113: 0 | H113: 0 | I113: 0 | J113: 0 | K113: 0 | L113: 0 | M113: 0 | N113: 0 | O113: 0 | P113: 0 | Q113: 0 | R113: 0 | S113: 0 | T113: 0 | U113: 0 | V113: 0 | W113: 0 | X113: 0 | Y113: 0 | Z113: 0 | AA113: 0 | AC113: =L113-INDEX($C113:$L113,1,aux!$BA$1) -> 0 | AD113: 0 | AE113: =+IF(INDEX($C113:$L113,1,aux!$BA$1)>0,(L113/INDEX($C113:$L113,1,aux!$BA$1))^(1/($L$3-INDEX($C$3:$L$3,1,aux!$BA$1)))-1,"n.d.") -> n.d. | AF113: =IF(INDEX($C113:$L113,1,aux!$BA$1)>0,(L113-INDEX($C113:$L113,1,aux!$BA$1))/INDEX($C113:$L113,1,aux!$BA$1),"n.d.") -> n.d. | AH113: =X113-INDEX($O113:$X113,1,aux!$BA$1) -> 0 | AI113: 0 | AJ113: =+IF(INDEX($O113:$X113,1,aux!$BA$1)>0,(X113/INDEX($O113:$X113,1,aux!$BA$1))^(1/($X$3-INDEX($O$3:$X$3,1,aux!$BA$1)))-1,"n.d.") -> n.d. | AK113: =IF(INDEX($O113:$X113,1,aux!$BA$1)>0,(X113-INDEX($O113:$X113,1,aux!$BA$1))/INDEX($O113:$X113,1,aux!$BA$1),"n.d.") -> n.d. | AM113: 0 | BO113: 0 | CC113: =+IF(ISNA(MATCH('5.1'!A113,AUX_2d_pais!$G$2:$G$40000,0)),0,1) -> 0
A114: 0664 | B114: Índia | C114: 0 | D114: 0 | E114: 0 | F114: 0 | G114: 0 | H114: 0 | I114: 0 | J114: 0 | K114: 0 | L114: 0 | M114: 0 | N114: 0 | O114: 0 | P114: 0 | Q114: 0 | R114: 0 | S114: 0 | T114: 0 | U114: 0 | V114: 0 | W114: 0 | X114: 0 | Y114: 0 | Z114: 0 | AA114: 0 | AC114: =L114-INDEX($C114:$L114,1,aux!$BA$1) -> 0 | AD114: 0 | AE114: =+IF(INDEX($C114:$L114,1,aux!$BA$1)>0,(L114/INDEX($C114:$L114,1,aux!$BA$1))^(1/($L$3-INDEX($C$3:$L$3,1,aux!$BA$1)))-1,"n.d.") -> n.d. | AF114: =IF(INDEX($C114:$L114,1,aux!$BA$1)>0,(L114-INDEX($C114:$L114,1,aux!$BA$1))/INDEX($C114:$L114,1,aux!$BA$1),"n.d.") -> n.d. | AH114: =X114-INDEX($O114:$X114,1,aux!$BA$1) -> 0 | AI114: 0 | AJ114: =+IF(INDEX($O114:$X114,1,aux!$BA$1)>0,(X114/INDEX($O114:$X114,1,aux!$BA$1))^(1/($X$3-INDEX($O$3:$X$3,1,aux!$BA$1)))-1,"n.d.") -> n.d. | AK114: =IF(INDEX($O114:$X114,1,aux!$BA$1)>0,(X114-INDEX($O114:$X114,1,aux!$BA$1))/INDEX($O114:$X114,1,aux!$BA$1),"n.d.") -> n.d. | AM114: 0 | CC114: =+IF(ISNA(MATCH('5.1'!A114,AUX_2d_pais!$G$2:$G$40000,0)),0,1) -> 0
A115: 0700 | B115: Indonésia | C115: 0 | D115: 0 | E115: 0 | F115: 0 | G115: 0 | H115: 0 | I115: 0 | J115: 0 | K115: 0 | L115: 0 | M115: 0 | N115: 0 | O115: 0 | P115: 0 | Q115: 0 | R115: 0 | S115: 0 | T115: 0 | U115: 0 | V115: 0 | W115: 0 | X115: 0 | Y115: 0 | Z115: 0 | AA115: 0 | AC115: =L115-INDEX($C115:$L115,1,aux!$BA$1) -> 0 | AD115: 0 | AE115: =+IF(INDEX($C115:$L115,1,aux!$BA$1)>0,(L115/INDEX($C115:$L115,1,aux!$BA$1))^(1/($L$3-INDEX($C$3:$L$3,1,aux!$BA$1)))-1,"n.d.") -> n.d. | AF115: =IF(INDEX($C115:$L115,1,aux!$BA$1)>0,(L115-INDEX($C115:$L115,1,aux!$BA$1))/INDEX($C115:$L115,1,aux!$BA$1),"n.d.") -> n.d. | AH115: =X115-INDEX($O115:$X115,1,aux!$BA$1) -> 0 | AI115: 0 | AJ115: =+IF(INDEX($O115:$X115,1,aux!$BA$1)>0,(X115/INDEX($O115:$X115,1,aux!$BA$1))^(1/($X$3-INDEX($O$3:$X$3,1,aux!$BA$1)))-1,"n.d.") -> n.d. | AK115: =IF(INDEX($O115:$X115,1,aux!$BA$1)>0,(X115-INDEX($O115:$X115,1,aux!$BA$1))/INDEX($O115:$X115,1,aux!$BA$1),"n.d.") -> n.d. | AM115: 0 | CC115: =+IF(ISNA(MATCH('5.1'!A115,AUX_2d_pais!$G$2:$G$40000,0)),0,1) -> 0
A116: 0616 | B116: Irão, República Islâmica do | C116: 0 | D116: 0 | E116: 0 | F116: 0 | G116: 0 | H116: 0 | I116: 0 | J116: 0 | K116: 0 | L116: 0 | M116: 0 | N116: 0 | O116: 0 | P116: 0 | Q116: 0 | R116: 0 | S116: 0 | T116: 0 | U116: 0 | V116: 0 | W116: 0 | X116: 0 | Y116: 0 | Z116: 0 | AA116: 0 | AC116: =L116-INDEX($C116:$L116,1,aux!$BA$1) -> 0 | AD116: 0 | AE116: =+IF(INDEX($C116:$L116,1,aux!$BA$1)>0,(L116/INDEX($C116:$L116,1,aux!$BA$1))^(1/($L$3-INDEX($C$3:$L$3,1,aux!$BA$1)))-1,"n.d.") -> n.d. | AF116: =IF(INDEX($C116:$L116,1,aux!$BA$1)>0,(L116-INDEX($C116:$L116,1,aux!$BA$1))/INDEX($C116:$L116,1,aux!$BA$1),"n.d.") -> n.d. | AH116: =X116-INDEX($O116:$X116,1,aux!$BA$1) -> 0 | AI116: 0 | AJ116: =+IF(INDEX($O116:$X116,1,aux!$BA$1)>0,(X116/INDEX($O116:$X116,1,aux!$BA$1))^(1/($X$3-INDEX($O$3:$X$3,1,aux!$BA$1)))-1,"n.d.") -> n.d. | AK116: =IF(INDEX($O116:$X116,1,aux!$BA$1)>0,(X116-INDEX($O116:$X116,1,aux!$BA$1))/INDEX($O116:$X116,1,aux!$BA$1),"n.d.") -> n.d. | AM116: 0 | CC116: =+IF(ISNA(MATCH('5.1'!A116,AUX_2d_pais!$G$2:$G$40000,0)),0,1) -> 0
A117: 0612 | B117: Iraque | C117: 0 | D117: 0 | E117: 0 | F117: 0 | G117: 0 | H117: 0 | I117: 0 | J117: 0 | K117: 0 | L117: 0 | M117: 0 | N117: 0 | O117: 0 | P117: 0 | Q117: 0 | R117: 0 | S117: 0 | T117: 0 | U117: 0 | V117: 0 | W117: 0 | X117: 0 | Y117: 0 | Z117: 0 | AA117: 0 | AC117: =L117-INDEX($C117:$L117,1,aux!$BA$1) -> 0 | AD117: 0 | AE117: =+IF(INDEX($C117:$L117,1,aux!$BA$1)>0,(L117/INDEX($C117:$L117,1,aux!$BA$1))^(1/($L$3-INDEX($C$3:$L$3,1,aux!$BA$1)))-1,"n.d.") -> n.d. | AF117: =IF(INDEX($C117:$L117,1,aux!$BA$1)>0,(L117-INDEX($C117:$L117,1,aux!$BA$1))/INDEX($C117:$L117,1,aux!$BA$1),"n.d.") -> n.d. | AH117: =X117-INDEX($O117:$X117,1,aux!$BA$1) -> 0 | AI117: 0 | AJ117: =+IF(INDEX($O117:$X117,1,aux!$BA$1)>0,(X117/INDEX($O117:$X117,1,aux!$BA$1))^(1/($X$3-INDEX($O$3:$X$3,1,aux!$BA$1)))-1,"n.d.") -> n.d. | AK117: =IF(INDEX($O117:$X117,1,aux!$BA$1)>0,(X117-INDEX($O117:$X117,1,aux!$BA$1))/INDEX($O117:$X117,1,aux!$BA$1),"n.d.") -> n.d. | AM117: 0 | CC117: =+IF(ISNA(MATCH('5.1'!A117,AUX_2d_pais!$G$2:$G$40000,0)),0,1) -> 0
A118: 0007 | B118: Irlanda | C118: 133159.544 | D118: 126815.766 | E118: 107807.146 | F118: 91309.951 | G118: 88500.032 | H118: 114940.3 | I118: 100809.263 | J118: 104018.768 | K118: 103703.524 | L118: 113071.322 | M118: 108413.5616 | N118: 0.01163297171 | O118: 15780.868 | P118: 15114.948 | Q118: 20898.586 | R118: 23682.156 | S118: 31167.524 | T118: 41860.836 | U118: 43321.643 | V118: 39861.743 | W118: 40023.813 | X118: 46180.327 | Y118: 31789.2444 | Z118: 0.004563155454 | AA118: -76624.3172 | AC118: =L118-INDEX($C118:$L118,1,aux!$BA$1) -> -20088.222 | AD118: -0.006395134775 | AE118: =+IF(INDEX($C118:$L118,1,aux!$BA$1)>0,(L118/INDEX($C118:$L118,1,aux!$BA$1))^(1/($L$3-INDEX($C$3:$L$3,1,aux!$BA$1)))-1,"n.d.") -> -0.01800583359 | AF118: =IF(INDEX($C118:$L118,1,aux!$BA$1)>0,(L118-INDEX($C118:$L118,1,aux!$BA$1))/INDEX($C118:$L118,1,aux!$BA$1),"n.d.") -> -0.1508582967 | AH118: =X118-INDEX($O118:$X118,1,aux!$BA$1) -> 30399.459 | AI118: 0.008563613161 | AJ118: =+IF(INDEX($O118:$X118,1,aux!$BA$1)>0,(X118/INDEX($O118:$X118,1,aux!$BA$1))^(1/($X$3-INDEX($O$3:$X$3,1,aux!$BA$1)))-1,"n.d.") -> 0.1267148361 | AK118: =IF(INDEX($O118:$X118,1,aux!$BA$1)>0,(X118-INDEX($O118:$X118,1,aux!$BA$1))/INDEX($O118:$X118,1,aux!$BA$1),"n.d.") -> 1.926348982 | CC118: =+IF(ISNA(MATCH('5.1'!A118,AUX_2d_pais!$G$2:$G$40000,0)),0,1) -> 1
A119: 0024 | B119: Islândia | C119: 16288.701 | D119: 11926.842 | E119: 15024.732 | F119: 12602.448 | G119: 13511.122 | H119: 7086.135 | I119: 6736.606 | J119: 5970.894 | K119: 7123.922 | L119: 15282.163 | M119: 11155.3565 | N119: 0.001196989977 | O119: 595.107 | P119: 331.098 | Q119: 1012.869 | R119: 992.084 | S119: 819.886 | T119: 990.251 | U119: 824.799 | V119: 689.334 | W119: 1415.804 | X119: 1619.825 | Y119: 929.1057 | Z119: 0.0001333675532 | AA119: -10226.2508 | AC119: =L119-INDEX($C119:$L119,1,aux!$BA$1) -> -1006.538 | AD119: -0.0003204338426 | AE119: =+IF(INDEX($C119:$L119,1,aux!$BA$1)>0,(L119/INDEX($C119:$L119,1,aux!$BA$1))^(1/($L$3-INDEX($C$3:$L$3,1,aux!$BA$1)))-1,"n.d.") -> -0.007062205256 | AF119: =IF(INDEX($C119:$L119,1,aux!$BA$1)>0,(L119-INDEX($C119:$L119,1,aux!$BA$1))/INDEX($C119:$L119,1,aux!$BA$1),"n.d.") -> -0.06179363229 | AH119: =X119-INDEX($O119:$X119,1,aux!$BA$1) -> 1024.718 | AI119: 0.0002886659447 | AJ119: =+IF(INDEX($O119:$X119,1,aux!$BA$1)>0,(X119/INDEX($O119:$X119,1,aux!$BA$1))^(1/($X$3-INDEX($O$3:$X$3,1,aux!$BA$1)))-1,"n.d.") -> 0.1176844957 | AK119: =IF(INDEX($O119:$X119,1,aux!$BA$1)>0,(X119-INDEX($O119:$X119,1,aux!$BA$1))/INDEX($O119:$X119,1,aux!$BA$1),"n.d.") -> 1.721905472 | CC119: =+IF(ISNA(MATCH('5.1'!A119,AUX_2d_pais!$G$2:$G$40000,0)),0,1) -> 1
A120: 0624 | B120: Israel | C120: 0 | D120: 0 | E120: 0 | F120: 0 | G120: 0 | H120: 0 | I120: 0 | J120: 0 | K120: 0 | L120: 0 | M120: 0 | N120: 0 | O120: 0 | P120: 0 | Q120: 0 | R120: 0 | S120: 0 | T120: 0 | U120: 0 | V120: 0 | W120: 0 | X120: 0 | Y120: 0 | Z120: 0 | AA120: 0 | AC120: =L120-INDEX($C120:$L120,1,aux!$BA$1) -> 0 | AD120: 0 | AE120: =+IF(INDEX($C120:$L120,1,aux!$BA$1)>0,(L120/INDEX($C120:$L120,1,aux!$BA$1))^(1/($L$3-INDEX($C$3:$L$3,1,aux!$BA$1)))-1,"n.d.") -> n.d. | AF120: =IF(INDEX($C120:$L120,1,aux!$BA$1)>0,(L120-INDEX($C120:$L120,1,aux!$BA$1))/INDEX($C120:$L120,1,aux!$BA$1),"n.d.") -> n.d. | AH120: =X120-INDEX($O120:$X120,1,aux!$BA$1) -> 0 | AI120: 0 | AJ120: =+IF(INDEX($O120:$X120,1,aux!$BA$1)>0,(X120/INDEX($O120:$X120,1,aux!$BA$1))^(1/($X$3-INDEX($O$3:$X$3,1,aux!$BA$1)))-1,"n.d.") -> n.d. | AK120: =IF(INDEX($O120:$X120,1,aux!$BA$1)>0,(X120-INDEX($O120:$X120,1,aux!$BA$1))/INDEX($O120:$X120,1,aux!$BA$1),"n.d.") -> n.d. | AM120: 0 | CC120: =+IF(ISNA(MATCH('5.1'!A120,AUX_2d_pais!$G$2:$G$40000,0)),0,1) -> 0
A121: 0005 | B121: Itália | C121: 255087.032 | D121: 274684.476 | E121: 285065.558 | F121: 250858.576 | G121: 264598.501 | H121: 300394.357 | I121: 316095.041 | J121: 323344.785 | K121: 356443.319 | L121: 394992.645 | M121: 302156.429 | N121: 0.03242193262 | O121: 413986.558 | P121: 445526.832 | Q121: 471571.437 | R121: 447617.382 | S121: 477109.65 | T121: 520525.826 | U121: 565797.4 | V121: 621190.818 | W121: 665258.824 | X121: 807175.733 | Y121: 543576.046 | Z121: 0.07802708262 | AA121: 241419.617 | AC121: =L121-INDEX($C121:$L121,1,aux!$BA$1) -> 139905.613 | AD121: 0.04453929526 | AE121: =+IF(INDEX($C121:$L121,1,aux!$BA$1)>0,(L121/INDEX($C121:$L121,1,aux!$BA$1))^(1/($L$3-INDEX($C$3:$L$3,1,aux!$BA$1)))-1,"n.d.") -> 0.04978429127 | AF121: =IF(INDEX($C121:$L121,1,aux!$BA$1)>0,(L121-INDEX($C121:$L121,1,aux!$BA$1))/INDEX($C121:$L121,1,aux!$BA$1),"n.d.") -> 0.5484622715 | AH121: =X121-INDEX($O121:$X121,1,aux!$BA$1) -> 393189.175 | AI121: 0.1107624972 | AJ121: =+IF(INDEX($O121:$X121,1,aux!$BA$1)>0,(X121/INDEX($O121:$X121,1,aux!$BA$1))^(1/($X$3-INDEX($O$3:$X$3,1,aux!$BA$1)))-1,"n.d.") -> 0.07701116701 | AK121: =IF(INDEX($O121:$X121,1,aux!$BA$1)>0,(X121-INDEX($O121:$X121,1,aux!$BA$1))/INDEX($O121:$X121,1,aux!$BA$1),"n.d.") -> 0.9497631442 | CC121: =+IF(ISNA(MATCH('5.1'!A121,AUX_2d_pais!$G$2:$G$40000,0)),0,1) -> 1
A122: 0464 | B122: Jamaica | C122: 0 | D122: 0 | E122: 0 | F122: 0 | G122: 0 | H122: 0 | I122: 0 | J122: 0 | K122: 0 | L122: 0 | M122: 0 | N122: 0 | O122: 0 | P122: 0 | Q122: 0 | R122: 0 | S122: 0 | T122: 0 | U122: 0 | V122: 0 | W122: 0 | X122: 0 | Y122: 0 | Z122: 0 | AA122: 0 | AC122: =L122-INDEX($C122:$L122,1,aux!$BA$1) -> 0 | AD122: 0 | AE122: =+IF(INDEX($C122:$L122,1,aux!$BA$1)>0,(L122/INDEX($C122:$L122,1,aux!$BA$1))^(1/($L$3-INDEX($C$3:$L$3,1,aux!$BA$1)))-1,"n.d.") -> n.d. | AF122: =IF(INDEX($C122:$L122,1,aux!$BA$1)>0,(L122-INDEX($C122:$L122,1,aux!$BA$1))/INDEX($C122:$L122,1,aux!$BA$1),"n.d.") -> n.d. | AH122: =X122-INDEX($O122:$X122,1,aux!$BA$1) -> 0 | AI122: 0 | AJ122: =+IF(INDEX($O122:$X122,1,aux!$BA$1)>0,(X122/INDEX($O122:$X122,1,aux!$BA$1))^(1/($X$3-INDEX($O$3:$X$3,1,aux!$BA$1)))-1,"n.d.") -> n.d. | AK122: =IF(INDEX($O122:$X122,1,aux!$BA$1)>0,(X122-INDEX($O122:$X122,1,aux!$BA$1))/INDEX($O122:$X122,1,aux!$BA$1),"n.d.") -> n.d. | AM122: 0 | CC122: =+IF(ISNA(MATCH('5.1'!A122,AUX_2d_pais!$G$2:$G$40000,0)),0,1) -> 0
A123: 0732 | B123: Japão | C123: 0 | D123: 0 | E123: 0 | F123: 0 | G123: 0 | H123: 0 | I123: 0 | J123: 0 | K123: 0 | L123: 0 | M123: 0 | N123: 0 | O123: 0 | P123: 0 | Q123: 0 | R123: 0 | S123: 0 | T123: 0 | U123: 0 | V123: 0 | W123: 0 | X123: 0 | Y123: 0 | Z123: 0 | AA123: 0 | AC123: =L123-INDEX($C123:$L123,1,aux!$BA$1) -> 0 | AD123: 0 | AE123: =+IF(INDEX($C123:$L123,1,aux!$BA$1)>0,(L123/INDEX($C123:$L123,1,aux!$BA$1))^(1/($L$3-INDEX($C$3:$L$3,1,aux!$BA$1)))-1,"n.d.") -> n.d. | AF123: =IF(INDEX($C123:$L123,1,aux!$BA$1)>0,(L123-INDEX($C123:$L123,1,aux!$BA$1))/INDEX($C123:$L123,1,aux!$BA$1),"n.d.") -> n.d. | AH123: =X123-INDEX($O123:$X123,1,aux!$BA$1) -> 0 | AI123: 0 | AJ123: =+IF(INDEX($O123:$X123,1,aux!$BA$1)>0,(X123/INDEX($O123:$X123,1,aux!$BA$1))^(1/($X$3-INDEX($O$3:$X$3,1,aux!$BA$1)))-1,"n.d.") -> n.d. | AK123: =IF(INDEX($O123:$X123,1,aux!$BA$1)>0,(X123-INDEX($O123:$X123,1,aux!$BA$1))/INDEX($O123:$X123,1,aux!$BA$1),"n.d.") -> n.d. | AM123: 0 | CC123: =+IF(ISNA(MATCH('5.1'!A123,AUX_2d_pais!$G$2:$G$40000,0)),0,1) -> 0
A124: 0338 | B124: Jibuti | C124: 0 | D124: 0 | E124: 0 | F124: 0 | G124: 0 | H124: 0 | I124: 0 | J124: 0 | K124: 0 | L124: 0 | M124: 0 | N124: 0 | O124: 0 | P124: 0 | Q124: 0 | R124: 0 | S124: 0 | T124: 0 | U124: 0 | V124: 0 | W124: 0 | X124: 0 | Y124: 0 | Z124: 0 | AA124: 0 | AC124: =L124-INDEX($C124:$L124,1,aux!$BA$1) -> 0 | AD124: 0 | AE124: =+IF(INDEX($C124:$L124,1,aux!$BA$1)>0,(L124/INDEX($C124:$L124,1,aux!$BA$1))^(1/($L$3-INDEX($C$3:$L$3,1,aux!$BA$1)))-1,"n.d.") -> n.d. | AF124: =IF(INDEX($C124:$L124,1,aux!$BA$1)>0,(L124-INDEX($C124:$L124,1,aux!$BA$1))/INDEX($C124:$L124,1,aux!$BA$1),"n.d.") -> n.d. | AH124: =X124-INDEX($O124:$X124,1,aux!$BA$1) -> 0 | AI124: 0 | AJ124: =+IF(INDEX($O124:$X124,1,aux!$BA$1)>0,(X124/INDEX($O124:$X124,1,aux!$BA$1))^(1/($X$3-INDEX($O$3:$X$3,1,aux!$BA$1)))-1,"n.d.") -> n.d. | AK124: =IF(INDEX($O124:$X124,1,aux!$BA$1)>0,(X124-INDEX($O124:$X124,1,aux!$BA$1))/INDEX($O124:$X124,1,aux!$BA$1),"n.d.") -> n.d. | AM124: 0 | BO124: 0 | CC124: =+IF(ISNA(MATCH('5.1'!A124,AUX_2d_pais!$G$2:$G$40000,0)),0,1) -> 0
A125: 0628 | B125: Jordânia | C125: 0 | D125: 0 | E125: 0 | F125: 0 | G125: 0 | H125: 0 | I125: 0 | J125: 0 | K125: 0 | L125: 0 | M125: 0 | N125: 0 | O125: 0 | P125: 0 | Q125: 0 | R125: 0 | S125: 0 | T125: 0 | U125: 0 | V125: 0 | W125: 0 | X125: 0 | Y125: 0 | Z125: 0 | AA125: 0 | AC125: =L125-INDEX($C125:$L125,1,aux!$BA$1) -> 0 | AD125: 0 | AE125: =+IF(INDEX($C125:$L125,1,aux!$BA$1)>0,(L125/INDEX($C125:$L125,1,aux!$BA$1))^(1/($L$3-INDEX($C$3:$L$3,1,aux!$BA$1)))-1,"n.d.") -> n.d. | AF125: =IF(INDEX($C125:$L125,1,aux!$BA$1)>0,(L125-INDEX($C125:$L125,1,aux!$BA$1))/INDEX($C125:$L125,1,aux!$BA$1),"n.d.") -> n.d. | AH125: =X125-INDEX($O125:$X125,1,aux!$BA$1) -> 0 | AI125: 0 | AJ125: =+IF(INDEX($O125:$X125,1,aux!$BA$1)>0,(X125/INDEX($O125:$X125,1,aux!$BA$1))^(1/($X$3-INDEX($O$3:$X$3,1,aux!$BA$1)))-1,"n.d.") -> n.d. | AK125: =IF(INDEX($O125:$X125,1,aux!$BA$1)>0,(X125-INDEX($O125:$X125,1,aux!$BA$1))/INDEX($O125:$X125,1,aux!$BA$1),"n.d.") -> n.d. | AM125: 0 | CC125: =+IF(ISNA(MATCH('5.1'!A125,AUX_2d_pais!$G$2:$G$40000,0)),0,1) -> 0
A126: 0812 | B126: Kiribati | C126: 0 | D126: 0 | E126: 0 | F126: 0 | G126: 0 | H126: 0 | I126: 0 | J126: 0 | K126: 0 | L126: 0 | M126: 0 | N126: 0 | O126: 0 | P126: 0 | Q126: 0 | R126: 0 | S126: 0 | T126: 0 | U126: 0 | V126: 0 | W126: 0 | X126: 0 | Y126: 0 | Z126: 0 | AA126: 0 | AC126: =L126-INDEX($C126:$L126,1,aux!$BA$1) -> 0 | AD126: 0 | AE126: =+IF(INDEX($C126:$L126,1,aux!$BA$1)>0,(L126/INDEX($C126:$L126,1,aux!$BA$1))^(1/($L$3-INDEX($C$3:$L$3,1,aux!$BA$1)))-1,"n.d.") -> n.d. | AF126: =IF(INDEX($C126:$L126,1,aux!$BA$1)>0,(L126-INDEX($C126:$L126,1,aux!$BA$1))/INDEX($C126:$L126,1,aux!$BA$1),"n.d.") -> n.d. | AH126: =X126-INDEX($O126:$X126,1,aux!$BA$1) -> 0 | AI126: 0 | AJ126: =+IF(INDEX($O126:$X126,1,aux!$BA$1)>0,(X126/INDEX($O126:$X126,1,aux!$BA$1))^(1/($X$3-INDEX($O$3:$X$3,1,aux!$BA$1)))-1,"n.d.") -> n.d. | AK126: =IF(INDEX($O126:$X126,1,aux!$BA$1)>0,(X126-INDEX($O126:$X126,1,aux!$BA$1))/INDEX($O126:$X126,1,aux!$BA$1),"n.d.") -> n.d. | AM126: 0 | BO126: 0 | CC126: =+IF(ISNA(MATCH('5.1'!A126,AUX_2d_pais!$G$2:$G$40000,0)),0,1) -> 0
A127: 0095 | B127: Kosovo | C127: 0 | D127: 0 | E127: 0 | F127: 0 | G127: 0 | H127: 0 | I127: 0 | J127: 0 | K127: 0 | L127: 0 | M127: 0 | N127: 0 | O127: 0 | P127: 0 | Q127: 11.61 | R127: 36.892 | S127: 68.929 | T127: 29.097 | U127: 55.407 | V127: 105.143 | W127: 66.437 | X127: 38.282 | Y127: 41.1797 | Z127: 5.911099059e-06 | AA127: 41.1797 | AC127: =L127-INDEX($C127:$L127,1,aux!$BA$1) -> 0 | AD127: 0 | AE127: =+IF(INDEX($C127:$L127,1,aux!$BA$1)>0,(L127/INDEX($C127:$L127,1,aux!$BA$1))^(1/($L$3-INDEX($C$3:$L$3,1,aux!$BA$1)))-1,"n.d.") -> n.d. | AF127: =IF(INDEX($C127:$L127,1,aux!$BA$1)>0,(L127-INDEX($C127:$L127,1,aux!$BA$1))/INDEX($C127:$L127,1,aux!$BA$1),"n.d.") -> n.d. | AH127: =X127-INDEX($O127:$X127,1,aux!$BA$1) -> 38.282 | AI127: 1.078414715e-05 | AJ127: =+IF(INDEX($O127:$X127,1,aux!$BA$1)>0,(X127/INDEX($O127:$X127,1,aux!$BA$1))^(1/($X$3-INDEX($O$3:$X$3,1,aux!$BA$1)))-1,"n.d.") -> n.d. | AK127: =IF(INDEX($O127:$X127,1,aux!$BA$1)>0,(X127-INDEX($O127:$X127,1,aux!$BA$1))/INDEX($O127:$X127,1,aux!$BA$1),"n.d.") -> n.d. | BO127: 411.797 | CC127: =+IF(ISNA(MATCH('5.1'!A127,AUX_2d_pais!$G$2:$G$40000,0)),0,1) -> 1
A128: 0636 | B128: Kuwait | C128: 0 | D128: 0 | E128: 0 | F128: 0 | G128: 0 | H128: 0 | I128: 0 | J128: 0 | K128: 0 | L128: 0 | M128: 0 | N128: 0 | O128: 0 | P128: 0 | Q128: 0 | R128: 0 | S128: 0 | T128: 0 | U128: 0 | V128: 0 | W128: 0 | X128: 0 | Y128: 0 | Z128: 0 | AA128: 0 | AC128: =L128-INDEX($C128:$L128,1,aux!$BA$1) -> 0 | AD128: 0 | AE128: =+IF(INDEX($C128:$L128,1,aux!$BA$1)>0,(L128/INDEX($C128:$L128,1,aux!$BA$1))^(1/($L$3-INDEX($C$3:$L$3,1,aux!$BA$1)))-1,"n.d.") -> n.d. | AF128: =IF(INDEX($C128:$L128,1,aux!$BA$1)>0,(L128-INDEX($C128:$L128,1,aux!$BA$1))/INDEX($C128:$L128,1,aux!$BA$1),"n.d.") -> n.d. | AH128: =X128-INDEX($O128:$X128,1,aux!$BA$1) -> 0 | AI128: 0 | AJ128: =+IF(INDEX($O128:$X128,1,aux!$BA$1)>0,(X128/INDEX($O128:$X128,1,aux!$BA$1))^(1/($X$3-INDEX($O$3:$X$3,1,aux!$BA$1)))-1,"n.d.") -> n.d. | AK128: =IF(INDEX($O128:$X128,1,aux!$BA$1)>0,(X128-INDEX($O128:$X128,1,aux!$BA$1))/INDEX($O128:$X128,1,aux!$BA$1),"n.d.") -> n.d. | AM128: 0 | CC128: =+IF(ISNA(MATCH('5.1'!A128,AUX_2d_pais!$G$2:$G$40000,0)),0,1) -> 0
A129: 0684 | B129: Laos, República Democrática Popular do | C129: 0 | D129: 0 | E129: 0 | F129: 0 | G129: 0 | H129: 0 | I129: 0 | J129: 0 | K129: 0 | L129: 0 | M129: 0 | N129: 0 | O129: 0 | P129: 0 | Q129: 0 | R129: 0 | S129: 0 | T129: 0 | U129: 0 | V129: 0 | W129: 0 | X129: 0 | Y129: 0 | Z129: 0 | AA129: 0 | AC129: =L129-INDEX($C129:$L129,1,aux!$BA$1) -> 0 | AD129: 0 | AE129: =+IF(INDEX($C129:$L129,1,aux!$BA$1)>0,(L129/INDEX($C129:$L129,1,aux!$BA$1))^(1/($L$3-INDEX($C$3:$L$3,1,aux!$BA$1)))-1,"n.d.") -> n.d. | AF129: =IF(INDEX($C129:$L129,1,aux!$BA$1)>0,(L129-INDEX($C129:$L129,1,aux!$BA$1))/INDEX($C129:$L129,1,aux!$BA$1),"n.d.") -> n.d. | AH129: =X129-INDEX($O129:$X129,1,aux!$BA$1) -> 0 | AI129: 0 | AJ129: =+IF(INDEX($O129:$X129,1,aux!$BA$1)>0,(X129/INDEX($O129:$X129,1,aux!$BA$1))^(1/($X$3-INDEX($O$3:$X$3,1,aux!$BA$1)))-1,"n.d.") -> n.d. | AK129: =IF(INDEX($O129:$X129,1,aux!$BA$1)>0,(X129-INDEX($O129:$X129,1,aux!$BA$1))/INDEX($O129:$X129,1,aux!$BA$1),"n.d.") -> n.d. | AM129: 0 | BO129: 0 | CC129: =+IF(ISNA(MATCH('5.1'!A129,AUX_2d_pais!$G$2:$G$40000,0)),0,1) -> 0
A130: 0395 | B130: Lesoto | C130: 0 | D130: 0 | E130: 0 | F130: 0 | G130: 0 | H130: 0 | I130: 0 | J130: 0 | K130: 0 | L130: 0 | M130: 0 | N130: 0 | O130: 0 | P130: 0 | Q130: 0 | R130: 0 | S130: 0 | T130: 0 | U130: 0 | V130: 0 | W130: 0 | X130: 0 | Y130: 0 | Z130: 0 | AA130: 0 | AC130: =L130-INDEX($C130:$L130,1,aux!$BA$1) -> 0 | AD130: 0 | AE130: =+IF(INDEX($C130:$L130,1,aux!$BA$1)>0,(L130/INDEX($C130:$L130,1,aux!$BA$1))^(1/($L$3-INDEX($C$3:$L$3,1,aux!$BA$1)))-1,"n.d.") -> n.d. | AF130: =IF(INDEX($C130:$L130,1,aux!$BA$1)>0,(L130-INDEX($C130:$L130,1,aux!$BA$1))/INDEX($C130:$L130,1,aux!$BA$1),"n.d.") -> n.d. | AH130: =X130-INDEX($O130:$X130,1,aux!$BA$1) -> 0 | AI130: 0 | AJ130: =+IF(INDEX($O130:$X130,1,aux!$BA$1)>0,(X130/INDEX($O130:$X130,1,aux!$BA$1))^(1/($X$3-INDEX($O$3:$X$3,1,aux!$BA$1)))-1,"n.d.") -> n.d. | AK130: =IF(INDEX($O130:$X130,1,aux!$BA$1)>0,(X130-INDEX($O130:$X130,1,aux!$BA$1))/INDEX($O130:$X130,1,aux!$BA$1),"n.d.") -> n.d. | AM130: 0 | BO130: 0 | CC130: =+IF(ISNA(MATCH('5.1'!A130,AUX_2d_pais!$G$2:$G$40000,0)),0,1) -> 0
A131: 0054 | B131: Letónia | C131: 2993.544 | D131: 3033.64 | E131: 1147.851 | F131: 5348.344 | G131: 744.121 | H131: 2622.235 | I131: 9206.806 | J131: 7297.241 | K131: 4980.937 | L131: 2163.403 | M131: 3953.8122 | N131: 0.0004242512171 | O131: 787.456 | P131: 625.944 | Q131: 5543.417 | R131: 7038.984 | S131: 7829.025 | T131: 8055.804 | U131: 9208.806 | V131: 8530.357 | W131: 8687.131 | X131: 8810.877 | Y131: 6511.7801 | Z131: 0.0009347269947 | AA131: 2557.9679 | AC131: =L131-INDEX($C131:$L131,1,aux!$BA$1) -> -830.141 | AD131: -0.0002642774247 | AE131: =+IF(INDEX($C131:$L131,1,aux!$BA$1)>0,(L131/INDEX($C131:$L131,1,aux!$BA$1))^(1/($L$3-INDEX($C$3:$L$3,1,aux!$BA$1)))-1,"n.d.") -> -0.03544282544 | AF131: =IF(INDEX($C131:$L131,1,aux!$BA$1)>0,(L131-INDEX($C131:$L131,1,aux!$BA$1))/INDEX($C131:$L131,1,aux!$BA$1),"n.d.") -> -0.2773104387 | AH131: =X131-INDEX($O131:$X131,1,aux!$BA$1) -> 8023.421 | AI131: 0.002260220278 | AJ131: =+IF(INDEX($O131:$X131,1,aux!$BA$1)>0,(X131/INDEX($O131:$X131,1,aux!$BA$1))^(1/($X$3-INDEX($O$3:$X$3,1,aux!$BA$1)))-1,"n.d.") -> 0.3077735156 | AK131: =IF(INDEX($O131:$X131,1,aux!$BA$1)>0,(X131-INDEX($O131:$X131,1,aux!$BA$1))/INDEX($O131:$X131,1,aux!$BA$1),"n.d.") -> 10.1890404 | CC131: =+IF(ISNA(MATCH('5.1'!A131,AUX_2d_pais!$G$2:$G$40000,0)),0,1) -> 1
A132: 0604 | B132: Líbano | C132: 0 | D132: 0 | E132: 0 | F132: 0 | G132: 0 | H132: 0 | I132: 0 | J132: 0 | K132: 0 | L132: 0 | M132: 0 | N132: 0 | O132: 0 | P132: 0 | Q132: 0 | R132: 0 | S132: 0 | T132: 0 | U132: 0 | V132: 0 | W132: 0 | X132: 0 | Y132: 0 | Z132: 0 | AA132: 0 | AC132: =L132-INDEX($C132:$L132,1,aux!$BA$1) -> 0 | AD132: 0 | AE132: =+IF(INDEX($C132:$L132,1,aux!$BA$1)>0,(L132/INDEX($C132:$L132,1,aux!$BA$1))^(1/($L$3-INDEX($C$3:$L$3,1,aux!$BA$1)))-1,"n.d.") -> n.d. | AF132: =IF(INDEX($C132:$L132,1,aux!$BA$1)>0,(L132-INDEX($C132:$L132,1,aux!$BA$1))/INDEX($C132:$L132,1,aux!$BA$1),"n.d.") -> n.d. | AH132: =X132-INDEX($O132:$X132,1,aux!$BA$1) -> 0 | AI132: 0 | AJ132: =+IF(INDEX($O132:$X132,1,aux!$BA$1)>0,(X132/INDEX($O132:$X132,1,aux!$BA$1))^(1/($X$3-INDEX($O$3:$X$3,1,aux!$BA$1)))-1,"n.d.") -> n.d. | AK132: =IF(INDEX($O132:$X132,1,aux!$BA$1)>0,(X132-INDEX($O132:$X132,1,aux!$BA$1))/INDEX($O132:$X132,1,aux!$BA$1),"n.d.") -> n.d. | AM132: =SUM(A132:AA132) -> 0 | CC132: =+IF(ISNA(MATCH('5.1'!A132,AUX_2d_pais!$G$2:$G$40000,0)),0,1) -> 0
A133: 0268 | B133: Libéria | C133: 0 | D133: 0 | E133: 0 | F133: 0 | G133: 0 | H133: 0 | I133: 0 | J133: 0 | K133: 0 | L133: 0 | M133: 0 | N133: 0 | O133: 0 | P133: 0 | Q133: 0 | R133: 0 | S133: 0 | T133: 0 | U133: 0 | V133: 0 | W133: 0 | X133: 0 | Y133: 0 | Z133: 0 | AA133: 0 | AC133: =L133-INDEX($C133:$L133,1,aux!$BA$1) -> 0 | AD133: 0 | AE133: =+IF(INDEX($C133:$L133,1,aux!$BA$1)>0,(L133/INDEX($C133:$L133,1,aux!$BA$1))^(1/($L$3-INDEX($C$3:$L$3,1,aux!$BA$1)))-1,"n.d.") -> n.d. | AF133: =IF(INDEX($C133:$L133,1,aux!$BA$1)>0,(L133-INDEX($C133:$L133,1,aux!$BA$1))/INDEX($C133:$L133,1,aux!$BA$1),"n.d.") -> n.d. | AH133: =X133-INDEX($O133:$X133,1,aux!$BA$1) -> 0 | AI133: 0 | AJ133: =+IF(INDEX($O133:$X133,1,aux!$BA$1)>0,(X133/INDEX($O133:$X133,1,aux!$BA$1))^(1/($X$3-INDEX($O$3:$X$3,1,aux!$BA$1)))-1,"n.d.") -> n.d. | AK133: =IF(INDEX($O133:$X133,1,aux!$BA$1)>0,(X133-INDEX($O133:$X133,1,aux!$BA$1))/INDEX($O133:$X133,1,aux!$BA$1),"n.d.") -> n.d. | AM133: 0 | CC133: =+IF(ISNA(MATCH('5.1'!A133,AUX_2d_pais!$G$2:$G$40000,0)),0,1) -> 0
A134: 0216 | B134: Líbia, Jamahira Árabe da | C134: 0 | D134: 0 | E134: 0 | F134: 0 | G134: 0 | H134: 0 | I134: 0 | J134: 0 | K134: 0 | L134: 0 | M134: 0 | N134: 0 | O134: 0 | P134: 0 | Q134: 0 | R134: 0 | S134: 0 | T134: 0 | U134: 0 | V134: 0 | W134: 0 | X134: 0 | Y134: 0 | Z134: 0 | AA134: 0 | AC134: =L134-INDEX($C134:$L134,1,aux!$BA$1) -> 0 | AD134: 0 | AE134: =+IF(INDEX($C134:$L134,1,aux!$BA$1)>0,(L134/INDEX($C134:$L134,1,aux!$BA$1))^(1/($L$3-INDEX($C$3:$L$3,1,aux!$BA$1)))-1,"n.d.") -> n.d. | AF134: =IF(INDEX($C134:$L134,1,aux!$BA$1)>0,(L134-INDEX($C134:$L134,1,aux!$BA$1))/INDEX($C134:$L134,1,aux!$BA$1),"n.d.") -> n.d. | AH134: =X134-INDEX($O134:$X134,1,aux!$BA$1) -> 0 | AI134: 0 | AJ134: =+IF(INDEX($O134:$X134,1,aux!$BA$1)>0,(X134/INDEX($O134:$X134,1,aux!$BA$1))^(1/($X$3-INDEX($O$3:$X$3,1,aux!$BA$1)))-1,"n.d.") -> n.d. | AK134: =IF(INDEX($O134:$X134,1,aux!$BA$1)>0,(X134-INDEX($O134:$X134,1,aux!$BA$1))/INDEX($O134:$X134,1,aux!$BA$1),"n.d.") -> n.d. | AM134: 0 | CC134: =+IF(ISNA(MATCH('5.1'!A134,AUX_2d_pais!$G$2:$G$40000,0)),0,1) -> 0
A135: 0037 | B135: Liechtenstein | C135: 1.131 | D135: 27.166 | E135: 0.396 | F135: 0 | G135: 0 | H135: 0.07 | I135: 0 | J135: 0 | K135: 2.989 | L135: 0 | M135: 3.1752 | N135: 3.407047165e-07 | O135: 9.105 | P135: 27.491 | Q135: 90.335 | R135: 111.121 | S135: 183.897 | T135: 245.516 | U135: 196.364 | V135: 232.062 | W135: 78.655 | X135: 102.538 | Y135: 127.7084 | Z135: 1.83317752e-05 | AA135: 124.5332 | AC135: =L135-INDEX($C135:$L135,1,aux!$BA$1) -> -1.131 | AD135: -3.600566257e-07 | AE135: =+IF(INDEX($C135:$L135,1,aux!$BA$1)>0,(L135/INDEX($C135:$L135,1,aux!$BA$1))^(1/($L$3-INDEX($C$3:$L$3,1,aux!$BA$1)))-1,"n.d.") -> -1 | AF135: =IF(INDEX($C135:$L135,1,aux!$BA$1)>0,(L135-INDEX($C135:$L135,1,aux!$BA$1))/INDEX($C135:$L135,1,aux!$BA$1),"n.d.") -> -1 | AH135: =X135-INDEX($O135:$X135,1,aux!$BA$1) -> 93.433 | AI135: 2.632033907e-05 | AJ135: =+IF(INDEX($O135:$X135,1,aux!$BA$1)>0,(X135/INDEX($O135:$X135,1,aux!$BA$1))^(1/($X$3-INDEX($O$3:$X$3,1,aux!$BA$1)))-1,"n.d.") -> 0.3087147223 | AK135: =IF(INDEX($O135:$X135,1,aux!$BA$1)>0,(X135-INDEX($O135:$X135,1,aux!$BA$1))/INDEX($O135:$X135,1,aux!$BA$1),"n.d.") -> 10.26172433 | CC135: =+IF(ISNA(MATCH('5.1'!A135,AUX_2d_pais!$G$2:$G$40000,0)),0,1) -> 1
A136: 0055 | B136: Lituânia | C136: 8471.692 | D136: 1368.632 | E136: 7864.492 | F136: 5413.339 | G136: 4853.669 | H136: 7320.36 | I136: 8821.275 | J136: 12524.044 | K136: 14517.072 | L136: 11433.028 | M136: 8258.7603 | N136: 0.0008861799529 | O136: 2879.626 | P136: 2463.384 | Q136: 5540.464 | R136: 5962.034 | S136: 7329.323 | T136: 6761.835 | U136: 6249.03 | V136: 6822.62 | W136: 9657.658 | X136: 11468.797 | Y136: 6513.4771 | Z136: 0.0009349705888 | AA136: -1745.2832 | AC136: =L136-INDEX($C136:$L136,1,aux!$BA$1) -> 2961.336 | AD136: 0.0009427485834 | AE136: =+IF(INDEX($C136:$L136,1,aux!$BA$1)>0,(L136/INDEX($C136:$L136,1,aux!$BA$1))^(1/($L$3-INDEX($C$3:$L$3,1,aux!$BA$1)))-1,"n.d.") -> 0.03386939363 | AF136: =IF(INDEX($C136:$L136,1,aux!$BA$1)>0,(L136-INDEX($C136:$L136,1,aux!$BA$1))/INDEX($C136:$L136,1,aux!$BA$1),"n.d.") -> 0.3495566175 | AH136: =X136-INDEX($O136:$X136,1,aux!$BA$1) -> 8589.171 | AI136: 0.002419593645 | AJ136: =+IF(INDEX($O136:$X136,1,aux!$BA$1)>0,(X136/INDEX($O136:$X136,1,aux!$BA$1))^(1/($X$3-INDEX($O$3:$X$3,1,aux!$BA$1)))-1,"n.d.") -> 0.1659686256 | AK136: =IF(INDEX($O136:$X136,1,aux!$BA$1)>0,(X136-INDEX($O136:$X136,1,aux!$BA$1))/INDEX($O136:$X136,1,aux!$BA$1),"n.d.") -> 2.982738383 | CC136: =+IF(ISNA(MATCH('5.1'!A136,AUX_2d_pais!$G$2:$G$40000,0)),0,1) -> 1
A137: 0018 | B137: Luxemburgo | C137: 5448.671 | D137: 2345.737 | E137: 3526.647 | F137: 4948.442 | G137: 5337.878 | H137: 7718.976 | I137: 5751.049 | J137: 8160.844 | K137: 6410.48 | L137: 6793.376 | M137: 5644.21 | N137: 0.0006056339656 | O137: 29011.608 | P137: 30274.875 | Q137: 31454.795 | R137: 31766.896 | S137: 37267.223 | T137: 38905.694 | U137: 40626.276 | V137: 41650.884 | W137: 44615.187 | X137: 46327.114 | Y137: 37190.0552 | Z137: 0.005338409466 | AA137: 31545.8452 | AC137: =L137-INDEX($C137:$L137,1,aux!$BA$1) -> 1344.705 | AD137: 0.000428090137 | AE137: =+IF(INDEX($C137:$L137,1,aux!$BA$1)>0,(L137/INDEX($C137:$L137,1,aux!$BA$1))^(1/($L$3-INDEX($C$3:$L$3,1,aux!$BA$1)))-1,"n.d.") -> 0.02481127851 | AF137: =IF(INDEX($C137:$L137,1,aux!$BA$1)>0,(L137-INDEX($C137:$L137,1,aux!$BA$1))/INDEX($C137:$L137,1,aux!$BA$1),"n.d.") -> 0.2467950441 | AH137: =X137-INDEX($O137:$X137,1,aux!$BA$1) -> 17315.506 | AI137: 0.004877826775 | AJ137: =+IF(INDEX($O137:$X137,1,aux!$BA$1)>0,(X137/INDEX($O137:$X137,1,aux!$BA$1))^(1/($X$3-INDEX($O$3:$X$3,1,aux!$BA$1)))-1,"n.d.") -> 0.05337941523 | AK137: =IF(INDEX($O137:$X137,1,aux!$BA$1)>0,(X137-INDEX($O137:$X137,1,aux!$BA$1))/INDEX($O137:$X137,1,aux!$BA$1),"n.d.") -> 0.5968475101 | CC137: =+IF(ISNA(MATCH('5.1'!A137,AUX_2d_pais!$G$2:$G$40000,0)),0,1) -> 1
A138: 0743 | B138: Macau | C138: 0 | D138: 0 | E138: 0 | F138: 0 | G138: 0 | H138: 0 | I138: 0 | J138: 0 | K138: 0 | L138: 0 | M138: 0 | N138: 0 | O138: 0 | P138: 0 | Q138: 0 | R138: 0 | S138: 0 | T138: 0 | U138: 0 | V138: 0 | W138: 0 | X138: 0 | Y138: 0 | Z138: 0 | AA138: 0 | AC138: =L138-INDEX($C138:$L138,1,aux!$BA$1) -> 0 | AD138: 0 | AE138: =+IF(INDEX($C138:$L138,1,aux!$BA$1)>0,(L138/INDEX($C138:$L138,1,aux!$BA$1))^(1/($L$3-INDEX($C$3:$L$3,1,aux!$BA$1)))-1,"n.d.") -> n.d. | AF138: =IF(INDEX($C138:$L138,1,aux!$BA$1)>0,(L138-INDEX($C138:$L138,1,aux!$BA$1))/INDEX($C138:$L138,1,aux!$BA$1),"n.d.") -> n.d. | AH138: =X138-INDEX($O138:$X138,1,aux!$BA$1) -> 0 | AI138: 0 | AJ138: =+IF(INDEX($O138:$X138,1,aux!$BA$1)>0,(X138/INDEX($O138:$X138,1,aux!$BA$1))^(1/($X$3-INDEX($O$3:$X$3,1,aux!$BA$1)))-1,"n.d.") -> n.d. | AK138: =IF(INDEX($O138:$X138,1,aux!$BA$1)>0,(X138-INDEX($O138:$X138,1,aux!$BA$1))/INDEX($O138:$X138,1,aux!$BA$1),"n.d.") -> n.d. | AM138: 0 | CC138: =+IF(ISNA(MATCH('5.1'!A138,AUX_2d_pais!$G$2:$G$40000,0)),0,1) -> 0
A139: 0096 | B139: Macedónia, Antiga República jugoslava da | C139: 2.098 | D139: 37.199 | E139: 2286.397 | F139: 2003.853 | G139: 3093.72 | H139: 1794.336 | I139: 2409.884 | J139: 1661.689 | K139: 2364.444 | L139: 3985.193 | M139: 1963.8813 | N139: 0.0002107280239 | O139: 135.111 | P139: 313.213 | Q139: 477.222 | R139: 332.754 | S139: 544.639 | T139: 344.794 | U139: 385.832 | V139: 629.204 | W139: 409.267 | X139: 584.14 | Y139: 415.6176 | Z139: 5.965941482e-05 | AA139: -1548.2637 | AC139: =L139-INDEX($C139:$L139,1,aux!$BA$1) -> 3983.095 | AD139: 0.001268028069 | AE139: =+IF(INDEX($C139:$L139,1,aux!$BA$1)>0,(L139/INDEX($C139:$L139,1,aux!$BA$1))^(1/($L$3-INDEX($C$3:$L$3,1,aux!$BA$1)))-1,"n.d.") -> 1.313629238 | AF139: =IF(INDEX($C139:$L139,1,aux!$BA$1)>0,(L139-INDEX($C139:$L139,1,aux!$BA$1))/INDEX($C139:$L139,1,aux!$BA$1),"n.d.") -> 1898.520019 | AH139: =X139-INDEX($O139:$X139,1,aux!$BA$1) -> 449.029 | AI139: 0.0001264927331 | AJ139: =+IF(INDEX($O139:$X139,1,aux!$BA$1)>0,(X139/INDEX($O139:$X139,1,aux!$BA$1))^(1/($X$3-INDEX($O$3:$X$3,1,aux!$BA$1)))-1,"n.d.") -> 0.1766501643 | AK139: =IF(INDEX($O139:$X139,1,aux!$BA$1)>0,(X139-INDEX($O139:$X139,1,aux!$BA$1))/INDEX($O139:$X139,1,aux!$BA$1),"n.d.") -> 3.323408161 | CC139: =+IF(ISNA(MATCH('5.1'!A139,AUX_2d_pais!$G$2:$G$40000,0)),0,1) -> 1
A140: 0370 | B140: Madagáscar | C140: 0 | D140: 0 | E140: 0 | F140: 0 | G140: 0 | H140: 0 | I140: 0 | J140: 0 | K140: 0 | L140: 0 | M140: 0 | N140: 0 | O140: 0 | P140: 0 | Q140: 0 | R140: 0 | S140: 0 | T140: 0 | U140: 0 | V140: 0 | W140: 0 | X140: 0 | Y140: 0 | Z140: 0 | AA140: 0 | AC140: =L140-INDEX($C140:$L140,1,aux!$BA$1) -> 0 | AD140: 0 | AE140: =+IF(INDEX($C140:$L140,1,aux!$BA$1)>0,(L140/INDEX($C140:$L140,1,aux!$BA$1))^(1/($L$3-INDEX($C$3:$L$3,1,aux!$BA$1)))-1,"n.d.") -> n.d. | AF140: =IF(INDEX($C140:$L140,1,aux!$BA$1)>0,(L140-INDEX($C140:$L140,1,aux!$BA$1))/INDEX($C140:$L140,1,aux!$BA$1),"n.d.") -> n.d. | AH140: =X140-INDEX($O140:$X140,1,aux!$BA$1) -> 0 | AI140: 0 | AJ140: =+IF(INDEX($O140:$X140,1,aux!$BA$1)>0,(X140/INDEX($O140:$X140,1,aux!$BA$1))^(1/($X$3-INDEX($O$3:$X$3,1,aux!$BA$1)))-1,"n.d.") -> n.d. | AK140: =IF(INDEX($O140:$X140,1,aux!$BA$1)>0,(X140-INDEX($O140:$X140,1,aux!$BA$1))/INDEX($O140:$X140,1,aux!$BA$1),"n.d.") -> n.d. | AM140: 0 | CC140: =+IF(ISNA(MATCH('5.1'!A140,AUX_2d_pais!$G$2:$G$40000,0)),0,1) -> 0
A141: 0701 | B141: Malásia | C141: 0 | D141: 0 | E141: 0 | F141: 0 | G141: 0 | H141: 0 | I141: 0 | J141: 0 | K141: 0 | L141: 0 | M141: 0 | N141: 0 | O141: 0 | P141: 0 | Q141: 0 | R141: 0 | S141: 0 | T141: 0 | U141: 0 | V141: 0 | W141: 0 | X141: 0 | Y141: 0 | Z141: 0 | AA141: 0 | AC141: =L141-INDEX($C141:$L141,1,aux!$BA$1) -> 0 | AD141: 0 | AE141: =+IF(INDEX($C141:$L141,1,aux!$BA$1)>0,(L141/INDEX($C141:$L141,1,aux!$BA$1))^(1/($L$3-INDEX($C$3:$L$3,1,aux!$BA$1)))-1,"n.d.") -> n.d. | AF141: =IF(INDEX($C141:$L141,1,aux!$BA$1)>0,(L141-INDEX($C141:$L141,1,aux!$BA$1))/INDEX($C141:$L141,1,aux!$BA$1),"n.d.") -> n.d. | AH141: =X141-INDEX($O141:$X141,1,aux!$BA$1) -> 0 | AI141: 0 | AJ141: =+IF(INDEX($O141:$X141,1,aux!$BA$1)>0,(X141/INDEX($O141:$X141,1,aux!$BA$1))^(1/($X$3-INDEX($O$3:$X$3,1,aux!$BA$1)))-1,"n.d.") -> n.d. | AK141: =IF(INDEX($O141:$X141,1,aux!$BA$1)>0,(X141-INDEX($O141:$X141,1,aux!$BA$1))/INDEX($O141:$X141,1,aux!$BA$1),"n.d.") -> n.d. | AM141: 0 | CC141: =+IF(ISNA(MATCH('5.1'!A141,AUX_2d_pais!$G$2:$G$40000,0)),0,1) -> 0
A142: 0386 | B142: Malavi | C142: 0 | D142: 0 | E142: 0 | F142: 0 | G142: 0 | H142: 0 | I142: 0 | J142: 0 | K142: 0 | L142: 0 | M142: 0 | N142: 0 | O142: 0 | P142: 0 | Q142: 0 | R142: 0 | S142: 0 | T142: 0 | U142: 0 | V142: 0 | W142: 0 | X142: 0 | Y142: 0 | Z142: 0 | AA142: 0 | AC142: =L142-INDEX($C142:$L142,1,aux!$BA$1) -> 0 | AD142: 0 | AE142: =+IF(INDEX($C142:$L142,1,aux!$BA$1)>0,(L142/INDEX($C142:$L142,1,aux!$BA$1))^(1/($L$3-INDEX($C$3:$L$3,1,aux!$BA$1)))-1,"n.d.") -> n.d. | AF142: =IF(INDEX($C142:$L142,1,aux!$BA$1)>0,(L142-INDEX($C142:$L142,1,aux!$BA$1))/INDEX($C142:$L142,1,aux!$BA$1),"n.d.") -> n.d. | AH142: =X142-INDEX($O142:$X142,1,aux!$BA$1) -> 0 | AI142: 0 | AJ142: =+IF(INDEX($O142:$X142,1,aux!$BA$1)>0,(X142/INDEX($O142:$X142,1,aux!$BA$1))^(1/($X$3-INDEX($O$3:$X$3,1,aux!$BA$1)))-1,"n.d.") -> n.d. | AK142: =IF(INDEX($O142:$X142,1,aux!$BA$1)>0,(X142-INDEX($O142:$X142,1,aux!$BA$1))/INDEX($O142:$X142,1,aux!$BA$1),"n.d.") -> n.d. | AM142: 0 | CC142: =+IF(ISNA(MATCH('5.1'!A142,AUX_2d_pais!$G$2:$G$40000,0)),0,1) -> 0
A143: 0667 | B143: Maldivas | C143: 0 | D143: 0 | E143: 0 | F143: 0 | G143: 0 | H143: 0 | I143: 0 | J143: 0 | K143: 0 | L143: 0 | M143: 0 | N143: 0 | O143: 0 | P143: 0 | Q143: 0 | R143: 0 | S143: 0 | T143: 0 | U143: 0 | V143: 0 | W143: 0 | X143: 0 | Y143: 0 | Z143: 0 | AA143: 0 | AC143: =L143-INDEX($C143:$L143,1,aux!$BA$1) -> 0 | AD143: 0 | AE143: =+IF(INDEX($C143:$L143,1,aux!$BA$1)>0,(L143/INDEX($C143:$L143,1,aux!$BA$1))^(1/($L$3-INDEX($C$3:$L$3,1,aux!$BA$1)))-1,"n.d.") -> n.d. | AF143: =IF(INDEX($C143:$L143,1,aux!$BA$1)>0,(L143-INDEX($C143:$L143,1,aux!$BA$1))/INDEX($C143:$L143,1,aux!$BA$1),"n.d.") -> n.d. | AH143: =X143-INDEX($O143:$X143,1,aux!$BA$1) -> 0 | AI143: 0 | AJ143: =+IF(INDEX($O143:$X143,1,aux!$BA$1)>0,(X143/INDEX($O143:$X143,1,aux!$BA$1))^(1/($X$3-INDEX($O$3:$X$3,1,aux!$BA$1)))-1,"n.d.") -> n.d. | AK143: =IF(INDEX($O143:$X143,1,aux!$BA$1)>0,(X143-INDEX($O143:$X143,1,aux!$BA$1))/INDEX($O143:$X143,1,aux!$BA$1),"n.d.") -> n.d. | AM143: 0 | CC143: =+IF(ISNA(MATCH('5.1'!A143,AUX_2d_pais!$G$2:$G$40000,0)),0,1) -> 0
A144: 0232 | B144: Mali | C144: 0 | D144: 0 | E144: 0 | F144: 0 | G144: 0 | H144: 0 | I144: 0 | J144: 0 | K144: 0 | L144: 0 | M144: 0 | N144: 0 | O144: 0 | P144: 0 | Q144: 0 | R144: 0 | S144: 0 | T144: 0 | U144: 0 | V144: 0 | W144: 0 | X144: 0 | Y144: 0 | Z144: 0 | AA144: 0 | AC144: =L144-INDEX($C144:$L144,1,aux!$BA$1) -> 0 | AD144: 0 | AE144: =+IF(INDEX($C144:$L144,1,aux!$BA$1)>0,(L144/INDEX($C144:$L144,1,aux!$BA$1))^(1/($L$3-INDEX($C$3:$L$3,1,aux!$BA$1)))-1,"n.d.") -> n.d. | AF144: =IF(INDEX($C144:$L144,1,aux!$BA$1)>0,(L144-INDEX($C144:$L144,1,aux!$BA$1))/INDEX($C144:$L144,1,aux!$BA$1),"n.d.") -> n.d. | AH144: =X144-INDEX($O144:$X144,1,aux!$BA$1) -> 0 | AI144: 0 | AJ144: =+IF(INDEX($O144:$X144,1,aux!$BA$1)>0,(X144/INDEX($O144:$X144,1,aux!$BA$1))^(1/($X$3-INDEX($O$3:$X$3,1,aux!$BA$1)))-1,"n.d.") -> n.d. | AK144: =IF(INDEX($O144:$X144,1,aux!$BA$1)>0,(X144-INDEX($O144:$X144,1,aux!$BA$1))/INDEX($O144:$X144,1,aux!$BA$1),"n.d.") -> n.d. | AM144: 0 | CC144: =+IF(ISNA(MATCH('5.1'!A144,AUX_2d_pais!$G$2:$G$40000,0)),0,1) -> 0
A145: 0046 | B145: Malta | C145: 168.087 | D145: 931.909 | E145: 974.841 | F145: 314.767 | G145: 712.374 | H145: 741.887 | I145: 1568.105 | J145: 537.901 | K145: 238.153 | L145: 478.481 | M145: 666.6505 | N145: 7.153280725e-05 | O145: 1444.604 | P145: 1167.206 | Q145: 2133.245 | R145: 2612.497 | S145: 3753.983 | T145: 4540.641 | U145: 3841.006 | V145: 5179.088 | W145: 5568.803 | X145: 9719.287 | Y145: 3996.036 | Z145: 0.0005736070112 | AA145: 3329.3855 | AC145: =L145-INDEX($C145:$L145,1,aux!$BA$1) -> 310.394 | AD145: 9.881469168e-05 | AE145: =+IF(INDEX($C145:$L145,1,aux!$BA$1)>0,(L145/INDEX($C145:$L145,1,aux!$BA$1))^(1/($L$3-INDEX($C$3:$L$3,1,aux!$BA$1)))-1,"n.d.") -> 0.1232622784 | AF145: =IF(INDEX($C145:$L145,1,aux!$BA$1)>0,(L145-INDEX($C145:$L145,1,aux!$BA$1))/INDEX($C145:$L145,1,aux!$BA$1),"n.d.") -> 1.846627044 | AH145: =X145-INDEX($O145:$X145,1,aux!$BA$1) -> 8274.683 | AI145: 0.00233100149 | AJ145: =+IF(INDEX($O145:$X145,1,aux!$BA$1)>0,(X145/INDEX($O145:$X145,1,aux!$BA$1))^(1/($X$3-INDEX($O$3:$X$3,1,aux!$BA$1)))-1,"n.d.") -> 0.2359112577 | AK145: =IF(INDEX($O145:$X145,1,aux!$BA$1)>0,(X145-INDEX($O145:$X145,1,aux!$BA$1))/INDEX($O145:$X145,1,aux!$BA$1),"n.d.") -> 5.727993969 | CC145: =+IF(ISNA(MATCH('5.1'!A145,AUX_2d_pais!$G$2:$G$40000,0)),0,1) -> 1
A146: 0820 | B146: Marianas do Norte, Ilhas | C146: 0 | D146: 0 | E146: 0 | F146: 0 | G146: 0 | H146: 0 | I146: 0 | J146: 0 | K146: 0 | L146: 0 | M146: 0 | N146: 0 | O146: 0 | P146: 0 | Q146: 0 | R146: 0 | S146: 0 | T146: 0 | U146: 0 | V146: 0 | W146: 0 | X146: 0 | Y146: 0 | Z146: 0 | AA146: 0 | AC146: =L146-INDEX($C146:$L146,1,aux!$BA$1) -> 0 | AD146: 0 | AE146: =+IF(INDEX($C146:$L146,1,aux!$BA$1)>0,(L146/INDEX($C146:$L146,1,aux!$BA$1))^(1/($L$3-INDEX($C$3:$L$3,1,aux!$BA$1)))-1,"n.d.") -> n.d. | AF146: =IF(INDEX($C146:$L146,1,aux!$BA$1)>0,(L146-INDEX($C146:$L146,1,aux!$BA$1))/INDEX($C146:$L146,1,aux!$BA$1),"n.d.") -> n.d. | AH146: =X146-INDEX($O146:$X146,1,aux!$BA$1) -> 0 | AI146: 0 | AJ146: =+IF(INDEX($O146:$X146,1,aux!$BA$1)>0,(X146/INDEX($O146:$X146,1,aux!$BA$1))^(1/($X$3-INDEX($O$3:$X$3,1,aux!$BA$1)))-1,"n.d.") -> n.d. | AK146: =IF(INDEX($O146:$X146,1,aux!$BA$1)>0,(X146-INDEX($O146:$X146,1,aux!$BA$1))/INDEX($O146:$X146,1,aux!$BA$1),"n.d.") -> n.d. | AM146: 0 | BO146: =SUM(C146:L146,O146:X146) -> 0 | CC146: =+IF(ISNA(MATCH('5.1'!A146,AUX_2d_pais!$G$2:$G$40000,0)),0,1) -> 0
A147: 0204 | B147: Marrocos | C147: 0 | D147: 0 | E147: 0 | F147: 0 | G147: 0 | H147: 0 | I147: 0 | J147: 0 | K147: 0 | L147: 0 | M147: 0 | N147: 0 | O147: 0 | P147: 0 | Q147: 0 | R147: 0 | S147: 0 | T147: 0 | U147: 0 | V147: 0 | W147: 0 | X147: 0 | Y147: 0 | Z147: 0 | AA147: 0 | AC147: =L147-INDEX($C147:$L147,1,aux!$BA$1) -> 0 | AD147: 0 | AE147: =+IF(INDEX($C147:$L147,1,aux!$BA$1)>0,(L147/INDEX($C147:$L147,1,aux!$BA$1))^(1/($L$3-INDEX($C$3:$L$3,1,aux!$BA$1)))-1,"n.d.") -> n.d. | AF147: =IF(INDEX($C147:$L147,1,aux!$BA$1)>0,(L147-INDEX($C147:$L147,1,aux!$BA$1))/INDEX($C147:$L147,1,aux!$BA$1),"n.d.") -> n.d. | AH147: =X147-INDEX($O147:$X147,1,aux!$BA$1) -> 0 | AI147: 0 | AJ147: =+IF(INDEX($O147:$X147,1,aux!$BA$1)>0,(X147/INDEX($O147:$X147,1,aux!$BA$1))^(1/($X$3-INDEX($O$3:$X$3,1,aux!$BA$1)))-1,"n.d.") -> n.d. | AK147: =IF(INDEX($O147:$X147,1,aux!$BA$1)>0,(X147-INDEX($O147:$X147,1,aux!$BA$1))/INDEX($O147:$X147,1,aux!$BA$1),"n.d.") -> n.d. | AM147: 0 | CC147: =+IF(ISNA(MATCH('5.1'!A147,AUX_2d_pais!$G$2:$G$40000,0)),0,1) -> 0
A148: 0824 | B148: Marshall, Ilhas | C148: 0 | D148: 0 | E148: 0 | F148: 0 | G148: 0 | H148: 0 | I148: 0 | J148: 0 | K148: 0 | L148: 0 | M148: 0 | N148: 0 | O148: 0 | P148: 0 | Q148: 0 | R148: 0 | S148: 0 | T148: 0 | U148: 0 | V148: 0 | W148: 0 | X148: 0 | Y148: 0 | Z148: 0 | AA148: 0 | AC148: =L148-INDEX($C148:$L148,1,aux!$BA$1) -> 0 | AD148: 0 | AE148: =+IF(INDEX($C148:$L148,1,aux!$BA$1)>0,(L148/INDEX($C148:$L148,1,aux!$BA$1))^(1/($L$3-INDEX($C$3:$L$3,1,aux!$BA$1)))-1,"n.d.") -> n.d. | AF148: =IF(INDEX($C148:$L148,1,aux!$BA$1)>0,(L148-INDEX($C148:$L148,1,aux!$BA$1))/INDEX($C148:$L148,1,aux!$BA$1),"n.d.") -> n.d. | AH148: =X148-INDEX($O148:$X148,1,aux!$BA$1) -> 0 | AI148: 0 | AJ148: =+IF(INDEX($O148:$X148,1,aux!$BA$1)>0,(X148/INDEX($O148:$X148,1,aux!$BA$1))^(1/($X$3-INDEX($O$3:$X$3,1,aux!$BA$1)))-1,"n.d.") -> n.d. | AK148: =IF(INDEX($O148:$X148,1,aux!$BA$1)>0,(X148-INDEX($O148:$X148,1,aux!$BA$1))/INDEX($O148:$X148,1,aux!$BA$1),"n.d.") -> n.d. | AM148: 0 | CC148: =+IF(ISNA(MATCH('5.1'!A148,AUX_2d_pais!$G$2:$G$40000,0)),0,1) -> 0
A149: 0462 | B149: Martinica | C149: 0 | D149: 0 | E149: 0 | F149: 0 | G149: 0 | H149: 0 | I149: 0 | J149: 0 | K149: 0 | L149: 0 | M149: 0 | N149: 0 | O149: 0 | P149: 0 | Q149: 0 | R149: 0 | S149: 0 | T149: 0 | U149: 0 | V149: 0 | W149: 0 | X149: 0 | Y149: 0 | Z149: 0 | AA149: 0 | AC149: =L149-INDEX($C149:$L149,1,aux!$BA$1) -> 0 | AD149: 0 | AE149: =+IF(INDEX($C149:$L149,1,aux!$BA$1)>0,(L149/INDEX($C149:$L149,1,aux!$BA$1))^(1/($L$3-INDEX($C$3:$L$3,1,aux!$BA$1)))-1,"n.d.") -> n.d. | AF149: =IF(INDEX($C149:$L149,1,aux!$BA$1)>0,(L149-INDEX($C149:$L149,1,aux!$BA$1))/INDEX($C149:$L149,1,aux!$BA$1),"n.d.") -> n.d. | AH149: =X149-INDEX($O149:$X149,1,aux!$BA$1) -> 0 | AI149: 0 | AJ149: =+IF(INDEX($O149:$X149,1,aux!$BA$1)>0,(X149/INDEX($O149:$X149,1,aux!$BA$1))^(1/($X$3-INDEX($O$3:$X$3,1,aux!$BA$1)))-1,"n.d.") -> n.d. | AK149: =IF(INDEX($O149:$X149,1,aux!$BA$1)>0,(X149-INDEX($O149:$X149,1,aux!$BA$1))/INDEX($O149:$X149,1,aux!$BA$1),"n.d.") -> n.d. | AM149: 0 | BO149: 0 | CC149: =+IF(ISNA(MATCH('5.1'!A149,AUX_2d_pais!$G$2:$G$40000,0)),0,1) -> 0
A150: 0373 | B150: Maurícias | C150: 0 | D150: 0 | E150: 0 | F150: 0 | G150: 0 | H150: 0 | I150: 0 | J150: 0 | K150: 0 | L150: 0 | M150: 0 | N150: 0 | O150: 0 | P150: 0 | Q150: 0 | R150: 0 | S150: 0 | T150: 0 | U150: 0 | V150: 0 | W150: 0 | X150: 0 | Y150: 0 | Z150: 0 | AA150: 0 | AC150: =L150-INDEX($C150:$L150,1,aux!$BA$1) -> 0 | AD150: 0 | AE150: =+IF(INDEX($C150:$L150,1,aux!$BA$1)>0,(L150/INDEX($C150:$L150,1,aux!$BA$1))^(1/($L$3-INDEX($C$3:$L$3,1,aux!$BA$1)))-1,"n.d.") -> n.d. | AF150: =IF(INDEX($C150:$L150,1,aux!$BA$1)>0,(L150-INDEX($C150:$L150,1,aux!$BA$1))/INDEX($C150:$L150,1,aux!$BA$1),"n.d.") -> n.d. | AH150: =X150-INDEX($O150:$X150,1,aux!$BA$1) -> 0 | AI150: 0 | AJ150: =+IF(INDEX($O150:$X150,1,aux!$BA$1)>0,(X150/INDEX($O150:$X150,1,aux!$BA$1))^(1/($X$3-INDEX($O$3:$X$3,1,aux!$BA$1)))-1,"n.d.") -> n.d. | AK150: =IF(INDEX($O150:$X150,1,aux!$BA$1)>0,(X150-INDEX($O150:$X150,1,aux!$BA$1))/INDEX($O150:$X150,1,aux!$BA$1),"n.d.") -> n.d. | AM150: 0 | CC150: =+IF(ISNA(MATCH('5.1'!A150,AUX_2d_pais!$G$2:$G$40000,0)),0,1) -> 0
A151: 0228 | B151: Mauritânia | C151: 0 | D151: 0 | E151: 0 | F151: 0 | G151: 0 | H151: 0 | I151: 0 | J151: 0 | K151: 0 | L151: 0 | M151: 0 | N151: 0 | O151: 0 | P151: 0 | Q151: 0 | R151: 0 | S151: 0 | T151: 0 | U151: 0 | V151: 0 | W151: 0 | X151: 0 | Y151: 0 | Z151: 0 | AA151: 0 | AC151: =L151-INDEX($C151:$L151,1,aux!$BA$1) -> 0 | AD151: 0 | AE151: =+IF(INDEX($C151:$L151,1,aux!$BA$1)>0,(L151/INDEX($C151:$L151,1,aux!$BA$1))^(1/($L$3-INDEX($C$3:$L$3,1,aux!$BA$1)))-1,"n.d.") -> n.d. | AF151: =IF(INDEX($C151:$L151,1,aux!$BA$1)>0,(L151-INDEX($C151:$L151,1,aux!$BA$1))/INDEX($C151:$L151,1,aux!$BA$1),"n.d.") -> n.d. | AH151: =X151-INDEX($O151:$X151,1,aux!$BA$1) -> 0 | AI151: 0 | AJ151: =+IF(INDEX($O151:$X151,1,aux!$BA$1)>0,(X151/INDEX($O151:$X151,1,aux!$BA$1))^(1/($X$3-INDEX($O$3:$X$3,1,aux!$BA$1)))-1,"n.d.") -> n.d. | AK151: =IF(INDEX($O151:$X151,1,aux!$BA$1)>0,(X151-INDEX($O151:$X151,1,aux!$BA$1))/INDEX($O151:$X151,1,aux!$BA$1),"n.d.") -> n.d. | AM151: 0 | CC151: =+IF(ISNA(MATCH('5.1'!A151,AUX_2d_pais!$G$2:$G$40000,0)),0,1) -> 0
A152: 0377 | B152: Mayotte | C152: 0 | D152: 0 | E152: 0 | F152: 0 | G152: 0 | H152: 0 | I152: 0 | J152: 0 | K152: 0 | L152: 0 | M152: 0 | N152: 0 | O152: 0 | P152: 0 | Q152: 0 | R152: 0 | S152: 0 | T152: 0 | U152: 0 | V152: 0 | W152: 0 | X152: 0 | Y152: 0 | Z152: 0 | AA152: 0 | AC152: =L152-INDEX($C152:$L152,1,aux!$BA$1) -> 0 | AD152: 0 | AE152: =+IF(INDEX($C152:$L152,1,aux!$BA$1)>0,(L152/INDEX($C152:$L152,1,aux!$BA$1))^(1/($L$3-INDEX($C$3:$L$3,1,aux!$BA$1)))-1,"n.d.") -> n.d. | AF152: =IF(INDEX($C152:$L152,1,aux!$BA$1)>0,(L152-INDEX($C152:$L152,1,aux!$BA$1))/INDEX($C152:$L152,1,aux!$BA$1),"n.d.") -> n.d. | AH152: =X152-INDEX($O152:$X152,1,aux!$BA$1) -> 0 | AI152: 0 | AJ152: =+IF(INDEX($O152:$X152,1,aux!$BA$1)>0,(X152/INDEX($O152:$X152,1,aux!$BA$1))^(1/($X$3-INDEX($O$3:$X$3,1,aux!$BA$1)))-1,"n.d.") -> n.d. | AK152: =IF(INDEX($O152:$X152,1,aux!$BA$1)>0,(X152-INDEX($O152:$X152,1,aux!$BA$1))/INDEX($O152:$X152,1,aux!$BA$1),"n.d.") -> n.d. | AM152: 0 | BO152: 0 | CC152: =+IF(ISNA(MATCH('5.1'!A152,AUX_2d_pais!$G$2:$G$40000,0)),0,1) -> 0
A153: 0023 | B153: Melilha | C153: 0 | D153: 0 | E153: 0 | F153: 0 | G153: 0 | H153: 0 | I153: 0 | J153: 0 | K153: 0 | L153: 0 | M153: 0 | N153: 0 | O153: 0 | P153: 0 | Q153: 0 | R153: 0 | S153: 0 | T153: 0 | U153: 0 | V153: 0 | W153: 0 | X153: 0 | Y153: 0 | Z153: 0 | AA153: 0 | AC153: =L153-INDEX($C153:$L153,1,aux!$BA$1) -> 0 | AD153: 0 | AE153: =+IF(INDEX($C153:$L153,1,aux!$BA$1)>0,(L153/INDEX($C153:$L153,1,aux!$BA$1))^(1/($L$3-INDEX($C$3:$L$3,1,aux!$BA$1)))-1,"n.d.") -> n.d. | AF153: =IF(INDEX($C153:$L153,1,aux!$BA$1)>0,(L153-INDEX($C153:$L153,1,aux!$BA$1))/INDEX($C153:$L153,1,aux!$BA$1),"n.d.") -> n.d. | AH153: =X153-INDEX($O153:$X153,1,aux!$BA$1) -> 0 | AI153: 0 | AJ153: =+IF(INDEX($O153:$X153,1,aux!$BA$1)>0,(X153/INDEX($O153:$X153,1,aux!$BA$1))^(1/($X$3-INDEX($O$3:$X$3,1,aux!$BA$1)))-1,"n.d.") -> n.d. | AK153: =IF(INDEX($O153:$X153,1,aux!$BA$1)>0,(X153-INDEX($O153:$X153,1,aux!$BA$1))/INDEX($O153:$X153,1,aux!$BA$1),"n.d.") -> n.d. | AM153: 0 | CC153: =+IF(ISNA(MATCH('5.1'!A153,AUX_2d_pais!$G$2:$G$40000,0)),0,1) -> 0
A154: 0832 | B154: Menores distantes dos Estados Unidos, lhas | C154: 0 | D154: 0 | E154: 0 | F154: 0 | G154: 0 | H154: 0 | I154: 0 | J154: 0 | K154: 0 | L154: 0 | M154: 0 | N154: 0 | O154: 0 | P154: 0 | Q154: 0 | R154: 0 | S154: 0 | T154: 0 | U154: 0 | V154: 0 | W154: 0 | X154: 0 | Y154: 0 | Z154: 0 | AA154: 0 | AC154: =L154-INDEX($C154:$L154,1,aux!$BA$1) -> 0 | AD154: 0 | AE154: =+IF(INDEX($C154:$L154,1,aux!$BA$1)>0,(L154/INDEX($C154:$L154,1,aux!$BA$1))^(1/($L$3-INDEX($C$3:$L$3,1,aux!$BA$1)))-1,"n.d.") -> n.d. | AF154: =IF(INDEX($C154:$L154,1,aux!$BA$1)>0,(L154-INDEX($C154:$L154,1,aux!$BA$1))/INDEX($C154:$L154,1,aux!$BA$1),"n.d.") -> n.d. | AH154: =X154-INDEX($O154:$X154,1,aux!$BA$1) -> 0 | AI154: 0 | AJ154: =+IF(INDEX($O154:$X154,1,aux!$BA$1)>0,(X154/INDEX($O154:$X154,1,aux!$BA$1))^(1/($X$3-INDEX($O$3:$X$3,1,aux!$BA$1)))-1,"n.d.") -> n.d. | AK154: =IF(INDEX($O154:$X154,1,aux!$BA$1)>0,(X154-INDEX($O154:$X154,1,aux!$BA$1))/INDEX($O154:$X154,1,aux!$BA$1),"n.d.") -> n.d. | AM154: 0 | BO154: 0 | CC154: =+IF(ISNA(MATCH('5.1'!A154,AUX_2d_pais!$G$2:$G$40000,0)),0,1) -> 0
A155: 0412 | B155: México | C155: 0 | D155: 0 | E155: 0 | F155: 0 | G155: 0 | H155: 0 | I155: 0 | J155: 0 | K155: 0 | L155: 0 | M155: 0 | N155: 0 | O155: 0 | P155: 0 | Q155: 0 | R155: 0 | S155: 0 | T155: 0 | U155: 0 | V155: 0 | W155: 0 | X155: 0 | Y155: 0 | Z155: 0 | AA155: 0 | AC155: =L155-INDEX($C155:$L155,1,aux!$BA$1) -> 0 | AD155: 0 | AE155: =+IF(INDEX($C155:$L155,1,aux!$BA$1)>0,(L155/INDEX($C155:$L155,1,aux!$BA$1))^(1/($L$3-INDEX($C$3:$L$3,1,aux!$BA$1)))-1,"n.d.") -> n.d. | AF155: =IF(INDEX($C155:$L155,1,aux!$BA$1)>0,(L155-INDEX($C155:$L155,1,aux!$BA$1))/INDEX($C155:$L155,1,aux!$BA$1),"n.d.") -> n.d. | AH155: =X155-INDEX($O155:$X155,1,aux!$BA$1) -> 0 | AI155: 0 | AJ155: =+IF(INDEX($O155:$X155,1,aux!$BA$1)>0,(X155/INDEX($O155:$X155,1,aux!$BA$1))^(1/($X$3-INDEX($O$3:$X$3,1,aux!$BA$1)))-1,"n.d.") -> n.d. | AK155: =IF(INDEX($O155:$X155,1,aux!$BA$1)>0,(X155-INDEX($O155:$X155,1,aux!$BA$1))/INDEX($O155:$X155,1,aux!$BA$1),"n.d.") -> n.d. | AM155: 0 | CC155: =+IF(ISNA(MATCH('5.1'!A155,AUX_2d_pais!$G$2:$G$40000,0)),0,1) -> 0
A156: 0823 | B156: Micronésia, Estados Federados da | C156: 0 | D156: 0 | E156: 0 | F156: 0 | G156: 0 | H156: 0 | I156: 0 | J156: 0 | K156: 0 | L156: 0 | M156: 0 | N156: 0 | O156: 0 | P156: 0 | Q156: 0 | R156: 0 | S156: 0 | T156: 0 | U156: 0 | V156: 0 | W156: 0 | X156: 0 | Y156: 0 | Z156: 0 | AA156: 0 | AC156: =L156-INDEX($C156:$L156,1,aux!$BA$1) -> 0 | AD156: 0 | AE156: =+IF(INDEX($C156:$L156,1,aux!$BA$1)>0,(L156/INDEX($C156:$L156,1,aux!$BA$1))^(1/($L$3-INDEX($C$3:$L$3,1,aux!$BA$1)))-1,"n.d.") -> n.d. | AF156: =IF(INDEX($C156:$L156,1,aux!$BA$1)>0,(L156-INDEX($C156:$L156,1,aux!$BA$1))/INDEX($C156:$L156,1,aux!$BA$1),"n.d.") -> n.d. | AH156: =X156-INDEX($O156:$X156,1,aux!$BA$1) -> 0 | AI156: 0 | AJ156: =+IF(INDEX($O156:$X156,1,aux!$BA$1)>0,(X156/INDEX($O156:$X156,1,aux!$BA$1))^(1/($X$3-INDEX($O$3:$X$3,1,aux!$BA$1)))-1,"n.d.") -> n.d. | AK156: =IF(INDEX($O156:$X156,1,aux!$BA$1)>0,(X156-INDEX($O156:$X156,1,aux!$BA$1))/INDEX($O156:$X156,1,aux!$BA$1),"n.d.") -> n.d. | AM156: 0 | BO156: 0 | CC156: =+IF(ISNA(MATCH('5.1'!A156,AUX_2d_pais!$G$2:$G$40000,0)),0,1) -> 0
A157: 0366 | B157: Moçambique | C157: 0 | D157: 0 | E157: 0 | F157: 0 | G157: 0 | H157: 0 | I157: 0 | J157: 0 | K157: 0 | L157: 0 | M157: 0 | N157: 0 | O157: 0 | P157: 0 | Q157: 0 | R157: 0 | S157: 0 | T157: 0 | U157: 0 | V157: 0 | W157: 0 | X157: 0 | Y157: 0 | Z157: 0 | AA157: 0 | AC157: =L157-INDEX($C157:$L157,1,aux!$BA$1) -> 0 | AD157: 0 | AE157: =+IF(INDEX($C157:$L157,1,aux!$BA$1)>0,(L157/INDEX($C157:$L157,1,aux!$BA$1))^(1/($L$3-INDEX($C$3:$L$3,1,aux!$BA$1)))-1,"n.d.") -> n.d. | AF157: =IF(INDEX($C157:$L157,1,aux!$BA$1)>0,(L157-INDEX($C157:$L157,1,aux!$BA$1))/INDEX($C157:$L157,1,aux!$BA$1),"n.d.") -> n.d. | AH157: =X157-INDEX($O157:$X157,1,aux!$BA$1) -> 0 | AI157: 0 | AJ157: =+IF(INDEX($O157:$X157,1,aux!$BA$1)>0,(X157/INDEX($O157:$X157,1,aux!$BA$1))^(1/($X$3-INDEX($O$3:$X$3,1,aux!$BA$1)))-1,"n.d.") -> n.d. | AK157: =IF(INDEX($O157:$X157,1,aux!$BA$1)>0,(X157-INDEX($O157:$X157,1,aux!$BA$1))/INDEX($O157:$X157,1,aux!$BA$1),"n.d.") -> n.d. | AM157: 0 | CC157: =+IF(ISNA(MATCH('5.1'!A157,AUX_2d_pais!$G$2:$G$40000,0)),0,1) -> 0
A158: 0074 | B158: Moldava, República de | C158: 1547.248 | D158: 0.068 | E158: 2675.166 | F158: 5464.556 | G158: 3504.768 | H158: 6645.07 | I158: 1512.014 | J158: 5377.168 | K158: 5687.135 | L158: 8729.08 | M158: 4114.2273 | N158: 0.0004414640482 | O158: 1617.982 | P158: 2728.794 | Q158: 4146.572 | R158: 4394.444 | S158: 4189.261 | T158: 2651.35 | U158: 2365.403 | V158: 2232.403 | W158: 3089.465 | X158: 2813.082 | Y158: 3022.8756 | Z158: 0.00043391567 | AA158: -1091.3517 | AC158: =L158-INDEX($C158:$L158,1,aux!$BA$1) -> 7181.832 | AD158: 0.002286353843 | AE158: =+IF(INDEX($C158:$L158,1,aux!$BA$1)>0,(L158/INDEX($C158:$L158,1,aux!$BA$1))^(1/($L$3-INDEX($C$3:$L$3,1,aux!$BA$1)))-1,"n.d.") -> 0.2119643304 | AF158: =IF(INDEX($C158:$L158,1,aux!$BA$1)>0,(L158-INDEX($C158:$L158,1,aux!$BA$1))/INDEX($C158:$L158,1,aux!$BA$1),"n.d.") -> 4.64168123 | AH158: =X158-INDEX($O158:$X158,1,aux!$BA$1) -> 1195.1 | AI158: 0.0003366630337 | AJ158: =+IF(INDEX($O158:$X158,1,aux!$BA$1)>0,(X158/INDEX($O158:$X158,1,aux!$BA$1))^(1/($X$3-INDEX($O$3:$X$3,1,aux!$BA$1)))-1,"n.d.") -> 0.06338335047 | AK158: =IF(INDEX($O158:$X158,1,aux!$BA$1)>0,(X158-INDEX($O158:$X158,1,aux!$BA$1))/INDEX($O158:$X158,1,aux!$BA$1),"n.d.") -> 0.7386361529 | CC158: =+IF(ISNA(MATCH('5.1'!A158,AUX_2d_pais!$G$2:$G$40000,0)),0,1) -> 1
A159: 0716 | B159: Mongólia | C159: 0 | D159: 0 | E159: 0 | F159: 0 | G159: 0 | H159: 0 | I159: 0 | J159: 0 | K159: 0 | L159: 0 | M159: 0 | N159: 0 | O159: 0 | P159: 0 | Q159: 0 | R159: 0 | S159: 0 | T159: 0 | U159: 0 | V159: 0 | W159: 0 | X159: 0 | Y159: 0 | Z159: 0 | AA159: 0 | AC159: =L159-INDEX($C159:$L159,1,aux!$BA$1) -> 0 | AD159: 0 | AE159: =+IF(INDEX($C159:$L159,1,aux!$BA$1)>0,(L159/INDEX($C159:$L159,1,aux!$BA$1))^(1/($L$3-INDEX($C$3:$L$3,1,aux!$BA$1)))-1,"n.d.") -> n.d. | AF159: =IF(INDEX($C159:$L159,1,aux!$BA$1)>0,(L159-INDEX($C159:$L159,1,aux!$BA$1))/INDEX($C159:$L159,1,aux!$BA$1),"n.d.") -> n.d. | AH159: =X159-INDEX($O159:$X159,1,aux!$BA$1) -> 0 | AI159: 0 | AJ159: =+IF(INDEX($O159:$X159,1,aux!$BA$1)>0,(X159/INDEX($O159:$X159,1,aux!$BA$1))^(1/($X$3-INDEX($O$3:$X$3,1,aux!$BA$1)))-1,"n.d.") -> n.d. | AK159: =IF(INDEX($O159:$X159,1,aux!$BA$1)>0,(X159-INDEX($O159:$X159,1,aux!$BA$1))/INDEX($O159:$X159,1,aux!$BA$1),"n.d.") -> n.d. | AM159: 0 | BO159: 0 | CC159: =+IF(ISNA(MATCH('5.1'!A159,AUX_2d_pais!$G$2:$G$40000,0)),0,1) -> 0
A160: 0470 | B160: Monserrate | C160: 0 | D160: 0 | E160: 0 | F160: 0 | G160: 0 | H160: 0 | I160: 0 | J160: 0 | K160: 0 | L160: 0 | M160: 0 | N160: 0 | O160: 0 | P160: 0 | Q160: 0 | R160: 0 | S160: 0 | T160: 0 | U160: 0 | V160: 0 | W160: 0 | X160: 0 | Y160: 0 | Z160: 0 | AA160: 0 | AC160: =L160-INDEX($C160:$L160,1,aux!$BA$1) -> 0 | AD160: 0 | AE160: =+IF(INDEX($C160:$L160,1,aux!$BA$1)>0,(L160/INDEX($C160:$L160,1,aux!$BA$1))^(1/($L$3-INDEX($C$3:$L$3,1,aux!$BA$1)))-1,"n.d.") -> n.d. | AF160: =IF(INDEX($C160:$L160,1,aux!$BA$1)>0,(L160-INDEX($C160:$L160,1,aux!$BA$1))/INDEX($C160:$L160,1,aux!$BA$1),"n.d.") -> n.d. | AH160: =X160-INDEX($O160:$X160,1,aux!$BA$1) -> 0 | AI160: 0 | AJ160: =+IF(INDEX($O160:$X160,1,aux!$BA$1)>0,(X160/INDEX($O160:$X160,1,aux!$BA$1))^(1/($X$3-INDEX($O$3:$X$3,1,aux!$BA$1)))-1,"n.d.") -> n.d. | AK160: =IF(INDEX($O160:$X160,1,aux!$BA$1)>0,(X160-INDEX($O160:$X160,1,aux!$BA$1))/INDEX($O160:$X160,1,aux!$BA$1),"n.d.") -> n.d. | AM160: 0 | BO160: 0 | CC160: =+IF(ISNA(MATCH('5.1'!A160,AUX_2d_pais!$G$2:$G$40000,0)),0,1) -> 0
A161: 0097 | B161: Montenegro | C161: 0 | D161: 0 | E161: 0 | F161: 0 | G161: 0 | H161: 0 | I161: 0 | J161: 0 | K161: 66.197 | L161: 1.543 | M161: 6.774 | N161: 7.268624809e-07 | O161: 0 | P161: 0 | Q161: 133.89 | R161: 76.819 | S161: 72.273 | T161: 248.467 | U161: 64.728 | V161: 522.447 | W161: 426.948 | X161: 1006.29 | Y161: 255.1862 | Z161: 3.663044915e-05 | AA161: 248.4122 | AC161: =L161-INDEX($C161:$L161,1,aux!$BA$1) -> 1.543 | AD161: 4.912178369e-07 | AE161: =+IF(INDEX($C161:$L161,1,aux!$BA$1)>0,(L161/INDEX($C161:$L161,1,aux!$BA$1))^(1/($L$3-INDEX($C$3:$L$3,1,aux!$BA$1)))-1,"n.d.") -> n.d. | AF161: =IF(INDEX($C161:$L161,1,aux!$BA$1)>0,(L161-INDEX($C161:$L161,1,aux!$BA$1))/INDEX($C161:$L161,1,aux!$BA$1),"n.d.") -> n.d. | AH161: =X161-INDEX($O161:$X161,1,aux!$BA$1) -> 1006.29 | AI161: 0.0002834747252 | AJ161: =+IF(INDEX($O161:$X161,1,aux!$BA$1)>0,(X161/INDEX($O161:$X161,1,aux!$BA$1))^(1/($X$3-INDEX($O$3:$X$3,1,aux!$BA$1)))-1,"n.d.") -> n.d. | AK161: =IF(INDEX($O161:$X161,1,aux!$BA$1)>0,(X161-INDEX($O161:$X161,1,aux!$BA$1))/INDEX($O161:$X161,1,aux!$BA$1),"n.d.") -> n.d. | BO161: 2619.602 | CC161: =+IF(ISNA(MATCH('5.1'!A161,AUX_2d_pais!$G$2:$G$40000,0)),0,1) -> 1
A162: 0676 | B162: Myanmar | C162: 0 | D162: 0 | E162: 0 | F162: 0 | G162: 0 | H162: 0 | I162: 0 | J162: 0 | K162: 0 | L162: 0 | M162: 0 | N162: 0 | O162: 0 | P162: 0 | Q162: 0 | R162: 0 | S162: 0 | T162: 0 | U162: 0 | V162: 0 | W162: 0 | X162: 0 | Y162: 0 | Z162: 0 | AA162: 0 | AC162: =L162-INDEX($C162:$L162,1,aux!$BA$1) -> 0 | AD162: 0 | AE162: =+IF(INDEX($C162:$L162,1,aux!$BA$1)>0,(L162/INDEX($C162:$L162,1,aux!$BA$1))^(1/($L$3-INDEX($C$3:$L$3,1,aux!$BA$1)))-1,"n.d.") -> n.d. | AF162: =IF(INDEX($C162:$L162,1,aux!$BA$1)>0,(L162-INDEX($C162:$L162,1,aux!$BA$1))/INDEX($C162:$L162,1,aux!$BA$1),"n.d.") -> n.d. | AH162: =X162-INDEX($O162:$X162,1,aux!$BA$1) -> 0 | AI162: 0 | AJ162: =+IF(INDEX($O162:$X162,1,aux!$BA$1)>0,(X162/INDEX($O162:$X162,1,aux!$BA$1))^(1/($X$3-INDEX($O$3:$X$3,1,aux!$BA$1)))-1,"n.d.") -> n.d. | AK162: =IF(INDEX($O162:$X162,1,aux!$BA$1)>0,(X162-INDEX($O162:$X162,1,aux!$BA$1))/INDEX($O162:$X162,1,aux!$BA$1),"n.d.") -> n.d. | AM162: 0 | CC162: =+IF(ISNA(MATCH('5.1'!A162,AUX_2d_pais!$G$2:$G$40000,0)),0,1) -> 0
A163: 0389 | B163: Namíbia | C163: 0 | D163: 0 | E163: 0 | F163: 0 | G163: 0 | H163: 0 | I163: 0 | J163: 0 | K163: 0 | L163: 0 | M163: 0 | N163: 0 | O163: 0 | P163: 0 | Q163: 0 | R163: 0 | S163: 0 | T163: 0 | U163: 0 | V163: 0 | W163: 0 | X163: 0 | Y163: 0 | Z163: 0 | AA163: 0 | AC163: =L163-INDEX($C163:$L163,1,aux!$BA$1) -> 0 | AD163: 0 | AE163: =+IF(INDEX($C163:$L163,1,aux!$BA$1)>0,(L163/INDEX($C163:$L163,1,aux!$BA$1))^(1/($L$3-INDEX($C$3:$L$3,1,aux!$BA$1)))-1,"n.d.") -> n.d. | AF163: =IF(INDEX($C163:$L163,1,aux!$BA$1)>0,(L163-INDEX($C163:$L163,1,aux!$BA$1))/INDEX($C163:$L163,1,aux!$BA$1),"n.d.") -> n.d. | AH163: =X163-INDEX($O163:$X163,1,aux!$BA$1) -> 0 | AI163: 0 | AJ163: =+IF(INDEX($O163:$X163,1,aux!$BA$1)>0,(X163/INDEX($O163:$X163,1,aux!$BA$1))^(1/($X$3-INDEX($O$3:$X$3,1,aux!$BA$1)))-1,"n.d.") -> n.d. | AK163: =IF(INDEX($O163:$X163,1,aux!$BA$1)>0,(X163-INDEX($O163:$X163,1,aux!$BA$1))/INDEX($O163:$X163,1,aux!$BA$1),"n.d.") -> n.d. | AM163: 0 | CC163: =+IF(ISNA(MATCH('5.1'!A163,AUX_2d_pais!$G$2:$G$40000,0)),0,1) -> 0
A164: 0803 | B164: Nauru | C164: 0 | D164: 0 | E164: 0 | F164: 0 | G164: 0 | H164: 0 | I164: 0 | J164: 0 | K164: 0 | L164: 0 | M164: 0 | N164: 0 | O164: 0 | P164: 0 | Q164: 0 | R164: 0 | S164: 0 | T164: 0 | U164: 0 | V164: 0 | W164: 0 | X164: 0 | Y164: 0 | Z164: 0 | AA164: 0 | AC164: =L164-INDEX($C164:$L164,1,aux!$BA$1) -> 0 | AD164: 0 | AE164: =+IF(INDEX($C164:$L164,1,aux!$BA$1)>0,(L164/INDEX($C164:$L164,1,aux!$BA$1))^(1/($L$3-INDEX($C$3:$L$3,1,aux!$BA$1)))-1,"n.d.") -> n.d. | AF164: =IF(INDEX($C164:$L164,1,aux!$BA$1)>0,(L164-INDEX($C164:$L164,1,aux!$BA$1))/INDEX($C164:$L164,1,aux!$BA$1),"n.d.") -> n.d. | AH164: =X164-INDEX($O164:$X164,1,aux!$BA$1) -> 0 | AI164: 0 | AJ164: =+IF(INDEX($O164:$X164,1,aux!$BA$1)>0,(X164/INDEX($O164:$X164,1,aux!$BA$1))^(1/($X$3-INDEX($O$3:$X$3,1,aux!$BA$1)))-1,"n.d.") -> n.d. | AK164: =IF(INDEX($O164:$X164,1,aux!$BA$1)>0,(X164-INDEX($O164:$X164,1,aux!$BA$1))/INDEX($O164:$X164,1,aux!$BA$1),"n.d.") -> n.d. | AM164: 0 | BO164: 0 | CC164: =+IF(ISNA(MATCH('5.1'!A164,AUX_2d_pais!$G$2:$G$40000,0)),0,1) -> 0
A165: 0672 | B165: Nepal | C165: 0 | D165: 0 | E165: 0 | F165: 0 | G165: 0 | H165: 0 | I165: 0 | J165: 0 | K165: 0 | L165: 0 | M165: 0 | N165: 0 | O165: 0 | P165: 0 | Q165: 0 | R165: 0 | S165: 0 | T165: 0 | U165: 0 | V165: 0 | W165: 0 | X165: 0 | Y165: 0 | Z165: 0 | AA165: 0 | AC165: =L165-INDEX($C165:$L165,1,aux!$BA$1) -> 0 | AD165: =AC165/$AC$252 -> 0 | AE165: =+IF(INDEX($C165:$L165,1,aux!$BA$1)>0,(L165/INDEX($C165:$L165,1,aux!$BA$1))^(1/($L$3-INDEX($C$3:$L$3,1,aux!$BA$1)))-1,"n.d.") -> n.d. | AF165: =IF(INDEX($C165:$L165,1,aux!$BA$1)>0,(L165-INDEX($C165:$L165,1,aux!$BA$1))/INDEX($C165:$L165,1,aux!$BA$1),"n.d.") -> n.d. | AH165: =X165-INDEX($O165:$X165,1,aux!$BA$1) -> 0 | AI165: =AH165/$AH$252 -> 0 | AJ165: =+IF(INDEX($O165:$X165,1,aux!$BA$1)>0,(X165/INDEX($O165:$X165,1,aux!$BA$1))^(1/($X$3-INDEX($O$3:$X$3,1,aux!$BA$1)))-1,"n.d.") -> n.d. | AK165: =IF(INDEX($O165:$X165,1,aux!$BA$1)>0,(X165-INDEX($O165:$X165,1,aux!$BA$1))/INDEX($O165:$X165,1,aux!$BA$1),"n.d.") -> n.d. | AM165: 0 | BO165: 0 | CC165: =+IF(ISNA(MATCH('5.1'!A165,AUX_2d_pais!$G$2:$G$40000,0)),0,1) -> 0
A166: 0432 | B166: Nicarágua | C166: 0 | D166: 0 | E166: 0 | F166: 0 | G166: 0 | H166: 0 | I166: 0 | J166: 0 | K166: 0 | L166: 0 | M166: 0 | N166: 0 | O166: 0 | P166: 0 | Q166: 0 | R166: 0 | S166: 0 | T166: 0 | U166: 0 | V166: 0 | W166: 0 | X166: 0 | Y166: 0 | Z166: 0 | AA166: 0 | AC166: =L166-INDEX($C166:$L166,1,aux!$BA$1) -> 0 | AD166: 0 | AE166: =+IF(INDEX($C166:$L166,1,aux!$BA$1)>0,(L166/INDEX($C166:$L166,1,aux!$BA$1))^(1/($L$3-INDEX($C$3:$L$3,1,aux!$BA$1)))-1,"n.d.") -> n.d. | AF166: =IF(INDEX($C166:$L166,1,aux!$BA$1)>0,(L166-INDEX($C166:$L166,1,aux!$BA$1))/INDEX($C166:$L166,1,aux!$BA$1),"n.d.") -> n.d. | AH166: =X166-INDEX($O166:$X166,1,aux!$BA$1) -> 0 | AI166: 0 | AJ166: =+IF(INDEX($O166:$X166,1,aux!$BA$1)>0,(X166/INDEX($O166:$X166,1,aux!$BA$1))^(1/($X$3-INDEX($O$3:$X$3,1,aux!$BA$1)))-1,"n.d.") -> n.d. | AK166: =IF(INDEX($O166:$X166,1,aux!$BA$1)>0,(X166-INDEX($O166:$X166,1,aux!$BA$1))/INDEX($O166:$X166,1,aux!$BA$1),"n.d.") -> n.d. | AM166: 0 | CC166: =+IF(ISNA(MATCH('5.1'!A166,AUX_2d_pais!$G$2:$G$40000,0)),0,1) -> 0
A167: 0240 | B167: Niger | C167: 0 | D167: 0 | E167: 0 | F167: 0 | G167: 0 | H167: 0 | I167: 0 | J167: 0 | K167: 0 | L167: 0 | M167: 0 | N167: 0 | O167: 0 | P167: 0 | Q167: 0 | R167: 0 | S167: 0 | T167: 0 | U167: 0 | V167: 0 | W167: 0 | X167: 0 | Y167: 0 | Z167: 0 | AA167: 0 | AC167: =L167-INDEX($C167:$L167,1,aux!$BA$1) -> 0 | AD167: 0 | AE167: =+IF(INDEX($C167:$L167,1,aux!$BA$1)>0,(L167/INDEX($C167:$L167,1,aux!$BA$1))^(1/($L$3-INDEX($C$3:$L$3,1,aux!$BA$1)))-1,"n.d.") -> n.d. | AF167: =IF(INDEX($C167:$L167,1,aux!$BA$1)>0,(L167-INDEX($C167:$L167,1,aux!$BA$1))/INDEX($C167:$L167,1,aux!$BA$1),"n.d.") -> n.d. | AH167: =X167-INDEX($O167:$X167,1,aux!$BA$1) -> 0 | AI167: 0 | AJ167: =+IF(INDEX($O167:$X167,1,aux!$BA$1)>0,(X167/INDEX($O167:$X167,1,aux!$BA$1))^(1/($X$3-INDEX($O$3:$X$3,1,aux!$BA$1)))-1,"n.d.") -> n.d. | AK167: =IF(INDEX($O167:$X167,1,aux!$BA$1)>0,(X167-INDEX($O167:$X167,1,aux!$BA$1))/INDEX($O167:$X167,1,aux!$BA$1),"n.d.") -> n.d. | AM167: 0 | CC167: =+IF(ISNA(MATCH('5.1'!A167,AUX_2d_pais!$G$2:$G$40000,0)),0,1) -> 0
A168: 0288 | B168: Nigéria | C168: 0 | D168: 0 | E168: 0 | F168: 0 | G168: 0 | H168: 0 | I168: 0 | J168: 0 | K168: 0 | L168: 0 | M168: 0 | N168: 0 | O168: 0 | P168: 0 | Q168: 0 | R168: 0 | S168: 0 | T168: 0 | U168: 0 | V168: 0 | W168: 0 | X168: 0 | Y168: 0 | Z168: 0 | AA168: 0 | AC168: =L168-INDEX($C168:$L168,1,aux!$BA$1) -> 0 | AD168: 0 | AE168: =+IF(INDEX($C168:$L168,1,aux!$BA$1)>0,(L168/INDEX($C168:$L168,1,aux!$BA$1))^(1/($L$3-INDEX($C$3:$L$3,1,aux!$BA$1)))-1,"n.d.") -> n.d. | AF168: =IF(INDEX($C168:$L168,1,aux!$BA$1)>0,(L168-INDEX($C168:$L168,1,aux!$BA$1))/INDEX($C168:$L168,1,aux!$BA$1),"n.d.") -> n.d. | AH168: =X168-INDEX($O168:$X168,1,aux!$BA$1) -> 0 | AI168: 0 | AJ168: =+IF(INDEX($O168:$X168,1,aux!$BA$1)>0,(X168/INDEX($O168:$X168,1,aux!$BA$1))^(1/($X$3-INDEX($O$3:$X$3,1,aux!$BA$1)))-1,"n.d.") -> n.d. | AK168: =IF(INDEX($O168:$X168,1,aux!$BA$1)>0,(X168-INDEX($O168:$X168,1,aux!$BA$1))/INDEX($O168:$X168,1,aux!$BA$1),"n.d.") -> n.d. | AM168: 0 | CC168: =+IF(ISNA(MATCH('5.1'!A168,AUX_2d_pais!$G$2:$G$40000,0)),0,1) -> 0
A169: 0838 | B169: Niue | C169: 0 | D169: 0 | E169: 0 | F169: 0 | G169: 0 | H169: 0 | I169: 0 | J169: 0 | K169: 0 | L169: 0 | M169: 0 | N169: 0 | O169: 0 | P169: 0 | Q169: 0 | R169: 0 | S169: 0 | T169: 0 | U169: 0 | V169: 0 | W169: 0 | X169: 0 | Y169: 0 | Z169: 0 | AA169: 0 | AC169: =L169-INDEX($C169:$L169,1,aux!$BA$1) -> 0 | AD169: 0 | AE169: =+IF(INDEX($C169:$L169,1,aux!$BA$1)>0,(L169/INDEX($C169:$L169,1,aux!$BA$1))^(1/($L$3-INDEX($C$3:$L$3,1,aux!$BA$1)))-1,"n.d.") -> n.d. | AF169: =IF(INDEX($C169:$L169,1,aux!$BA$1)>0,(L169-INDEX($C169:$L169,1,aux!$BA$1))/INDEX($C169:$L169,1,aux!$BA$1),"n.d.") -> n.d. | AH169: =X169-INDEX($O169:$X169,1,aux!$BA$1) -> 0 | AI169: 0 | AJ169: =+IF(INDEX($O169:$X169,1,aux!$BA$1)>0,(X169/INDEX($O169:$X169,1,aux!$BA$1))^(1/($X$3-INDEX($O$3:$X$3,1,aux!$BA$1)))-1,"n.d.") -> n.d. | AK169: =IF(INDEX($O169:$X169,1,aux!$BA$1)>0,(X169-INDEX($O169:$X169,1,aux!$BA$1))/INDEX($O169:$X169,1,aux!$BA$1),"n.d.") -> n.d. | AM169: 0 | BO169: 0 | CC169: =+IF(ISNA(MATCH('5.1'!A169,AUX_2d_pais!$G$2:$G$40000,0)),0,1) -> 0
A170: 0836 | B170: Norfolk, Ilha | C170: 0 | D170: 0 | E170: 0 | F170: 0 | G170: 0 | H170: 0 | I170: 0 | J170: 0 | K170: 0 | L170: 0 | M170: 0 | N170: 0 | O170: 0 | P170: 0 | Q170: 0 | R170: 0 | S170: 0 | T170: 0 | U170: 0 | V170: 0 | W170: 0 | X170: 0 | Y170: 0 | Z170: 0 | AA170: 0 | AC170: =L170-INDEX($C170:$L170,1,aux!$BA$1) -> 0 | AD170: 0 | AE170: =+IF(INDEX($C170:$L170,1,aux!$BA$1)>0,(L170/INDEX($C170:$L170,1,aux!$BA$1))^(1/($L$3-INDEX($C$3:$L$3,1,aux!$BA$1)))-1,"n.d.") -> n.d. | AF170: =IF(INDEX($C170:$L170,1,aux!$BA$1)>0,(L170-INDEX($C170:$L170,1,aux!$BA$1))/INDEX($C170:$L170,1,aux!$BA$1),"n.d.") -> n.d. | AH170: =X170-INDEX($O170:$X170,1,aux!$BA$1) -> 0 | AI170: 0 | AJ170: =+IF(INDEX($O170:$X170,1,aux!$BA$1)>0,(X170/INDEX($O170:$X170,1,aux!$BA$1))^(1/($X$3-INDEX($O$3:$X$3,1,aux!$BA$1)))-1,"n.d.") -> n.d. | AK170: =IF(INDEX($O170:$X170,1,aux!$BA$1)>0,(X170-INDEX($O170:$X170,1,aux!$BA$1))/INDEX($O170:$X170,1,aux!$BA$1),"n.d.") -> n.d. | AM170: 0 | BO170: 0 | CC170: =+IF(ISNA(MATCH('5.1'!A170,AUX_2d_pais!$G$2:$G$40000,0)),0,1) -> 0
A171: 0028 | B171: Noruega | C171: 17725.436 | D171: 3565.078 | E171: 4167.12 | F171: 4750.657 | G171: 5708.865 | H171: 7310.508 | I171: 816.884 | J171: 3774.843 | K171: 1149.593 | L171: 3620.423 | M171: 5258.9407 | N171: 0.0005642938713 | O171: 12765.899 | P171: 12880.245 | Q171: 10754.072 | R171: 13928.946 | S171: 12850.006 | T171: 40041.111 | U171: 54483.895 | V171: 54638.961 | W171: 19164.025 | X171: 17798.326 | Y171: 24930.5486 | Z171: 0.003578630791 | AA171: 19671.6079 | AC171: =L171-INDEX($C171:$L171,1,aux!$BA$1) -> -14105.013 | AD171: -0.004490365505 | AE171: =+IF(INDEX($C171:$L171,1,aux!$BA$1)>0,(L171/INDEX($C171:$L171,1,aux!$BA$1))^(1/($L$3-INDEX($C$3:$L$3,1,aux!$BA$1)))-1,"n.d.") -> -0.1617928202 | AF171: =IF(INDEX($C171:$L171,1,aux!$BA$1)>0,(L171-INDEX($C171:$L171,1,aux!$BA$1))/INDEX($C171:$L171,1,aux!$BA$1),"n.d.") -> -0.7957498478 | AH171: =X171-INDEX($O171:$X171,1,aux!$BA$1) -> 5032.427 | AI171: 0.00141764885 | AJ171: =+IF(INDEX($O171:$X171,1,aux!$BA$1)>0,(X171/INDEX($O171:$X171,1,aux!$BA$1))^(1/($X$3-INDEX($O$3:$X$3,1,aux!$BA$1)))-1,"n.d.") -> 0.03761541961 | AK171: =IF(INDEX($O171:$X171,1,aux!$BA$1)>0,(X171-INDEX($O171:$X171,1,aux!$BA$1))/INDEX($O171:$X171,1,aux!$BA$1),"n.d.") -> 0.3942085865 | CC171: =+IF(ISNA(MATCH('5.1'!A171,AUX_2d_pais!$G$2:$G$40000,0)),0,1) -> 1
A172: 0809 | B172: Nova Caledónia | C172: 0 | D172: 0 | E172: 0 | F172: 0 | G172: 0 | H172: 0 | I172: 0 | J172: 0 | K172: 0 | L172: 0 | M172: 0 | N172: 0 | O172: 0 | P172: 0 | Q172: 0 | R172: 0 | S172: 0 | T172: 0 | U172: 0 | V172: 0 | W172: 0 | X172: 0 | Y172: 0 | Z172: 0 | AA172: 0 | AC172: =L172-INDEX($C172:$L172,1,aux!$BA$1) -> 0 | AD172: 0 | AE172: =+IF(INDEX($C172:$L172,1,aux!$BA$1)>0,(L172/INDEX($C172:$L172,1,aux!$BA$1))^(1/($L$3-INDEX($C$3:$L$3,1,aux!$BA$1)))-1,"n.d.") -> n.d. | AF172: =IF(INDEX($C172:$L172,1,aux!$BA$1)>0,(L172-INDEX($C172:$L172,1,aux!$BA$1))/INDEX($C172:$L172,1,aux!$BA$1),"n.d.") -> n.d. | AH172: =X172-INDEX($O172:$X172,1,aux!$BA$1) -> 0 | AI172: 0 | AJ172: =+IF(INDEX($O172:$X172,1,aux!$BA$1)>0,(X172/INDEX($O172:$X172,1,aux!$BA$1))^(1/($X$3-INDEX($O$3:$X$3,1,aux!$BA$1)))-1,"n.d.") -> n.d. | AK172: =IF(INDEX($O172:$X172,1,aux!$BA$1)>0,(X172-INDEX($O172:$X172,1,aux!$BA$1))/INDEX($O172:$X172,1,aux!$BA$1),"n.d.") -> n.d. | AM172: 0 | CC172: =+IF(ISNA(MATCH('5.1'!A172,AUX_2d_pais!$G$2:$G$40000,0)),0,1) -> 0
A173: 0804 | B173: Nova Zelânda | C173: 0 | D173: 0 | E173: 0 | F173: 0 | G173: 0 | H173: 0 | I173: 0 | J173: 0 | K173: 0 | L173: 0 | M173: 0 | N173: 0 | O173: 0 | P173: 0 | Q173: 0 | R173: 0 | S173: 0 | T173: 0 | U173: 0 | V173: 0 | W173: 0 | X173: 0 | Y173: 0 | Z173: 0 | AA173: 0 | AC173: =L173-INDEX($C173:$L173,1,aux!$BA$1) -> 0 | AD173: 0 | AE173: =+IF(INDEX($C173:$L173,1,aux!$BA$1)>0,(L173/INDEX($C173:$L173,1,aux!$BA$1))^(1/($L$3-INDEX($C$3:$L$3,1,aux!$BA$1)))-1,"n.d.") -> n.d. | AF173: =IF(INDEX($C173:$L173,1,aux!$BA$1)>0,(L173-INDEX($C173:$L173,1,aux!$BA$1))/INDEX($C173:$L173,1,aux!$BA$1),"n.d.") -> n.d. | AH173: =X173-INDEX($O173:$X173,1,aux!$BA$1) -> 0 | AI173: 0 | AJ173: =+IF(INDEX($O173:$X173,1,aux!$BA$1)>0,(X173/INDEX($O173:$X173,1,aux!$BA$1))^(1/($X$3-INDEX($O$3:$X$3,1,aux!$BA$1)))-1,"n.d.") -> n.d. | AK173: =IF(INDEX($O173:$X173,1,aux!$BA$1)>0,(X173-INDEX($O173:$X173,1,aux!$BA$1))/INDEX($O173:$X173,1,aux!$BA$1),"n.d.") -> n.d. | AM173: 0 | CC173: =+IF(ISNA(MATCH('5.1'!A173,AUX_2d_pais!$G$2:$G$40000,0)),0,1) -> 0
A174: 0357 | B174: Oceano Indico, Território Britânico do | C174: 0 | D174: 0 | E174: 0 | F174: 0 | G174: 0 | H174: 0 | I174: 0 | J174: 0 | K174: 0 | L174: 0 | M174: 0 | N174: 0 | O174: 0 | P174: 0 | Q174: 0 | R174: 0 | S174: 0 | T174: 0 | U174: 0 | V174: 0 | W174: 0 | X174: 0 | Y174: 0 | Z174: 0 | AA174: 0 | AC174: =L174-INDEX($C174:$L174,1,aux!$BA$1) -> 0 | AD174: 0 | AE174: =+IF(INDEX($C174:$L174,1,aux!$BA$1)>0,(L174/INDEX($C174:$L174,1,aux!$BA$1))^(1/($L$3-INDEX($C$3:$L$3,1,aux!$BA$1)))-1,"n.d.") -> n.d. | AF174: =IF(INDEX($C174:$L174,1,aux!$BA$1)>0,(L174-INDEX($C174:$L174,1,aux!$BA$1))/INDEX($C174:$L174,1,aux!$BA$1),"n.d.") -> n.d. | AH174: =X174-INDEX($O174:$X174,1,aux!$BA$1) -> 0 | AI174: 0 | AJ174: =+IF(INDEX($O174:$X174,1,aux!$BA$1)>0,(X174/INDEX($O174:$X174,1,aux!$BA$1))^(1/($X$3-INDEX($O$3:$X$3,1,aux!$BA$1)))-1,"n.d.") -> n.d. | AK174: =IF(INDEX($O174:$X174,1,aux!$BA$1)>0,(X174-INDEX($O174:$X174,1,aux!$BA$1))/INDEX($O174:$X174,1,aux!$BA$1),"n.d.") -> n.d. | AM174: 0 | BO174: 0 | CC174: =+IF(ISNA(MATCH('5.1'!A174,AUX_2d_pais!$G$2:$G$40000,0)),0,1) -> 0
A175: 0649 | B175: Omã | C175: 0 | D175: 0 | E175: 0 | F175: 0 | G175: 0 | H175: 0 | I175: 0 | J175: 0 | K175: 0 | L175: 0 | M175: 0 | N175: 0 | O175: 0 | P175: 0 | Q175: 0 | R175: 0 | S175: 0 | T175: 0 | U175: 0 | V175: 0 | W175: 0 | X175: 0 | Y175: 0 | Z175: 0 | AA175: 0 | AC175: =L175-INDEX($C175:$L175,1,aux!$BA$1) -> 0 | AD175: 0 | AE175: =+IF(INDEX($C175:$L175,1,aux!$BA$1)>0,(L175/INDEX($C175:$L175,1,aux!$BA$1))^(1/($L$3-INDEX($C$3:$L$3,1,aux!$BA$1)))-1,"n.d.") -> n.d. | AF175: =IF(INDEX($C175:$L175,1,aux!$BA$1)>0,(L175-INDEX($C175:$L175,1,aux!$BA$1))/INDEX($C175:$L175,1,aux!$BA$1),"n.d.") -> n.d. | AH175: =X175-INDEX($O175:$X175,1,aux!$BA$1) -> 0 | AI175: 0 | AJ175: =+IF(INDEX($O175:$X175,1,aux!$BA$1)>0,(X175/INDEX($O175:$X175,1,aux!$BA$1))^(1/($X$3-INDEX($O$3:$X$3,1,aux!$BA$1)))-1,"n.d.") -> n.d. | AK175: =IF(INDEX($O175:$X175,1,aux!$BA$1)>0,(X175-INDEX($O175:$X175,1,aux!$BA$1))/INDEX($O175:$X175,1,aux!$BA$1),"n.d.") -> n.d. | AM175: 0 | CC175: =+IF(ISNA(MATCH('5.1'!A175,AUX_2d_pais!$G$2:$G$40000,0)),0,1) -> 0
A176: 0003 | B176: Países Baixos | C176: 469460.365 | D176: 491468.049 | E176: 610602.185 | F176: 575387.903 | G176: 536584.921 | H176: 596342.029 | I176: 645425.581 | J176: 666332.845 | K176: 749646.399 | L176: 732669.721 | M176: 607391.9998 | N176: 0.06517426275 | O176: 251292.696 | P176: 294845.847 | Q176: 371364.558 | R176: 364766.029 | S176: 365225.622 | T176: 395603.931 | U176: 407382.833 | V176: 442953.161 | W176: 506190.386 | X176: 482108.272 | Y176: 388173.3335 | Z176: 0.05571995489 | AA176: -219218.6663 | AC176: =L176-INDEX($C176:$L176,1,aux!$BA$1) -> 263209.356 | AD176: 0.08379334446 | AE176: =+IF(INDEX($C176:$L176,1,aux!$BA$1)>0,(L176/INDEX($C176:$L176,1,aux!$BA$1))^(1/($L$3-INDEX($C$3:$L$3,1,aux!$BA$1)))-1,"n.d.") -> 0.05070019393 | AF176: =IF(INDEX($C176:$L176,1,aux!$BA$1)>0,(L176-INDEX($C176:$L176,1,aux!$BA$1))/INDEX($C176:$L176,1,aux!$BA$1),"n.d.") -> 0.5606636377 | AH176: =X176-INDEX($O176:$X176,1,aux!$BA$1) -> 230815.576 | AI176: 0.0650213974 | AJ176: =+IF(INDEX($O176:$X176,1,aux!$BA$1)>0,(X176/INDEX($O176:$X176,1,aux!$BA$1))^(1/($X$3-INDEX($O$3:$X$3,1,aux!$BA$1)))-1,"n.d.") -> 0.07507936015 | AK176: =IF(INDEX($O176:$X176,1,aux!$BA$1)>0,(X176-INDEX($O176:$X176,1,aux!$BA$1))/INDEX($O176:$X176,1,aux!$BA$1),"n.d.") -> 0.9185128723 | CC176: =+IF(ISNA(MATCH('5.1'!A176,AUX_2d_pais!$G$2:$G$40000,0)),0,1) -> 1
A177: 0825 | B177: Palau | C177: 0 | D177: 0 | E177: 0 | F177: 0 | G177: 0 | H177: 0 | I177: 0 | J177: 0 | K177: 0 | L177: 0 | M177: 0 | N177: 0 | O177: 0 | P177: 0 | Q177: 0 | R177: 0 | S177: 0 | T177: 0 | U177: 0 | V177: 0 | W177: 0 | X177: 0 | Y177: 0 | Z177: 0 | AA177: 0 | AC177: =L177-INDEX($C177:$L177,1,aux!$BA$1) -> 0 | AD177: 0 | AE177: =+IF(INDEX($C177:$L177,1,aux!$BA$1)>0,(L177/INDEX($C177:$L177,1,aux!$BA$1))^(1/($L$3-INDEX($C$3:$L$3,1,aux!$BA$1)))-1,"n.d.") -> n.d. | AF177: =IF(INDEX($C177:$L177,1,aux!$BA$1)>0,(L177-INDEX($C177:$L177,1,aux!$BA$1))/INDEX($C177:$L177,1,aux!$BA$1),"n.d.") -> n.d. | AH177: =X177-INDEX($O177:$X177,1,aux!$BA$1) -> 0 | AI177: 0 | AJ177: =+IF(INDEX($O177:$X177,1,aux!$BA$1)>0,(X177/INDEX($O177:$X177,1,aux!$BA$1))^(1/($X$3-INDEX($O$3:$X$3,1,aux!$BA$1)))-1,"n.d.") -> n.d. | AK177: =IF(INDEX($O177:$X177,1,aux!$BA$1)>0,(X177-INDEX($O177:$X177,1,aux!$BA$1))/INDEX($O177:$X177,1,aux!$BA$1),"n.d.") -> n.d. | AM177: 0 | BO177: 0 | CC177: =+IF(ISNA(MATCH('5.1'!A177,AUX_2d_pais!$G$2:$G$40000,0)),0,1) -> 0
A178: 0442 | B178: Panamá | C178: 0 | D178: 0 | E178: 0 | F178: 0 | G178: 0 | H178: 0 | I178: 0 | J178: 0 | K178: 0 | L178: 0 | M178: 0 | N178: 0 | O178: 0 | P178: 0 | Q178: 0 | R178: 0 | S178: 0 | T178: 0 | U178: 0 | V178: 0 | W178: 0 | X178: 0 | Y178: 0 | Z178: 0 | AA178: 0 | AC178: =L178-INDEX($C178:$L178,1,aux!$BA$1) -> 0 | AD178: 0 | AE178: =+IF(INDEX($C178:$L178,1,aux!$BA$1)>0,(L178/INDEX($C178:$L178,1,aux!$BA$1))^(1/($L$3-INDEX($C$3:$L$3,1,aux!$BA$1)))-1,"n.d.") -> n.d. | AF178: =IF(INDEX($C178:$L178,1,aux!$BA$1)>0,(L178-INDEX($C178:$L178,1,aux!$BA$1))/INDEX($C178:$L178,1,aux!$BA$1),"n.d.") -> n.d. | AH178: =X178-INDEX($O178:$X178,1,aux!$BA$1) -> 0 | AI178: 0 | AJ178: =+IF(INDEX($O178:$X178,1,aux!$BA$1)>0,(X178/INDEX($O178:$X178,1,aux!$BA$1))^(1/($X$3-INDEX($O$3:$X$3,1,aux!$BA$1)))-1,"n.d.") -> n.d. | AK178: =IF(INDEX($O178:$X178,1,aux!$BA$1)>0,(X178-INDEX($O178:$X178,1,aux!$BA$1))/INDEX($O178:$X178,1,aux!$BA$1),"n.d.") -> n.d. | AM178: 0 | CC178: =+IF(ISNA(MATCH('5.1'!A178,AUX_2d_pais!$G$2:$G$40000,0)),0,1) -> 0
A179: 0801 | B179: Papuásia-Nova Guiné | C179: 0 | D179: 0 | E179: 0 | F179: 0 | G179: 0 | H179: 0 | I179: 0 | J179: 0 | K179: 0 | L179: 0 | M179: 0 | N179: 0 | O179: 0 | P179: 0 | Q179: 0 | R179: 0 | S179: 0 | T179: 0 | U179: 0 | V179: 0 | W179: 0 | X179: 0 | Y179: 0 | Z179: 0 | AA179: 0 | AC179: =L179-INDEX($C179:$L179,1,aux!$BA$1) -> 0 | AD179: 0 | AE179: =+IF(INDEX($C179:$L179,1,aux!$BA$1)>0,(L179/INDEX($C179:$L179,1,aux!$BA$1))^(1/($L$3-INDEX($C$3:$L$3,1,aux!$BA$1)))-1,"n.d.") -> n.d. | AF179: =IF(INDEX($C179:$L179,1,aux!$BA$1)>0,(L179-INDEX($C179:$L179,1,aux!$BA$1))/INDEX($C179:$L179,1,aux!$BA$1),"n.d.") -> n.d. | AH179: =X179-INDEX($O179:$X179,1,aux!$BA$1) -> 0 | AI179: 0 | AJ179: =+IF(INDEX($O179:$X179,1,aux!$BA$1)>0,(X179/INDEX($O179:$X179,1,aux!$BA$1))^(1/($X$3-INDEX($O$3:$X$3,1,aux!$BA$1)))-1,"n.d.") -> n.d. | AK179: =IF(INDEX($O179:$X179,1,aux!$BA$1)>0,(X179-INDEX($O179:$X179,1,aux!$BA$1))/INDEX($O179:$X179,1,aux!$BA$1),"n.d.") -> n.d. | AM179: 0 | BO179: 0 | CC179: =+IF(ISNA(MATCH('5.1'!A179,AUX_2d_pais!$G$2:$G$40000,0)),0,1) -> 0
A180: 0662 | B180: Paquistão | C180: 0 | D180: 0 | E180: 0 | F180: 0 | G180: 0 | H180: 0 | I180: 0 | J180: 0 | K180: 0 | L180: 0 | M180: 0 | N180: 0 | O180: 0 | P180: 0 | Q180: 0 | R180: 0 | S180: 0 | T180: 0 | U180: 0 | V180: 0 | W180: 0 | X180: 0 | Y180: 0 | Z180: 0 | AA180: 0 | AC180: =L180-INDEX($C180:$L180,1,aux!$BA$1) -> 0 | AD180: 0 | AE180: =+IF(INDEX($C180:$L180,1,aux!$BA$1)>0,(L180/INDEX($C180:$L180,1,aux!$BA$1))^(1/($L$3-INDEX($C$3:$L$3,1,aux!$BA$1)))-1,"n.d.") -> n.d. | AF180: =IF(INDEX($C180:$L180,1,aux!$BA$1)>0,(L180-INDEX($C180:$L180,1,aux!$BA$1))/INDEX($C180:$L180,1,aux!$BA$1),"n.d.") -> n.d. | AH180: =X180-INDEX($O180:$X180,1,aux!$BA$1) -> 0 | AI180: 0 | AJ180: =+IF(INDEX($O180:$X180,1,aux!$BA$1)>0,(X180/INDEX($O180:$X180,1,aux!$BA$1))^(1/($X$3-INDEX($O$3:$X$3,1,aux!$BA$1)))-1,"n.d.") -> n.d. | AK180: =IF(INDEX($O180:$X180,1,aux!$BA$1)>0,(X180-INDEX($O180:$X180,1,aux!$BA$1))/INDEX($O180:$X180,1,aux!$BA$1),"n.d.") -> n.d. | AM180: 0 | CC180: =+IF(ISNA(MATCH('5.1'!A180,AUX_2d_pais!$G$2:$G$40000,0)),0,1) -> 0
A181: 0520 | B181: Paraguai | C181: 0 | D181: 0 | E181: 0 | F181: 0 | G181: 0 | H181: 0 | I181: 0 | J181: 0 | K181: 0 | L181: 0 | M181: 0 | N181: 0 | O181: 0 | P181: 0 | Q181: 0 | R181: 0 | S181: 0 | T181: 0 | U181: 0 | V181: 0 | W181: 0 | X181: 0 | Y181: 0 | Z181: 0 | AA181: 0 | AC181: =L181-INDEX($C181:$L181,1,aux!$BA$1) -> 0 | AD181: 0 | AE181: =+IF(INDEX($C181:$L181,1,aux!$BA$1)>0,(L181/INDEX($C181:$L181,1,aux!$BA$1))^(1/($L$3-INDEX($C$3:$L$3,1,aux!$BA$1)))-1,"n.d.") -> n.d. | AF181: =IF(INDEX($C181:$L181,1,aux!$BA$1)>0,(L181-INDEX($C181:$L181,1,aux!$BA$1))/INDEX($C181:$L181,1,aux!$BA$1),"n.d.") -> n.d. | AH181: =X181-INDEX($O181:$X181,1,aux!$BA$1) -> 0 | AI181: 0 | AJ181: =+IF(INDEX($O181:$X181,1,aux!$BA$1)>0,(X181/INDEX($O181:$X181,1,aux!$BA$1))^(1/($X$3-INDEX($O$3:$X$3,1,aux!$BA$1)))-1,"n.d.") -> n.d. | AK181: =IF(INDEX($O181:$X181,1,aux!$BA$1)>0,(X181-INDEX($O181:$X181,1,aux!$BA$1))/INDEX($O181:$X181,1,aux!$BA$1),"n.d.") -> n.d. | AM181: 0 | CC181: =+IF(ISNA(MATCH('5.1'!A181,AUX_2d_pais!$G$2:$G$40000,0)),0,1) -> 0
A182: 0504 | B182: Peru | C182: 0 | D182: 0 | E182: 0 | F182: 0 | G182: 0 | H182: 0 | I182: 0 | J182: 0 | K182: 0 | L182: 0 | M182: 0 | N182: 0 | O182: 0 | P182: 0 | Q182: 0 | R182: 0 | S182: 0 | T182: 0 | U182: 0 | V182: 0 | W182: 0 | X182: 0 | Y182: 0 | Z182: 0 | AA182: 0 | AC182: =L182-INDEX($C182:$L182,1,aux!$BA$1) -> 0 | AD182: 0 | AE182: =+IF(INDEX($C182:$L182,1,aux!$BA$1)>0,(L182/INDEX($C182:$L182,1,aux!$BA$1))^(1/($L$3-INDEX($C$3:$L$3,1,aux!$BA$1)))-1,"n.d.") -> n.d. | AF182: =IF(INDEX($C182:$L182,1,aux!$BA$1)>0,(L182-INDEX($C182:$L182,1,aux!$BA$1))/INDEX($C182:$L182,1,aux!$BA$1),"n.d.") -> n.d. | AH182: =X182-INDEX($O182:$X182,1,aux!$BA$1) -> 0 | AI182: 0 | AJ182: =+IF(INDEX($O182:$X182,1,aux!$BA$1)>0,(X182/INDEX($O182:$X182,1,aux!$BA$1))^(1/($X$3-INDEX($O$3:$X$3,1,aux!$BA$1)))-1,"n.d.") -> n.d. | AK182: =IF(INDEX($O182:$X182,1,aux!$BA$1)>0,(X182-INDEX($O182:$X182,1,aux!$BA$1))/INDEX($O182:$X182,1,aux!$BA$1),"n.d.") -> n.d. | AM182: 0 | CC182: =+IF(ISNA(MATCH('5.1'!A182,AUX_2d_pais!$G$2:$G$40000,0)),0,1) -> 0
A183: 0813 | B183: Pitcairn | C183: 0 | D183: 0 | E183: 0 | F183: 0 | G183: 0 | H183: 0 | I183: 0 | J183: 0 | K183: 0 | L183: 0 | M183: 0 | N183: 0 | O183: 0 | P183: 0 | Q183: 0 | R183: 0 | S183: 0 | T183: 0 | U183: 0 | V183: 0 | W183: 0 | X183: 0 | Y183: 0 | Z183: 0 | AA183: 0 | AC183: =L183-INDEX($C183:$L183,1,aux!$BA$1) -> 0 | AD183: 0 | AE183: =+IF(INDEX($C183:$L183,1,aux!$BA$1)>0,(L183/INDEX($C183:$L183,1,aux!$BA$1))^(1/($L$3-INDEX($C$3:$L$3,1,aux!$BA$1)))-1,"n.d.") -> n.d. | AF183: =IF(INDEX($C183:$L183,1,aux!$BA$1)>0,(L183-INDEX($C183:$L183,1,aux!$BA$1))/INDEX($C183:$L183,1,aux!$BA$1),"n.d.") -> n.d. | AH183: =X183-INDEX($O183:$X183,1,aux!$BA$1) -> 0 | AI183: 0 | AJ183: =+IF(INDEX($O183:$X183,1,aux!$BA$1)>0,(X183/INDEX($O183:$X183,1,aux!$BA$1))^(1/($X$3-INDEX($O$3:$X$3,1,aux!$BA$1)))-1,"n.d.") -> n.d. | AK183: =IF(INDEX($O183:$X183,1,aux!$BA$1)>0,(X183-INDEX($O183:$X183,1,aux!$BA$1))/INDEX($O183:$X183,1,aux!$BA$1),"n.d.") -> n.d. | AM183: 0 | BO183: 0 | CC183: =+IF(ISNA(MATCH('5.1'!A183,AUX_2d_pais!$G$2:$G$40000,0)),0,1) -> 0
A184: 0822 | B184: Polinésia Francesa | C184: 0 | D184: 0 | E184: 0 | F184: 0 | G184: 0 | H184: 0 | I184: 0 | J184: 0 | K184: 0 | L184: 0 | M184: 0 | N184: 0 | O184: 0 | P184: 0 | Q184: 0 | R184: 0 | S184: 0 | T184: 0 | U184: 0 | V184: 0 | W184: 0 | X184: 0 | Y184: 0 | Z184: 0 | AA184: 0 | AC184: =L184-INDEX($C184:$L184,1,aux!$BA$1) -> 0 | AD184: 0 | AE184: =+IF(INDEX($C184:$L184,1,aux!$BA$1)>0,(L184/INDEX($C184:$L184,1,aux!$BA$1))^(1/($L$3-INDEX($C$3:$L$3,1,aux!$BA$1)))-1,"n.d.") -> n.d. | AF184: =IF(INDEX($C184:$L184,1,aux!$BA$1)>0,(L184-INDEX($C184:$L184,1,aux!$BA$1))/INDEX($C184:$L184,1,aux!$BA$1),"n.d.") -> n.d. | AH184: =X184-INDEX($O184:$X184,1,aux!$BA$1) -> 0 | AI184: 0 | AJ184: =+IF(INDEX($O184:$X184,1,aux!$BA$1)>0,(X184/INDEX($O184:$X184,1,aux!$BA$1))^(1/($X$3-INDEX($O$3:$X$3,1,aux!$BA$1)))-1,"n.d.") -> n.d. | AK184: =IF(INDEX($O184:$X184,1,aux!$BA$1)>0,(X184-INDEX($O184:$X184,1,aux!$BA$1))/INDEX($O184:$X184,1,aux!$BA$1),"n.d.") -> n.d. | AM184: 0 | CC184: =+IF(ISNA(MATCH('5.1'!A184,AUX_2d_pais!$G$2:$G$40000,0)),0,1) -> 0
A185: 0060 | B185: Polónia | C185: 32888.32 | D185: 46826.612 | E185: 51528.776 | F185: 65630.395 | G185: 80074.694 | H185: 108730.289 | I185: 116904.197 | J185: 138333.103 | K185: 148130.106 | L185: 154308.599 | M185: 94335.5091 | N185: 0.01012237115 | O185: 39417.61 | P185: 40563.836 | Q185: 83935.949 | R185: 94626.087 | S185: 107691.865 | T185: 136315.948 | U185: 182686.932 | V185: 191467.585 | W185: 209367.819 | X185: 251476.417 | Y185: 133755.0048 | Z185: 0.01919972907 | AA185: 39419.4957 | AC185: =L185-INDEX($C185:$L185,1,aux!$BA$1) -> 121420.279 | AD185: 0.03865444381 | AE185: =+IF(INDEX($C185:$L185,1,aux!$BA$1)>0,(L185/INDEX($C185:$L185,1,aux!$BA$1))^(1/($L$3-INDEX($C$3:$L$3,1,aux!$BA$1)))-1,"n.d.") -> 0.1873924167 | AF185: =IF(INDEX($C185:$L185,1,aux!$BA$1)>0,(L185-INDEX($C185:$L185,1,aux!$BA$1))/INDEX($C185:$L185,1,aux!$BA$1),"n.d.") -> 3.691896667 | AH185: =X185-INDEX($O185:$X185,1,aux!$BA$1) -> 212058.807 | AI185: 0.05973756278 | AJ185: =+IF(INDEX($O185:$X185,1,aux!$BA$1)>0,(X185/INDEX($O185:$X185,1,aux!$BA$1))^(1/($X$3-INDEX($O$3:$X$3,1,aux!$BA$1)))-1,"n.d.") -> 0.2286353237 | AK185: =IF(INDEX($O185:$X185,1,aux!$BA$1)>0,(X185-INDEX($O185:$X185,1,aux!$BA$1))/INDEX($O185:$X185,1,aux!$BA$1),"n.d.") -> 5.379798699 | CC185: =+IF(ISNA(MATCH('5.1'!A185,AUX_2d_pais!$G$2:$G$40000,0)),0,1) -> 1
A186: 0346 | B186: Quénia | C186: 0 | D186: 0 | E186: 0 | F186: 0 | G186: 0 | H186: 0 | I186: 0 | J186: 0 | K186: 0 | L186: 0 | M186: 0 | N186: 0 | O186: 0 | P186: 0 | Q186: 0 | R186: 0 | S186: 0 | T186: 0 | U186: 0 | V186: 0 | W186: 0 | X186: 0 | Y186: 0 | Z186: 0 | AA186: 0 | AC186: =L186-INDEX($C186:$L186,1,aux!$BA$1) -> 0 | AD186: 0 | AE186: =+IF(INDEX($C186:$L186,1,aux!$BA$1)>0,(L186/INDEX($C186:$L186,1,aux!$BA$1))^(1/($L$3-INDEX($C$3:$L$3,1,aux!$BA$1)))-1,"n.d.") -> n.d. | AF186: =IF(INDEX($C186:$L186,1,aux!$BA$1)>0,(L186-INDEX($C186:$L186,1,aux!$BA$1))/INDEX($C186:$L186,1,aux!$BA$1),"n.d.") -> n.d. | AH186: =X186-INDEX($O186:$X186,1,aux!$BA$1) -> 0 | AI186: 0 | AJ186: =+IF(INDEX($O186:$X186,1,aux!$BA$1)>0,(X186/INDEX($O186:$X186,1,aux!$BA$1))^(1/($X$3-INDEX($O$3:$X$3,1,aux!$BA$1)))-1,"n.d.") -> n.d. | AK186: =IF(INDEX($O186:$X186,1,aux!$BA$1)>0,(X186-INDEX($O186:$X186,1,aux!$BA$1))/INDEX($O186:$X186,1,aux!$BA$1),"n.d.") -> n.d. | AM186: 0 | CC186: =+IF(ISNA(MATCH('5.1'!A186,AUX_2d_pais!$G$2:$G$40000,0)),0,1) -> 0
A187: 0083 | B187: Quirguizistão | C187: 0 | D187: 0 | E187: 0 | F187: 0 | G187: 0 | H187: 0 | I187: 0 | J187: 0 | K187: 0 | L187: 0 | M187: 0 | N187: 0 | O187: 0 | P187: 0 | Q187: 0 | R187: 0 | S187: 0 | T187: 0 | U187: 0 | V187: 0 | W187: 0 | X187: 0 | Y187: 0 | Z187: 0 | AA187: 0 | AC187: =L187-INDEX($C187:$L187,1,aux!$BA$1) -> 0 | AD187: 0 | AE187: =+IF(INDEX($C187:$L187,1,aux!$BA$1)>0,(L187/INDEX($C187:$L187,1,aux!$BA$1))^(1/($L$3-INDEX($C$3:$L$3,1,aux!$BA$1)))-1,"n.d.") -> n.d. | AF187: =IF(INDEX($C187:$L187,1,aux!$BA$1)>0,(L187-INDEX($C187:$L187,1,aux!$BA$1))/INDEX($C187:$L187,1,aux!$BA$1),"n.d.") -> n.d. | AH187: =X187-INDEX($O187:$X187,1,aux!$BA$1) -> 0 | AI187: 0 | AJ187: =+IF(INDEX($O187:$X187,1,aux!$BA$1)>0,(X187/INDEX($O187:$X187,1,aux!$BA$1))^(1/($X$3-INDEX($O$3:$X$3,1,aux!$BA$1)))-1,"n.d.") -> n.d. | AK187: =IF(INDEX($O187:$X187,1,aux!$BA$1)>0,(X187-INDEX($O187:$X187,1,aux!$BA$1))/INDEX($O187:$X187,1,aux!$BA$1),"n.d.") -> n.d. | AM187: 0 | CC187: =+IF(ISNA(MATCH('5.1'!A187,AUX_2d_pais!$G$2:$G$40000,0)),0,1) -> 0
A188: 0890 | B188: Região Polar | C188: 0 | D188: 0 | E188: 0 | F188: 0 | G188: 0 | H188: 0 | I188: 0 | J188: 0 | K188: 0 | L188: 0 | M188: 0 | N188: 0 | O188: 0 | P188: 0 | Q188: 0 | R188: 0 | S188: 0 | T188: 0 | U188: 0 | V188: 0 | W188: 0 | X188: 0 | Y188: 0 | Z188: 0 | AA188: 0 | AC188: =L188-INDEX($C188:$L188,1,aux!$BA$1) -> 0 | AD188: 0 | AE188: =+IF(INDEX($C188:$L188,1,aux!$BA$1)>0,(L188/INDEX($C188:$L188,1,aux!$BA$1))^(1/($L$3-INDEX($C$3:$L$3,1,aux!$BA$1)))-1,"n.d.") -> n.d. | AF188: =IF(INDEX($C188:$L188,1,aux!$BA$1)>0,(L188-INDEX($C188:$L188,1,aux!$BA$1))/INDEX($C188:$L188,1,aux!$BA$1),"n.d.") -> n.d. | AH188: =X188-INDEX($O188:$X188,1,aux!$BA$1) -> 0 | AI188: 0 | AJ188: =+IF(INDEX($O188:$X188,1,aux!$BA$1)>0,(X188/INDEX($O188:$X188,1,aux!$BA$1))^(1/($X$3-INDEX($O$3:$X$3,1,aux!$BA$1)))-1,"n.d.") -> n.d. | AK188: =IF(INDEX($O188:$X188,1,aux!$BA$1)>0,(X188-INDEX($O188:$X188,1,aux!$BA$1))/INDEX($O188:$X188,1,aux!$BA$1),"n.d.") -> n.d. | AM188: 0 | BO188: 0 | CC188: =+IF(ISNA(MATCH('5.1'!A188,AUX_2d_pais!$G$2:$G$40000,0)),0,1) -> 0
A189: 0006 | B189: Reino Unido | C189: 243369.894 | D189: 252770.664 | E189: 225904.845 | F189: 197692.546 | G189: 208372.146 | H189: 208908.712 | I189: 250773.56 | J189: 262317.42 | K189: 210597.628 | L189: 229279.208 | M189: 228998.6623 | N189: 0.02457197163 | O189: 366780.723 | P189: 385710.025 | Q189: 434533.994 | R189: 458629.778 | S189: 498022.592 | T189: 604777.894 | U189: 690921.664 | V189: 578563.596 | W189: 570035.492 | X189: 606931.654 | Y189: 519490.7412 | Z189: 0.07456978151 | AA189: 290492.0789 | AC189: =L189-INDEX($C189:$L189,1,aux!$BA$1) -> -14090.686 | AD189: -0.00448580447 | AE189: =+IF(INDEX($C189:$L189,1,aux!$BA$1)>0,(L189/INDEX($C189:$L189,1,aux!$BA$1))^(1/($L$3-INDEX($C$3:$L$3,1,aux!$BA$1)))-1,"n.d.") -> -0.006604976584 | AF189: =IF(INDEX($C189:$L189,1,aux!$BA$1)>0,(L189-INDEX($C189:$L189,1,aux!$BA$1))/INDEX($C189:$L189,1,aux!$BA$1),"n.d.") -> -0.0578982296 | AH189: =X189-INDEX($O189:$X189,1,aux!$BA$1) -> 240150.931 | AI189: 0.06765119318 | AJ189: =+IF(INDEX($O189:$X189,1,aux!$BA$1)>0,(X189/INDEX($O189:$X189,1,aux!$BA$1))^(1/($X$3-INDEX($O$3:$X$3,1,aux!$BA$1)))-1,"n.d.") -> 0.0575567912 | AK189: =IF(INDEX($O189:$X189,1,aux!$BA$1)>0,(X189-INDEX($O189:$X189,1,aux!$BA$1))/INDEX($O189:$X189,1,aux!$BA$1),"n.d.") -> 0.6547534152 | CC189: =+IF(ISNA(MATCH('5.1'!A189,AUX_2d_pais!$G$2:$G$40000,0)),0,1) -> 1
A190: 0372 | B190: Reunião, Ilha da | C190: 0 | D190: 0 | E190: 0 | F190: 0 | G190: 0 | H190: 0 | I190: 0 | J190: 0 | K190: 0 | L190: 0 | M190: 0 | N190: 0 | O190: 0 | P190: 0 | Q190: 0 | R190: 0 | S190: 0 | T190: 0 | U190: 0 | V190: 0 | W190: 0 | X190: 0 | Y190: 0 | Z190: 0 | AA190: 0 | AC190: =L190-INDEX($C190:$L190,1,aux!$BA$1) -> 0 | AD190: 0 | AE190: =+IF(INDEX($C190:$L190,1,aux!$BA$1)>0,(L190/INDEX($C190:$L190,1,aux!$BA$1))^(1/($L$3-INDEX($C$3:$L$3,1,aux!$BA$1)))-1,"n.d.") -> n.d. | AF190: =IF(INDEX($C190:$L190,1,aux!$BA$1)>0,(L190-INDEX($C190:$L190,1,aux!$BA$1))/INDEX($C190:$L190,1,aux!$BA$1),"n.d.") -> n.d. | AH190: =X190-INDEX($O190:$X190,1,aux!$BA$1) -> 0 | AI190: 0 | AJ190: =+IF(INDEX($O190:$X190,1,aux!$BA$1)>0,(X190/INDEX($O190:$X190,1,aux!$BA$1))^(1/($X$3-INDEX($O$3:$X$3,1,aux!$BA$1)))-1,"n.d.") -> n.d. | AK190: =IF(INDEX($O190:$X190,1,aux!$BA$1)>0,(X190-INDEX($O190:$X190,1,aux!$BA$1))/INDEX($O190:$X190,1,aux!$BA$1),"n.d.") -> n.d. | AM190: 0 | BO190: 0 | CC190: =+IF(ISNA(MATCH('5.1'!A190,AUX_2d_pais!$G$2:$G$40000,0)),0,1) -> 0
A191: 0066 | B191: Roménia | C191: 63171.574 | D191: 40838.091 | E191: 22956.034 | F191: 61597.098 | G191: 59797.282 | H191: 57433.366 | I191: 72192.966 | J191: 52141.727 | K191: 89997.778 | L191: 112253.493 | M191: 63237.9409 | N191: 0.006785545705 | O191: 16543.971 | P191: 16366.776 | Q191: 28090.144 | R191: 28429.494 | S191: 30006.338 | T191: 29627.709 | U191: 11407.866 | V191: 10896.791 | W191: 27752.75 | X191: 26047.834 | Y191: 22516.9673 | Z191: 0.003232175665 | AA191: -40720.9736 | AC191: =L191-INDEX($C191:$L191,1,aux!$BA$1) -> 49081.919 | AD191: 0.01562534937 | AE191: =+IF(INDEX($C191:$L191,1,aux!$BA$1)>0,(L191/INDEX($C191:$L191,1,aux!$BA$1))^(1/($L$3-INDEX($C$3:$L$3,1,aux!$BA$1)))-1,"n.d.") -> 0.06596272512 | AF191: =IF(INDEX($C191:$L191,1,aux!$BA$1)>0,(L191-INDEX($C191:$L191,1,aux!$BA$1))/INDEX($C191:$L191,1,aux!$BA$1),"n.d.") -> 0.7769621032 | AH191: =X191-INDEX($O191:$X191,1,aux!$BA$1) -> 9503.863 | AI191: 0.002677264956 | AJ191: =+IF(INDEX($O191:$X191,1,aux!$BA$1)>0,(X191/INDEX($O191:$X191,1,aux!$BA$1))^(1/($X$3-INDEX($O$3:$X$3,1,aux!$BA$1)))-1,"n.d.") -> 0.05172825005 | AK191: =IF(INDEX($O191:$X191,1,aux!$BA$1)>0,(X191-INDEX($O191:$X191,1,aux!$BA$1))/INDEX($O191:$X191,1,aux!$BA$1),"n.d.") -> 0.5744608111 | CC191: =+IF(ISNA(MATCH('5.1'!A191,AUX_2d_pais!$G$2:$G$40000,0)),0,1) -> 1
A192: 0324 | B192: Ruanda | C192: 0 | D192: 0 | E192: 0 | F192: 0 | G192: 0 | H192: 0 | I192: 0 | J192: 0 | K192: 0 | L192: 0 | M192: 0 | N192: 0 | O192: 0 | P192: 0 | Q192: 0 | R192: 0 | S192: 0 | T192: 0 | U192: 0 | V192: 0 | W192: 0 | X192: 0 | Y192: 0 | Z192: 0 | AA192: 0 | AC192: =L192-INDEX($C192:$L192,1,aux!$BA$1) -> 0 | AD192: 0 | AE192: =+IF(INDEX($C192:$L192,1,aux!$BA$1)>0,(L192/INDEX($C192:$L192,1,aux!$BA$1))^(1/($L$3-INDEX($C$3:$L$3,1,aux!$BA$1)))-1,"n.d.") -> n.d. | AF192: =IF(INDEX($C192:$L192,1,aux!$BA$1)>0,(L192-INDEX($C192:$L192,1,aux!$BA$1))/INDEX($C192:$L192,1,aux!$BA$1),"n.d.") -> n.d. | AH192: =X192-INDEX($O192:$X192,1,aux!$BA$1) -> 0 | AI192: 0 | AJ192: =+IF(INDEX($O192:$X192,1,aux!$BA$1)>0,(X192/INDEX($O192:$X192,1,aux!$BA$1))^(1/($X$3-INDEX($O$3:$X$3,1,aux!$BA$1)))-1,"n.d.") -> n.d. | AK192: =IF(INDEX($O192:$X192,1,aux!$BA$1)>0,(X192-INDEX($O192:$X192,1,aux!$BA$1))/INDEX($O192:$X192,1,aux!$BA$1),"n.d.") -> n.d. | AM192: 0 | BO192: 0 | CC192: =+IF(ISNA(MATCH('5.1'!A192,AUX_2d_pais!$G$2:$G$40000,0)),0,1) -> 0
A193: 0075 | B193: Rússia, Federação da | C193: 0 | D193: 0 | E193: 0 | F193: 0 | G193: 0 | H193: 0 | I193: 0 | J193: 0 | K193: 0 | L193: 0 | M193: 0 | N193: 0 | O193: 0 | P193: 0 | Q193: 0 | R193: 0 | S193: 0 | T193: 0 | U193: 0 | V193: 0 | W193: 0 | X193: 0 | Y193: 0 | Z193: 0 | AA193: 0 | AC193: =L193-INDEX($C193:$L193,1,aux!$BA$1) -> 0 | AD193: 0 | AE193: =+IF(INDEX($C193:$L193,1,aux!$BA$1)>0,(L193/INDEX($C193:$L193,1,aux!$BA$1))^(1/($L$3-INDEX($C$3:$L$3,1,aux!$BA$1)))-1,"n.d.") -> n.d. | AF193: =IF(INDEX($C193:$L193,1,aux!$BA$1)>0,(L193-INDEX($C193:$L193,1,aux!$BA$1))/INDEX($C193:$L193,1,aux!$BA$1),"n.d.") -> n.d. | AH193: =X193-INDEX($O193:$X193,1,aux!$BA$1) -> 0 | AI193: 0 | AJ193: =+IF(INDEX($O193:$X193,1,aux!$BA$1)>0,(X193/INDEX($O193:$X193,1,aux!$BA$1))^(1/($X$3-INDEX($O$3:$X$3,1,aux!$BA$1)))-1,"n.d.") -> n.d. | AK193: =IF(INDEX($O193:$X193,1,aux!$BA$1)>0,(X193-INDEX($O193:$X193,1,aux!$BA$1))/INDEX($O193:$X193,1,aux!$BA$1),"n.d.") -> n.d. | AM193: 0 | CC193: =+IF(ISNA(MATCH('5.1'!A193,AUX_2d_pais!$G$2:$G$40000,0)),0,1) -> 0
A194: 0806 | B194: Salomão, Ilhas | C194: 0 | D194: 0 | E194: 0 | F194: 0 | G194: 0 | H194: 0 | I194: 0 | J194: 0 | K194: 0 | L194: 0 | M194: 0 | N194: 0 | O194: 0 | P194: 0 | Q194: 0 | R194: 0 | S194: 0 | T194: 0 | U194: 0 | V194: 0 | W194: 0 | X194: 0 | Y194: 0 | Z194: 0 | AA194: 0 | AC194: =L194-INDEX($C194:$L194,1,aux!$BA$1) -> 0 | AD194: 0 | AE194: =+IF(INDEX($C194:$L194,1,aux!$BA$1)>0,(L194/INDEX($C194:$L194,1,aux!$BA$1))^(1/($L$3-INDEX($C$3:$L$3,1,aux!$BA$1)))-1,"n.d.") -> n.d. | AF194: =IF(INDEX($C194:$L194,1,aux!$BA$1)>0,(L194-INDEX($C194:$L194,1,aux!$BA$1))/INDEX($C194:$L194,1,aux!$BA$1),"n.d.") -> n.d. | AH194: =X194-INDEX($O194:$X194,1,aux!$BA$1) -> 0 | AI194: 0 | AJ194: =+IF(INDEX($O194:$X194,1,aux!$BA$1)>0,(X194/INDEX($O194:$X194,1,aux!$BA$1))^(1/($X$3-INDEX($O$3:$X$3,1,aux!$BA$1)))-1,"n.d.") -> n.d. | AK194: =IF(INDEX($O194:$X194,1,aux!$BA$1)>0,(X194-INDEX($O194:$X194,1,aux!$BA$1))/INDEX($O194:$X194,1,aux!$BA$1),"n.d.") -> n.d. | AM194: 0 | BO194: 0 | CC194: =+IF(ISNA(MATCH('5.1'!A194,AUX_2d_pais!$G$2:$G$40000,0)),0,1) -> 0
A195: 0819 | B195: Samoa | C195: 0 | D195: 0 | E195: 0 | F195: 0 | G195: 0 | H195: 0 | I195: 0 | J195: 0 | K195: 0 | L195: 0 | M195: 0 | N195: 0 | O195: 0 | P195: 0 | Q195: 0 | R195: 0 | S195: 0 | T195: 0 | U195: 0 | V195: 0 | W195: 0 | X195: 0 | Y195: 0 | Z195: 0 | AA195: 0 | AC195: =L195-INDEX($C195:$L195,1,aux!$BA$1) -> 0 | AD195: 0 | AE195: =+IF(INDEX($C195:$L195,1,aux!$BA$1)>0,(L195/INDEX($C195:$L195,1,aux!$BA$1))^(1/($L$3-INDEX($C$3:$L$3,1,aux!$BA$1)))-1,"n.d.") -> n.d. | AF195: =IF(INDEX($C195:$L195,1,aux!$BA$1)>0,(L195-INDEX($C195:$L195,1,aux!$BA$1))/INDEX($C195:$L195,1,aux!$BA$1),"n.d.") -> n.d. | AH195: =X195-INDEX($O195:$X195,1,aux!$BA$1) -> 0 | AI195: 0 | AJ195: =+IF(INDEX($O195:$X195,1,aux!$BA$1)>0,(X195/INDEX($O195:$X195,1,aux!$BA$1))^(1/($X$3-INDEX($O$3:$X$3,1,aux!$BA$1)))-1,"n.d.") -> n.d. | AK195: =IF(INDEX($O195:$X195,1,aux!$BA$1)>0,(X195-INDEX($O195:$X195,1,aux!$BA$1))/INDEX($O195:$X195,1,aux!$BA$1),"n.d.") -> n.d. | AM195: 0 | BO195: 0 | CC195: =+IF(ISNA(MATCH('5.1'!A195,AUX_2d_pais!$G$2:$G$40000,0)),0,1) -> 0
A196: 0830 | B196: Samoa Americana | C196: 0 | D196: 0 | E196: 0 | F196: 0 | G196: 0 | H196: 0 | I196: 0 | J196: 0 | K196: 0 | L196: 0 | M196: 0 | N196: 0 | O196: 0 | P196: 0 | Q196: 0 | R196: 0 | S196: 0 | T196: 0 | U196: 0 | V196: 0 | W196: 0 | X196: 0 | Y196: 0 | Z196: 0 | AA196: 0 | AC196: =L196-INDEX($C196:$L196,1,aux!$BA$1) -> 0 | AD196: 0 | AE196: =+IF(INDEX($C196:$L196,1,aux!$BA$1)>0,(L196/INDEX($C196:$L196,1,aux!$BA$1))^(1/($L$3-INDEX($C$3:$L$3,1,aux!$BA$1)))-1,"n.d.") -> n.d. | AF196: =IF(INDEX($C196:$L196,1,aux!$BA$1)>0,(L196-INDEX($C196:$L196,1,aux!$BA$1))/INDEX($C196:$L196,1,aux!$BA$1),"n.d.") -> n.d. | AH196: =X196-INDEX($O196:$X196,1,aux!$BA$1) -> 0 | AI196: 0 | AJ196: =+IF(INDEX($O196:$X196,1,aux!$BA$1)>0,(X196/INDEX($O196:$X196,1,aux!$BA$1))^(1/($X$3-INDEX($O$3:$X$3,1,aux!$BA$1)))-1,"n.d.") -> n.d. | AK196: =IF(INDEX($O196:$X196,1,aux!$BA$1)>0,(X196-INDEX($O196:$X196,1,aux!$BA$1))/INDEX($O196:$X196,1,aux!$BA$1),"n.d.") -> n.d. | AM196: =SUM(A196:AA196) -> 0 | BO196: =SUM(C196:L196,O196:X196) -> 0 | CC196: =+IF(ISNA(MATCH('5.1'!A196,AUX_2d_pais!$G$2:$G$40000,0)),0,1) -> 0
A197: 0329 | B197: Santa Helena | C197: 0 | D197: 0 | E197: 0 | F197: 0 | G197: 0 | H197: 0 | I197: 0 | J197: 0 | K197: 0 | L197: 0 | M197: 0 | N197: 0 | O197: 0 | P197: 0 | Q197: 0 | R197: 0 | S197: 0 | T197: 0 | U197: 0 | V197: 0 | W197: 0 | X197: 0 | Y197: 0 | Z197: 0 | AA197: 0 | AC197: =L197-INDEX($C197:$L197,1,aux!$BA$1) -> 0 | AD197: 0 | AE197: =+IF(INDEX($C197:$L197,1,aux!$BA$1)>0,(L197/INDEX($C197:$L197,1,aux!$BA$1))^(1/($L$3-INDEX($C$3:$L$3,1,aux!$BA$1)))-1,"n.d.") -> n.d. | AF197: =IF(INDEX($C197:$L197,1,aux!$BA$1)>0,(L197-INDEX($C197:$L197,1,aux!$BA$1))/INDEX($C197:$L197,1,aux!$BA$1),"n.d.") -> n.d. | AH197: =X197-INDEX($O197:$X197,1,aux!$BA$1) -> 0 | AI197: 0 | AJ197: =+IF(INDEX($O197:$X197,1,aux!$BA$1)>0,(X197/INDEX($O197:$X197,1,aux!$BA$1))^(1/($X$3-INDEX($O$3:$X$3,1,aux!$BA$1)))-1,"n.d.") -> n.d. | AK197: =IF(INDEX($O197:$X197,1,aux!$BA$1)>0,(X197-INDEX($O197:$X197,1,aux!$BA$1))/INDEX($O197:$X197,1,aux!$BA$1),"n.d.") -> n.d. | AM197: 0 | BO197: 0 | CC197: =+IF(ISNA(MATCH('5.1'!A197,AUX_2d_pais!$G$2:$G$40000,0)),0,1) -> 0
A198: 0465 | B198: Santa Lúcia | C198: 0 | D198: 0 | E198: 0 | F198: 0 | G198: 0 | H198: 0 | I198: 0 | J198: 0 | K198: 0 | L198: 0 | M198: 0 | N198: 0 | O198: 0 | P198: 0 | Q198: 0 | R198: 0 | S198: 0 | T198: 0 | U198: 0 | V198: 0 | W198: 0 | X198: 0 | Y198: 0 | Z198: 0 | AA198: 0 | AC198: =L198-INDEX($C198:$L198,1,aux!$BA$1) -> 0 | AD198: 0 | AE198: =+IF(INDEX($C198:$L198,1,aux!$BA$1)>0,(L198/INDEX($C198:$L198,1,aux!$BA$1))^(1/($L$3-INDEX($C$3:$L$3,1,aux!$BA$1)))-1,"n.d.") -> n.d. | AF198: =IF(INDEX($C198:$L198,1,aux!$BA$1)>0,(L198-INDEX($C198:$L198,1,aux!$BA$1))/INDEX($C198:$L198,1,aux!$BA$1),"n.d.") -> n.d. | AH198: =X198-INDEX($O198:$X198,1,aux!$BA$1) -> 0 | AI198: 0 | AJ198: =+IF(INDEX($O198:$X198,1,aux!$BA$1)>0,(X198/INDEX($O198:$X198,1,aux!$BA$1))^(1/($X$3-INDEX($O$3:$X$3,1,aux!$BA$1)))-1,"n.d.") -> n.d. | AK198: =IF(INDEX($O198:$X198,1,aux!$BA$1)>0,(X198-INDEX($O198:$X198,1,aux!$BA$1))/INDEX($O198:$X198,1,aux!$BA$1),"n.d.") -> n.d. | AM198: 0 | BO198: 0 | CC198: =+IF(ISNA(MATCH('5.1'!A198,AUX_2d_pais!$G$2:$G$40000,0)),0,1) -> 0
A199: 0045 | B199: Santa Sé (Cidade Estado do Vaticano) | C199: 0 | D199: 0 | E199: 0 | F199: 0 | G199: 0 | H199: 0 | I199: 0 | J199: 0 | K199: 0 | L199: 0 | M199: 0 | N199: 0 | O199: 0 | P199: 0 | Q199: 0 | R199: 0 | S199: 2.619 | T199: 0 | U199: 0 | V199: 0 | W199: 0 | X199: 0.011 | Y199: 0.263 | Z199: 3.775207329e-08 | AA199: 0.263 | AC199: =L199-INDEX($C199:$L199,1,aux!$BA$1) -> 0 | AD199: 0 | AE199: =+IF(INDEX($C199:$L199,1,aux!$BA$1)>0,(L199/INDEX($C199:$L199,1,aux!$BA$1))^(1/($L$3-INDEX($C$3:$L$3,1,aux!$BA$1)))-1,"n.d.") -> n.d. | AF199: =IF(INDEX($C199:$L199,1,aux!$BA$1)>0,(L199-INDEX($C199:$L199,1,aux!$BA$1))/INDEX($C199:$L199,1,aux!$BA$1),"n.d.") -> n.d. | AH199: =X199-INDEX($O199:$X199,1,aux!$BA$1) -> 0.011 | AI199: 3.09873096e-09 | AJ199: =+IF(INDEX($O199:$X199,1,aux!$BA$1)>0,(X199/INDEX($O199:$X199,1,aux!$BA$1))^(1/($X$3-INDEX($O$3:$X$3,1,aux!$BA$1)))-1,"n.d.") -> n.d. | AK199: =IF(INDEX($O199:$X199,1,aux!$BA$1)>0,(X199-INDEX($O199:$X199,1,aux!$BA$1))/INDEX($O199:$X199,1,aux!$BA$1),"n.d.") -> n.d. | BO199: 2.63 | CC199: =+IF(ISNA(MATCH('5.1'!A199,AUX_2d_pais!$G$2:$G$40000,0)),0,1) -> 1
A200: 0466 | B200: São Bartolomeu | C200: 0 | D200: 0 | E200: 0 | F200: 0 | G200: 0 | H200: 0 | I200: 0 | J200: 0 | K200: 0 | L200: 0 | M200: 0 | N200: 0 | O200: 0 | P200: 0 | Q200: 0 | R200: 0 | S200: 0 | T200: 0 | U200: 0 | V200: 0 | W200: 0 | X200: 0 | Y200: 0 | Z200: 0 | AA200: 0 | AC200: =L200-INDEX($C200:$L200,1,aux!$BA$1) -> 0 | AD200: 0 | AE200: =+IF(INDEX($C200:$L200,1,aux!$BA$1)>0,(L200/INDEX($C200:$L200,1,aux!$BA$1))^(1/($L$3-INDEX($C$3:$L$3,1,aux!$BA$1)))-1,"n.d.") -> n.d. | AF200: =IF(INDEX($C200:$L200,1,aux!$BA$1)>0,(L200-INDEX($C200:$L200,1,aux!$BA$1))/INDEX($C200:$L200,1,aux!$BA$1),"n.d.") -> n.d. | AH200: =X200-INDEX($O200:$X200,1,aux!$BA$1) -> 0 | AI200: 0 | AJ200: =+IF(INDEX($O200:$X200,1,aux!$BA$1)>0,(X200/INDEX($O200:$X200,1,aux!$BA$1))^(1/($X$3-INDEX($O$3:$X$3,1,aux!$BA$1)))-1,"n.d.") -> n.d. | AK200: =IF(INDEX($O200:$X200,1,aux!$BA$1)>0,(X200-INDEX($O200:$X200,1,aux!$BA$1))/INDEX($O200:$X200,1,aux!$BA$1),"n.d.") -> n.d. | AM200: 0 | CC200: =+IF(ISNA(MATCH('5.1'!A200,AUX_2d_pais!$G$2:$G$40000,0)),0,1) -> 0
... 54 more rows

Sheet 5.1_var
A1: ="Principais contributos por país para a variação das trocas comerciais PT-Europa_x000D_ no período " & INDEX('5.2'!P3:X3,1,aux!BA1) & "-2018 Agroalimentar, Mar & Florestas (valores em milhares de euros)" -> Principais contributos por país para a variação das trocas comerciais PT-Europa no período 2009-2018 Agroalimentar, Mar & Florestas (valores em milhares de euros)
E5: aumento das importações | J5: aumento das exportações
E17: redução das importações | J17: redução das exportações
A28: Fonte: GPP a partir de dados INE/Comércio Internacional (2017 provisórios; 2018 preliminares) | H28: ='3'!Y116 -> 2019-11-26
A29: Cód. NC | B29: Descritivo | C29: ="Variação das Importações " & INDEX('5.2'!C3:L3,1,aux!BA1) & "-"& '5.2'!L3&"" -> Variação das Importações 2009-2018 | F29: Cód. NC | G29: Descritivo | H29: ="Variação das Exportações " & INDEX('5.2'!P3:X3,1,aux!BA1) & "-"& '5.2'!Y3 &"" -> Variação das Exportações 2009-2018
C30: variação total em valor | D30: % do aumento/ redução total | H30: variação total em valor | I30: % do aumento/ redução total
A31: =IF(C31>0,aux!CY6,"") -> 0011 | B31: =IF(C31>0,aux!CZ6,"") -> Espanha | C31: =IF(aux!DA6>0,aux!DA6,0) -> 1802558.021 | D31: =IF(SUM($C$31:$C$41)<>0,C31/SUM($C$31:$C$41),0) -> 0.5502655421 | F31: =IF(H31>0,aux!DD6,"") -> 0011 | G31: =IF(H31>0,aux!DE6,"") -> Espanha | H31: =IF(aux!DF6>0,aux!DF6,0) -> 1354014.898 | I31: =IF(SUM($H$31:$H$41)<>0,H31/SUM($H$31:$H$41),0) -> 0.3803393295
A32: =IF(C32>0,aux!CY7,"") -> 0004 | B32: =IF(C32>0,aux!CZ7,"") -> Alemanha | C32: =IF(aux!DA7>0,aux!DA7,0) -> 312667.861 | D32: =IF(SUM($C$31:$C$41)<>0,C32/SUM($C$31:$C$41),0) -> 0.09544788463 | F32: =IF(H32>0,aux!DD7,"") -> 0001 | G32: =IF(H32>0,aux!DE7,"") -> França | H32: =IF(aux!DF7>0,aux!DF7,0) -> 416171.545 | I32: =IF(SUM($H$31:$H$41)<>0,H32/SUM($H$31:$H$41),0) -> 0.116901525
A33: =IF(C33>0,aux!CY8,"") -> 0003 | B33: =IF(C33>0,aux!CZ8,"") -> Países Baixos | C33: =IF(aux!DA8>0,aux!DA8,0) -> 263209.356 | D33: 0.08034972371 | F33: =IF(H33>0,aux!DD8,"") -> 0005 | G33: =IF(H33>0,aux!DE8,"") -> Itália | H33: =IF(aux!DF8>0,aux!DF8,0) -> 393189.175 | I33: 0.1104458359
A34: =IF(C34>0,aux!CY9,"") -> 0030 | B34: =IF(C34>0,aux!CZ9,"") -> Suécia | C34: =IF(aux!DA9>0,aux!DA9,0) -> 162471.075 | D34: 0.04959742384 | F34: =IF(H34>0,aux!DD9,"") -> 0006 | G34: =IF(H34>0,aux!DE9,"") -> Reino Unido | H34: =IF(aux!DF9>0,aux!DF9,0) -> 240150.931 | I34: 0.06745778367
A35: =IF(C35>0,aux!CY10,"") -> 0005 | B35: =IF(C35>0,aux!CZ10,"") -> Itália | C35: =IF(aux!DA10>0,aux!DA10,0) -> 139905.613 | D35: 0.04270888209 | F35: =IF(H35>0,aux!DD10,"") -> 0003 | G35: =IF(H35>0,aux!DE10,"") -> Países Baixos | H35: =IF(aux!DF10>0,aux!DF10,0) -> 230815.576 | I35: 0.06483550628
A36: =IF(C36>0,aux!CY11,"") -> 0072 | B36: =IF(C36>0,aux!CZ11,"") -> Ucrânia | C36: =IF(aux!DA11>0,aux!DA11,0) -> 135275.44 | D36: 0.04129543263 | F36: =IF(H36>0,aux!DD11,"") -> 0004 | G36: =IF(H36>0,aux!DE11,"") -> Alemanha | H36: =IF(aux!DF11>0,aux!DF11,0) -> 217840.317 | I36: 0.06119078914
A37: =IF(C37>0,aux!CY12,"") -> 0060 | B37: =IF(C37>0,aux!CZ12,"") -> Polónia | C37: =IF(aux!DA12>0,aux!DA12,0) -> 121420.279 | D37: 0.03706587797 | F37: =IF(H37>0,aux!DD12,"") -> 0060 | G37: =IF(H37>0,aux!DE12,"") -> Polónia | H37: =IF(aux!DF12>0,aux!DF12,0) -> 212058.807 | I37: 0.05956677773
A38: =IF(C38>0,aux!CY13,"") -> 0066 | B38: =IF(C38>0,aux!CZ13,"") -> Roménia | C38: =IF(aux!DA13>0,aux!DA13,0) -> 49081.919 | D38: 0.01498320079 | F38: =IF(H38>0,aux!DD13,"") -> 0052 | G38: =IF(H38>0,aux!DE13,"") -> Turquia | H38: =IF(aux!DF13>0,aux!DF13,0) -> 114774.873 | I38: 0.03223996893
A39: =IF(C39>0,aux!CY14,"") -> 0017 | B39: =IF(C39>0,aux!CZ14,"") -> Bélgica | C39: =IF(aux!DA14>0,aux!DA14,0) -> 48265.354 | D39: 0.0147339286 | F39: =IF(H39>0,aux!DD14,"") -> 0017 | G39: =IF(H39>0,aux!DE14,"") -> Bélgica | H39: =IF(aux!DF14>0,aux!DF14,0) -> 59791.608 | I39: 0.0167953101
A40: =IF(C40>0,aux!CY15,"") -> 0052 | B40: =IF(C40>0,aux!CZ15,"") -> Turquia | C40: =IF(aux!DA15>0,aux!DA15,0) -> 46227.866 | D40: 0.01411194616 | F40: =IF(H40>0,aux!DD15,"") -> 0039 | G40: =IF(H40>0,aux!DE15,"") -> Suíça | H40: =IF(aux!DF15>0,aux!DF15,0) -> 44117.17 | I40: 0.01239240047
B41: Outros contributos para o aumento das importações | C41: =SUMIF(aux!DA16:DA252,">0") -> 194713.869 | D41: 0.0594401575 | G41: Outros contributos para o aumento das exportações | H41: =SUMIF(aux!DF16:DF252,">0") -> 277093.202 | I41: 0.07783477332
B42: Outros contributos para a redução das importações | C42: =SUMIF(aux!DA6:DA242,"<0") -> 0 | D42: =IF(SUM($C$42:$C$52)<>0,C42/SUM($C$42:$C$52),0) -> 0 | G42: Outros contributos para a redução das exportações | H42: =SUMIF(aux!DF6:DF242,"<0") -> 0 | I42: =IF(SUM($H$42:$H$52)<>0,H42/SUM($H$42:$H$52),0) -> 0
A43: =IF(C43<>0,aux!CY243,"") -> 0037 | B43: =IF(C43<0,aux!CZ243,"") -> Liechtenstein | C43: =IF(aux!DA243<0,aux!DA243,0) -> -1.131 | D43: =IF(SUM($C$42:$C$52)<>0,C43/SUM($C$42:$C$52),0) -> 8.401172055e-06 | F43: =IF(H43<>0,aux!DD243,"") ->  | G43: =IF(H43<>0,aux!DE243,"") ->  | H43: =IF(aux!DF243<0,aux!DF243,0) -> 0 | I43: =IF(SUM($H$42:$H$52)<>0,H43/SUM($H$42:$H$52),0) -> 0
A44: =IF(C44<>0,aux!CY244,"") -> 0054 | B44: =IF(C44<0,aux!CZ244,"") -> Letónia | C44: =IF(aux!DA244<0,aux!DA244,0) -> -830.141 | D44: 0.006166363723 | F44: =IF(H44<>0,aux!DD244,"") ->  | G44: =IF(H44<>0,aux!DE244,"") ->  | H44: =IF(aux!DF244<0,aux!DF244,0) -> 0 | I44: 0
A45: =IF(C45<>0,aux!CY245,"") -> 0001 | B45: =IF(C45<0,aux!CZ245,"") -> França | C45: =IF(aux!DA245<0,aux!DA245,0) -> -842.904 | D45: 0.006261168461 | F45: =IF(H45<>0,aux!DD245,"") ->  | G45: =IF(H45<>0,aux!DE245,"") ->  | H45: =IF(aux!DF245<0,aux!DF245,0) -> 0 | I45: 0
A46: =IF(C46<>0,aux!CY246,"") -> 0024 | B46: =IF(C46<0,aux!CZ246,"") -> Islândia | C46: =IF(aux!DA246<0,aux!DA246,0) -> -1006.538 | D46: 0.007476656868 | F46: =IF(H46<>0,aux!DD246,"") ->  | G46: =IF(H46<>0,aux!DE246,"") ->  | H46: =IF(aux!DF246<0,aux!DF246,0) -> 0 | I46: 0
A47: =IF(C47<>0,aux!CY247,"") -> 0063 | B47: =IF(C47<0,aux!CZ247,"") -> Eslováquia | C47: =IF(aux!DA247<0,aux!DA247,0) -> -3943.71 | D47: 0.02929424071 | F47: =IF(H47<>0,aux!DD247,"") ->  | G47: =IF(H47<>0,aux!DE247,"") ->  | H47: =IF(aux!DF247<0,aux!DF247,0) -> 0 | I47: 0
A48: =IF(C48<>0,aux!CY248,"") -> 0006 | B48: =IF(C48<0,aux!CZ248,"") -> Reino Unido | C48: =IF(aux!DA248<0,aux!DA248,0) -> -14090.686 | D48: 0.104666912 | F48: =IF(H48<>0,aux!DD248,"") ->  | G48: =IF(H48<>0,aux!DE248,"") ->  | H48: =IF(aux!DF248<0,aux!DF248,0) -> 0 | I48: 0
A49: =IF(C49<>0,aux!CY249,"") -> 0028 | B49: =IF(C49<0,aux!CZ249,"") -> Noruega | C49: =IF(aux!DA249<0,aux!DA249,0) -> -14105.013 | D49: 0.1047733343 | F49: =IF(H49<>0,aux!DD249,"") ->  | G49: =IF(H49<>0,aux!DE249,"") ->  | H49: =IF(aux!DF249<0,aux!DF249,0) -> 0 | I49: 0
A50: =IF(C50<>0,aux!CY250,"") -> 0007 | B50: =IF(C50<0,aux!CZ250,"") -> Irlanda | C50: =IF(aux!DA250<0,aux!DA250,0) -> -20088.222 | D50: 0.1492171612 | F50: =IF(H50<>0,aux!DD250,"") -> 0043 | G50: =IF(H50<>0,aux!DE250,"") -> Andorra | H50: =IF(aux!DF250<0,aux!DF250,0) -> -637.208 | I50: 0.06260754396
A51: =IF(C51<>0,aux!CY251,"") -> 0039 | B51: =IF(C51<0,aux!CZ251,"") -> Suíça | C51: =IF(aux!DA251<0,aux!DA251,0) -> -39620.596 | D51: 0.2943054323 | F51: =IF(H51<>0,aux!DD251,"") -> 0047 | G51: =IF(H51<>0,aux!DE251,"") -> São Marino | H51: =IF(aux!DF251<0,aux!DF251,0) -> -1061.57 | I51: 0.1043023478
A52: =IF(C52<>0,aux!CY252,"") -> 90XS | B52: =IF(C52<0,aux!CZ252,"") -> Sérvia | C52: =IF(aux!DA252<0,aux!DA252,0) -> -40095.132 | D52: 0.2978303293 | F52: =IF(H52<>0,aux!DD252,"") -> 0061 | G52: =IF(H52<>0,aux!DE252,"") -> Checa, República | H52: =IF(aux!DF252<0,aux!DF252,0) -> -8479.037 | I52: 0.8330901082
A53: TOTAL | C53: =SUM(C31:C52) -> 3141172.58 | F53: TOTAL | H53: =SUM(H31:H52) -> 3549840.287

Sheet 5.1A
A1: Trocas comerciais Portugal-Europa (2009-2018) por país em milhares de euros | C1: Produtos agrícolas e agroalimentares
A2: Cód. País | B2: País | C2: Importações | O2: Exportações | AA2: Saldo período (exp-imp) | AB2: Evolução das importações | AC2: =+"Variação das Importações " & INDEX(C3:K3,1,aux!$BA$1) & "-"& L3 &"" -> Variação das Importações 2009-2018 | AG2: Evolução das exportações | AH2: ="Variação das Exportações " & INDEX(O3:W3,1,aux!BA1) & "-"& X3 &"" -> Variação das Exportações 2009-2018
C3: 2009 | D3: 2010 | E3: 2011 | F3: 2012 | G3: 2013 | H3: 2014 | I3: 2015 | J3: 2016 | K3: 2017 | L3: 2018 | M3: média período | N3: % Total | O3: 2009 | P3: 2010 | Q3: 2011 | R3: 2012 | S3: 2013 | T3: 2014 | U3: 2015 | V3: 2016 | W3: 2017 | X3: 2018 | Y3: média período | Z3: % Total | AC3: variação total em valor | AD3: % no total de variação | AE3: taxa de variação média anual | AF3: taxa de variação total | AH3: variação total em valor | AI3: % no total de variação | AJ3: taxa de variação média anual | AK3: taxa de variação total | CC3: filtro
A4: 0660 | B4: Afeganistão | C4: 0 | D4: 0 | E4: 0 | F4: 0 | G4: 0 | H4: 0 | I4: 0 | J4: 0 | K4: 0 | L4: 0 | M4: 0 | N4: 0 | O4: 0 | P4: 0 | Q4: 0 | R4: 0 | S4: 0 | T4: 0 | U4: 0 | V4: 0 | W4: 0 | X4: 0 | Y4: 0 | Z4: 0 | AA4: 0 | AC4: =L4-INDEX($C4:$L4,1,aux!$BA$1) -> 0 | AD4: =AC4/$AC$252 -> 0 | AE4: =+IF(INDEX($C4:$L4,1,aux!$BA$1)>0,(L4/INDEX($C4:$L4,1,aux!$BA$1))^(1/($L$3-INDEX($C$3:$L$3,1,aux!$BA$1)))-1,"n.d.") -> n.d. | AF4: =IF(INDEX($C4:$L4,1,aux!$BA$1)>0,(L4-INDEX($C4:$L4,1,aux!$BA$1))/INDEX($C4:$L4,1,aux!$BA$1),"n.d.") -> n.d. | AH4: =X4-INDEX($O4:$X4,1,aux!$BA$1) -> 0 | AI4: =AH4/$AH$252 -> 0 | AJ4: =+IF(INDEX($O4:$X4,1,aux!$BA$1)>0,(X4/INDEX($O4:$X4,1,aux!$BA$1))^(1/($X$3-INDEX($O$3:$X$3,1,aux!$BA$1)))-1,"n.d.") -> n.d. | AK4: =IF(INDEX($O4:$X4,1,aux!$BA$1)>0,(X4-INDEX($O4:$X4,1,aux!$BA$1))/INDEX($O4:$X4,1,aux!$BA$1),"n.d.") -> n.d. | AM4: =SUM(A4:AA4) -> 0 | CC4: =+IF(ISNA(MATCH('5.1'!A4,AUX_2d_pais!$G$2:$G$40000,0)),0,1) -> 0
A5: 0388 | B5: África do Sul | C5: 0 | D5: 0 | E5: 0 | F5: 0 | G5: 0 | H5: 0 | I5: 0 | J5: 0 | K5: 0 | L5: 0 | M5: 0 | N5: 0 | O5: 0 | P5: 0 | Q5: 0 | R5: 0 | S5: 0 | T5: 0 | U5: 0 | V5: 0 | W5: 0 | X5: 0 | Y5: 0 | Z5: 0 | AA5: 0 | AC5: =L5-INDEX($C5:$L5,1,aux!$BA$1) -> 0 | AD5: 0 | AE5: =+IF(INDEX($C5:$L5,1,aux!$BA$1)>0,(L5/INDEX($C5:$L5,1,aux!$BA$1))^(1/($L$3-INDEX($C$3:$L$3,1,aux!$BA$1)))-1,"n.d.") -> n.d. | AF5: =IF(INDEX($C5:$L5,1,aux!$BA$1)>0,(L5-INDEX($C5:$L5,1,aux!$BA$1))/INDEX($C5:$L5,1,aux!$BA$1),"n.d.") -> n.d. | AH5: =X5-INDEX($O5:$X5,1,aux!$BA$1) -> 0 | AI5: 0 | AJ5: =+IF(INDEX($O5:$X5,1,aux!$BA$1)>0,(X5/INDEX($O5:$X5,1,aux!$BA$1))^(1/($X$3-INDEX($O$3:$X$3,1,aux!$BA$1)))-1,"n.d.") -> n.d. | AK5: =IF(INDEX($O5:$X5,1,aux!$BA$1)>0,(X5-INDEX($O5:$X5,1,aux!$BA$1))/INDEX($O5:$X5,1,aux!$BA$1),"n.d.") -> n.d. | AM5: 0 | CC5: =+IF(ISNA(MATCH('5.1'!A5,AUX_2d_pais!$G$2:$G$40000,0)),0,1) -> 0
A6: 0070 | B6: Albânia | C6: 0 | D6: 0 | E6: 0 | F6: 0 | G6: 0 | H6: 0 | I6: 0 | J6: 0 | K6: 0 | L6: 87.963 | M6: 8.7963 | N6: 1.371619564e-06 | O6: 30.467 | P6: 421.657 | Q6: 255.452 | R6: 40.973 | S6: 279.015 | T6: 828.576 | U6: 770.443 | V6: 1347.413 | W6: 3423.806 | X6: 3641.372 | Y6: 1103.9174 | Z6: 0.0003196989126 | AA6: 1095.1211 | AC6: =L6-INDEX($C6:$L6,1,aux!$BA$1) -> 87.963 | AD6: 4.244164415e-05 | AE6: =+IF(INDEX($C6:$L6,1,aux!$BA$1)>0,(L6/INDEX($C6:$L6,1,aux!$BA$1))^(1/($L$3-INDEX($C$3:$L$3,1,aux!$BA$1)))-1,"n.d.") -> n.d. | AF6: =IF(INDEX($C6:$L6,1,aux!$BA$1)>0,(L6-INDEX($C6:$L6,1,aux!$BA$1))/INDEX($C6:$L6,1,aux!$BA$1),"n.d.") -> n.d. | AH6: =X6-INDEX($O6:$X6,1,aux!$BA$1) -> 3610.905 | AI6: 0.002035534996 | AJ6: =+IF(INDEX($O6:$X6,1,aux!$BA$1)>0,(X6/INDEX($O6:$X6,1,aux!$BA$1))^(1/($X$3-INDEX($O$3:$X$3,1,aux!$BA$1)))-1,"n.d.") -> 0.7014772657 | AK6: =IF(INDEX($O6:$X6,1,aux!$BA$1)>0,(X6-INDEX($O6:$X6,1,aux!$BA$1))/INDEX($O6:$X6,1,aux!$BA$1),"n.d.") -> 118.5185611 | CC6: =+IF(ISNA(MATCH('5.1'!A6,AUX_2d_pais!$G$2:$G$40000,0)),0,1) -> 1
A7: 0004 | B7: Alemanha | C7: 424748.481 | D7: 421328.604 | E7: 430768.738 | F7: 423964.604 | G7: 411623.979 | H7: 430918.804 | I7: 411798.625 | J7: 480374.571 | K7: 598856.76 | L7: 697147.982 | M7: 473153.1148 | N7: 0.07377943785 | O7: 122467.947 | P7: 124483.898 | Q7: 131073.876 | R7: 141117.893 | S7: 119260.857 | T7: 132778.954 | U7: 179556.595 | V7: 186402.296 | W7: 204387.377 | X7: 212013.349 | Y7: 155354.3042 | Z7: 0.04499123043 | AA7: -317798.8106 | AC7: =L7-INDEX($C7:$L7,1,aux!$BA$1) -> 272399.501 | AD7: 0.1314312005 | AE7: =+IF(INDEX($C7:$L7,1,aux!$BA$1)>0,(L7/INDEX($C7:$L7,1,aux!$BA$1))^(1/($L$3-INDEX($C$3:$L$3,1,aux!$BA$1)))-1,"n.d.") -> 0.05659937366 | AF7: =IF(INDEX($C7:$L7,1,aux!$BA$1)>0,(L7-INDEX($C7:$L7,1,aux!$BA$1))/INDEX($C7:$L7,1,aux!$BA$1),"n.d.") -> 0.6413195413 | AH7: =X7-INDEX($O7:$X7,1,aux!$BA$1) -> 89545.402 | AI7: 0.05047842563 | AJ7: =+IF(INDEX($O7:$X7,1,aux!$BA$1)>0,(X7/INDEX($O7:$X7,1,aux!$BA$1))^(1/($X$3-INDEX($O$3:$X$3,1,aux!$BA$1)))-1,"n.d.") -> 0.06287528279 | AK7: =IF(INDEX($O7:$X7,1,aux!$BA$1)>0,(X7-INDEX($O7:$X7,1,aux!$BA$1))/INDEX($O7:$X7,1,aux!$BA$1),"n.d.") -> 0.7311741904 | CC7: =+IF(ISNA(MATCH('5.1'!A7,AUX_2d_pais!$G$2:$G$40000,0)),0,1) -> 1
A8: 0043 | B8: Andorra | C8: 2.455 | D8: 2.901 | E8: 3.91 | F8: 8.466 | G8: 2.405 | H8: 8.515 | I8: 3.737 | J8: 0.352 | K8: 4.672 | L8: 6.077 | M8: 4.349 | N8: 6.781457527e-07 | O8: 3536.14 | P8: 4477.275 | Q8: 4023.27 | R8: 3964.223 | S8: 3298.011 | T8: 3200.76 | U8: 2627.718 | V8: 2849.47 | W8: 3019.059 | X8: 2997.265 | Y8: 3399.3191 | Z8: 0.0009844564638 | AA8: 3394.9701 | AC8: =L8-INDEX($C8:$L8,1,aux!$BA$1) -> 3.622 | AD8: 1.747594274e-06 | AE8: =+IF(INDEX($C8:$L8,1,aux!$BA$1)>0,(L8/INDEX($C8:$L8,1,aux!$BA$1))^(1/($L$3-INDEX($C$3:$L$3,1,aux!$BA$1)))-1,"n.d.") -> 0.1059551789 | AF8: =IF(INDEX($C8:$L8,1,aux!$BA$1)>0,(L8-INDEX($C8:$L8,1,aux!$BA$1))/INDEX($C8:$L8,1,aux!$BA$1),"n.d.") -> 1.475356415 | AH8: =X8-INDEX($O8:$X8,1,aux!$BA$1) -> -538.875 | AI8: -0.0003037739627 | AJ8: =+IF(INDEX($O8:$X8,1,aux!$BA$1)>0,(X8/INDEX($O8:$X8,1,aux!$BA$1))^(1/($X$3-INDEX($O$3:$X$3,1,aux!$BA$1)))-1,"n.d.") -> -0.01820290333 | AK8: =IF(INDEX($O8:$X8,1,aux!$BA$1)>0,(X8-INDEX($O8:$X8,1,aux!$BA$1))/INDEX($O8:$X8,1,aux!$BA$1),"n.d.") -> -0.1523907424 | CC8: =+IF(ISNA(MATCH('5.1'!A8,AUX_2d_pais!$G$2:$G$40000,0)),0,1) -> 1
A9: 0330 | B9: Angola | C9: 0 | D9: 0 | E9: 0 | F9: 0 | G9: 0 | H9: 0 | I9: 0 | J9: 0 | K9: 0 | L9: 0 | M9: 0 | N9: 0 | O9: 0 | P9: 0 | Q9: 0 | R9: 0 | S9: 0 | T9: 0 | U9: 0 | V9: 0 | W9: 0 | X9: 0 | Y9: 0 | Z9: 0 | AA9: 0 | AC9: =L9-INDEX($C9:$L9,1,aux!$BA$1) -> 0 | AD9: 0 | AE9: =+IF(INDEX($C9:$L9,1,aux!$BA$1)>0,(L9/INDEX($C9:$L9,1,aux!$BA$1))^(1/($L$3-INDEX($C$3:$L$3,1,aux!$BA$1)))-1,"n.d.") -> n.d. | AF9: =IF(INDEX($C9:$L9,1,aux!$BA$1)>0,(L9-INDEX($C9:$L9,1,aux!$BA$1))/INDEX($C9:$L9,1,aux!$BA$1),"n.d.") -> n.d. | AH9: =X9-INDEX($O9:$X9,1,aux!$BA$1) -> 0 | AI9: 0 | AJ9: =+IF(INDEX($O9:$X9,1,aux!$BA$1)>0,(X9/INDEX($O9:$X9,1,aux!$BA$1))^(1/($X$3-INDEX($O$3:$X$3,1,aux!$BA$1)))-1,"n.d.") -> n.d. | AK9: =IF(INDEX($O9:$X9,1,aux!$BA$1)>0,(X9-INDEX($O9:$X9,1,aux!$BA$1))/INDEX($O9:$X9,1,aux!$BA$1),"n.d.") -> n.d. | AM9: 0 | CC9: =+IF(ISNA(MATCH('5.1'!A9,AUX_2d_pais!$G$2:$G$40000,0)),0,1) -> 0
A10: 0446 | B10: Anguila | C10: 0 | D10: 0 | E10: 0 | F10: 0 | G10: 0 | H10: 0 | I10: 0 | J10: 0 | K10: 0 | L10: 0 | M10: 0 | N10: 0 | O10: 0 | P10: 0 | Q10: 0 | R10: 0 | S10: 0 | T10: 0 | U10: 0 | V10: 0 | W10: 0 | X10: 0 | Y10: 0 | Z10: 0 | AA10: 0 | AC10: =L10-INDEX($C10:$L10,1,aux!$BA$1) -> 0 | AD10: 0 | AE10: =+IF(INDEX($C10:$L10,1,aux!$BA$1)>0,(L10/INDEX($C10:$L10,1,aux!$BA$1))^(1/($L$3-INDEX($C$3:$L$3,1,aux!$BA$1)))-1,"n.d.") -> n.d. | AF10: =IF(INDEX($C10:$L10,1,aux!$BA$1)>0,(L10-INDEX($C10:$L10,1,aux!$BA$1))/INDEX($C10:$L10,1,aux!$BA$1),"n.d.") -> n.d. | AH10: =X10-INDEX($O10:$X10,1,aux!$BA$1) -> 0 | AI10: 0 | AJ10: =+IF(INDEX($O10:$X10,1,aux!$BA$1)>0,(X10/INDEX($O10:$X10,1,aux!$BA$1))^(1/($X$3-INDEX($O$3:$X$3,1,aux!$BA$1)))-1,"n.d.") -> n.d. | AK10: =IF(INDEX($O10:$X10,1,aux!$BA$1)>0,(X10-INDEX($O10:$X10,1,aux!$BA$1))/INDEX($O10:$X10,1,aux!$BA$1),"n.d.") -> n.d. | AM10: 0 | CC10: =+IF(ISNA(MATCH('5.1'!A10,AUX_2d_pais!$G$2:$G$40000,0)),0,1) -> 0
A11: 0891 | B11: Antárctica | C11: 0 | D11: 0 | E11: 0 | F11: 0 | G11: 0 | H11: 0 | I11: 0 | J11: 0 | K11: 0 | L11: 0 | M11: 0 | N11: 0 | O11: 0 | P11: 0 | Q11: 0 | R11: 0 | S11: 0 | T11: 0 | U11: 0 | V11: 0 | W11: 0 | X11: 0 | Y11: 0 | Z11: 0 | AA11: 0 | AC11: =L11-INDEX($C11:$L11,1,aux!$BA$1) -> 0 | AD11: 0 | AE11: =+IF(INDEX($C11:$L11,1,aux!$BA$1)>0,(L11/INDEX($C11:$L11,1,aux!$BA$1))^(1/($L$3-INDEX($C$3:$L$3,1,aux!$BA$1)))-1,"n.d.") -> n.d. | AF11: =IF(INDEX($C11:$L11,1,aux!$BA$1)>0,(L11-INDEX($C11:$L11,1,aux!$BA$1))/INDEX($C11:$L11,1,aux!$BA$1),"n.d.") -> n.d. | AH11: =X11-INDEX($O11:$X11,1,aux!$BA$1) -> 0 | AI11: 0 | AJ11: =+IF(INDEX($O11:$X11,1,aux!$BA$1)>0,(X11/INDEX($O11:$X11,1,aux!$BA$1))^(1/($X$3-INDEX($O$3:$X$3,1,aux!$BA$1)))-1,"n.d.") -> n.d. | AK11: =IF(INDEX($O11:$X11,1,aux!$BA$1)>0,(X11-INDEX($O11:$X11,1,aux!$BA$1))/INDEX($O11:$X11,1,aux!$BA$1),"n.d.") -> n.d. | AM11: 0 | CC11: =+IF(ISNA(MATCH('5.1'!A11,AUX_2d_pais!$G$2:$G$40000,0)),0,1) -> 0
A12: 0459 | B12: Antígua e Barbuda | C12: 0 | D12: 0 | E12: 0 | F12: 0 | G12: 0 | H12: 0 | I12: 0 | J12: 0 | K12: 0 | L12: 0 | M12: 0 | N12: 0 | O12: 0 | P12: 0 | Q12: 0 | R12: 0 | S12: 0 | T12: 0 | U12: 0 | V12: 0 | W12: 0 | X12: 0 | Y12: 0 | Z12: 0 | AA12: 0 | AC12: =L12-INDEX($C12:$L12,1,aux!$BA$1) -> 0 | AD12: 0 | AE12: =+IF(INDEX($C12:$L12,1,aux!$BA$1)>0,(L12/INDEX($C12:$L12,1,aux!$BA$1))^(1/($L$3-INDEX($C$3:$L$3,1,aux!$BA$1)))-1,"n.d.") -> n.d. | AF12: =IF(INDEX($C12:$L12,1,aux!$BA$1)>0,(L12-INDEX($C12:$L12,1,aux!$BA$1))/INDEX($C12:$L12,1,aux!$BA$1),"n.d.") -> n.d. | AH12: =X12-INDEX($O12:$X12,1,aux!$BA$1) -> 0 | AI12: 0 | AJ12: =+IF(INDEX($O12:$X12,1,aux!$BA$1)>0,(X12/INDEX($O12:$X12,1,aux!$BA$1))^(1/($X$3-INDEX($O$3:$X$3,1,aux!$BA$1)))-1,"n.d.") -> n.d. | AK12: =IF(INDEX($O12:$X12,1,aux!$BA$1)>0,(X12-INDEX($O12:$X12,1,aux!$BA$1))/INDEX($O12:$X12,1,aux!$BA$1),"n.d.") -> n.d. | AM12: 0 | CC12: =+IF(ISNA(MATCH('5.1'!A12,AUX_2d_pais!$G$2:$G$40000,0)),0,1) -> 0
A13: 0478 | B13: Antilhas Holandesas | C13: 0 | D13: 0 | E13: 0 | F13: 0 | G13: 0 | H13: 0 | I13: 0 | J13: 0 | K13: 0 | L13: 0 | M13: 0 | N13: 0 | O13: 0 | P13: 0 | Q13: 0 | R13: 0 | S13: 0 | T13: 0 | U13: 0 | V13: 0 | W13: 0 | X13: 0 | Y13: 0 | Z13: 0 | AA13: 0 | AC13: =L13-INDEX($C13:$L13,1,aux!$BA$1) -> 0 | AD13: 0 | AE13: =+IF(INDEX($C13:$L13,1,aux!$BA$1)>0,(L13/INDEX($C13:$L13,1,aux!$BA$1))^(1/($L$3-INDEX($C$3:$L$3,1,aux!$BA$1)))-1,"n.d.") -> n.d. | AF13: =IF(INDEX($C13:$L13,1,aux!$BA$1)>0,(L13-INDEX($C13:$L13,1,aux!$BA$1))/INDEX($C13:$L13,1,aux!$BA$1),"n.d.") -> n.d. | AH13: =X13-INDEX($O13:$X13,1,aux!$BA$1) -> 0 | AI13: 0 | AJ13: =+IF(INDEX($O13:$X13,1,aux!$BA$1)>0,(X13/INDEX($O13:$X13,1,aux!$BA$1))^(1/($X$3-INDEX($O$3:$X$3,1,aux!$BA$1)))-1,"n.d.") -> n.d. | AK13: =IF(INDEX($O13:$X13,1,aux!$BA$1)>0,(X13-INDEX($O13:$X13,1,aux!$BA$1))/INDEX($O13:$X13,1,aux!$BA$1),"n.d.") -> n.d. | AM13: 0 | CC13: =+IF(ISNA(MATCH('5.1'!A13,AUX_2d_pais!$G$2:$G$40000,0)),0,1) -> 0
A14: 0632 | B14: Arábia Saudita | C14: 0 | D14: 0 | E14: 0 | F14: 0 | G14: 0 | H14: 0 | I14: 0 | J14: 0 | K14: 0 | L14: 0 | M14: 0 | N14: 0 | O14: 0 | P14: 0 | Q14: 0 | R14: 0 | S14: 0 | T14: 0 | U14: 0 | V14: 0 | W14: 0 | X14: 0 | Y14: 0 | Z14: 0 | AA14: 0 | AC14: =L14-INDEX($C14:$L14,1,aux!$BA$1) -> 0 | AD14: 0 | AE14: =+IF(INDEX($C14:$L14,1,aux!$BA$1)>0,(L14/INDEX($C14:$L14,1,aux!$BA$1))^(1/($L$3-INDEX($C$3:$L$3,1,aux!$BA$1)))-1,"n.d.") -> n.d. | AF14: =IF(INDEX($C14:$L14,1,aux!$BA$1)>0,(L14-INDEX($C14:$L14,1,aux!$BA$1))/INDEX($C14:$L14,1,aux!$BA$1),"n.d.") -> n.d. | AH14: =X14-INDEX($O14:$X14,1,aux!$BA$1) -> 0 | AI14: 0 | AJ14: =+IF(INDEX($O14:$X14,1,aux!$BA$1)>0,(X14/INDEX($O14:$X14,1,aux!$BA$1))^(1/($X$3-INDEX($O$3:$X$3,1,aux!$BA$1)))-1,"n.d.") -> n.d. | AK14: =IF(INDEX($O14:$X14,1,aux!$BA$1)>0,(X14-INDEX($O14:$X14,1,aux!$BA$1))/INDEX($O14:$X14,1,aux!$BA$1),"n.d.") -> n.d. | AM14: 0 | CC14: =+IF(ISNA(MATCH('5.1'!A14,AUX_2d_pais!$G$2:$G$40000,0)),0,1) -> 0
A15: 0208 | B15: Argélia | C15: 0 | D15: 0 | E15: 0 | F15: 0 | G15: 0 | H15: 0 | I15: 0 | J15: 0 | K15: 0 | L15: 0 | M15: 0 | N15: 0 | O15: 0 | P15: 0 | Q15: 0 | R15: 0 | S15: 0 | T15: 0 | U15: 0 | V15: 0 | W15: 0 | X15: 0 | Y15: 0 | Z15: 0 | AA15: 0 | AC15: =L15-INDEX($C15:$L15,1,aux!$BA$1) -> 0 | AD15: 0 | AE15: =+IF(INDEX($C15:$L15,1,aux!$BA$1)>0,(L15/INDEX($C15:$L15,1,aux!$BA$1))^(1/($L$3-INDEX($C$3:$L$3,1,aux!$BA$1)))-1,"n.d.") -> n.d. | AF15: =IF(INDEX($C15:$L15,1,aux!$BA$1)>0,(L15-INDEX($C15:$L15,1,aux!$BA$1))/INDEX($C15:$L15,1,aux!$BA$1),"n.d.") -> n.d. | AH15: =X15-INDEX($O15:$X15,1,aux!$BA$1) -> 0 | AI15: 0 | AJ15: =+IF(INDEX($O15:$X15,1,aux!$BA$1)>0,(X15/INDEX($O15:$X15,1,aux!$BA$1))^(1/($X$3-INDEX($O$3:$X$3,1,aux!$BA$1)))-1,"n.d.") -> n.d. | AK15: =IF(INDEX($O15:$X15,1,aux!$BA$1)>0,(X15-INDEX($O15:$X15,1,aux!$BA$1))/INDEX($O15:$X15,1,aux!$BA$1),"n.d.") -> n.d. | AM15: 0 | CC15: =+IF(ISNA(MATCH('5.1'!A15,AUX_2d_pais!$G$2:$G$40000,0)),0,1) -> 0
A16: 0528 | B16: Argentina | C16: 0 | D16: 0 | E16: 0 | F16: 0 | G16: 0 | H16: 0 | I16: 0 | J16: 0 | K16: 0 | L16: 0 | M16: 0 | N16: 0 | O16: 0 | P16: 0 | Q16: 0 | R16: 0 | S16: 0 | T16: 0 | U16: 0 | V16: 0 | W16: 0 | X16: 0 | Y16: 0 | Z16: 0 | AA16: 0 | AC16: =L16-INDEX($C16:$L16,1,aux!$BA$1) -> 0 | AD16: 0 | AE16: =+IF(INDEX($C16:$L16,1,aux!$BA$1)>0,(L16/INDEX($C16:$L16,1,aux!$BA$1))^(1/($L$3-INDEX($C$3:$L$3,1,aux!$BA$1)))-1,"n.d.") -> n.d. | AF16: =IF(INDEX($C16:$L16,1,aux!$BA$1)>0,(L16-INDEX($C16:$L16,1,aux!$BA$1))/INDEX($C16:$L16,1,aux!$BA$1),"n.d.") -> n.d. | AH16: =X16-INDEX($O16:$X16,1,aux!$BA$1) -> 0 | AI16: 0 | AJ16: =+IF(INDEX($O16:$X16,1,aux!$BA$1)>0,(X16/INDEX($O16:$X16,1,aux!$BA$1))^(1/($X$3-INDEX($O$3:$X$3,1,aux!$BA$1)))-1,"n.d.") -> n.d. | AK16: =IF(INDEX($O16:$X16,1,aux!$BA$1)>0,(X16-INDEX($O16:$X16,1,aux!$BA$1))/INDEX($O16:$X16,1,aux!$BA$1),"n.d.") -> n.d. | AM16: 0 | CC16: =+IF(ISNA(MATCH('5.1'!A16,AUX_2d_pais!$G$2:$G$40000,0)),0,1) -> 0
A17: 0077 | B17: Arménia | C17: 0 | D17: 0 | E17: 0 | F17: 0 | G17: 0 | H17: 0 | I17: 0 | J17: 0 | K17: 0 | L17: 0 | M17: 0 | N17: 0 | O17: 0 | P17: 0 | Q17: 0 | R17: 0 | S17: 0 | T17: 0 | U17: 0 | V17: 0 | W17: 0 | X17: 0 | Y17: 0 | Z17: 0 | AA17: 0 | AC17: =L17-INDEX($C17:$L17,1,aux!$BA$1) -> 0 | AD17: 0 | AE17: =+IF(INDEX($C17:$L17,1,aux!$BA$1)>0,(L17/INDEX($C17:$L17,1,aux!$BA$1))^(1/($L$3-INDEX($C$3:$L$3,1,aux!$BA$1)))-1,"n.d.") -> n.d. | AF17: =IF(INDEX($C17:$L17,1,aux!$BA$1)>0,(L17-INDEX($C17:$L17,1,aux!$BA$1))/INDEX($C17:$L17,1,aux!$BA$1),"n.d.") -> n.d. | AH17: =X17-INDEX($O17:$X17,1,aux!$BA$1) -> 0 | AI17: 0 | AJ17: =+IF(INDEX($O17:$X17,1,aux!$BA$1)>0,(X17/INDEX($O17:$X17,1,aux!$BA$1))^(1/($X$3-INDEX($O$3:$X$3,1,aux!$BA$1)))-1,"n.d.") -> n.d. | AK17: =IF(INDEX($O17:$X17,1,aux!$BA$1)>0,(X17-INDEX($O17:$X17,1,aux!$BA$1))/INDEX($O17:$X17,1,aux!$BA$1),"n.d.") -> n.d. | AM17: 0 | CC17: =+IF(ISNA(MATCH('5.1'!A17,AUX_2d_pais!$G$2:$G$40000,0)),0,1) -> 0
A18: 0474 | B18: Aruba | C18: 0 | D18: 0 | E18: 0 | F18: 0 | G18: 0 | H18: 0 | I18: 0 | J18: 0 | K18: 0 | L18: 0 | M18: 0 | N18: 0 | O18: 0 | P18: 0 | Q18: 0 | R18: 0 | S18: 0 | T18: 0 | U18: 0 | V18: 0 | W18: 0 | X18: 0 | Y18: 0 | Z18: 0 | AA18: 0 | AC18: =L18-INDEX($C18:$L18,1,aux!$BA$1) -> 0 | AD18: 0 | AE18: =+IF(INDEX($C18:$L18,1,aux!$BA$1)>0,(L18/INDEX($C18:$L18,1,aux!$BA$1))^(1/($L$3-INDEX($C$3:$L$3,1,aux!$BA$1)))-1,"n.d.") -> n.d. | AF18: =IF(INDEX($C18:$L18,1,aux!$BA$1)>0,(L18-INDEX($C18:$L18,1,aux!$BA$1))/INDEX($C18:$L18,1,aux!$BA$1),"n.d.") -> n.d. | AH18: =X18-INDEX($O18:$X18,1,aux!$BA$1) -> 0 | AI18: 0 | AJ18: =+IF(INDEX($O18:$X18,1,aux!$BA$1)>0,(X18/INDEX($O18:$X18,1,aux!$BA$1))^(1/($X$3-INDEX($O$3:$X$3,1,aux!$BA$1)))-1,"n.d.") -> n.d. | AK18: =IF(INDEX($O18:$X18,1,aux!$BA$1)>0,(X18-INDEX($O18:$X18,1,aux!$BA$1))/INDEX($O18:$X18,1,aux!$BA$1),"n.d.") -> n.d. | AM18: 0 | CC18: =+IF(ISNA(MATCH('5.1'!A18,AUX_2d_pais!$G$2:$G$40000,0)),0,1) -> 0
A19: 0800 | B19: Austrália | C19: 0 | D19: 0 | E19: 0 | F19: 0 | G19: 0 | H19: 0 | I19: 0 | J19: 0 | K19: 0 | L19: 0 | M19: 0 | N19: 0 | O19: 0 | P19: 0 | Q19: 0 | R19: 0 | S19: 0 | T19: 0 | U19: 0 | V19: 0 | W19: 0 | X19: 0 | Y19: 0 | Z19: 0 | AA19: 0 | AC19: =L19-INDEX($C19:$L19,1,aux!$BA$1) -> 0 | AD19: 0 | AE19: =+IF(INDEX($C19:$L19,1,aux!$BA$1)>0,(L19/INDEX($C19:$L19,1,aux!$BA$1))^(1/($L$3-INDEX($C$3:$L$3,1,aux!$BA$1)))-1,"n.d.") -> n.d. | AF19: =IF(INDEX($C19:$L19,1,aux!$BA$1)>0,(L19-INDEX($C19:$L19,1,aux!$BA$1))/INDEX($C19:$L19,1,aux!$BA$1),"n.d.") -> n.d. | AH19: =X19-INDEX($O19:$X19,1,aux!$BA$1) -> 0 | AI19: 0 | AJ19: =+IF(INDEX($O19:$X19,1,aux!$BA$1)>0,(X19/INDEX($O19:$X19,1,aux!$BA$1))^(1/($X$3-INDEX($O$3:$X$3,1,aux!$BA$1)))-1,"n.d.") -> n.d. | AK19: =IF(INDEX($O19:$X19,1,aux!$BA$1)>0,(X19-INDEX($O19:$X19,1,aux!$BA$1))/INDEX($O19:$X19,1,aux!$BA$1),"n.d.") -> n.d. | AM19: 0 | CC19: =+IF(ISNA(MATCH('5.1'!A19,AUX_2d_pais!$G$2:$G$40000,0)),0,1) -> 0
A20: 0038 | B20: Áustria | C20: 14203.828 | D20: 22190.55 | E20: 15292.004 | F20: 14775.019 | G20: 16577.982 | H20: 17514.137 | I20: 16609.69 | J20: 17053.769 | K20: 17507.596 | L20: 18681.755 | M20: 17040.633 | N20: 0.002657170129 | O20: 13726.654 | P20: 6393.19 | Q20: 7350.759 | R20: 7164.999 | S20: 7399.566 | T20: 7427.04 | U20: 8289.325 | V20: 12860.175 | W20: 13260.186 | X20: 15389.896 | Y20: 9926.179 | Z20: 0.002874661304 | AA20: -7114.454 | AC20: =L20-INDEX($C20:$L20,1,aux!$BA$1) -> 4477.927 | AD20: 0.002160574154 | AE20: =+IF(INDEX($C20:$L20,1,aux!$BA$1)>0,(L20/INDEX($C20:$L20,1,aux!$BA$1))^(1/($L$3-INDEX($C$3:$L$3,1,aux!$BA$1)))-1,"n.d.") -> 0.03091672469 | AF20: =IF(INDEX($C20:$L20,1,aux!$BA$1)>0,(L20-INDEX($C20:$L20,1,aux!$BA$1))/INDEX($C20:$L20,1,aux!$BA$1),"n.d.") -> 0.3152619843 | AH20: =X20-INDEX($O20:$X20,1,aux!$BA$1) -> 1663.242 | AI20: 0.000937600767 | AJ20: =+IF(INDEX($O20:$X20,1,aux!$BA$1)>0,(X20/INDEX($O20:$X20,1,aux!$BA$1))^(1/($X$3-INDEX($O$3:$X$3,1,aux!$BA$1)))-1,"n.d.") -> 0.01278905601 | AK20: =IF(INDEX($O20:$X20,1,aux!$BA$1)>0,(X20-INDEX($O20:$X20,1,aux!$BA$1))/INDEX($O20:$X20,1,aux!$BA$1),"n.d.") -> 0.1211687859 | CC20: =+IF(ISNA(MATCH('5.1'!A20,AUX_2d_pais!$G$2:$G$40000,0)),0,1) -> 1
A21: 0078 | B21: Azerbaijão | C21: 0 | D21: 0 | E21: 0 | F21: 0 | G21: 0 | H21: 0 | I21: 0 | J21: 0 | K21: 0 | L21: 0 | M21: 0 | N21: 0 | O21: 0 | P21: 0 | Q21: 0 | R21: 0 | S21: 0 | T21: 0 | U21: 0 | V21: 0 | W21: 0 | X21: 0 | Y21: 0 | Z21: 0 | AA21: 0 | AC21: =L21-INDEX($C21:$L21,1,aux!$BA$1) -> 0 | AD21: 0 | AE21: =+IF(INDEX($C21:$L21,1,aux!$BA$1)>0,(L21/INDEX($C21:$L21,1,aux!$BA$1))^(1/($L$3-INDEX($C$3:$L$3,1,aux!$BA$1)))-1,"n.d.") -> n.d. | AF21: =IF(INDEX($C21:$L21,1,aux!$BA$1)>0,(L21-INDEX($C21:$L21,1,aux!$BA$1))/INDEX($C21:$L21,1,aux!$BA$1),"n.d.") -> n.d. | AH21: =X21-INDEX($O21:$X21,1,aux!$BA$1) -> 0 | AI21: 0 | AJ21: =+IF(INDEX($O21:$X21,1,aux!$BA$1)>0,(X21/INDEX($O21:$X21,1,aux!$BA$1))^(1/($X$3-INDEX($O$3:$X$3,1,aux!$BA$1)))-1,"n.d.") -> n.d. | AK21: =IF(INDEX($O21:$X21,1,aux!$BA$1)>0,(X21-INDEX($O21:$X21,1,aux!$BA$1))/INDEX($O21:$X21,1,aux!$BA$1),"n.d.") -> n.d. | AM21: 0 | CC21: =+IF(ISNA(MATCH('5.1'!A21,AUX_2d_pais!$G$2:$G$40000,0)),0,1) -> 0
A22: 0453 | B22: Bahamas | C22: 0 | D22: 0 | E22: 0 | F22: 0 | G22: 0 | H22: 0 | I22: 0 | J22: 0 | K22: 0 | L22: 0 | M22: 0 | N22: 0 | O22: 0 | P22: 0 | Q22: 0 | R22: 0 | S22: 0 | T22: 0 | U22: 0 | V22: 0 | W22: 0 | X22: 0 | Y22: 0 | Z22: 0 | AA22: 0 | AC22: =L22-INDEX($C22:$L22,1,aux!$BA$1) -> 0 | AD22: 0 | AE22: =+IF(INDEX($C22:$L22,1,aux!$BA$1)>0,(L22/INDEX($C22:$L22,1,aux!$BA$1))^(1/($L$3-INDEX($C$3:$L$3,1,aux!$BA$1)))-1,"n.d.") -> n.d. | AF22: =IF(INDEX($C22:$L22,1,aux!$BA$1)>0,(L22-INDEX($C22:$L22,1,aux!$BA$1))/INDEX($C22:$L22,1,aux!$BA$1),"n.d.") -> n.d. | AH22: =X22-INDEX($O22:$X22,1,aux!$BA$1) -> 0 | AI22: 0 | AJ22: =+IF(INDEX($O22:$X22,1,aux!$BA$1)>0,(X22/INDEX($O22:$X22,1,aux!$BA$1))^(1/($X$3-INDEX($O$3:$X$3,1,aux!$BA$1)))-1,"n.d.") -> n.d. | AK22: =IF(INDEX($O22:$X22,1,aux!$BA$1)>0,(X22-INDEX($O22:$X22,1,aux!$BA$1))/INDEX($O22:$X22,1,aux!$BA$1),"n.d.") -> n.d. | AM22: 0 | CC22: =+IF(ISNA(MATCH('5.1'!A22,AUX_2d_pais!$G$2:$G$40000,0)),0,1) -> 0
A23: 0666 | B23: Bangladesh | C23: 0 | D23: 0 | E23: 0 | F23: 0 | G23: 0 | H23: 0 | I23: 0 | J23: 0 | K23: 0 | L23: 0 | M23: 0 | N23: 0 | O23: 0 | P23: 0 | Q23: 0 | R23: 0 | S23: 0 | T23: 0 | U23: 0 | V23: 0 | W23: 0 | X23: 0 | Y23: 0 | Z23: 0 | AA23: 0 | AC23: =L23-INDEX($C23:$L23,1,aux!$BA$1) -> 0 | AD23: 0 | AE23: =+IF(INDEX($C23:$L23,1,aux!$BA$1)>0,(L23/INDEX($C23:$L23,1,aux!$BA$1))^(1/($L$3-INDEX($C$3:$L$3,1,aux!$BA$1)))-1,"n.d.") -> n.d. | AF23: =IF(INDEX($C23:$L23,1,aux!$BA$1)>0,(L23-INDEX($C23:$L23,1,aux!$BA$1))/INDEX($C23:$L23,1,aux!$BA$1),"n.d.") -> n.d. | AH23: =X23-INDEX($O23:$X23,1,aux!$BA$1) -> 0 | AI23: 0 | AJ23: =+IF(INDEX($O23:$X23,1,aux!$BA$1)>0,(X23/INDEX($O23:$X23,1,aux!$BA$1))^(1/($X$3-INDEX($O$3:$X$3,1,aux!$BA$1)))-1,"n.d.") -> n.d. | AK23: =IF(INDEX($O23:$X23,1,aux!$BA$1)>0,(X23-INDEX($O23:$X23,1,aux!$BA$1))/INDEX($O23:$X23,1,aux!$BA$1),"n.d.") -> n.d. | AM23: 0 | CC23: =+IF(ISNA(MATCH('5.1'!A23,AUX_2d_pais!$G$2:$G$40000,0)),0,1) -> 0
A24: 0469 | B24: Barbados | C24: 0 | D24: 0 | E24: 0 | F24: 0 | G24: 0 | H24: 0 | I24: 0 | J24: 0 | K24: 0 | L24: 0 | M24: 0 | N24: 0 | O24: 0 | P24: 0 | Q24: 0 | R24: 0 | S24: 0 | T24: 0 | U24: 0 | V24: 0 | W24: 0 | X24: 0 | Y24: 0 | Z24: 0 | AA24: 0 | AC24: =L24-INDEX($C24:$L24,1,aux!$BA$1) -> 0 | AD24: 0 | AE24: =+IF(INDEX($C24:$L24,1,aux!$BA$1)>0,(L24/INDEX($C24:$L24,1,aux!$BA$1))^(1/($L$3-INDEX($C$3:$L$3,1,aux!$BA$1)))-1,"n.d.") -> n.d. | AF24: =IF(INDEX($C24:$L24,1,aux!$BA$1)>0,(L24-INDEX($C24:$L24,1,aux!$BA$1))/INDEX($C24:$L24,1,aux!$BA$1),"n.d.") -> n.d. | AH24: =X24-INDEX($O24:$X24,1,aux!$BA$1) -> 0 | AI24: 0 | AJ24: =+IF(INDEX($O24:$X24,1,aux!$BA$1)>0,(X24/INDEX($O24:$X24,1,aux!$BA$1))^(1/($X$3-INDEX($O$3:$X$3,1,aux!$BA$1)))-1,"n.d.") -> n.d. | AK24: =IF(INDEX($O24:$X24,1,aux!$BA$1)>0,(X24-INDEX($O24:$X24,1,aux!$BA$1))/INDEX($O24:$X24,1,aux!$BA$1),"n.d.") -> n.d. | AM24: 0 | CC24: =+IF(ISNA(MATCH('5.1'!A24,AUX_2d_pais!$G$2:$G$40000,0)),0,1) -> 0
A25: 0640 | B25: Barém | C25: 0 | D25: 0 | E25: 0 | F25: 0 | G25: 0 | H25: 0 | I25: 0 | J25: 0 | K25: 0 | L25: 0 | M25: 0 | N25: 0 | O25: 0 | P25: 0 | Q25: 0 | R25: 0 | S25: 0 | T25: 0 | U25: 0 | V25: 0 | W25: 0 | X25: 0 | Y25: 0 | Z25: 0 | AA25: 0 | AC25: =L25-INDEX($C25:$L25,1,aux!$BA$1) -> 0 | AD25: 0 | AE25: =+IF(INDEX($C25:$L25,1,aux!$BA$1)>0,(L25/INDEX($C25:$L25,1,aux!$BA$1))^(1/($L$3-INDEX($C$3:$L$3,1,aux!$BA$1)))-1,"n.d.") -> n.d. | AF25: =IF(INDEX($C25:$L25,1,aux!$BA$1)>0,(L25-INDEX($C25:$L25,1,aux!$BA$1))/INDEX($C25:$L25,1,aux!$BA$1),"n.d.") -> n.d. | AH25: =X25-INDEX($O25:$X25,1,aux!$BA$1) -> 0 | AI25: 0 | AJ25: =+IF(INDEX($O25:$X25,1,aux!$BA$1)>0,(X25/INDEX($O25:$X25,1,aux!$BA$1))^(1/($X$3-INDEX($O$3:$X$3,1,aux!$BA$1)))-1,"n.d.") -> n.d. | AK25: =IF(INDEX($O25:$X25,1,aux!$BA$1)>0,(X25-INDEX($O25:$X25,1,aux!$BA$1))/INDEX($O25:$X25,1,aux!$BA$1),"n.d.") -> n.d. | AM25: 0 | CC25: =+IF(ISNA(MATCH('5.1'!A25,AUX_2d_pais!$G$2:$G$40000,0)),0,1) -> 0
A26: 0073 | B26: Belarus | C26: 0 | D26: 0 | E26: 0 | F26: 0 | G26: 0 | H26: 0 | I26: 0 | J26: 0 | K26: 460.5 | L26: 726.074 | M26: 118.6574 | N26: 1.850241707e-05 | O26: 466.495 | P26: 698.217 | Q26: 633.69 | R26: 437.133 | S26: 1693.254 | T26: 2229.059 | U26: 1859.914 | V26: 2487.693 | W26: 3108.502 | X26: 2438.984 | Y26: 1605.2941 | Z26: 0.0004648996186 | AA26: 1486.6367 | AC26: =L26-INDEX($C26:$L26,1,aux!$BA$1) -> 726.074 | AD26: 0.0003503265502 | AE26: =+IF(INDEX($C26:$L26,1,aux!$BA$1)>0,(L26/INDEX($C26:$L26,1,aux!$BA$1))^(1/($L$3-INDEX($C$3:$L$3,1,aux!$BA$1)))-1,"n.d.") -> n.d. | AF26: =IF(INDEX($C26:$L26,1,aux!$BA$1)>0,(L26-INDEX($C26:$L26,1,aux!$BA$1))/INDEX($C26:$L26,1,aux!$BA$1),"n.d.") -> n.d. | AH26: =X26-INDEX($O26:$X26,1,aux!$BA$1) -> 1972.489 | AI26: 0.001111929112 | AJ26: =+IF(INDEX($O26:$X26,1,aux!$BA$1)>0,(X26/INDEX($O26:$X26,1,aux!$BA$1))^(1/($X$3-INDEX($O$3:$X$3,1,aux!$BA$1)))-1,"n.d.") -> 0.2017606937 | AK26: =IF(INDEX($O26:$X26,1,aux!$BA$1)>0,(X26-INDEX($O26:$X26,1,aux!$BA$1))/INDEX($O26:$X26,1,aux!$BA$1),"n.d.") -> 4.22831756 | CC26: =+IF(ISNA(MATCH('5.1'!A26,AUX_2d_pais!$G$2:$G$40000,0)),0,1) -> 1
A27: 0017 | B27: Bélgica | C27: 167804.31 | D27: 164352.217 | E27: 165234.715 | F27: 163239.924 | G27: 176174.764 | H27: 179083.535 | I27: 196145.945 | J27: 201907.246 | K27: 220868.211 | L27: 225993.598 | M27: 186080.4465 | N27: 0.02901578856 | O27: 100641.962 | P27: 99713.251 | Q27: 100057.009 | R27: 108850.84 | S27: 114436.218 | T27: 123597.301 | U27: 130486.493 | V27: 131779.701 | W27: 147713.512 | X27: 160807.173 | Y27: 121808.346 | Z27: 0.03527618621 | AA27: -64272.1005 | AC27: =L27-INDEX($C27:$L27,1,aux!$BA$1) -> 58189.288 | AD27: 0.02807599848 | AE27: =+IF(INDEX($C27:$L27,1,aux!$BA$1)>0,(L27/INDEX($C27:$L27,1,aux!$BA$1))^(1/($L$3-INDEX($C$3:$L$3,1,aux!$BA$1)))-1,"n.d.") -> 0.03363187051 | AF27: =IF(INDEX($C27:$L27,1,aux!$BA$1)>0,(L27-INDEX($C27:$L27,1,aux!$BA$1))/INDEX($C27:$L27,1,aux!$BA$1),"n.d.") -> 0.3467687332 | AH27: =X27-INDEX($O27:$X27,1,aux!$BA$1) -> 60165.211 | AI27: 0.03391625992 | AJ27: =+IF(INDEX($O27:$X27,1,aux!$BA$1)>0,(X27/INDEX($O27:$X27,1,aux!$BA$1))^(1/($X$3-INDEX($O$3:$X$3,1,aux!$BA$1)))-1,"n.d.") -> 0.05345026282 | AK27: =IF(INDEX($O27:$X27,1,aux!$BA$1)>0,(X27-INDEX($O27:$X27,1,aux!$BA$1))/INDEX($O27:$X27,1,aux!$BA$1),"n.d.") -> 0.5978143689 | CC27: =+IF(ISNA(MATCH('5.1'!A27,AUX_2d_pais!$G$2:$G$40000,0)),0,1) -> 1
A28: 0421 | B28: Belize | C28: 0 | D28: 0 | E28: 0 | F28: 0 | G28: 0 | H28: 0 | I28: 0 | J28: 0 | K28: 0 | L28: 0 | M28: 0 | N28: 0 | O28: 0 | P28: 0 | Q28: 0 | R28: 0 | S28: 0 | T28: 0 | U28: 0 | V28: 0 | W28: 0 | X28: 0 | Y28: 0 | Z28: 0 | AA28: 0 | AC28: =L28-INDEX($C28:$L28,1,aux!$BA$1) -> 0 | AD28: 0 | AE28: =+IF(INDEX($C28:$L28,1,aux!$BA$1)>0,(L28/INDEX($C28:$L28,1,aux!$BA$1))^(1/($L$3-INDEX($C$3:$L$3,1,aux!$BA$1)))-1,"n.d.") -> n.d. | AF28: =IF(INDEX($C28:$L28,1,aux!$BA$1)>0,(L28-INDEX($C28:$L28,1,aux!$BA$1))/INDEX($C28:$L28,1,aux!$BA$1),"n.d.") -> n.d. | AH28: =X28-INDEX($O28:$X28,1,aux!$BA$1) -> 0 | AI28: 0 | AJ28: =+IF(INDEX($O28:$X28,1,aux!$BA$1)>0,(X28/INDEX($O28:$X28,1,aux!$BA$1))^(1/($X$3-INDEX($O$3:$X$3,1,aux!$BA$1)))-1,"n.d.") -> n.d. | AK28: =IF(INDEX($O28:$X28,1,aux!$BA$1)>0,(X28-INDEX($O28:$X28,1,aux!$BA$1))/INDEX($O28:$X28,1,aux!$BA$1),"n.d.") -> n.d. | AM28: 0 | CC28: =+IF(ISNA(MATCH('5.1'!A28,AUX_2d_pais!$G$2:$G$40000,0)),0,1) -> 0
A29: 0284 | B29: Benim | C29: 0 | D29: 0 | E29: 0 | F29: 0 | G29: 0 | H29: 0 | I29: 0 | J29: 0 | K29: 0 | L29: 0 | M29: 0 | N29: 0 | O29: 0 | P29: 0 | Q29: 0 | R29: 0 | S29: 0 | T29: 0 | U29: 0 | V29: 0 | W29: 0 | X29: 0 | Y29: 0 | Z29: 0 | AA29: 0 | AC29: =L29-INDEX($C29:$L29,1,aux!$BA$1) -> 0 | AD29: 0 | AE29: =+IF(INDEX($C29:$L29,1,aux!$BA$1)>0,(L29/INDEX($C29:$L29,1,aux!$BA$1))^(1/($L$3-INDEX($C$3:$L$3,1,aux!$BA$1)))-1,"n.d.") -> n.d. | AF29: =IF(INDEX($C29:$L29,1,aux!$BA$1)>0,(L29-INDEX($C29:$L29,1,aux!$BA$1))/INDEX($C29:$L29,1,aux!$BA$1),"n.d.") -> n.d. | AH29: =X29-INDEX($O29:$X29,1,aux!$BA$1) -> 0 | AI29: 0 | AJ29: =+IF(INDEX($O29:$X29,1,aux!$BA$1)>0,(X29/INDEX($O29:$X29,1,aux!$BA$1))^(1/($X$3-INDEX($O$3:$X$3,1,aux!$BA$1)))-1,"n.d.") -> n.d. | AK29: =IF(INDEX($O29:$X29,1,aux!$BA$1)>0,(X29-INDEX($O29:$X29,1,aux!$BA$1))/INDEX($O29:$X29,1,aux!$BA$1),"n.d.") -> n.d. | AM29: 0 | CC29: =+IF(ISNA(MATCH('5.1'!A29,AUX_2d_pais!$G$2:$G$40000,0)),0,1) -> 0
A30: 0413 | B30: Bermudas | C30: 0 | D30: 0 | E30: 0 | F30: 0 | G30: 0 | H30: 0 | I30: 0 | J30: 0 | K30: 0 | L30: 0 | M30: 0 | N30: 0 | O30: 0 | P30: 0 | Q30: 0 | R30: 0 | S30: 0 | T30: 0 | U30: 0 | V30: 0 | W30: 0 | X30: 0 | Y30: 0 | Z30: 0 | AA30: 0 | AC30: =L30-INDEX($C30:$L30,1,aux!$BA$1) -> 0 | AD30: 0 | AE30: =+IF(INDEX($C30:$L30,1,aux!$BA$1)>0,(L30/INDEX($C30:$L30,1,aux!$BA$1))^(1/($L$3-INDEX($C$3:$L$3,1,aux!$BA$1)))-1,"n.d.") -> n.d. | AF30: =IF(INDEX($C30:$L30,1,aux!$BA$1)>0,(L30-INDEX($C30:$L30,1,aux!$BA$1))/INDEX($C30:$L30,1,aux!$BA$1),"n.d.") -> n.d. | AH30: =X30-INDEX($O30:$X30,1,aux!$BA$1) -> 0 | AI30: 0 | AJ30: =+IF(INDEX($O30:$X30,1,aux!$BA$1)>0,(X30/INDEX($O30:$X30,1,aux!$BA$1))^(1/($X$3-INDEX($O$3:$X$3,1,aux!$BA$1)))-1,"n.d.") -> n.d. | AK30: =IF(INDEX($O30:$X30,1,aux!$BA$1)>0,(X30-INDEX($O30:$X30,1,aux!$BA$1))/INDEX($O30:$X30,1,aux!$BA$1),"n.d.") -> n.d. | AM30: 0 | CC30: =+IF(ISNA(MATCH('5.1'!A30,AUX_2d_pais!$G$2:$G$40000,0)),0,1) -> 0
A31: 0516 | B31: Bolívia | C31: 0 | D31: 0 | E31: 0 | F31: 0 | G31: 0 | H31: 0 | I31: 0 | J31: 0 | K31: 0 | L31: 0 | M31: 0 | N31: 0 | O31: 0 | P31: 0 | Q31: 0 | R31: 0 | S31: 0 | T31: 0 | U31: 0 | V31: 0 | W31: 0 | X31: 0 | Y31: 0 | Z31: 0 | AA31: 0 | AC31: =L31-INDEX($C31:$L31,1,aux!$BA$1) -> 0 | AD31: 0 | AE31: =+IF(INDEX($C31:$L31,1,aux!$BA$1)>0,(L31/INDEX($C31:$L31,1,aux!$BA$1))^(1/($L$3-INDEX($C$3:$L$3,1,aux!$BA$1)))-1,"n.d.") -> n.d. | AF31: =IF(INDEX($C31:$L31,1,aux!$BA$1)>0,(L31-INDEX($C31:$L31,1,aux!$BA$1))/INDEX($C31:$L31,1,aux!$BA$1),"n.d.") -> n.d. | AH31: =X31-INDEX($O31:$X31,1,aux!$BA$1) -> 0 | AI31: 0 | AJ31: =+IF(INDEX($O31:$X31,1,aux!$BA$1)>0,(X31/INDEX($O31:$X31,1,aux!$BA$1))^(1/($X$3-INDEX($O$3:$X$3,1,aux!$BA$1)))-1,"n.d.") -> n.d. | AK31: =IF(INDEX($O31:$X31,1,aux!$BA$1)>0,(X31-INDEX($O31:$X31,1,aux!$BA$1))/INDEX($O31:$X31,1,aux!$BA$1),"n.d.") -> n.d. | AM31: 0 | CC31: =+IF(ISNA(MATCH('5.1'!A31,AUX_2d_pais!$G$2:$G$40000,0)),0,1) -> 0
